Workbook

Sheet III Tool Overview
C2: Informing Investment to tackle health Inequalities in Scotland (III) - Active Travel - v.1.1.
C3: What is the nature of the intervention? An active travel intervention which increases total physical activity (in minutes) through increased walking and cycling for the purposes of commuting. It was assumed that 33% of the PAR would be eligible for the intervention, based on an assumption that those commuting to work exclusively/ predominantly by car/van, either as a driver or passenger, over distances of 3 miles or less are most likely to shift to walking/cycling as an alternative. | V3: Geographies
V4: Scotland
V5: Ayrshire & Arran Health Board
G6: Geography | H6: Scotland | V6: Borders Health Board
G7: Intervention name | H7: Active travel | V7: Dumfries & Galloway Health Board
G8: Additional number of people treated | H8: 100000 | I8: =IF(H8>D22,"Too high - please check & re-enter","") ->  | V8: Fife Health Board
G9: Number treated at baseline | H9: 0 | V9: Forth Valley Health Board
G10: Targeting strategy | H10: Proportionate to need | I10: =IF(H10="Even distribution","Interventions are divided evenly across all quintiles",IF(H10="Targeting to Q1","Interventions are targeted at Q1 only",IF(H10="Targeting to Q1 & Q2","Interventions are targeted to Q1 & Q2",IF(H10="Proportionate to need","Targets the distribution of eligible commuters")))) -> Targets the distribution of eligible commuters | V10: Grampian Health Board
V11: Greater Glasgow & Clyde Health Board
V12: Highland Health Board
V13: Lanarkshire Health Board
V14: Lothian Health Board
C15: Baseline Information: Active Travel | G15: Model Outcomes (whole population) | H15: 2 years | I15: 10 years | J15: 20 years | V15: Orkney Health Board
C16: Baseline year | D16: =Calculations!C1 -> 2012 | G16: Years of life gained | H16: =Calculations!S86+Calculations!S107+Calculations!S129+Calculations!S150+Calculations!S172+Calculations!S193+Calculations!S215+Calculations!S236+Calculations!S258+Calculations!S279 -> 249.4624217 | I16: =Calculations!Y86+Calculations!Y107+Calculations!Y129+Calculations!Y150+Calculations!Y172+Calculations!Y193+Calculations!Y215+Calculations!Y236+Calculations!Y258+Calculations!Y279 -> 2452.038855 | J16: =Calculations!AB86+Calculations!AB107+Calculations!AB129+Calculations!AB150+Calculations!AB172+Calculations!AB193+Calculations!AB215+Calculations!AB236+Calculations!AB258+Calculations!AB279 -> 5512.611892 | V16: Shetland Health Board
C17: Age group | D17: 16-64 | G17: Continuous inpatient stays prevented | H17: n/a | I17: n/a | J17: n/a | V17: Tayside Health Board
C18: Number of non-active commuters in population | D18: =HLOOKUP('III Tool Overview'!$H$6,Baseline_Data_2012!$B$2:$AV$278,Baseline_Data_2012!AW271,FALSE) -> 1456279.272 | V18: Western Isles Health Board
C19: Of which, Q1 only: | D19: =HLOOKUP('III Tool Overview'!$H$6,Baseline_Data_2012!$B$2:$AV$278,Baseline_Data_2012!AW272,FALSE) -> 198103.1046 | G19: Model Outcomes (Most deprived SIMD quintile) | H19: 2 years | I19: 10 years | J19: 20 years | V19: Aberdeen City Local Authority
C20: Of which, Q1 & Q2: | D20: =HLOOKUP('III Tool Overview'!$H$6,Baseline_Data_2012!$B$2:$AV$278,Baseline_Data_2012!AW273,FALSE) -> 464094.8069 | G20: Years of life gained | H20: =Calculations!S86+Calculations!S107 -> 58.43418539 | I20: =Calculations!Y86+Calculations!Y107 -> 552.2690206 | J20: =Calculations!AB86+Calculations!AB107 -> 1165.604274 | V20: Aberdeenshire Local Authority
G21: Continuous inpatient stays prevented | H21: n/a | I21: n/a | J21: n/a | V21: Angus Local Authority
C22: Number of non-active commuters < 3 miles to work | D22: =HLOOKUP('III Tool Overview'!$H$6,Baseline_Data_2012!$B$2:$AV$285,Baseline_Data_2012!AW275,FALSE) -> 480572.1598 | V22: Argyll & Bute Local Authority
C23: Of which, Q1 only: | D23: =HLOOKUP('III Tool Overview'!$H$6,Baseline_Data_2012!$B$2:$AV$285,Baseline_Data_2012!AW276,FALSE) -> 65374.02451 | G23: Model Outcomes (comparative health inequalities) | H23: 2 years | I23: 10 years | J23: 20 years | V23: Clackmannanshire Local Authority
C24: Of which, Q1 & Q2: | D24: =HLOOKUP('III Tool Overview'!$H$6,Baseline_Data_2012!$B$2:$AV$285,Baseline_Data_2012!AW277,FALSE) -> 153151.2863 | G24: RII: Years of life lost (without intervention) | H24: =RII!H20 -> 1.157805186 | I24: =RII!H39 -> 1.12234858 | J24: =RII!H58 -> 1.06309604 | V24: Dumfries & Galloway Local Authority
G25: RII: Years of life lost (with intervention) | H25: =RII!S20 -> 1.158058852 | I25: =RII!S39 -> 1.122611128 | J25: =RII!S58 -> 1.063368911 | V25: Dundee City Local Authority
C26: Annual continuous inpatient stays (2013) | D26: =HLOOKUP('III Tool Overview'!$H$6,Baseline_Data_2012!$B$2:$AV$285,Baseline_Data_2012!AW280,FALSE) -> 608398 | G26: RII: years of life lost (difference) | H26: =H25-H24 -> 0.0002536663001 | I26: =I25-I24 -> 0.0002625487877 | J26: 0.0002728701377 | V26: East Ayrshire Local Authority
C27: Of which, Q1 only: | D27: =HLOOKUP('III Tool Overview'!$H$6,Baseline_Data_2012!$B$2:$AV$285,Baseline_Data_2012!AW281,FALSE) -> 166380 | G27: RII: continuous inpatient stays (without intervention) | H27: n/a | I27: n/a | J27: n/a | V27: East Dunbartonshire Local Authority
C28: Of which, Q1 & Q2: | D28: =HLOOKUP('III Tool Overview'!$H$6,Baseline_Data_2012!$B$2:$AV$285,Baseline_Data_2012!AW282,FALSE) -> 300220 | G28: RII: continuous inpatient stays (with intervention) | H28: n/a | I28: n/a | J28: n/a | V28: East Lothian Local Authority
G29: RII: hospital admissions (difference) | H29: n/a | I29: n/a | J29: n/a | V29: East Renfrewshire Local Authority
C30: Please note: This tool was updated in February 2017 to correct two errors: i) the number of non-active commuters ‘eligible to treat’ in local authorities and health boards were over-estimated; (ii) the targeting strategy for quintiles or even distribution was incorrectly modelled. National estimates of the number of commuters eligible to treat, and figures generated by a proportionate to need strategy, are unaffected. The figures published in reports and papers related to Triple-I are also unaffected. | V30: Edinburgh, City of Local Authority
G31: Direct financial savings | H31: 2 years | I31: 10 years | J31: 20 years | V31: Eilean Siar Local Authority
G32: Reduced continuous inpatient stays (£m) - all | H32: n/a | I32: n/a | J32: n/a | V32: Falkirk Local Authority
G33: Reduced continuous inpatient stays (£m) - MDQ | H33: n/a | I33: n/a | J33: n/a | V33: Fife Local Authority
V34: Glasgow City Local Authority
G35: How are costs and financial savings estimated? | V35: Highland Local Authority
G36: We have not attempted to estimate the direct cost of the active travel intervention. Estimates of the impact of increased physical activity on all-cause hospital admissions are unavailable. | V36: Inverclyde Local Authority
V37: Midlothian Local Authority
V38: Moray Local Authority
V39: North Ayrshire Local Authority
V40: North Lanarkshire Local Authority
V41: Orkney Islands Local Authority
V42: Perth & Kinross Local Authority
V43: Renfrewshire Local Authority
V44: Scottish Borders Local Authority
V45: Shetland Islands Local Authority
V46: South Ayrshire Local Authority
V47: South Lanarkshire Local Authority
V48: Stirling Local Authority
V49: West Dunbartonshire Local Authority
V50: West Lothian Local Authority
W54: Even distribution
W55: Targeting to Q1
W56: Targeting to Q1 & Q2
W57: Proportionate to need

Sheet Notes
A1: Worksheet name | B1: What it does
A2: III Tool Overview | B2: • Gives the nature of the intervention (e.g. smoking cessation, changes in income distribution) and relevant baseline information (size of the target population, maximum number who might feasibly gain, hospitalisation data). Where appropriate it also provides cost per intervention and historic statistics on service provision. • Allows users to modify inputs (e.g. the geography being targeted, and where appropriate, the number of interventions and targeting strategy). • Reports on key outcomes: years of life gained and hospitalisations prevented due to the intervention; and changes in the relative index of inequality (for years of life lost and hospitalisations).
A3: Calculations | B3: Based on user inputs, the prevalence and population data in this workbook, and macros that run behind the scenes (incorporating assumptions about mortality, hospitalisations and the impact of interventions), this sheet calculates years of life lost and hospitalisations before and after the intervention, and the difference between the two scenarios.
A4: Targeting | B4: Provides the background information for allocating the total number of interventions by age group, sex and deprivation quintile. The current options are for even distribution, targeting to Q1 only, targeting to Q1 & Q2 only, and targeting according to the distribution of ‘need’ (e.g. the population distribution of smokers).
A5: Baseline_Data_2012 | B5: Provides baseline data on the size of the target population, maximum number who might feasibly gain, hospitalisation data and historic statistics on service provision where available. The size of the target population is calculated for Scotland by applying age/sex/SIMD decile prevalence rates (e.g. for smoking) to the age/sex/SIMD distribution of the total population. Local estimates are derived by weighting national age/sex/SIMD decile prevalence rates by the difference between local and national prevalence rates (separately for men and women). The number who might feasibly gain (as a proportion of the target population) varies by intervention – see commentary for more details.
A6: LookUpData_Pop | B6: Provides aggregate five-year population data by age/sex/SIMD quintile for 2007-2011, used to calculate the before and after impact of interventions. Five years of data was used to improve robustness of results and avoid disclosure issues.
A7: RII | B7: Calculates the Relative Index of Inequality for the III Tool Overview page. For more information on measuring inequalities in health, please see: http://www.scotpho.org.uk/downloads/scotphoreports/scotpho071009_measuringinequalities_rep.pdf

Sheet Calculations
A1: USING Scotland AS EXAMPLE. NEED TO ADD LOOKUP FOR MORTALITY WHEN UPDATE | B1: YEAR START | C1: 2012 | D1: AGE GROUP | E1: 16+ | I1: Cumulative incidence: years 2, 5, 10 and 20 | Q1: Years of life lost: years 2,5,10 and 20 | AC1: Hospitalisations: years 2,5,10 and 20 | AO1: starting off with true 5 year pops then can divide by 5 for virtual pop/deaths if needed. | AR1: WILL VARY BY INTERVENTION | AT1: ASSUMPTION | AZ1: Baseline Calculations | BF1: LE Calculation
A2: Population Group | B2: mid-age | C2: Sex | D2: SIMD | E2: Prevalence exposure (employed adults not working from home who commute to work by car) | F2: Population aged 16+ 2007-11 | G2: Number treated at base | H2: Additional number treated under policy | I2: Baseline-2 | J2: Policy-2 | K2: Baseline-5 | L2: Policy-5 | M2: Baseline-10 | N2: Policy-10 | O2: Baseline-20 | P2: Policy-20 | Q2: Baseline-2 | R2: Policy-2 | S2: Diff YLL-2 | T2: Baseline-5 | U2: Policy-5 | V2: Diff YLL-5 | W2: Baseline-10 | X2: Policy-10 | Y2: Diff YLL-10 | Z2: Baseline-20 | AA2: Policy-20 | AB2: Diff YLL-20 | AC2: Baseline-2 | AD2: Policy-2 | AE2: Diff hosp-2 years | AF2: Baseline-5 | AG2: Policy-5 | AH2: Diff hosp - 5 years | AI2: Baseline-10 | AJ2: Policy-10 | AK2: Diff hosp - 10 years | AL2: Baseline-20 | AM2: Policy-20 | AN2: Diff hosp - 20 years | AO2: Total Population 2007-11 | AP2: All cause deaths 2007-11 | AQ2: All cause hospital admissions 2007-11 | AR2: Eligible population | AT2: Risk Factor Prevalence (Smoking) | AV2: Population Group weighting | AW2: Combined age / sex / SIMD weighting | AX2: Number of smokers, expected (applying rates from Scotland) | AZ2: Mortality crude rate (Mx) | BA2: hospital admissions crude rate (per 100,000) | BC2: EASRs (age and sex standardised) - calculations by age/sex breakdown (Age specific rate*standard pop): mortality | BD2: EASRs (age and sex standardised) - calculations by age/sex breakdown (Age specific rate*standard pop): hospital admissions | BF2: Ax | BG2: Width of interval | BH2: LE
A3: All, by SIMD
A4: Total | F4: =SUM(F5:F9) -> 3484757.2 | G4: =SUM(G5:G9) -> 0 | H4: =SUM(H5:H9) -> 100000 | I4: =SUM(I5:I9) -> 12545.0478 | J4: =SUM(J5:J9) -> 12539.83244 | K4: =SUM(K5:K9) -> 54429.53408 | L4: =SUM(L5:L9) -> 54407.24961 | M4: =SUM(M5:M9) -> 140335.9744 | N4: =SUM(N5:N9) -> 140280.2887 | O4: =SUM(O5:O9) -> 387063.4085 | P4: =SUM(P5:P9) -> 386923.1589 | Q4: =SUM(Q5:Q9) -> 588841.3202 | R4: =SUM(R5:R9) -> 588591.8577 | S4: =SUM(S5:S9) -> 249.4624217 | T4: =SUM(T5:T9) -> 2473405.572 | U4: =SUM(U5:U9) -> 2472370.913 | V4: =SUM(V5:V9) -> 1034.659639 | W4: =SUM(W5:W9) -> 6008354.92 | X4: =SUM(X5:X9) -> 6005902.882 | Y4: =SUM(Y5:Y9) -> 2452.038855 | Z4: =SUM(Z5:Z9) -> 14396631.95 | AA4: =SUM(AA5:AA9) -> 14391119.34 | AB4: =SUM(AB5:AB9) -> 5512.611892 | AC4: =SUM(AC5:AC9) ->  | AD4: =SUM(AD5:AD9) ->  | AE4: =SUM(AE5:AE9) ->  | AF4: =SUM(AF5:AF9) ->  | AG4: =SUM(AG5:AG9) ->  | AI4: =SUM(AI5:AI9) ->  | AJ4: =SUM(AJ5:AJ9) ->  | AK4: =SUM(AK5:AK9) ->  | AL4: =SUM(AL5:AL9) ->  | AM4: =SUM(AM5:AM9) ->  | AN4: =SUM(AN5:AN9) ->  | AO4: =AO11+AO18 -> 26028700 | AP4: =AP11+AP18 -> 12984.62055 | AQ4: =AQ11+AQ18 -> 0 | AV4: n/a | AW4: n/a | AZ4: =IF(AO4=0,0,AP4/AO4) -> 0.0004988578205 | BA4: =AQ4/AP4*100000 -> 0 | BC4: =(BC11+BC18)/2 -> 49.42049439 | BD4: =(BD11+BD18)/2 -> 0
A5: Q 1 | B5: n/a | C5: both | D5: 1 | F5: =F12+F19 -> 693113.2 | G5: =G12+G19 -> 0 | H5: =H12+H19 -> 13603.37322 | I5: =I12+I19 -> 3860.309821 | J5: 3859.114141 | K5: 16647.00596 | L5: 16641.98235 | M5: 42387.11118 | N5: 42374.98059 | O5: 112760.5396 | P5: 112732.7989 | Q5: 183298.441 | R5: 183240.0068 | S5: =S12+S19 -> 58.43418539 | T5: 766310.7005 | U5: 766071.5745 | V5: 239.1260359 | W5: 1844495.029 | X5: 1843942.76 | Y5: 552.2690206 | Z5: 4318724.417 | AA5: 4317558.813 | AB5: 1165.604274 | AH5: =AH12+AH19 ->  | AO5: =HLOOKUP('III Tool Overview'!$H$6,LookUpData_Pop!$B$1:$AV$269,LookUpData_Pop!BB6,FALSE) -> 5252913 | AP5: 5636.848735 | AV5: =AT5/AVERAGE(AT$5:AT$9) ->  | AW5: n/a | AZ5: =IF(AO5=0,0,AP5/AO5) -> 0.001073090062 | BA5: 0 | BC5: =(BC12+BC19)/2 -> 110.0626906 | BD5: =(BD12+BD19)/2 -> 0
A6: Q 2 | B6: n/a | C6: both | D6: 2 | F6: =F13+F20 -> 696324.6 | G6: =G13+G20 -> 0 | H6: 18265.15748 | I6: =I13+I20 -> 2827.44869 | J6: 2826.302123 | K6: 12264.46939 | L6: 12259.58044 | M6: 31601.03661 | N6: 31588.87825 | O6: 86906.62258 | P6: 86876.53513 | Q6: 132847.4726 | R6: 132792.4209 | S6: 55.05168147 | T6: 557933.564 | U6: 557705.5906 | V6: 227.9733589 | W6: 1354783.337 | X6: 1354244.907 | Y6: 538.4296919 | Z6: 3241064.679 | AA6: 3239867.22 | AB6: 1197.458947 | AH6: =AH13+AH20 ->  | AO6: =HLOOKUP('III Tool Overview'!$H$6,LookUpData_Pop!$B$1:$AV$269,LookUpData_Pop!BB7,FALSE) -> 5226592 | AP6: 2468.707539 | AV6: =AT6/AVERAGE(AT$5:AT$9) ->  | AW6: n/a | AZ6: 0.0004723359962 | BA6: 0 | BC6: =(BC14+BC20)/2 -> 37.159935 | BD6: =(BD14+BD20)/2 -> 0
A7: Q 3 | B7: n/a | C7: both | D7: 3 | F7: =F14+F21 -> 698829.6 | G7: 0 | H7: 21747.53177 | I7: =I14+I21 -> 2420.881891 | J7: 2419.763209 | K7: 10525.54672 | L7: 10520.75072 | M7: 27251.82565 | N7: 27239.76527 | O7: 76008.91365 | P7: 75978.10301 | Q7: 113085.3885 | R7: 113032.0158 | S7: 53.37269247 | T7: 475779.4415 | U7: 475557.4301 | V7: 222.0114005 | W7: 1159308.185 | X7: 1158779.254 | Y7: 528.9310035 | Z7: 2797959.277 | AA7: 2796756.758 | AB7: 1202.51856 | AH7: =AH14+AH21 ->  | AO7: =HLOOKUP('III Tool Overview'!$H$6,LookUpData_Pop!$B$1:$AV$269,LookUpData_Pop!BB8,FALSE) -> 5199490 | AP7: 1692.611249 | AV7: =AT7/AVERAGE(AT$5:AT$9) ->  | AW7: n/a | AZ7: 0.0003255340907 | BA7: 0 | BC7: =(BC14+BC21)/2 -> 32.65044237 | BD7: 0
A8: Q 4 | B8: n/a | C8: both | D8: 4 | F8: =F15+F22 -> 693100.2 | G8: 0 | H8: 23969.47582 | I8: =I15+I22 -> 1995.58276 | J8: 1994.5443 | K8: 8696.565827 | L8: 8692.091938 | M8: 22624.57039 | N8: 22613.20648 | O8: 64000.53352 | P8: 63970.64525 | Q8: 92570.66649 | R8: 92521.75492 | S8: 48.91156623 | T8: 390144.1943 | U8: 389939.9944 | V8: 204.1998506 | W8: 953879.7179 | X8: 953389.7539 | Y8: 489.963972 | Z8: 2322330.628 | AA8: 2321196.666 | AB8: 1133.961963 | AH8: =AH15+AH22 ->  | AO8: =HLOOKUP('III Tool Overview'!$H$6,LookUpData_Pop!$B$1:$AV$269,LookUpData_Pop!BB9,FALSE) -> 5176374 | AP8: 1403.895198 | AV8: =AT8/AVERAGE(AT$5:AT$9) ->  | AW8: n/a | AZ8: 0.0002712120874 | BA8: 0 | BC8: 27.59937856 | BD8: 0
A9: Q 5 | B9: n/a | C9: both | D9: 5 | F9: =F16+F23 -> 703389.6 | G9: 0 | H9: 22414.4617 | I9: =I16+I23 -> 1440.824635 | J9: 1440.108666 | K9: 6295.946179 | L9: 6292.844155 | M9: 16471.43061 | N9: 16463.45807 | O9: 47386.79916 | P9: 47365.0766 | Q9: 67039.3516 | R9: 67005.6593 | S9: 33.69229612 | T9: 283237.6721 | U9: 283096.3231 | V9: 141.3489931 | W9: 695888.6514 | X9: 695546.2062 | Y9: 342.4451669 | Z9: 1716552.95 | AA9: 1715739.882 | AB9: 813.0681482 | AH9: =AH16+AH23 ->  | AO9: =HLOOKUP('III Tool Overview'!$H$6,LookUpData_Pop!$B$1:$AV$269,LookUpData_Pop!BB10,FALSE) -> 5173331 | AP9: 1782.557832 | AV9: =AT9/AVERAGE(AT$5:AT$9) ->  | AW9: n/a | AZ9: 0.0003445667466 | BA9: 0 | BC9: 32.30152088 | BD9: 0
A10: Males, by SIMD
A11: Males | F11: =SUM(F12:F16) -> 1715336.2 | G11: =SUM(G12:G16) -> 0 | H11: =SUM(H12:H16) -> 52611.60364 | I11: =SUM(I12:I16) -> 7827.853791 | J11: =SUM(J12:J16) -> 7824.346099 | K11: =SUM(K12:K16) -> 33696.23952 | L11: =SUM(L12:L16) -> 33681.39031 | M11: =SUM(M12:M16) -> 85618.51652 | N11: =SUM(N12:N16) -> 85582.05953 | O11: =SUM(O12:O16) -> 228099.2724 | P11: =SUM(P12:P16) -> 228011.3888 | Q11: =SUM(Q12:Q16) -> 370672.3741 | R11: =SUM(R12:R16) -> 370504.2162 | S11: =SUM(S12:S16) -> 168.1578072 | T11: =SUM(T12:T16) -> 1546063.79 | U11: =SUM(U12:U16) -> 1545372.277 | V11: =SUM(V12:V16) -> 691.5138949 | W11: =SUM(W12:W16) -> 3708949.665 | X11: =SUM(X12:X16) -> 3707336.131 | Y11: =SUM(Y12:Y16) -> 1613.534372 | Z11: =SUM(Z12:Z16) -> 8650685.621 | AA11: =SUM(AA12:AA16) -> 8647182.975 | AB11: =SUM(AB12:AB16) -> 3502.646305 | AC11: =SUM(AC12:AC16) ->  | AD11: =SUM(AD12:AD16) ->  | AE11: =SUM(AE12:AE16) ->  | AF11: =SUM(AF12:AF16) ->  | AG11: =SUM(AG12:AG16) ->  | AH11: =SUM(AH12:AH16) ->  | AI11: =SUM(AI12:AI16) ->  | AJ11: =SUM(AJ12:AJ16) ->  | AK11: =SUM(AK12:AK16) ->  | AL11: =SUM(AL12:AL16) ->  | AM11: =SUM(AM12:AM16) ->  | AN11: =SUM(AN12:AN16) ->  | AO11: =SUM(AO12:AO16) -> 12601707 | AP11: =SUM(AP12:AP16) -> 6166.365966 | AQ11: =SUM(AQ12:AQ16) -> 0 | AV11: =AT11/AVERAGE(AT18,AT11) ->  | AW11: n/a | AZ11: =IF(AO11=0,0,AP11/AO11) -> 0.000489327832 | BA11: =AQ11/AP11*100000 -> 0 | BC11: =SUM(BC26:BC43) -> 58.35513564 | BD11: =SUM(BD26:BD43) -> 0 | BH11: =LE(AZ25:AZ43,BG25:BG43,BF25:BF43,19) -> 
A12: Q 1 | B12: n/a | C12: male | D12: 1 | F12: =F86 -> 333153.2 | G12: =G86 -> 0 | H12: =H86 -> 7590.583214 | I12: =I86 -> 2384.394147 | J12: =J86 -> 2383.544804 | K12: 10189.2784 | L12: 10185.74581 | M12: 25508.65121 | N12: 25500.28488 | O12: 65186.21579 | P12: 65167.99387 | Q12: 114184.8896 | R12: 114143.4097 | S12: 41.47983547 | T12: 473529.6572 | U12: 473361.4924 | V12: 168.1647857 | W12: 1123492.262 | X12: 1123110.498 | Y12: 381.7639674 | Z12: 2550516.022 | AA12: 2549741.163 | AB12: 774.8589353 | AO12: =HLOOKUP('III Tool Overview'!$H$6,LookUpData_Pop!$B$1:$AV$269,LookUpData_Pop!BB13,FALSE) -> 2489967 | AP12: 2764.058271 | AV12: n/a | AW12: n/a | AZ12: 0.001110078274 | BA12: 0 | BC12: =SUM(BC67:BC84) -> 133.3785001 | BD12: =SUM(BD67:BD84) -> 0 | BH12: =LE(AZ66:AZ84,BG66:BG84,BF66:BF84,19) -> 
A13: Q 2 | B13: n/a | C13: male | D13: 2 | F13: =F129 -> 342475.4 | G13: =G129 -> 0 | H13: =H129 -> 9746.733281 | I13: =I129 -> 1762.122363 | J13: 1761.35992 | K13: 7583.133022 | L13: 7579.912485 | M13: 19253.34815 | N13: 19245.481 | O13: 51121.56307 | P13: 51102.93813 | Q13: 83630.83854 | R13: 83594.03253 | S13: 36.80600474 | T13: 348779.8875 | U13: 348628.7525 | V13: 151.1349065 | W13: 836425.2669 | X13: 836073.7368 | Y13: 351.5301042 | Z13: 1947991.416 | AA13: 1947235.741 | AB13: 755.6758277 | AO13: =HLOOKUP('III Tool Overview'!$H$6,LookUpData_Pop!$B$1:$AV$269,LookUpData_Pop!BB14,FALSE) -> 2515468 | AP13: 1161.440471 | AV13: n/a | AW13: n/a | AZ13: 0.0004617194379 | BA13: 0 | BC13: =SUM(BC110:BC127) -> 55.50460166 | BD13: =SUM(BD110:BD127) -> 0 | BH13: =LE(AZ109:AZ127,BG109:BG127,BF109:BF127,19) -> 
A14: Q 3 | B14: n/a | C14: male | D14: 3 | F14: =F172 -> 347035.2 | G14: =G172 -> 0 | H14: =H172 -> 11248.75 | I14: 1522.142326 | J14: 1521.402414 | K14: 6568.869011 | L14: 6565.725219 | M14: 16773.81171 | N14: 16766.03996 | O14: 45260.50429 | P14: 45241.48355 | Q14: 71755.82067 | R14: 71720.45931 | S14: 35.3613617 | T14: 299893.3206 | U14: 299747.4462 | V14: 145.8744758 | W14: 722136.5077 | X14: 721794.1933 | Y14: 342.3144538 | Z14: 1698702.924 | AA14: 1697951.027 | AB14: 751.8973588 | AO14: =HLOOKUP('III Tool Overview'!$H$6,LookUpData_Pop!$B$1:$AV$269,LookUpData_Pop!BB15,FALSE) -> 2536055 | AP14: 772.3440706 | AV14: n/a | AW14: n/a | AZ14: 0.0003045454734 | BA14: 0 | BC14: =SUM(BC153:BC170) -> 37.08932957 | BD14: =SUM(BD153:BD170) -> 0 | BH14: =LE(AZ152:AZ170,BG152:BG170,BF152:BF170,19) -> 
A15: Q 4 | B15: n/a | C15: male | D15: 4 | F15: =F215 -> 343382.2 | G15: =G215 -> 0 | H15: =H215 -> 12446.3187 | I15: 1254.778458 | J15: 1254.093918 | K15: 5429.401368 | L15: 5426.476506 | M15: 13939.43362 | N15: 13932.11971 | O15: 38202.2351 | P15: 38183.73685 | Q15: 58659.87499 | R15: 58627.57095 | S15: 32.30404255 | T15: 245635.4634 | U15: 245501.6314 | V15: 133.8320024 | W15: 593705.1512 | X15: 593388.4917 | Y15: 316.6594959 | Z15: 1409669.024 | AA15: 1408959.08 | AB15: 709.9440228 | AO15: =HLOOKUP('III Tool Overview'!$H$6,LookUpData_Pop!$B$1:$AV$269,LookUpData_Pop!BB16,FALSE) -> 2527989 | AP15: 640.7485271 | AV15: n/a | AW15: n/a | AZ15: 0.0002534617544 | BA15: 0 | BC15: =SUM(BC196:BC213) -> 32.33901908 | BD15: =SUM(BD196:BD213) -> 0 | BH15: =LE(AZ195:AZ213,BG195:BG213,BF195:BF213,19) -> 
A16: Q 5 | B16: n/a | C16: male | D16: 5 | F16: =F258 -> 349290.2 | G16: =G258 -> 0 | H16: =H258 -> 11579.21844 | I16: 904.4164974 | J16: 903.9450435 | K16: 3925.557721 | L16: 3923.530297 | M16: 10143.27183 | N16: 10138.13399 | O16: 28328.75414 | P16: 28315.23642 | Q16: 42440.95029 | R16: 42418.74373 | S16: 22.20656278 | T16: 178225.4618 | U16: 178132.9541 | V16: 92.50772457 | W16: 433190.4777 | X16: 432969.2114 | Y16: 221.2663508 | Z16: 1043806.234 | AA16: 1043295.964 | AB16: 510.2701602 | AO16: =HLOOKUP('III Tool Overview'!$H$6,LookUpData_Pop!$B$1:$AV$269,LookUpData_Pop!BB17,FALSE) -> 2532228 | AP16: 827.774627 | AV16: n/a | AW16: n/a | AZ16: 0.000326895772 | BA16: 0 | BC16: =SUM(BC239:BC256) -> 42.37799909 | BD16: =SUM(BD239:BD256) -> 0 | BH16: =LE(AZ195:AZ213,BG195:BG213,BF195:BF213,19) -> 
A17: Females, by SIMD
A18: Females | F18: =SUM(F19:F23) -> 1769421 | G18: =SUM(G19:G23) -> 0 | H18: 47388.39636 | I18: 4717.194005 | J18: 4715.48634 | K18: 20733.29455 | L18: 20725.85929 | M18: 54717.45791 | N18: 54698.22913 | O18: 158964.1361 | P18: 158911.7701 | Q18: 218168.9461 | R18: 218087.6415 | S18: 81.30461444 | T18: 927341.7819 | U18: 926998.6362 | V18: 343.1457442 | W18: 2299405.255 | X18: 2298566.751 | Y18: 838.5044829 | Z18: 5745946.33 | AA18: 5743936.364 | AB18: 2009.965587 | AO18: =SUM(AO19:AO23) -> 13426993 | AP18: =SUM(AP19:AP23) -> 6818.254587 | AQ18: =SUM(AQ19:AQ23) -> 0 | AV18: =AT18/AVERAGE(AT11,AT18) ->  | AW18: n/a | AZ18: =IF(AO18=0,0,AP18/AO18) -> 0.0005078020512 | BA18: =AQ18/AP18*100000 -> 0 | BC18: =SUM(BC46:BC63) -> 40.48585314 | BD18: =SUM(BD46:BD63) -> 0 | BH18: =LE(AZ45:AZ63,BG45:BG63,BF45:BF63,19) -> 
A19: Q 1 | B19: n/a | C19: female | D19: 1 | F19: =F107 -> 359960 | G19: =G107 -> 0 | H19: =H107 -> 6012.79001 | I19: 1475.915673 | J19: 1475.569337 | K19: 6457.727558 | L19: =L107 -> 6456.236544 | M19: 16878.45997 | N19: 16874.69572 | O19: 47574.32382 | P19: 47564.80507 | Q19: 69113.55144 | R19: 69096.59709 | S19: 16.95434992 | T19: 292781.0433 | U19: 292710.0821 | V19: 70.96125027 | W19: 721002.7676 | X19: 720832.2626 | Y19: 170.5050532 | Z19: 1768208.395 | AA19: 1767817.649 | AB19: 390.7453385 | AO19: =HLOOKUP('III Tool Overview'!$H$6,LookUpData_Pop!$B$1:$AV$269,LookUpData_Pop!BB20,FALSE) -> 2762946 | AP19: 2872.790465 | AV19: n/a | AW19: n/a | AZ19: 0.001039756284 | BA19: 0 | BC19: =SUM(BC88:BC105) -> 86.74688102 | BD19: =SUM(BD88:BD105) -> 0 | BH19: =LE(AZ87:AZ105,BG87:BG105,BF87:BF105,19) -> 
A20: Q 2 | B20: n/a | C20: female | D20: 2 | F20: =F150 -> 353849.2 | G20: =G150 -> 0 | H20: =H150 -> 8518.424199 | I20: 1065.326327 | J20: 1064.942204 | K20: 4681.336371 | L20: 4679.667958 | M20: 12347.68846 | N20: 12343.39725 | O20: 35785.0595 | P20: 35773.597 | Q20: 49216.63408 | R20: 49198.3884 | S20: 18.24567673 | T20: 209153.6765 | U20: 209076.8381 | V20: 76.83845239 | W20: 518358.07 | X20: 518171.1704 | Y20: 186.8995878 | Z20: 1293073.263 | AA20: 1292631.48 | AB20: 441.7831196 | AO20: =HLOOKUP('III Tool Overview'!$H$6,LookUpData_Pop!$B$1:$AV$269,LookUpData_Pop!BB21,FALSE) -> 2711124 | AP20: 1307.267068 | AV20: n/a | AW20: n/a | AZ20: 0.0004821863802 | BA20: 0 | BC20: =SUM(BC131:BC148) -> 37.23054043 | BD20: =SUM(BD131:BD148) -> 0 | BH20: =LE(AZ130:AZ148,BG130:BG148,BF130:BF148,19) -> 
A21: Q 3 | B21: n/a | C21: female | D21: 3 | F21: =F193 -> 351794.4 | G21: =G193 -> 0 | H21: =H193 -> 10498.78177 | I21: 898.739565 | J21: 898.3607946 | K21: 3956.677706 | L21: 3955.0255 | M21: 10478.01394 | N21: 10473.72532 | O21: 30748.40936 | P21: 30736.61946 | Q21: 41329.56778 | R21: 41311.55645 | S21: 18.01133077 | T21: 175886.1209 | U21: 175809.9839 | V21: 76.13692471 | W21: 437171.6771 | X21: 436985.0605 | Y21: 186.6165497 | Z21: 1099256.352 | AA21: 1098805.731 | AB21: 450.6212013 | AO21: =HLOOKUP('III Tool Overview'!$H$6,LookUpData_Pop!$B$1:$AV$269,LookUpData_Pop!BB22,FALSE) -> 2663435 | AP21: 920.2671787 | AV21: n/a | AW21: n/a | AZ21: 0.0003455189177 | BA21: 0 | BC21: =SUM(BC174:BC191) -> 28.21155518 | BD21: =SUM(BD174:BD191) -> 0 | BH21: =LE(AZ173:AZ191,BG173:BG191,BF173:BF191,19) -> 
A22: Q 4 | B22: n/a | C22: female | D22: 4 | F22: =F236 -> 349718 | G22: =G236 -> 0 | H22: =H236 -> 11523.15713 | I22: 740.8043021 | J22: 740.450382 | K22: 3267.164459 | L22: 3265.615432 | M22: 8685.136765 | N22: 8681.086769 | O22: 25798.29842 | P22: 25786.90839 | Q22: 33910.79149 | R22: 33894.18397 | S22: 16.60752368 | T22: 144508.7309 | U22: 144438.3631 | V22: 70.36784828 | W22: 360174.5667 | X22: 360001.2622 | Y22: 173.3044762 | Z22: 912661.6037 | AA22: 912237.5858 | AB22: 424.01794 | AO22: =HLOOKUP('III Tool Overview'!$H$6,LookUpData_Pop!$B$1:$AV$269,LookUpData_Pop!BB23,FALSE) -> 2648385 | AP22: 763.1466705 | AV22: n/a | AW22: n/a | AZ22: 0.0002881554874 | BA22: 0 | BC22: =SUM(BC217:BC234) -> 22.85973804 | BD22: =SUM(BD217:BD234) -> 0 | BH22: =LE(AZ216:AZ234,BG216:BG234,BF216:BF234,19) -> 
A23: Q 5 | B23: n/a | C23: female | D23: 5 | F23: =F279 -> 354099.4 | G23: =G279 -> 0 | H23: =H279 -> 10835.24326 | I23: 536.4081372 | J23: 536.1636221 | K23: 2370.388458 | L23: 2369.313858 | M23: 6328.158777 | N23: 6325.324076 | O23: 19058.04502 | P23: 19049.84018 | Q23: 24598.40131 | R23: 24586.91557 | S23: 11.48573333 | T23: 105012.2103 | U23: 104963.369 | V23: 48.84126852 | W23: 262698.1736 | X23: 262576.9948 | Y23: 121.1788162 | Z23: 672746.7163 | AA23: 672443.9184 | AB23: 302.797988 | AO23: =HLOOKUP('III Tool Overview'!$H$6,LookUpData_Pop!$B$1:$AV$269,LookUpData_Pop!BB24,FALSE) -> 2641103 | AP23: 954.7832048 | AV23: n/a | AW23: n/a | AZ23: 0.0003615092652 | BA23: 0 | BC23: =SUM(BC260:BC277) -> 22.22504267 | BD23: =SUM(BD260:BD277) -> 0 | BH23: =LE(AZ259:AZ277,BG259:BG277,BF259:BF277,19) -> 
A24: age/sex breakdown: All
A25: Male <1 | B25: 0.5 | C25: male | D25: all | F25: =F66+F109+F152+F195+F238 -> 0 | AO25: =HLOOKUP('III Tool Overview'!$H$6,LookUpData_Pop!$B$1:$AV$269,LookUpData_Pop!BB26,FALSE) -> 151126 | AP25: 35.67048205 | AZ25: =IF(AO25=0,0,AP25/AO25) -> 0.0002360314046 | BA25: =AQ25/AP25*100000 -> 0 | BF25: 0.1 | BG25: 1
A26: Male 1-4 | B26: 2.5 | C26: male | D26: all | F26: =F67+F110+F153+F196+F239 -> 0 | AO26: =HLOOKUP('III Tool Overview'!$H$6,LookUpData_Pop!$B$1:$AV$269,LookUpData_Pop!BB27,FALSE) -> 582809 | AP26: 5.922847172 | AZ26: =IF(AO26=0,0,AP26/AO26) -> 1.016258701e-05 | BA26: 0 | BC26: =((AP26+AP25)/(AO26+AO25))*LookUpData_Pop!$B$277 -> 0.4533734374 | BD26: =((AQ26+AQ25)/(AP26+AP25))*LookUpData_Pop!$B$277 -> 0 | BF26: 0.5 | BG26: 4
A27: Male 5-9 | B27: 7.5 | C27: male | D27: all | F27: 0 | AO27: =HLOOKUP('III Tool Overview'!$H$6,LookUpData_Pop!$B$1:$AV$269,LookUpData_Pop!BB28,FALSE) -> 691028 | AP27: 3.793157269 | AZ27: 5.489151336e-06 | BA27: 0 | BC27: =(AP27/AO27)*LookUpData_Pop!$B$278 -> 0.03842405935 | BD27: =(AQ27/AP27)*LookUpData_Pop!$B$278 -> 0 | BF27: 0.5 | BG27: 5
A28: Male 10-14 | B28: 12.5 | C28: male | D28: all | F28: 0 | AO28: =HLOOKUP('III Tool Overview'!$H$6,LookUpData_Pop!$B$1:$AV$269,LookUpData_Pop!BB29,FALSE) -> 754433 | AP28: 5.011795252 | AZ28: 6.643128352e-06 | BA28: 0 | BC28: =(AP28/AO28)*LookUpData_Pop!$B$279 -> 0.04650189846 | BD28: =(AQ28/AP28)*LookUpData_Pop!$B$279 -> 0 | BF28: 0.5 | BG28: 5
A29: Male 15-19 | B29: 17.5 | C29: male | D29: all | F29: 167219.4 | G29: =G70+G113+G156+G199+G242 -> 0 | H29: 2521.003278 | I29: 100.7520418 | J29: 100.7298081 | K29: 440.3268224 | L29: 440.2297878 | M29: 1154.227466 | N29: 1153.973858 | O29: 3367.577894 | P29: 3366.844752 | Q29: 8160.915387 | R29: 8159.114459 | S29: 1.800927537 | T29: 34974.28631 | U29: 34966.57893 | V29: 7.70737278 | W29: 88434.98456 | X29: 88415.55171 | Y29: 19.43285402 | Z29: 236803.9129 | AA29: 236752.3279 | AB29: 51.5850115 | AO29: =HLOOKUP('III Tool Overview'!$H$6,LookUpData_Pop!$B$1:$AV$269,LookUpData_Pop!BB30,FALSE) -> 836097 | AP29: 26.33614267 | AV29: =AT29/AVERAGE(AT$29:AT$42) ->  | AW29: n/a | AX29: n/a | AZ29: 3.149890823e-05 | BA29: 0 | BC29: =(AP29/AO29)*LookUpData_Pop!$B$280 -> 0.2204923576 | BD29: =(AQ29/AP29)*LookUpData_Pop!$B$280 -> 0 | BF29: 0.5 | BG29: 5
A30: Male 20-24 | B30: 22.5 | C30: male | D30: all | F30: 180773.2 | G30: =G71+G114+G157+G200+G243 -> 0 | H30: 3511.042312 | I30: 147.2213266 | J30: 147.1794076 | K30: 643.1495771 | L30: 642.9667947 | M30: 1684.415452 | N30: 1683.938641 | O30: 4901.120839 | P30: 4899.75062 | Q30: 11336.04215 | R30: 11332.81438 | S30: 3.227764686 | T30: 48511.71285 | U30: 48497.9256 | V30: 13.78725235 | W30: 122322.9328 | X30: 122288.3021 | Y30: 34.6306779 | Z30: 325097.8972 | AA30: 325006.9293 | AB30: 90.96788855 | AO30: =HLOOKUP('III Tool Overview'!$H$6,LookUpData_Pop!$B$1:$AV$269,LookUpData_Pop!BB31,FALSE) -> 903866 | AP30: 51.48749879 | AV30: =AT30/AVERAGE(AT$29:AT$42) ->  | AW30: n/a | AX30: n/a | AZ30: 5.696364151e-05 | BA30: 0 | BC30: =(AP30/AO30)*LookUpData_Pop!$B$281 -> 0.3987454905 | BD30: =(AQ30/AP30)*LookUpData_Pop!$B$281 -> 0 | BF30: 0.5 | BG30: 5
A31: Male 25-29 | B31: 27.5 | C31: male | D31: all | F31: 171198.4 | G31: =G72+G115+G158+G201+G244 -> 0 | H31: 5667.567052 | I31: 219.3024853 | J31: 219.1982875 | K31: 957.1770253 | L31: 956.7235352 | M31: 2502.095225 | N31: 2500.916901 | O31: 7237.471216 | P31: 7234.126478 | Q31: 15570.47646 | R31: 15563.07841 | S31: 7.398045842 | T31: 66455.92377 | U31: 66424.43732 | V31: 31.48645469 | W31: 166701.904 | X31: 166623.3813 | Y31: 78.52263937 | Z31: 436844.6253 | AA31: 436642.4451 | AB31: 202.1801857 | AO31: =HLOOKUP('III Tool Overview'!$H$6,LookUpData_Pop!$B$1:$AV$269,LookUpData_Pop!BB32,FALSE) -> 855992 | AP31: 65.80026798 | AW31: n/a | AX31: n/a | AZ31: 7.687019035e-05 | BA31: 0 | BC31: =(AP31/AO31)*LookUpData_Pop!$B$282 -> 0.5380913324 | BD31: =(AQ31/AP31)*LookUpData_Pop!$B$282 -> 0 | BF31: 0.5 | BG31: 5
A32: Male 30-34 | B32: 32.5 | C32: male | D32: all | F32: 152486.2 | G32: =G73+G116+G159+G202+G245 -> 0 | H32: 5436.167715 | I32: 258.3138568 | J32: 258.1813736 | K32: 1126.544158 | L32: 1125.968574 | M32: 2939.87213 | N32: 2938.382072 | O32: 8459.602606 | P32: 8455.421239 | Q32: 17307.0284 | R32: 17298.15203 | S32: 8.876370013 | T32: 73709.48315 | U32: 73671.82107 | V32: 37.66207861 | W32: 184121.0516 | X32: 184027.7023 | Y32: 93.34937383 | Z32: 476977.9027 | AA32: 476741.648 | AB32: 236.2547042 | AO32: =HLOOKUP('III Tool Overview'!$H$6,LookUpData_Pop!$B$1:$AV$269,LookUpData_Pop!BB33,FALSE) -> 762431 | AP32: 83.92466949 | AW32: n/a | AX32: n/a | AZ32: 0.0001100751012 | BA32: 0 | BC32: =(AP32/AO32)*LookUpData_Pop!$B$283 -> 0.7705257084 | BD32: =(AQ32/AP32)*LookUpData_Pop!$B$283 -> 0 | BF32: 0.5 | BG32: 5
A33: Male 35-39 | B33: 37.5 | C33: male | D33: all | F33: 169450.4 | G33: =G74+G117+G160+G203+G246 -> 0 | H33: 5874.862153 | I33: 429.9852379 | J33: 429.7723192 | K33: 1872.103534 | L33: 1871.181778 | M33: 4868.467469 | N33: 4866.099037 | O33: 13859.53697 | P33: 13853.04305 | Q33: 26229.09951 | R33: 26216.11147 | S33: =S74+S117+S160+S203+S246 -> 12.98804264 | T33: 111261.1413 | U33: 111206.3561 | V33: 54.7852185 | W33: 275736.6908 | X33: 275602.4809 | Y33: 134.2098972 | Z33: 698983.5482 | AA33: 698654.8678 | AB33: 328.6804534 | AO33: =HLOOKUP('III Tool Overview'!$H$6,LookUpData_Pop!$B$1:$AV$269,LookUpData_Pop!BB34,FALSE) -> 847252 | AP33: 94.56347117 | AW33: n/a | AX33: n/a | AZ33: 0.0001116119775 | BA33: 0 | BC33: =(AP33/AO33)*LookUpData_Pop!$B$284 -> 0.7812838426 | BD33: =(AQ33/AP33)*LookUpData_Pop!$B$284 -> 0 | BF33: 0.5 | BG33: 5
A34: Male 40-44 | B34: 42.5 | C34: male | D34: all | F34: 191272 | G34: =G75+G118+G161+G204+G247 -> 0 | H34: 6941.381134 | I34: 638.4678765 | J34: 638.1366292 | K34: 2775.409529 | L34: 2773.980399 | M34: 7193.676471 | N34: 7190.030566 | O34: 20273.0861 | P34: 20263.30797 | Q34: 36392.66896 | R34: 36373.78786 | S34: 18.88109558 | T34: 153847.5229 | U34: 153768.2941 | V34: 79.22880358 | W34: 378712.4454 | X34: 378520.3664 | Y34: 192.0789417 | Z34: 942316.5467 | AA34: 941859.6924 | AB34: 456.854332 | AO34: =HLOOKUP('III Tool Overview'!$H$6,LookUpData_Pop!$B$1:$AV$269,LookUpData_Pop!BB35,FALSE) -> 956360 | AP34: 136.7660919 | AW34: n/a | AX34: n/a | AZ34: 0.0001430069136 | BA34: 0 | BC34: =(AP34/AO34)*LookUpData_Pop!$B$285 -> 1.001048395 | BD34: =(AQ34/AP34)*LookUpData_Pop!$B$285 -> 0 | BF34: 0.5 | BG34: 5
A35: Male 45-49 | B35: 47.5 | C35: male | D35: all | F35: 192157.2 | G35: =G76+G119+G162+G205+G248 -> 0 | H35: 7261.167864 | I35: 983.8469676 | J35: 983.325744 | K35: 4261.750554 | L35: 4259.517834 | M35: 10965.60311 | N35: 10959.99182 | O35: 30228.59523 | P35: 30214.22006 | Q35: 50176.19535 | R35: 50149.61294 | S35: 26.58240545 | T35: 210680.5897 | U35: 210570.1943 | V35: 110.3953429 | W35: 511685.3568 | X35: 511423.1971 | Y35: 262.1596967 | Z35: 1226881.15 | AA35: 1226292.435 | AB35: 588.7150522 | AO35: =HLOOKUP('III Tool Overview'!$H$6,LookUpData_Pop!$B$1:$AV$269,LookUpData_Pop!BB36,FALSE) -> 960786 | AP35: 190.2545852 | AW35: n/a | AX35: n/a | AZ35: 0.0001980197309 | BA35: 0 | BC35: =(AP35/AO35)*LookUpData_Pop!$B$286 -> 1.386138116 | BD35: =(AQ35/AP35)*LookUpData_Pop!$B$286 -> 0 | BF35: 0.5 | BG35: 5
A36: Male 50-54 | B36: 52.5 | C36: male | D36: all | F36: 175029.8 | G36: =G77+G120+G163+G206+G249 -> 0 | H36: 6858.567232 | I36: 1193.482021 | J36: 1192.828222 | K36: 5152.536883 | L36: 5149.755849 | M36: 13166.00483 | N36: 13159.11707 | O36: 35555.3938 | P36: 35538.5148 | Q36: 56093.65497 | R36: 56062.92646 | S36: 30.7285102 | T36: 234120.7007 | U36: 233994.3024 | V36: 126.3982678 | W36: 561918.5977 | X36: 561624.1028 | Y36: 294.4948845 | Z36: 1304415.369 | AA36: 1303787.697 | AB36: 627.6715333 | AO36: =HLOOKUP('III Tool Overview'!$H$6,LookUpData_Pop!$B$1:$AV$269,LookUpData_Pop!BB37,FALSE) -> 875149 | AP36: 268.6986009 | AW36: n/a | AX36: n/a | AZ36: 0.0003070318322 | BA36: 0 | BC36: =(AP36/AO36)*LookUpData_Pop!$B$287 -> 2.149222825 | BD36: =(AQ36/AP36)*LookUpData_Pop!$B$287 -> 0 | BF36: 0.5 | BG36: 5
A37: Male 55-59 | B37: 57.5 | C37: male | D37: all | F37: 160149.2 | G37: =G78+G121+G164+G207+G250 -> 0 | H37: 4376.839212 | I37: 1679.114919 | J37: 1678.457215 | K37: 7197.368979 | L37: 7194.616513 | M37: 18122.64187 | N37: 18116.05136 | O37: 46900.40835 | P37: 46885.81078 | Q37: 68843.71166 | R37: 68816.74581 | S37: 26.96584655 | T37: 283891.5006 | U37: 283782.8785 | V37: 108.6221294 | W37: 665378.345 | X37: 665135.5403 | Y37: 242.8047345 | Z37: 1449183.51 | AA37: 1448720.024 | AB37: 463.4862384 | AO37: =HLOOKUP('III Tool Overview'!$H$6,LookUpData_Pop!$B$1:$AV$269,LookUpData_Pop!BB38,FALSE) -> 800746 | AP37: 338.3797944 | AW37: n/a | AX37: n/a | AZ37: 0.0004225806866 | BA37: 0 | BC37: =(AP37/AO37)*LookUpData_Pop!$B$288 -> 2.535484119 | BD37: =(AQ37/AP37)*LookUpData_Pop!$B$288 -> 0 | BF37: 0.5 | BG37: 5
A38: Male 60-64 | B38: 62.5 | C38: male | D38: all | F38: 155600.4 | G38: =G79+G122+G165+G208+G251 -> 0 | H38: 4163.005685 | I38: 2177.36706 | J38: 2176.537092 | K38: 9269.872463 | L38: 9266.449249 | M38: 23021.5125 | N38: 23013.5582 | O38: 57316.47938 | P38: 57300.34906 | Q38: 80562.58121 | R38: 80531.87241 | S38: 30.70879874 | T38: 328610.9292 | U38: 328489.4882 | V38: 121.4409743 | W38: 753937.3568 | X38: 753675.5061 | Y38: 261.8506724 | Z38: 1553181.159 | AA38: 1552724.908 | AB38: 456.2509057 | AO38: =HLOOKUP('III Tool Overview'!$H$6,LookUpData_Pop!$B$1:$AV$269,LookUpData_Pop!BB39,FALSE) -> 778002 | AP38: 500.4547292 | AW38: n/a | AX38: n/a | AZ38: 0.0006432563531 | BA38: 0 | BC38: =(AP38/AO38)*LookUpData_Pop!$B$289 -> 3.216281765 | BD38: =(AQ38/AP38)*LookUpData_Pop!$B$289 -> 0 | BF38: 0.5 | BG38: 5
A39: Male 65-69 | B39: 67.5 | C39: male | D39: all | F39: 0 | G39: =G80+G123+G166+G209+G252 -> 0 | H39: 0 | I39: 0 | J39: 0 | K39: 0 | L39: 0 | M39: 0 | N39: 0 | O39: 0 | P39: 0 | Q39: 0 | R39: 0 | S39: 0 | T39: 0 | U39: 0 | V39: 0 | W39: 0 | X39: 0 | Y39: 0 | Z39: 0 | AA39: 0 | AB39: 0 | AC39: 0 | AD39: 0 | AE39: 0 | AF39: 0 | AG39: 0 | AH39: 0 | AI39: 0 | AJ39: 0 | AK39: 0 | AL39: 0 | AM39: 0 | AN39: 0 | AO39: =HLOOKUP('III Tool Overview'!$H$6,LookUpData_Pop!$B$1:$AV$269,LookUpData_Pop!BB40,FALSE) -> 595909 | AP39: 589.5740106 | AW39: n/a | AX39: n/a | AZ39: 0.0009893692001 | BA39: 0 | BC39: =(AP39/AO39)*LookUpData_Pop!$B$290 -> 3.9574768 | BD39: =(AQ39/AP39)*LookUpData_Pop!$B$290 -> 0 | BF39: 0.5 | BG39: 5
A40: Male 70-74 | B40: 72.5 | C40: male | D40: all | F40: 0 | G40: 0 | H40: 0 | I40: =I81+I124+I167+I210+I253 -> 0 | J40: 0 | K40: 0 | L40: 0 | M40: 0 | N40: 0 | O40: 0 | P40: 0 | Q40: 0 | R40: 0 | S40: 0 | T40: 0 | U40: 0 | V40: =V81+V124+V167+V210+V253 -> 0 | W40: 0 | X40: 0 | Y40: 0 | Z40: 0 | AA40: 0 | AB40: 0 | AC40: 0 | AD40: 0 | AE40: 0 | AF40: 0 | AG40: 0 | AH40: 0 | AI40: 0 | AJ40: 0 | AK40: 0 | AL40: 0 | AM40: 0 | AN40: 0 | AO40: =HLOOKUP('III Tool Overview'!$H$6,LookUpData_Pop!$B$1:$AV$269,LookUpData_Pop!BB41,FALSE) -> 492020 | AP40: 773.0998862 | AW40: n/a | AX40: n/a | AZ40: 0.001571277359 | BA40: 0 | BC40: =(AP40/AO40)*LookUpData_Pop!$B$291 -> 4.713832077 | BD40: =(AQ40/AP40)*LookUpData_Pop!$B$291 -> 0 | BF40: 0.5 | BG40: 5
A41: Male 75-79 | B41: 77.5 | C41: male | D41: all | F41: 0 | G41: 0 | H41: 0 | I41: 0 | J41: 0 | K41: 0 | L41: 0 | M41: 0 | N41: 0 | O41: 0 | P41: 0 | Q41: 0 | R41: 0 | S41: 0 | T41: 0 | U41: 0 | V41: =V82+V125+V168+V211+V254 -> 0 | W41: 0 | X41: 0 | Y41: 0 | Z41: 0 | AA41: 0 | AB41: 0 | AC41: 0 | AD41: 0 | AE41: 0 | AF41: 0 | AG41: 0 | AH41: 0 | AI41: 0 | AJ41: 0 | AK41: 0 | AL41: 0 | AM41: 0 | AN41: 0 | AO41: =HLOOKUP('III Tool Overview'!$H$6,LookUpData_Pop!$B$1:$AV$269,LookUpData_Pop!BB42,FALSE) -> 369617 | AP41: 938.4276753 | AW41: n/a | AX41: n/a | AZ41: 0.002538919139 | BA41: 0 | BC41: =(AP41/AO41)*LookUpData_Pop!$B$292 -> 5.077838278 | BD41: =(AQ41/AP41)*LookUpData_Pop!$B$292 -> 0 | BF41: 0.5 | BG41: 5
A42: Male 80-84 | B42: 82.5 | C42: male | D42: all | F42: 0 | G42: 0 | H42: 0 | I42: 0 | J42: 0 | K42: 0 | L42: 0 | M42: 0 | N42: 0 | O42: 0 | P42: 0 | Q42: 0 | R42: 0 | S42: 0 | T42: 0 | U42: 0 | V42: =V83+V126+V169+V212+V255 -> 0 | W42: 0 | X42: 0 | Y42: 0 | Z42: 0 | AA42: 0 | AB42: 0 | AC42: 0 | AD42: 0 | AE42: 0 | AF42: 0 | AG42: 0 | AH42: 0 | AI42: 0 | AJ42: 0 | AK42: 0 | AL42: 0 | AM42: 0 | AN42: 0 | AO42: =HLOOKUP('III Tool Overview'!$H$6,LookUpData_Pop!$B$1:$AV$269,LookUpData_Pop!BB43,FALSE) -> 232112 | AP42: 940.6984081 | AV42: =AT42/AVERAGE(AT$29:AT$42) ->  | AW42: n/a | AX42: n/a | AZ42: 0.004052778004 | BA42: 0 | BC42: =(AP42/AO42)*LookUpData_Pop!$B$293 -> 4.052778004 | BD42: =(AQ42/AP42)*LookUpData_Pop!$B$293 -> 0 | BF42: 0.5 | BG42: 5
A43: Male 85-89 | B43: 87.5 | C43: male | D43: all | F43: 0 | G43: 0 | H43: 0 | I43: 0 | J43: 0 | K43: 0 | L43: 0 | M43: 0 | N43: 0 | O43: 0 | P43: 0 | Q43: 0 | R43: 0 | S43: 0 | T43: 0 | U43: 0 | V43: =V84+V127+V170+V213+V256 -> 0 | W43: 0 | X43: 0 | Y43: 0 | Z43: 0 | AA43: 0 | AB43: 0 | AC43: 0 | AD43: 0 | AE43: 0 | AF43: 0 | AG43: 0 | AH43: 0 | AI43: 0 | AJ43: 0 | AK43: 0 | AL43: 0 | AM43: 0 | AN43: 0 | AO43: =HLOOKUP('III Tool Overview'!$H$6,LookUpData_Pop!$B$1:$AV$269,LookUpData_Pop!BB45,FALSE) -> 41362 | AP43: 1117.501853 | AZ43: 0.02701759713 | BA43: 0 | BC43: =(AP43/AO43)*LookUpData_Pop!$B$294 -> 27.01759713 | BD43: =(AQ43/AP43)*LookUpData_Pop!$B$294 -> 0 | BF43: 0.5 | BG43: =2/AZ43 -> 74.02582806
A44: Male 90+ | B44: 95 | C44: female | D44: all | F44: 0 | G44: 0 | H44: 0 | I44: 0 | J44: 0 | K44: 0 | L44: 0 | M44: 0 | N44: 0 | O44: 0 | P44: 0 | Q44: 0 | R44: 0 | S44: 0 | T44: 0 | U44: 0 | V44: 0 | W44: 0 | X44: 0 | Y44: 0 | Z44: 0 | AA44: 0 | AB44: 0 | AC44: 0 | AD44: 0 | AE44: 0 | AF44: 0 | AG44: 0 | AH44: 0 | AI44: 0 | AJ44: 0 | AK44: 0 | AL44: 0 | AM44: 0 | AN44: 0
A45: Female <1 | B45: 0.5 | C45: female | D45: all | F45: =F87+F130+F173+F216+F259 -> 0 | AO45: =HLOOKUP('III Tool Overview'!$H$6,LookUpData_Pop!$B$1:$AV$269,LookUpData_Pop!BB46,FALSE) -> 144841 | AP45: 27.49877476 | AZ45: 0.0001898549082 | BA45: 0 | BF45: 0.1 | BG45: 1
A46: Female 1-4 | B46: 2.5 | C46: female | D46: all | F46: =F88+F131+F174+F217+F260 -> 0 | AO46: =HLOOKUP('III Tool Overview'!$H$6,LookUpData_Pop!$B$1:$AV$269,LookUpData_Pop!BB47,FALSE) -> 555491 | AP46: 5.955722552 | AZ46: 1.072154644e-05 | BA46: 0 | BC46: =((AP46+AP45)/(AO46+AO45))*LookUpData_Pop!$B$277 -> 0.3821558611 | BD46: =((AQ46+AQ45)/(AP46+AP45))*LookUpData_Pop!$B$277 -> 0 | BF46: 0.5 | BG46: 4
A47: Female 5-9 | B47: 7.5 | C47: female | D47: all | F47: 0 | AO47: =HLOOKUP('III Tool Overview'!$H$6,LookUpData_Pop!$B$1:$AV$269,LookUpData_Pop!BB48,FALSE) -> 660895 | AP47: 2.395771724 | AZ47: 3.625041382e-06 | BA47: 0 | BC47: =(AP47/AO47)*LookUpData_Pop!$B$278 -> 0.02537528967 | BD47: =(AQ47/AP47)*LookUpData_Pop!$B$278 -> 0 | BF47: 0.5 | BG47: 5
A48: Female 10-14 | B48: 12.5 | C48: female | D48: all | F48: 0 | AO48: =HLOOKUP('III Tool Overview'!$H$6,LookUpData_Pop!$B$1:$AV$269,LookUpData_Pop!BB49,FALSE) -> 717767 | AP48: 3.826982248 | AZ48: 5.331789074e-06 | BA48: 0 | BC48: =(AP48/AO48)*LookUpData_Pop!$B$279 -> 0.03732252352 | BD48: =(AQ48/AP48)*LookUpData_Pop!$B$279 -> 0 | BF48: 0.5 | BG48: 5
A49: Female 15-19 | B49: 17.5 | C49: female | D49: all | F49: 159488.6 | G49: =G91+G134+G177+G220+G263 -> 0 | H49: 1985.917054 | I49: 39.6837382 | J49: 39.67627036 | K49: 176.1836309 | L49: 176.1504967 | M49: 475.1649694 | N49: 475.0757284 | O49: 1480.053609 | P49: 1479.776917 | Q49: 3214.382794 | R49: 3213.777899 | S49: 0.604894881 | T49: 13991.72693 | U49: 13989.09554 | V49: 2.631396127 | W49: 36375.0446 | X49: 36368.2127 | Y49: 6.831894229 | Z49: 103652.1556 | AA49: 103632.7724 | AB49: 19.38311394 | AO49: =HLOOKUP('III Tool Overview'!$H$6,LookUpData_Pop!$B$1:$AV$269,LookUpData_Pop!BB50,FALSE) -> 797443 | AP49: 11.55522092 | AV49: =AT49/AVERAGE(AT$49:AT$62) ->  | AW49: n/a | AX49: n/a | AZ49: 1.44903409e-05 | BA49: 0 | BC49: =(AP49/AO49)*LookUpData_Pop!$B$280 -> 0.1014323863 | BD49: =(AQ49/AP49)*LookUpData_Pop!$B$280 -> 0 | BF49: 0.5 | BG49: 5
A50: Female 20-24 | B50: 22.5 | C50: female | D50: all | F50: 176551.6 | G50: =G92+G135+G178+G221+G264 -> 0 | H50: 2897.422389 | I50: 62.13317182 | J50: 62.11771459 | K50: 275.7956671 | L50: 275.7271164 | M50: 743.4830824 | N50: 743.2986428 | O50: 2312.313827 | P50: 2311.743939 | Q50: 4784.25423 | R50: 4783.064023 | S50: 1.190206729 | T50: 20799.33834 | U50: 20794.16849 | V50: 5.169852763 | W50: 53942.29937 | X50: 53928.9168 | Y50: 13.38257209 | Z50: 152703.7742 | AA50: 152666.1227 | AB50: 37.65155149 | AO50: =HLOOKUP('III Tool Overview'!$H$6,LookUpData_Pop!$B$1:$AV$269,LookUpData_Pop!BB51,FALSE) -> 882758 | AP50: 16.6775734 | AV50: =AT50/AVERAGE(AT$49:AT$62) ->  | AW50: n/a | AX50: n/a | AZ50: 1.88925769e-05 | BA50: 0 | BC50: =(AP50/AO50)*LookUpData_Pop!$B$281 -> 0.1322480383 | BD50: =(AQ50/AP50)*LookUpData_Pop!$B$281 -> 0 | BF50: 0.5 | BG50: 5
A51: Female 25-29 | B51: 27.5 | C51: female | D51: all | F51: 168390 | G51: =G93+G136+G179+G222+G265 -> 0 | H51: 5194.735392 | I51: 99.031521 | J51: 98.98797986 | K51: 439.3746074 | L51: 439.1816859 | M51: 1183.246466 | N51: 1182.728446 | O51: 3667.416287 | P51: 3665.826527 | Q51: 7031.237991 | R51: 7028.14657 | S51: 3.09142116 | T51: 30499.68467 | U51: 30486.2926 | V51: 13.39206812 | W51: 78752.00339 | X51: 78717.52256 | Y51: 34.48083613 | Z51: 220245.0432 | AA51: 220149.5009 | AB51: 95.54229584 | AO51: =HLOOKUP('III Tool Overview'!$H$6,LookUpData_Pop!$B$1:$AV$269,LookUpData_Pop!BB52,FALSE) -> 841950 | AP51: 22.26477439 | AW51: n/a | AX51: n/a | AZ51: 2.644429525e-05 | BA51: 0 | BC51: =(AP51/AO51)*LookUpData_Pop!$B$282 -> 0.1851100668 | BD51: =(AQ51/AP51)*LookUpData_Pop!$B$282 -> 0 | BF51: 0.5 | BG51: 5
A52: Female 30-34 | B52: 32.5 | C52: female | D52: all | F52: 155899.8 | G52: =G94+G137+G180+G223+G266 -> 0 | H52: 5046.612674 | I52: 124.1062185 | J52: 124.0487732 | K52: 550.3938063 | L52: 550.139509 | M52: 1480.86854 | N52: 1480.187073 | O52: 4575.82041 | P52: 4573.742973 | Q52: 8315.116641 | R52: 8311.267801 | S52: 3.848839363 | T52: 36004.81765 | U52: 35988.18205 | V52: 16.63560849 | W52: 92640.18063 | X52: 92597.543 | Y52: 42.63763019 | Z52: 256557.7672 | AA52: 256441.1638 | AB52: 116.603409 | AO52: =HLOOKUP('III Tool Overview'!$H$6,LookUpData_Pop!$B$1:$AV$269,LookUpData_Pop!BB53,FALSE) -> 779499 | AP52: 31.43272959 | AW52: n/a | AX52: n/a | AZ52: 4.032427186e-05 | BA52: 0 | BC52: =(AP52/AO52)*LookUpData_Pop!$B$283 -> 0.282269903 | BD52: =(AQ52/AP52)*LookUpData_Pop!$B$283 -> 0 | BF52: 0.5 | BG52: 5
A53: Female 35-39 | B53: 37.5 | C53: female | D53: all | F53: 182100.2 | G53: =G95+G138+G181+G224+G267 -> 0 | H53: 5520.006378 | I53: 231.2737143 | J53: 231.1769432 | K53: 1024.686209 | L53: 1024.25862 | M53: 2751.222626 | N53: 2750.081415 | O53: 8441.955338 | P53: 8438.523478 | Q53: 14107.69657 | R53: 14101.79354 | S53: 5.903038209 | T53: 60884.0221 | U53: 60858.615 | V53: 25.40710642 | W53: 155617.0704 | X53: 155552.5043 | Y53: 64.56613547 | Z53: 422935.4124 | AA53: 422763.1674 | AB53: 172.2449798 | AO53: =HLOOKUP('III Tool Overview'!$H$6,LookUpData_Pop!$B$1:$AV$269,LookUpData_Pop!BB54,FALSE) -> 910501 | AP53: 47.22955414 | AW53: n/a | AX53: n/a | AZ53: 5.187205082e-05 | BA53: 0 | BC53: =(AP53/AO53)*LookUpData_Pop!$B$284 -> 0.3631043557 | BD53: =(AQ53/AP53)*LookUpData_Pop!$B$284 -> 0 | BF53: 0.5 | BG53: 5
A54: Female 40-44 | B54: 42.5 | C54: female | D54: all | F54: 206617 | G54: =G96+G139+G182+G225+G268 -> 0 | H54: 6745.14258 | I54: 360.1216189 | J54: 359.9592198 | K54: 1594.037219 | L54: 1593.321063 | M54: 4270.971974 | N54: 4269.068823 | O54: 13014.54373 | P54: 13008.90259 | Q54: 20526.93228 | R54: 20517.67553 | S54: 9.256746184 | T54: 88338.36425 | U54: 88298.67415 | V54: 39.69010847 | W54: 224515.3938 | X54: 224415.3128 | Y54: 100.0809871 | Z54: 600364.2308 | AA54: 600103.2952 | AB54: 260.9356692 | AO54: =HLOOKUP('III Tool Overview'!$H$6,LookUpData_Pop!$B$1:$AV$269,LookUpData_Pop!BB55,FALSE) -> 1033085 | AP54: 77.01655544 | AW54: n/a | AX54: n/a | AZ54: 7.455006649e-05 | BA54: 0 | BC54: =(AP54/AO54)*LookUpData_Pop!$B$285 -> 0.5218504654 | BD54: =(AQ54/AP54)*LookUpData_Pop!$B$285 -> 0 | BF54: 0.5 | BG54: 5
A55: Female 45-49 | B55: 47.5 | C55: female | D55: all | F55: 205406.6 | G55: =G97+G140+G183+G226+G269 -> 0 | H55: 6929.246191 | I55: 580.9719021 | J55: 580.7057229 | K55: 2565.99583 | L55: 2564.827082 | M55: 6842.573344 | N55: 6839.496634 | O55: 20526.19536 | P55: 20517.35787 | Q55: 29629.56701 | R55: 29615.99187 | S55: 13.57514079 | T55: 126810.9142 | U55: 126753.1494 | V55: 57.76479546 | W55: 318719.4019 | X55: 318575.9986 | Y55: 143.4032644 | Z55: 825172.9503 | AA55: 824815.8982 | AB55: 357.0521126 | AO55: =HLOOKUP('III Tool Overview'!$H$6,LookUpData_Pop!$B$1:$AV$269,LookUpData_Pop!BB56,FALSE) -> 1027033 | AP55: 127.8749973 | AW55: n/a | AX55: n/a | AZ55: 0.0001245091417 | BA55: 0 | BC55: =(AP55/AO55)*LookUpData_Pop!$B$286 -> 0.8715639916 | BD55: =(AQ55/AP55)*LookUpData_Pop!$B$286 -> 0 | BF55: 0.5 | BG55: 5
A56: Female 50-54 | B56: 52.5 | C56: female | D56: all | F56: 184153.8 | G56: =G98+G141+G184+G227+G270 -> 0 | H56: 6463.517003 | I56: 719.3781004 | J56: 719.0340286 | K56: 3170.43706 | L56: 3168.933025 | M56: 8414.846233 | N56: 8410.925199 | O56: 24859.30402 | P56: 24848.39798 | Q56: 33810.77072 | R56: 33794.59934 | S56: 16.17137301 | T56: 144006.0406 | U56: 143937.7152 | V56: 68.32548193 | W56: 358387.4221 | X56: 358220.2588 | Y56: 167.1633198 | Z56: 901665.5226 | AA56: 901266.8468 | AB56: 398.6757333 | AO56: =HLOOKUP('III Tool Overview'!$H$6,LookUpData_Pop!$B$1:$AV$269,LookUpData_Pop!BB57,FALSE) -> 920769 | AP56: 176.0433727 | AW56: n/a | AX56: n/a | AZ56: 0.0001911916808 | BA56: 0 | BC56: =(AP56/AO56)*LookUpData_Pop!$B$287 -> 1.338341765 | BD56: =(AQ56/AP56)*LookUpData_Pop!$B$287 -> 0 | BF56: 0.5 | BG56: 5
A57: Female 55-59 | B57: 57.5 | C57: female | D57: all | F57: 166910 | G57: =G99+G142+G185+G228+G271 -> 0 | H57: 3377.397481 | I57: 1057.677286 | J57: 1057.369122 | K57: 4638.979223 | L57: 4637.647147 | M57: 12185.2929 | N57: 12181.90362 | O57: 34817.33696 | P57: 34808.63376 | Q57: 43364.76872 | R57: 43352.13401 | S57: 12.63471359 | T57: 182893.6366 | U57: 182841.1031 | V57: 52.53345104 | W57: 446157.8279 | X57: 446033.4711 | Y57: 124.356847 | Z57: 1059338.379 | AA57: 1059068.973 | AB57: 269.4056467 | AO57: =HLOOKUP('III Tool Overview'!$H$6,LookUpData_Pop!$B$1:$AV$269,LookUpData_Pop!BB58,FALSE) -> 834550 | AP57: 222.6260837 | AW57: n/a | AX57: n/a | AZ57: 0.0002667618282 | BA57: 0 | BC57: =(AP57/AO57)*LookUpData_Pop!$B$288 -> 1.600570969 | BD57: =(AQ57/AP57)*LookUpData_Pop!$B$288 -> 0 | BF57: 0.5 | BG57: 5
A58: Female 60-64 | B58: 62.5 | C58: female | D58: all | F58: 163903.4 | G58: =G100+G143+G186+G229+G272 -> 0 | H58: 3228.399223 | I58: 1442.816734 | J58: 1442.410565 | K58: 6297.411301 | L58: 6295.673548 | M58: 16369.78777 | N58: 16365.46355 | O58: 45269.19658 | P58: 45258.86407 | Q58: 53384.21914 | R58: 53369.1909 | S58: 15.02824051 | T58: 223113.2366 | U58: 223051.6407 | V58: 61.59587534 | W58: 534298.6108 | X58: 534157.0098 | Y58: 141.6009964 | Z58: 1203311.095 | AA58: 1203028.623 | AB58: 282.4710754 | AO58: =HLOOKUP('III Tool Overview'!$H$6,LookUpData_Pop!$B$1:$AV$269,LookUpData_Pop!BB59,FALSE) -> 819517 | AP58: 332.1982813 | AW58: n/a | AX58: n/a | AZ58: 0.0004053586214 | BA58: 0 | BC58: =(AP58/AO58)*LookUpData_Pop!$B$289 -> 2.026793107 | BD58: =(AQ58/AP58)*LookUpData_Pop!$B$289 -> 0 | BF58: 0.5 | BG58: 5
A59: Female 65-69 | B59: 67.5 | C59: female | D59: all | F59: 0 | G59: =G101+G144+G187+G230+G273 -> 0 | H59: 0 | I59: 0 | J59: 0 | K59: 0 | L59: 0 | M59: 0 | N59: 0 | O59: 0 | P59: 0 | Q59: 0 | R59: 0 | S59: 0 | T59: 0 | U59: 0 | V59: 0 | W59: 0 | X59: 0 | Y59: 0 | Z59: 0 | AA59: 0 | AB59: 0 | AC59: 0 | AD59: 0 | AE59: 0 | AF59: 0 | AG59: 0 | AH59: 0 | AI59: 0 | AJ59: 0 | AK59: 0 | AL59: 0 | AM59: 0 | AN59: 0 | AO59: =HLOOKUP('III Tool Overview'!$H$6,LookUpData_Pop!$B$1:$AV$269,LookUpData_Pop!BB60,FALSE) -> 667449 | AP59: 436.1338161 | AW59: n/a | AX59: n/a | AZ59: 0.0006534339194 | BA59: 0 | BC59: =(AP59/AO59)*LookUpData_Pop!$B$290 -> 2.613735678 | BD59: =(AQ59/AP59)*LookUpData_Pop!$B$290 -> 0 | BF59: 0.5 | BG59: 5
A60: Female 70-74 | B60: 72.5 | C60: female | D60: all | F60: 0 | G60: 0 | H60: 0 | I60: 0 | J60: 0 | K60: 0 | L60: 0 | M60: 0 | N60: 0 | O60: 0 | P60: 0 | Q60: 0 | R60: 0 | S60: 0 | T60: 0 | U60: 0 | V60: =V102+V145+V188+V231+V274 -> 0 | W60: 0 | X60: 0 | Y60: 0 | Z60: 0 | AA60: 0 | AB60: 0 | AC60: 0 | AD60: 0 | AE60: 0 | AF60: 0 | AG60: 0 | AH60: 0 | AI60: 0 | AJ60: 0 | AK60: 0 | AL60: 0 | AM60: 0 | AN60: 0 | AO60: =HLOOKUP('III Tool Overview'!$H$6,LookUpData_Pop!$B$1:$AV$269,LookUpData_Pop!BB61,FALSE) -> 593990 | AP60: 650.0800142 | AW60: n/a | AX60: n/a | AZ60: 0.001094429223 | BA60: 0 | BC60: =(AP60/AO60)*LookUpData_Pop!$B$291 -> 3.283287669 | BD60: =(AQ60/AP60)*LookUpData_Pop!$B$291 -> 0 | BF60: 0.5 | BG60: 5
A61: Female 75-79 | B61: 77.5 | C61: female | D61: all | F61: 0 | G61: 0 | H61: 0 | I61: 0 | J61: 0 | K61: 0 | L61: 0 | M61: 0 | N61: 0 | O61: 0 | P61: 0 | Q61: 0 | R61: 0 | S61: 0 | T61: 0 | U61: 0 | V61: =V103+V146+V189+V232+V275 -> 0 | W61: 0 | X61: 0 | Y61: 0 | Z61: 0 | AA61: 0 | AB61: 0 | AC61: 0 | AD61: 0 | AE61: 0 | AF61: 0 | AG61: 0 | AH61: 0 | AI61: 0 | AJ61: 0 | AK61: 0 | AL61: 0 | AM61: 0 | AN61: 0 | AO61: =HLOOKUP('III Tool Overview'!$H$6,LookUpData_Pop!$B$1:$AV$269,LookUpData_Pop!BB62,FALSE) -> 504598 | AP61: 982.3769992 | AV61: =AT61/AVERAGE(AT$49:AT$62) ->  | AW61: n/a | AX61: n/a | AZ61: 0.001946850759 | BA61: 0 | BC61: =(AP61/AO61)*LookUpData_Pop!$B$292 -> 3.893701518 | BD61: =(AQ61/AP61)*LookUpData_Pop!$B$292 -> 0 | BF61: 0.5 | BG61: 5
A62: Female 80-84 | B62: 82.5 | C62: female | D62: all | F62: 0 | G62: 0 | H62: 0 | I62: 0 | J62: 0 | K62: 0 | L62: 0 | M62: 0 | N62: 0 | O62: 0 | P62: 0 | Q62: 0 | R62: 0 | S62: 0 | T62: 0 | U62: 0 | V62: =V104+V147+V190+V233+V276 -> 0 | W62: 0 | X62: 0 | Y62: 0 | Z62: 0 | AA62: 0 | AB62: 0 | AC62: 0 | AD62: 0 | AE62: 0 | AF62: 0 | AG62: 0 | AH62: 0 | AI62: 0 | AJ62: 0 | AK62: 0 | AL62: 0 | AM62: 0 | AN62: 0 | AO62: =HLOOKUP('III Tool Overview'!$H$6,LookUpData_Pop!$B$1:$AV$269,LookUpData_Pop!BB63,FALSE) -> 374911 | AP62: 1230.344141 | AW62: n/a | AX62: n/a | AZ62: 0.003281696564 | BA62: 0 | BC62: =(AP62/AO62)*LookUpData_Pop!$B$293 -> 3.281696564 | BD62: =(AQ62/AP62)*LookUpData_Pop!$B$293 -> 0 | BF62: 0.5 | BG62: 5
A63: Female 85-89 | B63: 87.5 | C63: female | D63: all | F63: 0 | G63: 0 | H63: 0 | I63: 0 | J63: 0 | K63: 0 | L63: 0 | M63: 0 | N63: 0 | O63: 0 | P63: 0 | Q63: 0 | R63: 0 | S63: 0 | T63: 0 | U63: 0 | V63: =V105+V148+V191+V234+V277 -> 0 | W63: 0 | X63: 0 | Y63: 0 | Z63: 0 | AA63: 0 | AB63: 0 | AC63: 0 | AD63: 0 | AE63: 0 | AF63: 0 | AG63: 0 | AH63: 0 | AI63: 0 | AJ63: 0 | AK63: 0 | AL63: 0 | AM63: 0 | AN63: 0 | AO63: =HLOOKUP('III Tool Overview'!$H$6,LookUpData_Pop!$B$1:$AV$269,LookUpData_Pop!BB65,FALSE) -> 123545 | AP63: 2414.723222 | AZ63: 0.01954529299 | BA63: 0 | BC63: =(AP63/AO63)*LookUpData_Pop!$B$294 -> 19.54529299 | BD63: =(AQ63/AP63)*LookUpData_Pop!$B$294 -> 0 | BF63: 0.5 | BG63: =2/AZ63 -> 102.3264272
A64: Female 90+ | B64: 95 | C64: female | D64: all | F64: 0 | G64: 0 | H64: 0 | I64: 0 | J64: 0 | K64: 0 | L64: 0 | M64: 0 | N64: 0 | O64: 0 | P64: 0 | Q64: 0 | R64: 0 | S64: 0 | T64: 0 | U64: 0 | V64: 0 | W64: 0 | X64: 0 | Y64: 0 | Z64: 0 | AA64: 0 | AB64: 0 | AC64: 0 | AD64: 0 | AE64: 0 | AF64: 0 | AG64: 0 | AH64: 0 | AI64: 0 | AJ64: 0 | AK64: 0 | AL64: 0 | AM64: 0 | AN64: 0
A65: age/sex breakdown: Q1
A66: Male <1 | B66: 0.5 | C66: male | D66: 1 | AO66: =HLOOKUP('III Tool Overview'!$H$6,LookUpData_Pop!$B$1:$AV$269,LookUpData_Pop!BB67,FALSE) -> 38398 | AP66: 16.82222645 | AZ66: =IF(AO66=0,0,AP66/AO66) -> 0.0004381016317 | BA66: =AQ66/AP66*100000 -> 0 | BF66: 0.1 | BG66: 1
A67: Male 1-4 | B67: 2.5 | C67: male | D67: 1 | AO67: =HLOOKUP('III Tool Overview'!$H$6,LookUpData_Pop!$B$1:$AV$269,LookUpData_Pop!BB68,FALSE) -> 140243 | AP67: 2.508197236 | AZ67: =IF(AO67=0,0,AP67/AO67) -> 1.78846519e-05 | BA67: 0 | BC67: =((AP67+AP66)/(AO67+AO66))*LookUpData_Pop!$B$277 -> 0.8656657179 | BD67: =((AQ67+AQ66)/(AP67+AP66))*LookUpData_Pop!$B$277 -> 0 | BF67: 0.5 | BG67: 4
A68: Male 5-9 | B68: 7.5 | C68: male | D68: 1 | AO68: =HLOOKUP('III Tool Overview'!$H$6,LookUpData_Pop!$B$1:$AV$269,LookUpData_Pop!BB69,FALSE) -> 151263 | AP68: 1.808260152 | AZ68: 1.195441153e-05 | BA68: 0 | BC68: =(AP68/AO68)*LookUpData_Pop!$B$278 -> 0.08368088074 | BD68: =(AQ68/AP68)*LookUpData_Pop!$B$278 -> 0 | BF68: 0.5 | BG68: 5
A69: Male 10-14 | B69: 12.5 | C69: male | D69: 1 | AO69: =HLOOKUP('III Tool Overview'!$H$6,LookUpData_Pop!$B$1:$AV$269,LookUpData_Pop!BB70,FALSE) -> 156100 | AP69: 2.370307199 | AZ69: 1.518454324e-05 | BA69: 0 | BC69: =(AP69/AO69)*LookUpData_Pop!$B$279 -> 0.1062918027 | BD69: =(AQ69/AP69)*LookUpData_Pop!$B$279 -> 0 | BF69: 0.5 | BG69: 5
A70: Male 15-19 | B70: 17.5 | C70: male | D70: 1 | E70: =HLOOKUP('III Tool Overview'!$H$6,Prevalence!$B$2:$AV$268,Prevalence!AW66,FALSE) -> 0.190899156 | F70: =HLOOKUP('III Tool Overview'!$H$6,LookUpData_Pop!$B$1:$AV$269,LookUpData_Pop!BB71,FALSE)/5 -> 35276.8 | G70: ='III Tool Overview'!$H$9/110 -> 0 | H70: =IF('III Tool Overview'!$H$10="Even distribution",Targeting!C68,IF('III Tool Overview'!$H$10="Targeting to Q1",Targeting!D68,IF('III Tool Overview'!$H$10="Targeting to Q1 & Q2",Targeting!E68,IF('III Tool Overview'!$H$10="Proportionate to need",Targeting!F68)))) -> 336.408348 | I70: =IF('III Tool Overview'!$H$6="Orkney Health Board",0,IF('III Tool Overview'!$H$6="Shetland Health Board",0,IF('III Tool Overview'!$H$6="Western Isles Health Board",0,IF('III Tool Overview'!$H$6="Orkney Islands Local Authority",0,IF('III Tool Overview'!$H$6="Shetland Islands Local Authority",0,IF('III Tool Overview'!$H$6="Eilean Siar Local Authority",0,new_ci(2,B70,C70,D70,$C$1,G70,1,F70,E70*F70))))))) -> 35.04508226 | J70: =IF('III Tool Overview'!$H$6="Orkney Health Board",0,IF('III Tool Overview'!$H$6="Shetland Health Board",0,IF('III Tool Overview'!$H$6="Western Isles Health Board",0,IF('III Tool Overview'!$H$6="Orkney Islands Local Authority",0,IF('III Tool Overview'!$H$6="Shetland Islands Local Authority",0,IF('III Tool Overview'!$H$6="Eilean Siar Local Authority",0,new_ci(2,B70,C70,D70,$C$1,G70+H70,1,F70,E70*F70))))))) -> 35.03966848 | K70: =IF('III Tool Overview'!$H$6="Orkney Health Board",0,IF('III Tool Overview'!$H$6="Shetland Health Board",0,IF('III Tool Overview'!$H$6="Western Isles Health Board",0,IF('III Tool Overview'!$H$6="Orkney Islands Local Authority",0,IF('III Tool Overview'!$H$6="Shetland Islands Local Authority",0,IF('III Tool Overview'!$H$6="Eilean Siar Local Authority",0,new_ci(5,B70,C70,D70,$C$1,G70,1,F70,E70*F70))))))) -> 153.0830346 | L70: =IF('III Tool Overview'!$H$6="Orkney Health Board",0,IF('III Tool Overview'!$H$6="Shetland Health Board",0,IF('III Tool Overview'!$H$6="Western Isles Health Board",0,IF('III Tool Overview'!$H$6="Orkney Islands Local Authority",0,IF('III Tool Overview'!$H$6="Shetland Islands Local Authority",0,IF('III Tool Overview'!$H$6="Eilean Siar Local Authority",0,new_ci(5,B70,C70,D70,$C$1,G70+H70,1,F70,E70*F70))))))) -> 153.059443 | M70: =IF('III Tool Overview'!$H$6="Orkney Health Board",0,IF('III Tool Overview'!$H$6="Shetland Health Board",0,IF('III Tool Overview'!$H$6="Western Isles Health Board",0,IF('III Tool Overview'!$H$6="Orkney Islands Local Authority",0,IF('III Tool Overview'!$H$6="Shetland Islands Local Authority",0,IF('III Tool Overview'!$H$6="Eilean Siar Local Authority",0,new_ci(10,B70,C70,D70,$C$1,G70,1,F70,E70*F70))))))) -> 400.8452591 | N70: =IF('III Tool Overview'!$H$6="Orkney Health Board",0,IF('III Tool Overview'!$H$6="Shetland Health Board",0,IF('III Tool Overview'!$H$6="Western Isles Health Board",0,IF('III Tool Overview'!$H$6="Orkney Islands Local Authority",0,IF('III Tool Overview'!$H$6="Shetland Islands Local Authority",0,IF('III Tool Overview'!$H$6="Eilean Siar Local Authority",0,new_ci(10,B70,C70,D70,$C$1,G70+H70,1,F70,E70*F70))))))) -> 400.7837971 | O70: =IF('III Tool Overview'!$H$6="Orkney Health Board",0,IF('III Tool Overview'!$H$6="Shetland Health Board",0,IF('III Tool Overview'!$H$6="Western Isles Health Board",0,IF('III Tool Overview'!$H$6="Orkney Islands Local Authority",0,IF('III Tool Overview'!$H$6="Shetland Islands Local Authority",0,IF('III Tool Overview'!$H$6="Eilean Siar Local Authority",0,new_ci(20,B70,C70,D70,$C$1,G70,1,F70,E70*F70))))))) -> 1165.587813 | P70: =IF('III Tool Overview'!$H$6="Orkney Health Board",0,IF('III Tool Overview'!$H$6="Shetland Health Board",0,IF('III Tool Overview'!$H$6="Western Isles Health Board",0,IF('III Tool Overview'!$H$6="Orkney Islands Local Authority",0,IF('III Tool Overview'!$H$6="Shetland Islands Local Authority",0,IF('III Tool Overview'!$H$6="Eilean Siar Local Authority",0,new_ci(20,B70,C70,D70,$C$1,G70+H70,1,F70,E70*F70))))))) -> 1165.411913 | Q70: =IF('III Tool Overview'!$H$6="Orkney Health Board",0,IF('III Tool Overview'!$H$6="Shetland Health Board",0,IF('III Tool Overview'!$H$6="Western Isles Health Board",0,IF('III Tool Overview'!$H$6="Orkney Islands Local Authority",0,IF('III Tool Overview'!$H$6="Shetland Islands Local Authority",0,IF('III Tool Overview'!$H$6="Eilean Siar Local Authority",0,new_yll(2,B70,C70,D70,$C$1,G70,1,F70,E70*F70))))))) -> 2838.651663 | R70: =IF('III Tool Overview'!$H$6="Orkney Health Board",0,IF('III Tool Overview'!$H$6="Shetland Health Board",0,IF('III Tool Overview'!$H$6="Western Isles Health Board",0,IF('III Tool Overview'!$H$6="Orkney Islands Local Authority",0,IF('III Tool Overview'!$H$6="Shetland Islands Local Authority",0,IF('III Tool Overview'!$H$6="Eilean Siar Local Authority",0,new_yll(2,B70,C70,D70,$C$1,G70+H70,1,F70,E70*F70))))))) -> 2838.213147 | S70: =Q70-R70 -> 0.4385165601 | T70: =IF('III Tool Overview'!$H$6="Orkney Health Board",0,IF('III Tool Overview'!$H$6="Shetland Health Board",0,IF('III Tool Overview'!$H$6="Western Isles Health Board",0,IF('III Tool Overview'!$H$6="Orkney Islands Local Authority",0,IF('III Tool Overview'!$H$6="Shetland Islands Local Authority",0,IF('III Tool Overview'!$H$6="Eilean Siar Local Authority",0,new_yll(5,B70,C70,D70,$C$1,G70,1,F70,E70*F70))))))) -> 12159.14498 | U70: =IF('III Tool Overview'!$H$6="Orkney Health Board",0,IF('III Tool Overview'!$H$6="Shetland Health Board",0,IF('III Tool Overview'!$H$6="Western Isles Health Board",0,IF('III Tool Overview'!$H$6="Orkney Islands Local Authority",0,IF('III Tool Overview'!$H$6="Shetland Islands Local Authority",0,IF('III Tool Overview'!$H$6="Eilean Siar Local Authority",0,new_yll(5,B70,C70,D70,$C$1,G70+H70,1,F70,E70*F70))))))) -> 12157.27108 | V70: =T70-U70 -> 1.873893974 | W70: =IF('III Tool Overview'!$H$6="Orkney Health Board",0,IF('III Tool Overview'!$H$6="Shetland Health Board",0,IF('III Tool Overview'!$H$6="Western Isles Health Board",0,IF('III Tool Overview'!$H$6="Orkney Islands Local Authority",0,IF('III Tool Overview'!$H$6="Shetland Islands Local Authority",0,IF('III Tool Overview'!$H$6="Eilean Siar Local Authority",0,new_yll(10,B70,C70,D70,$C$1,G70,1,F70,E70*F70))))))) -> 30713.11826 | X70: =IF('III Tool Overview'!$H$6="Orkney Health Board",0,IF('III Tool Overview'!$H$6="Shetland Health Board",0,IF('III Tool Overview'!$H$6="Western Isles Health Board",0,IF('III Tool Overview'!$H$6="Orkney Islands Local Authority",0,IF('III Tool Overview'!$H$6="Shetland Islands Local Authority",0,IF('III Tool Overview'!$H$6="Eilean Siar Local Authority",0,new_yll(10,B70,C70,D70,$C$1,G70+H70,1,F70,E70*F70))))))) -> 30708.40824 | Y70: =W70-X70 -> 4.710015335 | Z70: =IF('III Tool Overview'!$H$6="Orkney Health Board",0,IF('III Tool Overview'!$H$6="Shetland Health Board",0,IF('III Tool Overview'!$H$6="Western Isles Health Board",0,IF('III Tool Overview'!$H$6="Orkney Islands Local Authority",0,IF('III Tool Overview'!$H$6="Shetland Islands Local Authority",0,IF('III Tool Overview'!$H$6="Eilean Siar Local Authority",0,new_yll(20,B70,C70,D70,$C$1,G70,1,F70,E70*F70))))))) -> 81980.81396 | AA70: =IF('III Tool Overview'!$H$6="Orkney Health Board",0,IF('III Tool Overview'!$H$6="Shetland Health Board",0,IF('III Tool Overview'!$H$6="Western Isles Health Board",0,IF('III Tool Overview'!$H$6="Orkney Islands Local Authority",0,IF('III Tool Overview'!$H$6="Shetland Islands Local Authority",0,IF('III Tool Overview'!$H$6="Eilean Siar Local Authority",0,new_yll(20,B70,C70,D70,$C$1,G70+H70,1,F70,E70*F70))))))) -> 81968.42907 | AB70: =Z70-AA70 -> 12.38489052 | AC70: =hosp_count(2,B70,C70,D70,$C$1,G70,1,F70,E70*F70) ->  | AD70: =hosp_count(2,B70,C70,D70,$C$1,G70+H70,1,F70,E70*F70) ->  | AE70: =AC70-AD70 ->  | AF70: =hosp_count(5,B70,C70,D70,$C$1,G70,1,F70,E70*F70) ->  | AG70: =hosp_count(5,B70,C70,D70,$C$1,G70+H70,1,F70,E70*F70) ->  | AH70: =AF70-AG70 ->  | AI70: =hosp_count(10,B70,C70,D70,$C$1,G70,1,F70,E70*F70) ->  | AJ70: =hosp_count(10,B70,C70,D70,$C$1,G70+H70,1,F70,E70*F70) ->  | AK70: =AI70-AJ70 ->  | AL70: =hosp_count(20,B70,C70,D70,$C$1,G70,1,F70,E70*F70) ->  | AM70: =hosp_count(20,B70,C70,D70,$C$1,G70+H70,1,F70,E70*F70) ->  | AN70: =AL70-AM70 ->  | AO70: =HLOOKUP('III Tool Overview'!$H$6,LookUpData_Pop!$B$1:$AV$269,LookUpData_Pop!BB71,FALSE) -> 176384 | AP70: 12.8055188 | AR70: =AO70*(0.8) -> 141107.2 | AV70: =AT70/AVERAGE(AT$70:AT$83) ->  | AW70: =$AV$5*$AV$11*AV29 ->  | AX70: =AW70*AR70*$AT$4 ->  | AZ70: 7.260022902e-05 | BA70: 0 | BC70: =(AP70/AO70)*LookUpData_Pop!$B$280 -> 0.5082016031 | BD70: =(AQ70/AP70)*LookUpData_Pop!$B$280 -> 0 | BF70: 0.5 | BG70: 5
A71: Male 20-24 | B71: 22.5 | C71: male | D71: 1 | E71: =HLOOKUP('III Tool Overview'!$H$6,Prevalence!$B$2:$AV$268,Prevalence!AW67,FALSE) -> 0.190899156 | F71: =HLOOKUP('III Tool Overview'!$H$6,LookUpData_Pop!$B$1:$AV$269,LookUpData_Pop!BB72,FALSE)/5 -> 39519.2 | G71: ='III Tool Overview'!$H$9/110 -> 0 | H71: =IF('III Tool Overview'!$H$10="Even distribution",Targeting!C69,IF('III Tool Overview'!$H$10="Targeting to Q1",Targeting!D69,IF('III Tool Overview'!$H$10="Targeting to Q1 & Q2",Targeting!E69,IF('III Tool Overview'!$H$10="Proportionate to need",Targeting!F69)))) -> 478.0215415 | I71: =IF('III Tool Overview'!$H$6="Orkney Health Board",0,IF('III Tool Overview'!$H$6="Shetland Health Board",0,IF('III Tool Overview'!$H$6="Western Isles Health Board",0,IF('III Tool Overview'!$H$6="Orkney Islands Local Authority",0,IF('III Tool Overview'!$H$6="Shetland Islands Local Authority",0,IF('III Tool Overview'!$H$6="Eilean Siar Local Authority",0,new_ci(2,B71,C71,D71,$C$1,G71,1,F71,E71*F71))))))) -> 52.437913 | J71: =IF('III Tool Overview'!$H$6="Orkney Health Board",0,IF('III Tool Overview'!$H$6="Shetland Health Board",0,IF('III Tool Overview'!$H$6="Western Isles Health Board",0,IF('III Tool Overview'!$H$6="Orkney Islands Local Authority",0,IF('III Tool Overview'!$H$6="Shetland Islands Local Authority",0,IF('III Tool Overview'!$H$6="Eilean Siar Local Authority",0,new_ci(2,B71,C71,D71,$C$1,G71+H71,1,F71,E71*F71))))))) -> 52.42762847 | K71: =IF('III Tool Overview'!$H$6="Orkney Health Board",0,IF('III Tool Overview'!$H$6="Shetland Health Board",0,IF('III Tool Overview'!$H$6="Western Isles Health Board",0,IF('III Tool Overview'!$H$6="Orkney Islands Local Authority",0,IF('III Tool Overview'!$H$6="Shetland Islands Local Authority",0,IF('III Tool Overview'!$H$6="Eilean Siar Local Authority",0,new_ci(5,B71,C71,D71,$C$1,G71,1,F71,E71*F71))))))) -> 228.927461 | L71: =IF('III Tool Overview'!$H$6="Orkney Health Board",0,IF('III Tool Overview'!$H$6="Shetland Health Board",0,IF('III Tool Overview'!$H$6="Western Isles Health Board",0,IF('III Tool Overview'!$H$6="Orkney Islands Local Authority",0,IF('III Tool Overview'!$H$6="Shetland Islands Local Authority",0,IF('III Tool Overview'!$H$6="Eilean Siar Local Authority",0,new_ci(5,B71,C71,D71,$C$1,G71+H71,1,F71,E71*F71))))))) -> 228.8827058 | M71: =IF('III Tool Overview'!$H$6="Orkney Health Board",0,IF('III Tool Overview'!$H$6="Shetland Health Board",0,IF('III Tool Overview'!$H$6="Western Isles Health Board",0,IF('III Tool Overview'!$H$6="Orkney Islands Local Authority",0,IF('III Tool Overview'!$H$6="Shetland Islands Local Authority",0,IF('III Tool Overview'!$H$6="Eilean Siar Local Authority",0,new_ci(10,B71,C71,D71,$C$1,G71,1,F71,E71*F71))))))) -> 598.7237569 | N71: =IF('III Tool Overview'!$H$6="Orkney Health Board",0,IF('III Tool Overview'!$H$6="Shetland Health Board",0,IF('III Tool Overview'!$H$6="Western Isles Health Board",0,IF('III Tool Overview'!$H$6="Orkney Islands Local Authority",0,IF('III Tool Overview'!$H$6="Shetland Islands Local Authority",0,IF('III Tool Overview'!$H$6="Eilean Siar Local Authority",0,new_ci(10,B71,C71,D71,$C$1,G71+H71,1,F71,E71*F71))))))) -> 598.6074967 | O71: =IF('III Tool Overview'!$H$6="Orkney Health Board",0,IF('III Tool Overview'!$H$6="Shetland Health Board",0,IF('III Tool Overview'!$H$6="Western Isles Health Board",0,IF('III Tool Overview'!$H$6="Orkney Islands Local Authority",0,IF('III Tool Overview'!$H$6="Shetland Islands Local Authority",0,IF('III Tool Overview'!$H$6="Eilean Siar Local Authority",0,new_ci(20,B71,C71,D71,$C$1,G71,1,F71,E71*F71))))))) -> 1734.492172 | P71: =IF('III Tool Overview'!$H$6="Orkney Health Board",0,IF('III Tool Overview'!$H$6="Shetland Health Board",0,IF('III Tool Overview'!$H$6="Western Isles Health Board",0,IF('III Tool Overview'!$H$6="Orkney Islands Local Authority",0,IF('III Tool Overview'!$H$6="Shetland Islands Local Authority",0,IF('III Tool Overview'!$H$6="Eilean Siar Local Authority",0,new_ci(20,B71,C71,D71,$C$1,G71+H71,1,F71,E71*F71))))))) -> 1734.162457 | Q71: =IF('III Tool Overview'!$H$6="Orkney Health Board",0,IF('III Tool Overview'!$H$6="Shetland Health Board",0,IF('III Tool Overview'!$H$6="Western Isles Health Board",0,IF('III Tool Overview'!$H$6="Orkney Islands Local Authority",0,IF('III Tool Overview'!$H$6="Shetland Islands Local Authority",0,IF('III Tool Overview'!$H$6="Eilean Siar Local Authority",0,new_yll(2,B71,C71,D71,$C$1,G71,1,F71,E71*F71))))))) -> 4037.719301 | R71: =IF('III Tool Overview'!$H$6="Orkney Health Board",0,IF('III Tool Overview'!$H$6="Shetland Health Board",0,IF('III Tool Overview'!$H$6="Western Isles Health Board",0,IF('III Tool Overview'!$H$6="Orkney Islands Local Authority",0,IF('III Tool Overview'!$H$6="Shetland Islands Local Authority",0,IF('III Tool Overview'!$H$6="Eilean Siar Local Authority",0,new_yll(2,B71,C71,D71,$C$1,G71+H71,1,F71,E71*F71))))))) -> 4036.927392 | S71: 0.791909288 | T71: =IF('III Tool Overview'!$H$6="Orkney Health Board",0,IF('III Tool Overview'!$H$6="Shetland Health Board",0,IF('III Tool Overview'!$H$6="Western Isles Health Board",0,IF('III Tool Overview'!$H$6="Orkney Islands Local Authority",0,IF('III Tool Overview'!$H$6="Shetland Islands Local Authority",0,IF('III Tool Overview'!$H$6="Eilean Siar Local Authority",0,new_yll(5,B71,C71,D71,$C$1,G71,1,F71,E71*F71))))))) -> 17267.74436 | U71: =IF('III Tool Overview'!$H$6="Orkney Health Board",0,IF('III Tool Overview'!$H$6="Shetland Health Board",0,IF('III Tool Overview'!$H$6="Western Isles Health Board",0,IF('III Tool Overview'!$H$6="Orkney Islands Local Authority",0,IF('III Tool Overview'!$H$6="Shetland Islands Local Authority",0,IF('III Tool Overview'!$H$6="Eilean Siar Local Authority",0,new_yll(5,B71,C71,D71,$C$1,G71+H71,1,F71,E71*F71))))))) -> 17264.3684 | V71: =T71-U71 -> 3.375957713 | W71: =IF('III Tool Overview'!$H$6="Orkney Health Board",0,IF('III Tool Overview'!$H$6="Shetland Health Board",0,IF('III Tool Overview'!$H$6="Western Isles Health Board",0,IF('III Tool Overview'!$H$6="Orkney Islands Local Authority",0,IF('III Tool Overview'!$H$6="Shetland Islands Local Authority",0,IF('III Tool Overview'!$H$6="Eilean Siar Local Authority",0,new_yll(10,B71,C71,D71,$C$1,G71,1,F71,E71*F71))))))) -> 43481.55614 | X71: =IF('III Tool Overview'!$H$6="Orkney Health Board",0,IF('III Tool Overview'!$H$6="Shetland Health Board",0,IF('III Tool Overview'!$H$6="Western Isles Health Board",0,IF('III Tool Overview'!$H$6="Orkney Islands Local Authority",0,IF('III Tool Overview'!$H$6="Shetland Islands Local Authority",0,IF('III Tool Overview'!$H$6="Eilean Siar Local Authority",0,new_yll(10,B71,C71,D71,$C$1,G71+H71,1,F71,E71*F71))))))) -> 43473.11101 | Y71: =W71-X71 -> 8.445130609 | Z71: =IF('III Tool Overview'!$H$6="Orkney Health Board",0,IF('III Tool Overview'!$H$6="Shetland Health Board",0,IF('III Tool Overview'!$H$6="Western Isles Health Board",0,IF('III Tool Overview'!$H$6="Orkney Islands Local Authority",0,IF('III Tool Overview'!$H$6="Shetland Islands Local Authority",0,IF('III Tool Overview'!$H$6="Eilean Siar Local Authority",0,new_yll(20,B71,C71,D71,$C$1,G71,1,F71,E71*F71))))))) -> 115086.422 | AA71: =IF('III Tool Overview'!$H$6="Orkney Health Board",0,IF('III Tool Overview'!$H$6="Shetland Health Board",0,IF('III Tool Overview'!$H$6="Western Isles Health Board",0,IF('III Tool Overview'!$H$6="Orkney Islands Local Authority",0,IF('III Tool Overview'!$H$6="Shetland Islands Local Authority",0,IF('III Tool Overview'!$H$6="Eilean Siar Local Authority",0,new_yll(20,B71,C71,D71,$C$1,G71+H71,1,F71,E71*F71))))))) -> 115064.5119 | AB71: =Z71-AA71 -> 21.91009335 | AC71: =hosp_count(2,B71,C71,D71,$C$1,G71,1,F71,E71*F71) ->  | AD71: =hosp_count(2,B71,C71,D71,$C$1,G71+H71,1,F71,E71*F71) ->  | AE71: =AC71-AD71 ->  | AF71: =hosp_count(5,B71,C71,D71,$C$1,G71,1,F71,E71*F71) ->  | AG71: =hosp_count(5,B71,C71,D71,$C$1,G71+H71,1,F71,E71*F71) ->  | AH71: =AF71-AG71 ->  | AI71: =hosp_count(10,B71,C71,D71,$C$1,G71,1,F71,E71*F71) ->  | AJ71: =hosp_count(10,B71,C71,D71,$C$1,G71+H71,1,F71,E71*F71) ->  | AK71: =AI71-AJ71 ->  | AL71: =hosp_count(20,B71,C71,D71,$C$1,G71,1,F71,E71*F71) ->  | AM71: =hosp_count(20,B71,C71,D71,$C$1,G71+H71,1,F71,E71*F71) ->  | AN71: =AL71-AM71 ->  | AO71: =HLOOKUP('III Tool Overview'!$H$6,LookUpData_Pop!$B$1:$AV$269,LookUpData_Pop!BB72,FALSE) -> 197596 | AP71: 27.09765916 | AR71: =AO71 -> 197596 | AV71: =AT71/AVERAGE(AT$70:AT$83) ->  | AX71: =AW71*AR71*$AT$4 ->  | AZ71: =IF(AO71=0,0,AP71/AO71) -> 0.0001371366787 | BA71: 0 | BC71: =(AP71/AO71)*LookUpData_Pop!$B$281 -> 0.9599567508 | BD71: =(AQ71/AP71)*LookUpData_Pop!$B$281 -> 0 | BF71: 0.5 | BG71: 5
A72: Male 25-29 | B72: 27.5 | C72: male | D72: 1 | E72: =HLOOKUP('III Tool Overview'!$H$6,Prevalence!$B$2:$AV$268,Prevalence!AW68,FALSE) -> 0.3832172469 | F72: =HLOOKUP('III Tool Overview'!$H$6,LookUpData_Pop!$B$1:$AV$269,LookUpData_Pop!BB73,FALSE)/5 -> 38481.8 | G72: ='III Tool Overview'!$H$9/110 -> 0 | H72: =IF('III Tool Overview'!$H$10="Even distribution",Targeting!C70,IF('III Tool Overview'!$H$10="Targeting to Q1",Targeting!D70,IF('III Tool Overview'!$H$10="Targeting to Q1 & Q2",Targeting!E70,IF('III Tool Overview'!$H$10="Proportionate to need",Targeting!F70)))) -> 974.6219317 | I72: =IF('III Tool Overview'!$H$6="Orkney Health Board",0,IF('III Tool Overview'!$H$6="Shetland Health Board",0,IF('III Tool Overview'!$H$6="Western Isles Health Board",0,IF('III Tool Overview'!$H$6="Orkney Islands Local Authority",0,IF('III Tool Overview'!$H$6="Shetland Islands Local Authority",0,IF('III Tool Overview'!$H$6="Eilean Siar Local Authority",0,new_ci(2,B72,C72,D72,$C$1,G72,1,F72,E72*F72))))))) -> 78.81173572 | J72: =IF('III Tool Overview'!$H$6="Orkney Health Board",0,IF('III Tool Overview'!$H$6="Shetland Health Board",0,IF('III Tool Overview'!$H$6="Western Isles Health Board",0,IF('III Tool Overview'!$H$6="Orkney Islands Local Authority",0,IF('III Tool Overview'!$H$6="Shetland Islands Local Authority",0,IF('III Tool Overview'!$H$6="Eilean Siar Local Authority",0,new_ci(2,B72,C72,D72,$C$1,G72+H72,1,F72,E72*F72))))))) -> 78.78104428 | K72: =IF('III Tool Overview'!$H$6="Orkney Health Board",0,IF('III Tool Overview'!$H$6="Shetland Health Board",0,IF('III Tool Overview'!$H$6="Western Isles Health Board",0,IF('III Tool Overview'!$H$6="Orkney Islands Local Authority",0,IF('III Tool Overview'!$H$6="Shetland Islands Local Authority",0,IF('III Tool Overview'!$H$6="Eilean Siar Local Authority",0,new_ci(5,B72,C72,D72,$C$1,G72,1,F72,E72*F72))))))) -> 343.6379918 | L72: =IF('III Tool Overview'!$H$6="Orkney Health Board",0,IF('III Tool Overview'!$H$6="Shetland Health Board",0,IF('III Tool Overview'!$H$6="Western Isles Health Board",0,IF('III Tool Overview'!$H$6="Orkney Islands Local Authority",0,IF('III Tool Overview'!$H$6="Shetland Islands Local Authority",0,IF('III Tool Overview'!$H$6="Eilean Siar Local Authority",0,new_ci(5,B72,C72,D72,$C$1,G72+H72,1,F72,E72*F72))))))) -> 343.5047707 | M72: =IF('III Tool Overview'!$H$6="Orkney Health Board",0,IF('III Tool Overview'!$H$6="Shetland Health Board",0,IF('III Tool Overview'!$H$6="Western Isles Health Board",0,IF('III Tool Overview'!$H$6="Orkney Islands Local Authority",0,IF('III Tool Overview'!$H$6="Shetland Islands Local Authority",0,IF('III Tool Overview'!$H$6="Eilean Siar Local Authority",0,new_ci(10,B72,C72,D72,$C$1,G72,1,F72,E72*F72))))))) -> 896.3741916 | N72: =IF('III Tool Overview'!$H$6="Orkney Health Board",0,IF('III Tool Overview'!$H$6="Shetland Health Board",0,IF('III Tool Overview'!$H$6="Western Isles Health Board",0,IF('III Tool Overview'!$H$6="Orkney Islands Local Authority",0,IF('III Tool Overview'!$H$6="Shetland Islands Local Authority",0,IF('III Tool Overview'!$H$6="Eilean Siar Local Authority",0,new_ci(10,B72,C72,D72,$C$1,G72+H72,1,F72,E72*F72))))))) -> 896.0299752 | O72: =IF('III Tool Overview'!$H$6="Orkney Health Board",0,IF('III Tool Overview'!$H$6="Shetland Health Board",0,IF('III Tool Overview'!$H$6="Western Isles Health Board",0,IF('III Tool Overview'!$H$6="Orkney Islands Local Authority",0,IF('III Tool Overview'!$H$6="Shetland Islands Local Authority",0,IF('III Tool Overview'!$H$6="Eilean Siar Local Authority",0,new_ci(20,B72,C72,D72,$C$1,G72,1,F72,E72*F72))))))) -> 2575.699551 | P72: =IF('III Tool Overview'!$H$6="Orkney Health Board",0,IF('III Tool Overview'!$H$6="Shetland Health Board",0,IF('III Tool Overview'!$H$6="Western Isles Health Board",0,IF('III Tool Overview'!$H$6="Orkney Islands Local Authority",0,IF('III Tool Overview'!$H$6="Shetland Islands Local Authority",0,IF('III Tool Overview'!$H$6="Eilean Siar Local Authority",0,new_ci(20,B72,C72,D72,$C$1,G72+H72,1,F72,E72*F72))))))) -> 2574.73961 | Q72: =IF('III Tool Overview'!$H$6="Orkney Health Board",0,IF('III Tool Overview'!$H$6="Shetland Health Board",0,IF('III Tool Overview'!$H$6="Western Isles Health Board",0,IF('III Tool Overview'!$H$6="Orkney Islands Local Authority",0,IF('III Tool Overview'!$H$6="Shetland Islands Local Authority",0,IF('III Tool Overview'!$H$6="Eilean Siar Local Authority",0,new_yll(2,B72,C72,D72,$C$1,G72,1,F72,E72*F72))))))) -> 5595.633236 | R72: =IF('III Tool Overview'!$H$6="Orkney Health Board",0,IF('III Tool Overview'!$H$6="Shetland Health Board",0,IF('III Tool Overview'!$H$6="Western Isles Health Board",0,IF('III Tool Overview'!$H$6="Orkney Islands Local Authority",0,IF('III Tool Overview'!$H$6="Shetland Islands Local Authority",0,IF('III Tool Overview'!$H$6="Eilean Siar Local Authority",0,new_yll(2,B72,C72,D72,$C$1,G72+H72,1,F72,E72*F72))))))) -> 5593.454144 | S72: 2.179091972 | T72: =IF('III Tool Overview'!$H$6="Orkney Health Board",0,IF('III Tool Overview'!$H$6="Shetland Health Board",0,IF('III Tool Overview'!$H$6="Western Isles Health Board",0,IF('III Tool Overview'!$H$6="Orkney Islands Local Authority",0,IF('III Tool Overview'!$H$6="Shetland Islands Local Authority",0,IF('III Tool Overview'!$H$6="Eilean Siar Local Authority",0,new_yll(5,B72,C72,D72,$C$1,G72,1,F72,E72*F72))))))) -> 23858.75182 | U72: =IF('III Tool Overview'!$H$6="Orkney Health Board",0,IF('III Tool Overview'!$H$6="Shetland Health Board",0,IF('III Tool Overview'!$H$6="Western Isles Health Board",0,IF('III Tool Overview'!$H$6="Orkney Islands Local Authority",0,IF('III Tool Overview'!$H$6="Shetland Islands Local Authority",0,IF('III Tool Overview'!$H$6="Eilean Siar Local Authority",0,new_yll(5,B72,C72,D72,$C$1,G72+H72,1,F72,E72*F72))))))) -> 23849.5018 | V72: 9.250019426 | W72: =IF('III Tool Overview'!$H$6="Orkney Health Board",0,IF('III Tool Overview'!$H$6="Shetland Health Board",0,IF('III Tool Overview'!$H$6="Western Isles Health Board",0,IF('III Tool Overview'!$H$6="Orkney Islands Local Authority",0,IF('III Tool Overview'!$H$6="Shetland Islands Local Authority",0,IF('III Tool Overview'!$H$6="Eilean Siar Local Authority",0,new_yll(10,B72,C72,D72,$C$1,G72,1,F72,E72*F72))))))) -> 59725.40056 | X72: =IF('III Tool Overview'!$H$6="Orkney Health Board",0,IF('III Tool Overview'!$H$6="Shetland Health Board",0,IF('III Tool Overview'!$H$6="Western Isles Health Board",0,IF('III Tool Overview'!$H$6="Orkney Islands Local Authority",0,IF('III Tool Overview'!$H$6="Shetland Islands Local Authority",0,IF('III Tool Overview'!$H$6="Eilean Siar Local Authority",0,new_yll(10,B72,C72,D72,$C$1,G72+H72,1,F72,E72*F72))))))) -> 59702.45759 | Y72: 22.94296533 | Z72: =IF('III Tool Overview'!$H$6="Orkney Health Board",0,IF('III Tool Overview'!$H$6="Shetland Health Board",0,IF('III Tool Overview'!$H$6="Western Isles Health Board",0,IF('III Tool Overview'!$H$6="Orkney Islands Local Authority",0,IF('III Tool Overview'!$H$6="Shetland Islands Local Authority",0,IF('III Tool Overview'!$H$6="Eilean Siar Local Authority",0,new_yll(20,B72,C72,D72,$C$1,G72,1,F72,E72*F72))))))) -> 155545.6482 | AA72: =IF('III Tool Overview'!$H$6="Orkney Health Board",0,IF('III Tool Overview'!$H$6="Shetland Health Board",0,IF('III Tool Overview'!$H$6="Western Isles Health Board",0,IF('III Tool Overview'!$H$6="Orkney Islands Local Authority",0,IF('III Tool Overview'!$H$6="Shetland Islands Local Authority",0,IF('III Tool Overview'!$H$6="Eilean Siar Local Authority",0,new_yll(20,B72,C72,D72,$C$1,G72+H72,1,F72,E72*F72))))))) -> 155487.5414 | AB72: 58.10688358 | AO72: =HLOOKUP('III Tool Overview'!$H$6,LookUpData_Pop!$B$1:$AV$269,LookUpData_Pop!BB73,FALSE) -> 192409 | AP72: 37.01725887 | AR72: =AO72 -> 192409 | AZ72: 0.0001923883959 | BA72: 0 | BC72: =(AP72/AO72)*LookUpData_Pop!$B$282 -> 1.346718771 | BD72: =(AQ72/AP72)*LookUpData_Pop!$B$282 -> 0 | BF72: 0.5 | BG72: 5
A73: Male 30-34 | B73: 32.5 | C73: male | D73: 1 | E73: =HLOOKUP('III Tool Overview'!$H$6,Prevalence!$B$2:$AV$268,Prevalence!AW69,FALSE) -> 0.3832172469 | F73: =HLOOKUP('III Tool Overview'!$H$6,LookUpData_Pop!$B$1:$AV$269,LookUpData_Pop!BB74,FALSE)/5 -> 32307.4 | G73: ='III Tool Overview'!$H$9/110 -> 0 | H73: =IF('III Tool Overview'!$H$10="Even distribution",Targeting!C71,IF('III Tool Overview'!$H$10="Targeting to Q1",Targeting!D71,IF('III Tool Overview'!$H$10="Targeting to Q1 & Q2",Targeting!E71,IF('III Tool Overview'!$H$10="Proportionate to need",Targeting!F71)))) -> 913.5189232 | I73: =IF('III Tool Overview'!$H$6="Orkney Health Board",0,IF('III Tool Overview'!$H$6="Shetland Health Board",0,IF('III Tool Overview'!$H$6="Western Isles Health Board",0,IF('III Tool Overview'!$H$6="Orkney Islands Local Authority",0,IF('III Tool Overview'!$H$6="Shetland Islands Local Authority",0,IF('III Tool Overview'!$H$6="Eilean Siar Local Authority",0,new_ci(2,B73,C73,D73,$C$1,G73,1,F73,E73*F73))))))) -> 88.36051318 | J73: =IF('III Tool Overview'!$H$6="Orkney Health Board",0,IF('III Tool Overview'!$H$6="Shetland Health Board",0,IF('III Tool Overview'!$H$6="Western Isles Health Board",0,IF('III Tool Overview'!$H$6="Orkney Islands Local Authority",0,IF('III Tool Overview'!$H$6="Shetland Islands Local Authority",0,IF('III Tool Overview'!$H$6="Eilean Siar Local Authority",0,new_ci(2,B73,C73,D73,$C$1,G73+H73,1,F73,E73*F73))))))) -> 88.32210847 | K73: =IF('III Tool Overview'!$H$6="Orkney Health Board",0,IF('III Tool Overview'!$H$6="Shetland Health Board",0,IF('III Tool Overview'!$H$6="Western Isles Health Board",0,IF('III Tool Overview'!$H$6="Orkney Islands Local Authority",0,IF('III Tool Overview'!$H$6="Shetland Islands Local Authority",0,IF('III Tool Overview'!$H$6="Eilean Siar Local Authority",0,new_ci(5,B73,C73,D73,$C$1,G73,1,F73,E73*F73))))))) -> 384.8188114 | L73: =IF('III Tool Overview'!$H$6="Orkney Health Board",0,IF('III Tool Overview'!$H$6="Shetland Health Board",0,IF('III Tool Overview'!$H$6="Western Isles Health Board",0,IF('III Tool Overview'!$H$6="Orkney Islands Local Authority",0,IF('III Tool Overview'!$H$6="Shetland Islands Local Authority",0,IF('III Tool Overview'!$H$6="Eilean Siar Local Authority",0,new_ci(5,B73,C73,D73,$C$1,G73+H73,1,F73,E73*F73))))))) -> 384.6525577 | M73: =IF('III Tool Overview'!$H$6="Orkney Health Board",0,IF('III Tool Overview'!$H$6="Shetland Health Board",0,IF('III Tool Overview'!$H$6="Western Isles Health Board",0,IF('III Tool Overview'!$H$6="Orkney Islands Local Authority",0,IF('III Tool Overview'!$H$6="Shetland Islands Local Authority",0,IF('III Tool Overview'!$H$6="Eilean Siar Local Authority",0,new_ci(10,B73,C73,D73,$C$1,G73,1,F73,E73*F73))))))) -> 1001.310017 | N73: =IF('III Tool Overview'!$H$6="Orkney Health Board",0,IF('III Tool Overview'!$H$6="Shetland Health Board",0,IF('III Tool Overview'!$H$6="Western Isles Health Board",0,IF('III Tool Overview'!$H$6="Orkney Islands Local Authority",0,IF('III Tool Overview'!$H$6="Shetland Islands Local Authority",0,IF('III Tool Overview'!$H$6="Eilean Siar Local Authority",0,new_ci(10,B73,C73,D73,$C$1,G73+H73,1,F73,E73*F73))))))) -> 1000.882885 | O73: =IF('III Tool Overview'!$H$6="Orkney Health Board",0,IF('III Tool Overview'!$H$6="Shetland Health Board",0,IF('III Tool Overview'!$H$6="Western Isles Health Board",0,IF('III Tool Overview'!$H$6="Orkney Islands Local Authority",0,IF('III Tool Overview'!$H$6="Shetland Islands Local Authority",0,IF('III Tool Overview'!$H$6="Eilean Siar Local Authority",0,new_ci(20,B73,C73,D73,$C$1,G73,1,F73,E73*F73))))))) -> 2855.270614 | P73: =IF('III Tool Overview'!$H$6="Orkney Health Board",0,IF('III Tool Overview'!$H$6="Shetland Health Board",0,IF('III Tool Overview'!$H$6="Western Isles Health Board",0,IF('III Tool Overview'!$H$6="Orkney Islands Local Authority",0,IF('III Tool Overview'!$H$6="Shetland Islands Local Authority",0,IF('III Tool Overview'!$H$6="Eilean Siar Local Authority",0,new_ci(20,B73,C73,D73,$C$1,G73+H73,1,F73,E73*F73))))))) -> 2854.100451 | Q73: =IF('III Tool Overview'!$H$6="Orkney Health Board",0,IF('III Tool Overview'!$H$6="Shetland Health Board",0,IF('III Tool Overview'!$H$6="Western Isles Health Board",0,IF('III Tool Overview'!$H$6="Orkney Islands Local Authority",0,IF('III Tool Overview'!$H$6="Shetland Islands Local Authority",0,IF('III Tool Overview'!$H$6="Eilean Siar Local Authority",0,new_yll(2,B73,C73,D73,$C$1,G73,1,F73,E73*F73))))))) -> 5920.154383 | R73: =IF('III Tool Overview'!$H$6="Orkney Health Board",0,IF('III Tool Overview'!$H$6="Shetland Health Board",0,IF('III Tool Overview'!$H$6="Western Isles Health Board",0,IF('III Tool Overview'!$H$6="Orkney Islands Local Authority",0,IF('III Tool Overview'!$H$6="Shetland Islands Local Authority",0,IF('III Tool Overview'!$H$6="Eilean Siar Local Authority",0,new_yll(2,B73,C73,D73,$C$1,G73+H73,1,F73,E73*F73))))))) -> 5917.581267 | S73: 2.573116027 | T73: =IF('III Tool Overview'!$H$6="Orkney Health Board",0,IF('III Tool Overview'!$H$6="Shetland Health Board",0,IF('III Tool Overview'!$H$6="Western Isles Health Board",0,IF('III Tool Overview'!$H$6="Orkney Islands Local Authority",0,IF('III Tool Overview'!$H$6="Shetland Islands Local Authority",0,IF('III Tool Overview'!$H$6="Eilean Siar Local Authority",0,new_yll(5,B73,C73,D73,$C$1,G73,1,F73,E73*F73))))))) -> 25179.02453 | U73: =IF('III Tool Overview'!$H$6="Orkney Health Board",0,IF('III Tool Overview'!$H$6="Shetland Health Board",0,IF('III Tool Overview'!$H$6="Western Isles Health Board",0,IF('III Tool Overview'!$H$6="Orkney Islands Local Authority",0,IF('III Tool Overview'!$H$6="Shetland Islands Local Authority",0,IF('III Tool Overview'!$H$6="Eilean Siar Local Authority",0,new_yll(5,B73,C73,D73,$C$1,G73+H73,1,F73,E73*F73))))))) -> 25168.14559 | V73: 10.87893381 | W73: =IF('III Tool Overview'!$H$6="Orkney Health Board",0,IF('III Tool Overview'!$H$6="Shetland Health Board",0,IF('III Tool Overview'!$H$6="Western Isles Health Board",0,IF('III Tool Overview'!$H$6="Orkney Islands Local Authority",0,IF('III Tool Overview'!$H$6="Shetland Islands Local Authority",0,IF('III Tool Overview'!$H$6="Eilean Siar Local Authority",0,new_yll(10,B73,C73,D73,$C$1,G73,1,F73,E73*F73))))))) -> 62717.95 | X73: =IF('III Tool Overview'!$H$6="Orkney Health Board",0,IF('III Tool Overview'!$H$6="Shetland Health Board",0,IF('III Tool Overview'!$H$6="Western Isles Health Board",0,IF('III Tool Overview'!$H$6="Orkney Islands Local Authority",0,IF('III Tool Overview'!$H$6="Shetland Islands Local Authority",0,IF('III Tool Overview'!$H$6="Eilean Siar Local Authority",0,new_yll(10,B73,C73,D73,$C$1,G73+H73,1,F73,E73*F73))))))) -> 62691.18316 | Y73: 26.76684146 | Z73: =IF('III Tool Overview'!$H$6="Orkney Health Board",0,IF('III Tool Overview'!$H$6="Shetland Health Board",0,IF('III Tool Overview'!$H$6="Western Isles Health Board",0,IF('III Tool Overview'!$H$6="Orkney Islands Local Authority",0,IF('III Tool Overview'!$H$6="Shetland Islands Local Authority",0,IF('III Tool Overview'!$H$6="Eilean Siar Local Authority",0,new_yll(20,B73,C73,D73,$C$1,G73,1,F73,E73*F73))))))) -> 161110.4325 | AA73: =IF('III Tool Overview'!$H$6="Orkney Health Board",0,IF('III Tool Overview'!$H$6="Shetland Health Board",0,IF('III Tool Overview'!$H$6="Western Isles Health Board",0,IF('III Tool Overview'!$H$6="Orkney Islands Local Authority",0,IF('III Tool Overview'!$H$6="Shetland Islands Local Authority",0,IF('III Tool Overview'!$H$6="Eilean Siar Local Authority",0,new_yll(20,B73,C73,D73,$C$1,G73+H73,1,F73,E73*F73))))))) -> 161044.1804 | AB73: 66.25208937 | AO73: =HLOOKUP('III Tool Overview'!$H$6,LookUpData_Pop!$B$1:$AV$269,LookUpData_Pop!BB74,FALSE) -> 161537 | AP73: 51.41765608 | AR73: 161537 | AZ73: 0.0003183026556 | BA73: 0 | BC73: =(AP73/AO73)*LookUpData_Pop!$B$283 -> 2.228118589 | BD73: =(AQ73/AP73)*LookUpData_Pop!$B$283 -> 0 | BF73: 0.5 | BG73: 5
A74: Male 35-39 | B74: 37.5 | C74: male | D74: 1 | E74: =HLOOKUP('III Tool Overview'!$H$6,Prevalence!$B$2:$AV$268,Prevalence!AW70,FALSE) -> 0.4545546288 | F74: =HLOOKUP('III Tool Overview'!$H$6,LookUpData_Pop!$B$1:$AV$269,LookUpData_Pop!BB75,FALSE)/5 -> 32289.6 | G74: ='III Tool Overview'!$H$9/110 -> 0 | H74: =IF('III Tool Overview'!$H$10="Even distribution",Targeting!C72,IF('III Tool Overview'!$H$10="Targeting to Q1",Targeting!D72,IF('III Tool Overview'!$H$10="Targeting to Q1 & Q2",Targeting!E72,IF('III Tool Overview'!$H$10="Proportionate to need",Targeting!F72)))) -> 955.9111204 | I74: =IF('III Tool Overview'!$H$6="Orkney Health Board",0,IF('III Tool Overview'!$H$6="Shetland Health Board",0,IF('III Tool Overview'!$H$6="Western Isles Health Board",0,IF('III Tool Overview'!$H$6="Orkney Islands Local Authority",0,IF('III Tool Overview'!$H$6="Shetland Islands Local Authority",0,IF('III Tool Overview'!$H$6="Eilean Siar Local Authority",0,new_ci(2,B74,C74,D74,$C$1,G74,1,F74,E74*F74))))))) -> 136.253903 | J74: =IF('III Tool Overview'!$H$6="Orkney Health Board",0,IF('III Tool Overview'!$H$6="Shetland Health Board",0,IF('III Tool Overview'!$H$6="Western Isles Health Board",0,IF('III Tool Overview'!$H$6="Orkney Islands Local Authority",0,IF('III Tool Overview'!$H$6="Shetland Islands Local Authority",0,IF('III Tool Overview'!$H$6="Eilean Siar Local Authority",0,new_ci(2,B74,C74,D74,$C$1,G74+H74,1,F74,E74*F74))))))) -> 136.1931467 | K74: =IF('III Tool Overview'!$H$6="Orkney Health Board",0,IF('III Tool Overview'!$H$6="Shetland Health Board",0,IF('III Tool Overview'!$H$6="Western Isles Health Board",0,IF('III Tool Overview'!$H$6="Orkney Islands Local Authority",0,IF('III Tool Overview'!$H$6="Shetland Islands Local Authority",0,IF('III Tool Overview'!$H$6="Eilean Siar Local Authority",0,new_ci(5,B74,C74,D74,$C$1,G74,1,F74,E74*F74))))))) -> 591.8877817 | L74: =IF('III Tool Overview'!$H$6="Orkney Health Board",0,IF('III Tool Overview'!$H$6="Shetland Health Board",0,IF('III Tool Overview'!$H$6="Western Isles Health Board",0,IF('III Tool Overview'!$H$6="Orkney Islands Local Authority",0,IF('III Tool Overview'!$H$6="Shetland Islands Local Authority",0,IF('III Tool Overview'!$H$6="Eilean Siar Local Authority",0,new_ci(5,B74,C74,D74,$C$1,G74+H74,1,F74,E74*F74))))))) -> 591.6262147 | M74: =IF('III Tool Overview'!$H$6="Orkney Health Board",0,IF('III Tool Overview'!$H$6="Shetland Health Board",0,IF('III Tool Overview'!$H$6="Western Isles Health Board",0,IF('III Tool Overview'!$H$6="Orkney Islands Local Authority",0,IF('III Tool Overview'!$H$6="Shetland Islands Local Authority",0,IF('III Tool Overview'!$H$6="Eilean Siar Local Authority",0,new_ci(10,B74,C74,D74,$C$1,G74,1,F74,E74*F74))))))) -> 1531.898063 | N74: =IF('III Tool Overview'!$H$6="Orkney Health Board",0,IF('III Tool Overview'!$H$6="Shetland Health Board",0,IF('III Tool Overview'!$H$6="Western Isles Health Board",0,IF('III Tool Overview'!$H$6="Orkney Islands Local Authority",0,IF('III Tool Overview'!$H$6="Shetland Islands Local Authority",0,IF('III Tool Overview'!$H$6="Eilean Siar Local Authority",0,new_ci(10,B74,C74,D74,$C$1,G74+H74,1,F74,E74*F74))))))) -> 1531.23383 | O74: =IF('III Tool Overview'!$H$6="Orkney Health Board",0,IF('III Tool Overview'!$H$6="Shetland Health Board",0,IF('III Tool Overview'!$H$6="Western Isles Health Board",0,IF('III Tool Overview'!$H$6="Orkney Islands Local Authority",0,IF('III Tool Overview'!$H$6="Shetland Islands Local Authority",0,IF('III Tool Overview'!$H$6="Eilean Siar Local Authority",0,new_ci(20,B74,C74,D74,$C$1,G74,1,F74,E74*F74))))))) -> 4297.055434 | P74: =IF('III Tool Overview'!$H$6="Orkney Health Board",0,IF('III Tool Overview'!$H$6="Shetland Health Board",0,IF('III Tool Overview'!$H$6="Western Isles Health Board",0,IF('III Tool Overview'!$H$6="Orkney Islands Local Authority",0,IF('III Tool Overview'!$H$6="Shetland Islands Local Authority",0,IF('III Tool Overview'!$H$6="Eilean Siar Local Authority",0,new_ci(20,B74,C74,D74,$C$1,G74+H74,1,F74,E74*F74))))))) -> 4295.300851 | Q74: =IF('III Tool Overview'!$H$6="Orkney Health Board",0,IF('III Tool Overview'!$H$6="Shetland Health Board",0,IF('III Tool Overview'!$H$6="Western Isles Health Board",0,IF('III Tool Overview'!$H$6="Orkney Islands Local Authority",0,IF('III Tool Overview'!$H$6="Shetland Islands Local Authority",0,IF('III Tool Overview'!$H$6="Eilean Siar Local Authority",0,new_yll(2,B74,C74,D74,$C$1,G74,1,F74,E74*F74))))))) -> 8311.488084 | R74: =IF('III Tool Overview'!$H$6="Orkney Health Board",0,IF('III Tool Overview'!$H$6="Shetland Health Board",0,IF('III Tool Overview'!$H$6="Western Isles Health Board",0,IF('III Tool Overview'!$H$6="Orkney Islands Local Authority",0,IF('III Tool Overview'!$H$6="Shetland Islands Local Authority",0,IF('III Tool Overview'!$H$6="Eilean Siar Local Authority",0,new_yll(2,B74,C74,D74,$C$1,G74+H74,1,F74,E74*F74))))))) -> 8307.781951 | S74: 3.706132358 | T74: =IF('III Tool Overview'!$H$6="Orkney Health Board",0,IF('III Tool Overview'!$H$6="Shetland Health Board",0,IF('III Tool Overview'!$H$6="Western Isles Health Board",0,IF('III Tool Overview'!$H$6="Orkney Islands Local Authority",0,IF('III Tool Overview'!$H$6="Shetland Islands Local Authority",0,IF('III Tool Overview'!$H$6="Eilean Siar Local Authority",0,new_yll(5,B74,C74,D74,$C$1,G74,1,F74,E74*F74))))))) -> 35177.62227 | U74: =IF('III Tool Overview'!$H$6="Orkney Health Board",0,IF('III Tool Overview'!$H$6="Shetland Health Board",0,IF('III Tool Overview'!$H$6="Western Isles Health Board",0,IF('III Tool Overview'!$H$6="Orkney Islands Local Authority",0,IF('III Tool Overview'!$H$6="Shetland Islands Local Authority",0,IF('III Tool Overview'!$H$6="Eilean Siar Local Authority",0,new_yll(5,B74,C74,D74,$C$1,G74+H74,1,F74,E74*F74))))))) -> 35162.07466 | V74: 15.54760512 | W74: =IF('III Tool Overview'!$H$6="Orkney Health Board",0,IF('III Tool Overview'!$H$6="Shetland Health Board",0,IF('III Tool Overview'!$H$6="Western Isles Health Board",0,IF('III Tool Overview'!$H$6="Orkney Islands Local Authority",0,IF('III Tool Overview'!$H$6="Shetland Islands Local Authority",0,IF('III Tool Overview'!$H$6="Eilean Siar Local Authority",0,new_yll(10,B74,C74,D74,$C$1,G74,1,F74,E74*F74))))))) -> 86780.01482 | X74: =IF('III Tool Overview'!$H$6="Orkney Health Board",0,IF('III Tool Overview'!$H$6="Shetland Health Board",0,IF('III Tool Overview'!$H$6="Western Isles Health Board",0,IF('III Tool Overview'!$H$6="Orkney Islands Local Authority",0,IF('III Tool Overview'!$H$6="Shetland Islands Local Authority",0,IF('III Tool Overview'!$H$6="Eilean Siar Local Authority",0,new_yll(10,B74,C74,D74,$C$1,G74+H74,1,F74,E74*F74))))))) -> 86742.35636 | Y74: 37.6584626 | Z74: =IF('III Tool Overview'!$H$6="Orkney Health Board",0,IF('III Tool Overview'!$H$6="Shetland Health Board",0,IF('III Tool Overview'!$H$6="Western Isles Health Board",0,IF('III Tool Overview'!$H$6="Orkney Islands Local Authority",0,IF('III Tool Overview'!$H$6="Shetland Islands Local Authority",0,IF('III Tool Overview'!$H$6="Eilean Siar Local Authority",0,new_yll(20,B74,C74,D74,$C$1,G74,1,F74,E74*F74))))))) -> 217016.3201 | AA74: =IF('III Tool Overview'!$H$6="Orkney Health Board",0,IF('III Tool Overview'!$H$6="Shetland Health Board",0,IF('III Tool Overview'!$H$6="Western Isles Health Board",0,IF('III Tool Overview'!$H$6="Orkney Islands Local Authority",0,IF('III Tool Overview'!$H$6="Shetland Islands Local Authority",0,IF('III Tool Overview'!$H$6="Eilean Siar Local Authority",0,new_yll(20,B74,C74,D74,$C$1,G74+H74,1,F74,E74*F74))))))) -> 216927.1899 | AB74: 89.13011618 | AO74: =HLOOKUP('III Tool Overview'!$H$6,LookUpData_Pop!$B$1:$AV$269,LookUpData_Pop!BB75,FALSE) -> 161448 | AP74: 56.12368127 | AR74: 161448 | AZ74: 0.0003476269837 | BA74: 0 | BC74: =(AP74/AO74)*LookUpData_Pop!$B$284 -> 2.433388886 | BD74: =(AQ74/AP74)*LookUpData_Pop!$B$284 -> 0 | BF74: 0.5 | BG74: 5
A75: Male 40-44 | B75: 42.5 | C75: male | D75: 1 | E75: =HLOOKUP('III Tool Overview'!$H$6,Prevalence!$B$2:$AV$268,Prevalence!AW71,FALSE) -> 0.4545546288 | F75: =HLOOKUP('III Tool Overview'!$H$6,LookUpData_Pop!$B$1:$AV$269,LookUpData_Pop!BB76,FALSE)/5 -> 34672.6 | G75: ='III Tool Overview'!$H$9/110 -> 0 | H75: =IF('III Tool Overview'!$H$10="Even distribution",Targeting!C73,IF('III Tool Overview'!$H$10="Targeting to Q1",Targeting!D73,IF('III Tool Overview'!$H$10="Targeting to Q1 & Q2",Targeting!E73,IF('III Tool Overview'!$H$10="Proportionate to need",Targeting!F73)))) -> 1080.483897 | I75: =IF('III Tool Overview'!$H$6="Orkney Health Board",0,IF('III Tool Overview'!$H$6="Shetland Health Board",0,IF('III Tool Overview'!$H$6="Western Isles Health Board",0,IF('III Tool Overview'!$H$6="Orkney Islands Local Authority",0,IF('III Tool Overview'!$H$6="Shetland Islands Local Authority",0,IF('III Tool Overview'!$H$6="Eilean Siar Local Authority",0,new_ci(2,B75,C75,D75,$C$1,G75,1,F75,E75*F75))))))) -> 195.3133532 | J75: =IF('III Tool Overview'!$H$6="Orkney Health Board",0,IF('III Tool Overview'!$H$6="Shetland Health Board",0,IF('III Tool Overview'!$H$6="Western Isles Health Board",0,IF('III Tool Overview'!$H$6="Orkney Islands Local Authority",0,IF('III Tool Overview'!$H$6="Shetland Islands Local Authority",0,IF('III Tool Overview'!$H$6="Eilean Siar Local Authority",0,new_ci(2,B75,C75,D75,$C$1,G75+H75,1,F75,E75*F75))))))) -> 195.22181 | K75: =IF('III Tool Overview'!$H$6="Orkney Health Board",0,IF('III Tool Overview'!$H$6="Shetland Health Board",0,IF('III Tool Overview'!$H$6="Western Isles Health Board",0,IF('III Tool Overview'!$H$6="Orkney Islands Local Authority",0,IF('III Tool Overview'!$H$6="Shetland Islands Local Authority",0,IF('III Tool Overview'!$H$6="Eilean Siar Local Authority",0,new_ci(5,B75,C75,D75,$C$1,G75,1,F75,E75*F75))))))) -> 846.3855957 | L75: =IF('III Tool Overview'!$H$6="Orkney Health Board",0,IF('III Tool Overview'!$H$6="Shetland Health Board",0,IF('III Tool Overview'!$H$6="Western Isles Health Board",0,IF('III Tool Overview'!$H$6="Orkney Islands Local Authority",0,IF('III Tool Overview'!$H$6="Shetland Islands Local Authority",0,IF('III Tool Overview'!$H$6="Eilean Siar Local Authority",0,new_ci(5,B75,C75,D75,$C$1,G75+H75,1,F75,E75*F75))))))) -> 845.9936271 | M75: =IF('III Tool Overview'!$H$6="Orkney Health Board",0,IF('III Tool Overview'!$H$6="Shetland Health Board",0,IF('III Tool Overview'!$H$6="Western Isles Health Board",0,IF('III Tool Overview'!$H$6="Orkney Islands Local Authority",0,IF('III Tool Overview'!$H$6="Shetland Islands Local Authority",0,IF('III Tool Overview'!$H$6="Eilean Siar Local Authority",0,new_ci(10,B75,C75,D75,$C$1,G75,1,F75,E75*F75))))))) -> 2179.492686 | N75: =IF('III Tool Overview'!$H$6="Orkney Health Board",0,IF('III Tool Overview'!$H$6="Shetland Health Board",0,IF('III Tool Overview'!$H$6="Western Isles Health Board",0,IF('III Tool Overview'!$H$6="Orkney Islands Local Authority",0,IF('III Tool Overview'!$H$6="Shetland Islands Local Authority",0,IF('III Tool Overview'!$H$6="Eilean Siar Local Authority",0,new_ci(10,B75,C75,D75,$C$1,G75+H75,1,F75,E75*F75))))))) -> 2178.508686 | O75: =IF('III Tool Overview'!$H$6="Orkney Health Board",0,IF('III Tool Overview'!$H$6="Shetland Health Board",0,IF('III Tool Overview'!$H$6="Western Isles Health Board",0,IF('III Tool Overview'!$H$6="Orkney Islands Local Authority",0,IF('III Tool Overview'!$H$6="Shetland Islands Local Authority",0,IF('III Tool Overview'!$H$6="Eilean Siar Local Authority",0,new_ci(20,B75,C75,D75,$C$1,G75,1,F75,E75*F75))))))) -> 6019.734431 | P75: =IF('III Tool Overview'!$H$6="Orkney Health Board",0,IF('III Tool Overview'!$H$6="Shetland Health Board",0,IF('III Tool Overview'!$H$6="Western Isles Health Board",0,IF('III Tool Overview'!$H$6="Orkney Islands Local Authority",0,IF('III Tool Overview'!$H$6="Shetland Islands Local Authority",0,IF('III Tool Overview'!$H$6="Eilean Siar Local Authority",0,new_ci(20,B75,C75,D75,$C$1,G75+H75,1,F75,E75*F75))))))) -> 6017.227131 | Q75: =IF('III Tool Overview'!$H$6="Orkney Health Board",0,IF('III Tool Overview'!$H$6="Shetland Health Board",0,IF('III Tool Overview'!$H$6="Western Isles Health Board",0,IF('III Tool Overview'!$H$6="Orkney Islands Local Authority",0,IF('III Tool Overview'!$H$6="Shetland Islands Local Authority",0,IF('III Tool Overview'!$H$6="Eilean Siar Local Authority",0,new_yll(2,B75,C75,D75,$C$1,G75,1,F75,E75*F75))))))) -> 11132.86113 | R75: =IF('III Tool Overview'!$H$6="Orkney Health Board",0,IF('III Tool Overview'!$H$6="Shetland Health Board",0,IF('III Tool Overview'!$H$6="Western Isles Health Board",0,IF('III Tool Overview'!$H$6="Orkney Islands Local Authority",0,IF('III Tool Overview'!$H$6="Shetland Islands Local Authority",0,IF('III Tool Overview'!$H$6="Eilean Siar Local Authority",0,new_yll(2,B75,C75,D75,$C$1,G75+H75,1,F75,E75*F75))))))) -> 11127.64317 | S75: 5.217960261 | T75: =IF('III Tool Overview'!$H$6="Orkney Health Board",0,IF('III Tool Overview'!$H$6="Shetland Health Board",0,IF('III Tool Overview'!$H$6="Western Isles Health Board",0,IF('III Tool Overview'!$H$6="Orkney Islands Local Authority",0,IF('III Tool Overview'!$H$6="Shetland Islands Local Authority",0,IF('III Tool Overview'!$H$6="Eilean Siar Local Authority",0,new_yll(5,B75,C75,D75,$C$1,G75,1,F75,E75*F75))))))) -> 46919.2978 | U75: =IF('III Tool Overview'!$H$6="Orkney Health Board",0,IF('III Tool Overview'!$H$6="Shetland Health Board",0,IF('III Tool Overview'!$H$6="Western Isles Health Board",0,IF('III Tool Overview'!$H$6="Orkney Islands Local Authority",0,IF('III Tool Overview'!$H$6="Shetland Islands Local Authority",0,IF('III Tool Overview'!$H$6="Eilean Siar Local Authority",0,new_yll(5,B75,C75,D75,$C$1,G75+H75,1,F75,E75*F75))))))) -> 46897.56521 | V75: 21.73258331 | W75: =IF('III Tool Overview'!$H$6="Orkney Health Board",0,IF('III Tool Overview'!$H$6="Shetland Health Board",0,IF('III Tool Overview'!$H$6="Western Isles Health Board",0,IF('III Tool Overview'!$H$6="Orkney Islands Local Authority",0,IF('III Tool Overview'!$H$6="Shetland Islands Local Authority",0,IF('III Tool Overview'!$H$6="Eilean Siar Local Authority",0,new_yll(10,B75,C75,D75,$C$1,G75,1,F75,E75*F75))))))) -> 114773.9976 | X75: =IF('III Tool Overview'!$H$6="Orkney Health Board",0,IF('III Tool Overview'!$H$6="Shetland Health Board",0,IF('III Tool Overview'!$H$6="Western Isles Health Board",0,IF('III Tool Overview'!$H$6="Orkney Islands Local Authority",0,IF('III Tool Overview'!$H$6="Shetland Islands Local Authority",0,IF('III Tool Overview'!$H$6="Eilean Siar Local Authority",0,new_yll(10,B75,C75,D75,$C$1,G75+H75,1,F75,E75*F75))))))) -> 114722.1183 | Y75: 51.87930132 | Z75: =IF('III Tool Overview'!$H$6="Orkney Health Board",0,IF('III Tool Overview'!$H$6="Shetland Health Board",0,IF('III Tool Overview'!$H$6="Western Isles Health Board",0,IF('III Tool Overview'!$H$6="Orkney Islands Local Authority",0,IF('III Tool Overview'!$H$6="Shetland Islands Local Authority",0,IF('III Tool Overview'!$H$6="Eilean Siar Local Authority",0,new_yll(20,B75,C75,D75,$C$1,G75,1,F75,E75*F75))))))) -> 280385.5441 | AA75: =IF('III Tool Overview'!$H$6="Orkney Health Board",0,IF('III Tool Overview'!$H$6="Shetland Health Board",0,IF('III Tool Overview'!$H$6="Western Isles Health Board",0,IF('III Tool Overview'!$H$6="Orkney Islands Local Authority",0,IF('III Tool Overview'!$H$6="Shetland Islands Local Authority",0,IF('III Tool Overview'!$H$6="Eilean Siar Local Authority",0,new_yll(20,B75,C75,D75,$C$1,G75+H75,1,F75,E75*F75))))))) -> 280267.7449 | AB75: 117.7992554 | AO75: =HLOOKUP('III Tool Overview'!$H$6,LookUpData_Pop!$B$1:$AV$269,LookUpData_Pop!BB76,FALSE) -> 173363 | AP75: 80.38549848 | AR75: 173363 | AZ75: 0.0004636831301 | BA75: 0 | BC75: =(AP75/AO75)*LookUpData_Pop!$B$285 -> 3.245781911 | BD75: =(AQ75/AP75)*LookUpData_Pop!$B$285 -> 0 | BF75: 0.5 | BG75: 5
A76: Male 45-49 | B76: 47.5 | C76: male | D76: 1 | E76: =HLOOKUP('III Tool Overview'!$H$6,Prevalence!$B$2:$AV$268,Prevalence!AW72,FALSE) -> 0.3804167812 | F76: =HLOOKUP('III Tool Overview'!$H$6,LookUpData_Pop!$B$1:$AV$269,LookUpData_Pop!BB77,FALSE)/5 -> 34460.8 | G76: ='III Tool Overview'!$H$9/110 -> 0 | H76: =IF('III Tool Overview'!$H$10="Even distribution",Targeting!C74,IF('III Tool Overview'!$H$10="Targeting to Q1",Targeting!D74,IF('III Tool Overview'!$H$10="Targeting to Q1 & Q2",Targeting!E74,IF('III Tool Overview'!$H$10="Proportionate to need",Targeting!F74)))) -> 946.6277234 | I76: =IF('III Tool Overview'!$H$6="Orkney Health Board",0,IF('III Tool Overview'!$H$6="Shetland Health Board",0,IF('III Tool Overview'!$H$6="Western Isles Health Board",0,IF('III Tool Overview'!$H$6="Orkney Islands Local Authority",0,IF('III Tool Overview'!$H$6="Shetland Islands Local Authority",0,IF('III Tool Overview'!$H$6="Eilean Siar Local Authority",0,new_ci(2,B76,C76,D76,$C$1,G76,1,F76,E76*F76))))))) -> 299.2625067 | J76: =IF('III Tool Overview'!$H$6="Orkney Health Board",0,IF('III Tool Overview'!$H$6="Shetland Health Board",0,IF('III Tool Overview'!$H$6="Western Isles Health Board",0,IF('III Tool Overview'!$H$6="Orkney Islands Local Authority",0,IF('III Tool Overview'!$H$6="Shetland Islands Local Authority",0,IF('III Tool Overview'!$H$6="Eilean Siar Local Authority",0,new_ci(2,B76,C76,D76,$C$1,G76+H76,1,F76,E76*F76))))))) -> 299.1365574 | K76: =IF('III Tool Overview'!$H$6="Orkney Health Board",0,IF('III Tool Overview'!$H$6="Shetland Health Board",0,IF('III Tool Overview'!$H$6="Western Isles Health Board",0,IF('III Tool Overview'!$H$6="Orkney Islands Local Authority",0,IF('III Tool Overview'!$H$6="Shetland Islands Local Authority",0,IF('III Tool Overview'!$H$6="Eilean Siar Local Authority",0,new_ci(5,B76,C76,D76,$C$1,G76,1,F76,E76*F76))))))) -> 1290.072543 | L76: =IF('III Tool Overview'!$H$6="Orkney Health Board",0,IF('III Tool Overview'!$H$6="Shetland Health Board",0,IF('III Tool Overview'!$H$6="Western Isles Health Board",0,IF('III Tool Overview'!$H$6="Orkney Islands Local Authority",0,IF('III Tool Overview'!$H$6="Shetland Islands Local Authority",0,IF('III Tool Overview'!$H$6="Eilean Siar Local Authority",0,new_ci(5,B76,C76,D76,$C$1,G76+H76,1,F76,E76*F76))))))) -> 1289.539932 | M76: =IF('III Tool Overview'!$H$6="Orkney Health Board",0,IF('III Tool Overview'!$H$6="Shetland Health Board",0,IF('III Tool Overview'!$H$6="Western Isles Health Board",0,IF('III Tool Overview'!$H$6="Orkney Islands Local Authority",0,IF('III Tool Overview'!$H$6="Shetland Islands Local Authority",0,IF('III Tool Overview'!$H$6="Eilean Siar Local Authority",0,new_ci(10,B76,C76,D76,$C$1,G76,1,F76,E76*F76))))))) -> 3286.001607 | N76: =IF('III Tool Overview'!$H$6="Orkney Health Board",0,IF('III Tool Overview'!$H$6="Shetland Health Board",0,IF('III Tool Overview'!$H$6="Western Isles Health Board",0,IF('III Tool Overview'!$H$6="Orkney Islands Local Authority",0,IF('III Tool Overview'!$H$6="Shetland Islands Local Authority",0,IF('III Tool Overview'!$H$6="Eilean Siar Local Authority",0,new_ci(10,B76,C76,D76,$C$1,G76+H76,1,F76,E76*F76))))))) -> 3284.699229 | O76: =IF('III Tool Overview'!$H$6="Orkney Health Board",0,IF('III Tool Overview'!$H$6="Shetland Health Board",0,IF('III Tool Overview'!$H$6="Western Isles Health Board",0,IF('III Tool Overview'!$H$6="Orkney Islands Local Authority",0,IF('III Tool Overview'!$H$6="Shetland Islands Local Authority",0,IF('III Tool Overview'!$H$6="Eilean Siar Local Authority",0,new_ci(20,B76,C76,D76,$C$1,G76,1,F76,E76*F76))))))) -> 8782.871322 | P76: =IF('III Tool Overview'!$H$6="Orkney Health Board",0,IF('III Tool Overview'!$H$6="Shetland Health Board",0,IF('III Tool Overview'!$H$6="Western Isles Health Board",0,IF('III Tool Overview'!$H$6="Orkney Islands Local Authority",0,IF('III Tool Overview'!$H$6="Shetland Islands Local Authority",0,IF('III Tool Overview'!$H$6="Eilean Siar Local Authority",0,new_ci(20,B76,C76,D76,$C$1,G76+H76,1,F76,E76*F76))))))) -> 8779.81511 | Q76: =IF('III Tool Overview'!$H$6="Orkney Health Board",0,IF('III Tool Overview'!$H$6="Shetland Health Board",0,IF('III Tool Overview'!$H$6="Western Isles Health Board",0,IF('III Tool Overview'!$H$6="Orkney Islands Local Authority",0,IF('III Tool Overview'!$H$6="Shetland Islands Local Authority",0,IF('III Tool Overview'!$H$6="Eilean Siar Local Authority",0,new_yll(2,B76,C76,D76,$C$1,G76,1,F76,E76*F76))))))) -> 15262.38784 | R76: =IF('III Tool Overview'!$H$6="Orkney Health Board",0,IF('III Tool Overview'!$H$6="Shetland Health Board",0,IF('III Tool Overview'!$H$6="Western Isles Health Board",0,IF('III Tool Overview'!$H$6="Orkney Islands Local Authority",0,IF('III Tool Overview'!$H$6="Shetland Islands Local Authority",0,IF('III Tool Overview'!$H$6="Eilean Siar Local Authority",0,new_yll(2,B76,C76,D76,$C$1,G76+H76,1,F76,E76*F76))))))) -> 15255.96443 | S76: 6.42341416 | T76: =IF('III Tool Overview'!$H$6="Orkney Health Board",0,IF('III Tool Overview'!$H$6="Shetland Health Board",0,IF('III Tool Overview'!$H$6="Western Isles Health Board",0,IF('III Tool Overview'!$H$6="Orkney Islands Local Authority",0,IF('III Tool Overview'!$H$6="Shetland Islands Local Authority",0,IF('III Tool Overview'!$H$6="Eilean Siar Local Authority",0,new_yll(5,B76,C76,D76,$C$1,G76,1,F76,E76*F76))))))) -> 63780.10116 | U76: =IF('III Tool Overview'!$H$6="Orkney Health Board",0,IF('III Tool Overview'!$H$6="Shetland Health Board",0,IF('III Tool Overview'!$H$6="Western Isles Health Board",0,IF('III Tool Overview'!$H$6="Orkney Islands Local Authority",0,IF('III Tool Overview'!$H$6="Shetland Islands Local Authority",0,IF('III Tool Overview'!$H$6="Eilean Siar Local Authority",0,new_yll(5,B76,C76,D76,$C$1,G76+H76,1,F76,E76*F76))))))) -> 63753.76088 | V76: 26.34027868 | W76: =IF('III Tool Overview'!$H$6="Orkney Health Board",0,IF('III Tool Overview'!$H$6="Shetland Health Board",0,IF('III Tool Overview'!$H$6="Western Isles Health Board",0,IF('III Tool Overview'!$H$6="Orkney Islands Local Authority",0,IF('III Tool Overview'!$H$6="Shetland Islands Local Authority",0,IF('III Tool Overview'!$H$6="Eilean Siar Local Authority",0,new_yll(10,B76,C76,D76,$C$1,G76,1,F76,E76*F76))))))) -> 153414.3264 | X76: =IF('III Tool Overview'!$H$6="Orkney Health Board",0,IF('III Tool Overview'!$H$6="Shetland Health Board",0,IF('III Tool Overview'!$H$6="Western Isles Health Board",0,IF('III Tool Overview'!$H$6="Orkney Islands Local Authority",0,IF('III Tool Overview'!$H$6="Shetland Islands Local Authority",0,IF('III Tool Overview'!$H$6="Eilean Siar Local Authority",0,new_yll(10,B76,C76,D76,$C$1,G76+H76,1,F76,E76*F76))))))) -> 153353.3902 | Y76: 60.93615004 | Z76: =IF('III Tool Overview'!$H$6="Orkney Health Board",0,IF('III Tool Overview'!$H$6="Shetland Health Board",0,IF('III Tool Overview'!$H$6="Western Isles Health Board",0,IF('III Tool Overview'!$H$6="Orkney Islands Local Authority",0,IF('III Tool Overview'!$H$6="Shetland Islands Local Authority",0,IF('III Tool Overview'!$H$6="Eilean Siar Local Authority",0,new_yll(20,B76,C76,D76,$C$1,G76,1,F76,E76*F76))))))) -> 357798.5743 | AA76: =IF('III Tool Overview'!$H$6="Orkney Health Board",0,IF('III Tool Overview'!$H$6="Shetland Health Board",0,IF('III Tool Overview'!$H$6="Western Isles Health Board",0,IF('III Tool Overview'!$H$6="Orkney Islands Local Authority",0,IF('III Tool Overview'!$H$6="Shetland Islands Local Authority",0,IF('III Tool Overview'!$H$6="Eilean Siar Local Authority",0,new_yll(20,B76,C76,D76,$C$1,G76+H76,1,F76,E76*F76))))))) -> 357671.9696 | AB76: 126.6046898 | AO76: =HLOOKUP('III Tool Overview'!$H$6,LookUpData_Pop!$B$1:$AV$269,LookUpData_Pop!BB77,FALSE) -> 172304 | AP76: 106.3686924 | AR76: 172304 | AZ76: 0.0006173315327 | BA76: 0 | BC76: =(AP76/AO76)*LookUpData_Pop!$B$286 -> 4.321320729 | BD76: =(AQ76/AP76)*LookUpData_Pop!$B$286 -> 0 | BF76: 0.5 | BG76: 5
A77: Male 50-54 | B77: 52.5 | C77: male | D77: 1 | E77: =HLOOKUP('III Tool Overview'!$H$6,Prevalence!$B$2:$AV$268,Prevalence!AW73,FALSE) -> 0.3804167812 | F77: =HLOOKUP('III Tool Overview'!$H$6,LookUpData_Pop!$B$1:$AV$269,LookUpData_Pop!BB78,FALSE)/5 -> 31296.6 | G77: ='III Tool Overview'!$H$9/110 -> 0 | H77: =IF('III Tool Overview'!$H$10="Even distribution",Targeting!C75,IF('III Tool Overview'!$H$10="Targeting to Q1",Targeting!D75,IF('III Tool Overview'!$H$10="Targeting to Q1 & Q2",Targeting!E75,IF('III Tool Overview'!$H$10="Proportionate to need",Targeting!F75)))) -> 881.3214342 | I77: =IF('III Tool Overview'!$H$6="Orkney Health Board",0,IF('III Tool Overview'!$H$6="Shetland Health Board",0,IF('III Tool Overview'!$H$6="Western Isles Health Board",0,IF('III Tool Overview'!$H$6="Orkney Islands Local Authority",0,IF('III Tool Overview'!$H$6="Shetland Islands Local Authority",0,IF('III Tool Overview'!$H$6="Eilean Siar Local Authority",0,new_ci(2,B77,C77,D77,$C$1,G77,1,F77,E77*F77))))))) -> 362.5358381 | J77: =IF('III Tool Overview'!$H$6="Orkney Health Board",0,IF('III Tool Overview'!$H$6="Shetland Health Board",0,IF('III Tool Overview'!$H$6="Western Isles Health Board",0,IF('III Tool Overview'!$H$6="Orkney Islands Local Authority",0,IF('III Tool Overview'!$H$6="Shetland Islands Local Authority",0,IF('III Tool Overview'!$H$6="Eilean Siar Local Authority",0,new_ci(2,B77,C77,D77,$C$1,G77+H77,1,F77,E77*F77))))))) -> 362.3798408 | K77: =IF('III Tool Overview'!$H$6="Orkney Health Board",0,IF('III Tool Overview'!$H$6="Shetland Health Board",0,IF('III Tool Overview'!$H$6="Western Isles Health Board",0,IF('III Tool Overview'!$H$6="Orkney Islands Local Authority",0,IF('III Tool Overview'!$H$6="Shetland Islands Local Authority",0,IF('III Tool Overview'!$H$6="Eilean Siar Local Authority",0,new_ci(5,B77,C77,D77,$C$1,G77,1,F77,E77*F77))))))) -> 1555.070479 | L77: =IF('III Tool Overview'!$H$6="Orkney Health Board",0,IF('III Tool Overview'!$H$6="Shetland Health Board",0,IF('III Tool Overview'!$H$6="Western Isles Health Board",0,IF('III Tool Overview'!$H$6="Orkney Islands Local Authority",0,IF('III Tool Overview'!$H$6="Shetland Islands Local Authority",0,IF('III Tool Overview'!$H$6="Eilean Siar Local Authority",0,new_ci(5,B77,C77,D77,$C$1,G77+H77,1,F77,E77*F77))))))) -> 1554.418321 | M77: =IF('III Tool Overview'!$H$6="Orkney Health Board",0,IF('III Tool Overview'!$H$6="Shetland Health Board",0,IF('III Tool Overview'!$H$6="Western Isles Health Board",0,IF('III Tool Overview'!$H$6="Orkney Islands Local Authority",0,IF('III Tool Overview'!$H$6="Shetland Islands Local Authority",0,IF('III Tool Overview'!$H$6="Eilean Siar Local Authority",0,new_ci(10,B77,C77,D77,$C$1,G77,1,F77,E77*F77))))))) -> 3920.38856 | N77: =IF('III Tool Overview'!$H$6="Orkney Health Board",0,IF('III Tool Overview'!$H$6="Shetland Health Board",0,IF('III Tool Overview'!$H$6="Western Isles Health Board",0,IF('III Tool Overview'!$H$6="Orkney Islands Local Authority",0,IF('III Tool Overview'!$H$6="Shetland Islands Local Authority",0,IF('III Tool Overview'!$H$6="Eilean Siar Local Authority",0,new_ci(10,B77,C77,D77,$C$1,G77+H77,1,F77,E77*F77))))))) -> 3918.83197 | O77: =IF('III Tool Overview'!$H$6="Orkney Health Board",0,IF('III Tool Overview'!$H$6="Shetland Health Board",0,IF('III Tool Overview'!$H$6="Western Isles Health Board",0,IF('III Tool Overview'!$H$6="Orkney Islands Local Authority",0,IF('III Tool Overview'!$H$6="Shetland Islands Local Authority",0,IF('III Tool Overview'!$H$6="Eilean Siar Local Authority",0,new_ci(20,B77,C77,D77,$C$1,G77,1,F77,E77*F77))))))) -> 10163.73086 | P77: =IF('III Tool Overview'!$H$6="Orkney Health Board",0,IF('III Tool Overview'!$H$6="Shetland Health Board",0,IF('III Tool Overview'!$H$6="Western Isles Health Board",0,IF('III Tool Overview'!$H$6="Orkney Islands Local Authority",0,IF('III Tool Overview'!$H$6="Shetland Islands Local Authority",0,IF('III Tool Overview'!$H$6="Eilean Siar Local Authority",0,new_ci(20,B77,C77,D77,$C$1,G77+H77,1,F77,E77*F77))))))) -> 10160.34468 | Q77: =IF('III Tool Overview'!$H$6="Orkney Health Board",0,IF('III Tool Overview'!$H$6="Shetland Health Board",0,IF('III Tool Overview'!$H$6="Western Isles Health Board",0,IF('III Tool Overview'!$H$6="Orkney Islands Local Authority",0,IF('III Tool Overview'!$H$6="Shetland Islands Local Authority",0,IF('III Tool Overview'!$H$6="Eilean Siar Local Authority",0,new_yll(2,B77,C77,D77,$C$1,G77,1,F77,E77*F77))))))) -> 17039.18439 | R77: =IF('III Tool Overview'!$H$6="Orkney Health Board",0,IF('III Tool Overview'!$H$6="Shetland Health Board",0,IF('III Tool Overview'!$H$6="Western Isles Health Board",0,IF('III Tool Overview'!$H$6="Orkney Islands Local Authority",0,IF('III Tool Overview'!$H$6="Shetland Islands Local Authority",0,IF('III Tool Overview'!$H$6="Eilean Siar Local Authority",0,new_yll(2,B77,C77,D77,$C$1,G77+H77,1,F77,E77*F77))))))) -> 17031.85252 | S77: 7.331871554 | T77: =IF('III Tool Overview'!$H$6="Orkney Health Board",0,IF('III Tool Overview'!$H$6="Shetland Health Board",0,IF('III Tool Overview'!$H$6="Western Isles Health Board",0,IF('III Tool Overview'!$H$6="Orkney Islands Local Authority",0,IF('III Tool Overview'!$H$6="Shetland Islands Local Authority",0,IF('III Tool Overview'!$H$6="Eilean Siar Local Authority",0,new_yll(5,B77,C77,D77,$C$1,G77,1,F77,E77*F77))))))) -> 70667.41426 | U77: =IF('III Tool Overview'!$H$6="Orkney Health Board",0,IF('III Tool Overview'!$H$6="Shetland Health Board",0,IF('III Tool Overview'!$H$6="Western Isles Health Board",0,IF('III Tool Overview'!$H$6="Orkney Islands Local Authority",0,IF('III Tool Overview'!$H$6="Shetland Islands Local Authority",0,IF('III Tool Overview'!$H$6="Eilean Siar Local Authority",0,new_yll(5,B77,C77,D77,$C$1,G77+H77,1,F77,E77*F77))))))) -> 70637.76422 | V77: 29.650038 | W77: =IF('III Tool Overview'!$H$6="Orkney Health Board",0,IF('III Tool Overview'!$H$6="Shetland Health Board",0,IF('III Tool Overview'!$H$6="Western Isles Health Board",0,IF('III Tool Overview'!$H$6="Orkney Islands Local Authority",0,IF('III Tool Overview'!$H$6="Shetland Islands Local Authority",0,IF('III Tool Overview'!$H$6="Eilean Siar Local Authority",0,new_yll(10,B77,C77,D77,$C$1,G77,1,F77,E77*F77))))))) -> 167449.0556 | X77: =IF('III Tool Overview'!$H$6="Orkney Health Board",0,IF('III Tool Overview'!$H$6="Shetland Health Board",0,IF('III Tool Overview'!$H$6="Western Isles Health Board",0,IF('III Tool Overview'!$H$6="Orkney Islands Local Authority",0,IF('III Tool Overview'!$H$6="Shetland Islands Local Authority",0,IF('III Tool Overview'!$H$6="Eilean Siar Local Authority",0,new_yll(10,B77,C77,D77,$C$1,G77+H77,1,F77,E77*F77))))))) -> 167382.3559 | Y77: 66.69977852 | Z77: =IF('III Tool Overview'!$H$6="Orkney Health Board",0,IF('III Tool Overview'!$H$6="Shetland Health Board",0,IF('III Tool Overview'!$H$6="Western Isles Health Board",0,IF('III Tool Overview'!$H$6="Orkney Islands Local Authority",0,IF('III Tool Overview'!$H$6="Shetland Islands Local Authority",0,IF('III Tool Overview'!$H$6="Eilean Siar Local Authority",0,new_yll(20,B77,C77,D77,$C$1,G77,1,F77,E77*F77))))))) -> 374951.7411 | AA77: =IF('III Tool Overview'!$H$6="Orkney Health Board",0,IF('III Tool Overview'!$H$6="Shetland Health Board",0,IF('III Tool Overview'!$H$6="Western Isles Health Board",0,IF('III Tool Overview'!$H$6="Orkney Islands Local Authority",0,IF('III Tool Overview'!$H$6="Shetland Islands Local Authority",0,IF('III Tool Overview'!$H$6="Eilean Siar Local Authority",0,new_yll(20,B77,C77,D77,$C$1,G77+H77,1,F77,E77*F77))))))) -> 374823.5343 | AB77: 128.2067908 | AO77: =HLOOKUP('III Tool Overview'!$H$6,LookUpData_Pop!$B$1:$AV$269,LookUpData_Pop!BB78,FALSE) -> 156483 | AP77: 145.7139111 | AR77: 156483 | AZ77: 0.0009311804549 | BA77: 0 | BC77: =(AP77/AO77)*LookUpData_Pop!$B$287 -> 6.518263184 | BD77: =(AQ77/AP77)*LookUpData_Pop!$B$287 -> 0 | BF77: 0.5 | BG77: 5
A78: Male 55-59 | B78: 57.5 | C78: male | D78: 1 | E78: =HLOOKUP('III Tool Overview'!$H$6,Prevalence!$B$2:$AV$268,Prevalence!AW74,FALSE) -> 0.2729705778 | F78: =HLOOKUP('III Tool Overview'!$H$6,LookUpData_Pop!$B$1:$AV$269,LookUpData_Pop!BB79,FALSE)/5 -> 28058.4 | G78: ='III Tool Overview'!$H$9/110 -> 0 | H78: =IF('III Tool Overview'!$H$10="Even distribution",Targeting!C76,IF('III Tool Overview'!$H$10="Targeting to Q1",Targeting!D76,IF('III Tool Overview'!$H$10="Targeting to Q1 & Q2",Targeting!E76,IF('III Tool Overview'!$H$10="Proportionate to need",Targeting!F76)))) -> 534.4211302 | I78: =IF('III Tool Overview'!$H$6="Orkney Health Board",0,IF('III Tool Overview'!$H$6="Shetland Health Board",0,IF('III Tool Overview'!$H$6="Western Isles Health Board",0,IF('III Tool Overview'!$H$6="Orkney Islands Local Authority",0,IF('III Tool Overview'!$H$6="Shetland Islands Local Authority",0,IF('III Tool Overview'!$H$6="Eilean Siar Local Authority",0,new_ci(2,B78,C78,D78,$C$1,G78,1,F78,E78*F78))))))) -> 500.2493364 | J78: =IF('III Tool Overview'!$H$6="Orkney Health Board",0,IF('III Tool Overview'!$H$6="Shetland Health Board",0,IF('III Tool Overview'!$H$6="Western Isles Health Board",0,IF('III Tool Overview'!$H$6="Orkney Islands Local Authority",0,IF('III Tool Overview'!$H$6="Shetland Islands Local Authority",0,IF('III Tool Overview'!$H$6="Eilean Siar Local Authority",0,new_ci(2,B78,C78,D78,$C$1,G78+H78,1,F78,E78*F78))))))) -> 500.1001834 | K78: =IF('III Tool Overview'!$H$6="Orkney Health Board",0,IF('III Tool Overview'!$H$6="Shetland Health Board",0,IF('III Tool Overview'!$H$6="Western Isles Health Board",0,IF('III Tool Overview'!$H$6="Orkney Islands Local Authority",0,IF('III Tool Overview'!$H$6="Shetland Islands Local Authority",0,IF('III Tool Overview'!$H$6="Eilean Siar Local Authority",0,new_ci(5,B78,C78,D78,$C$1,G78,1,F78,E78*F78))))))) -> 2123.004059 | L78: =IF('III Tool Overview'!$H$6="Orkney Health Board",0,IF('III Tool Overview'!$H$6="Shetland Health Board",0,IF('III Tool Overview'!$H$6="Western Isles Health Board",0,IF('III Tool Overview'!$H$6="Orkney Islands Local Authority",0,IF('III Tool Overview'!$H$6="Shetland Islands Local Authority",0,IF('III Tool Overview'!$H$6="Eilean Siar Local Authority",0,new_ci(5,B78,C78,D78,$C$1,G78+H78,1,F78,E78*F78))))))) -> 2122.397065 | M78: =IF('III Tool Overview'!$H$6="Orkney Health Board",0,IF('III Tool Overview'!$H$6="Shetland Health Board",0,IF('III Tool Overview'!$H$6="Western Isles Health Board",0,IF('III Tool Overview'!$H$6="Orkney Islands Local Authority",0,IF('III Tool Overview'!$H$6="Shetland Islands Local Authority",0,IF('III Tool Overview'!$H$6="Eilean Siar Local Authority",0,new_ci(10,B78,C78,D78,$C$1,G78,1,F78,E78*F78))))))) -> 5236.315383 | N78: =IF('III Tool Overview'!$H$6="Orkney Health Board",0,IF('III Tool Overview'!$H$6="Shetland Health Board",0,IF('III Tool Overview'!$H$6="Western Isles Health Board",0,IF('III Tool Overview'!$H$6="Orkney Islands Local Authority",0,IF('III Tool Overview'!$H$6="Shetland Islands Local Authority",0,IF('III Tool Overview'!$H$6="Eilean Siar Local Authority",0,new_ci(10,B78,C78,D78,$C$1,G78+H78,1,F78,E78*F78))))))) -> 5234.946547 | O78: =IF('III Tool Overview'!$H$6="Orkney Health Board",0,IF('III Tool Overview'!$H$6="Shetland Health Board",0,IF('III Tool Overview'!$H$6="Western Isles Health Board",0,IF('III Tool Overview'!$H$6="Orkney Islands Local Authority",0,IF('III Tool Overview'!$H$6="Shetland Islands Local Authority",0,IF('III Tool Overview'!$H$6="Eilean Siar Local Authority",0,new_ci(20,B78,C78,D78,$C$1,G78,1,F78,E78*F78))))))) -> 12745.52009 | P78: =IF('III Tool Overview'!$H$6="Orkney Health Board",0,IF('III Tool Overview'!$H$6="Shetland Health Board",0,IF('III Tool Overview'!$H$6="Western Isles Health Board",0,IF('III Tool Overview'!$H$6="Orkney Islands Local Authority",0,IF('III Tool Overview'!$H$6="Shetland Islands Local Authority",0,IF('III Tool Overview'!$H$6="Eilean Siar Local Authority",0,new_ci(20,B78,C78,D78,$C$1,G78+H78,1,F78,E78*F78))))))) -> 12743.02745 | Q78: =IF('III Tool Overview'!$H$6="Orkney Health Board",0,IF('III Tool Overview'!$H$6="Shetland Health Board",0,IF('III Tool Overview'!$H$6="Western Isles Health Board",0,IF('III Tool Overview'!$H$6="Orkney Islands Local Authority",0,IF('III Tool Overview'!$H$6="Shetland Islands Local Authority",0,IF('III Tool Overview'!$H$6="Eilean Siar Local Authority",0,new_yll(2,B78,C78,D78,$C$1,G78,1,F78,E78*F78))))))) -> 20510.22279 | R78: =IF('III Tool Overview'!$H$6="Orkney Health Board",0,IF('III Tool Overview'!$H$6="Shetland Health Board",0,IF('III Tool Overview'!$H$6="Western Isles Health Board",0,IF('III Tool Overview'!$H$6="Orkney Islands Local Authority",0,IF('III Tool Overview'!$H$6="Shetland Islands Local Authority",0,IF('III Tool Overview'!$H$6="Eilean Siar Local Authority",0,new_yll(2,B78,C78,D78,$C$1,G78+H78,1,F78,E78*F78))))))) -> 20504.10752 | S78: 6.115273088 | T78: =IF('III Tool Overview'!$H$6="Orkney Health Board",0,IF('III Tool Overview'!$H$6="Shetland Health Board",0,IF('III Tool Overview'!$H$6="Western Isles Health Board",0,IF('III Tool Overview'!$H$6="Orkney Islands Local Authority",0,IF('III Tool Overview'!$H$6="Shetland Islands Local Authority",0,IF('III Tool Overview'!$H$6="Eilean Siar Local Authority",0,new_yll(5,B78,C78,D78,$C$1,G78,1,F78,E78*F78))))))) -> 83756.69286 | U78: =IF('III Tool Overview'!$H$6="Orkney Health Board",0,IF('III Tool Overview'!$H$6="Shetland Health Board",0,IF('III Tool Overview'!$H$6="Western Isles Health Board",0,IF('III Tool Overview'!$H$6="Orkney Islands Local Authority",0,IF('III Tool Overview'!$H$6="Shetland Islands Local Authority",0,IF('III Tool Overview'!$H$6="Eilean Siar Local Authority",0,new_yll(5,B78,C78,D78,$C$1,G78+H78,1,F78,E78*F78))))))) -> 83732.72443 | V78: 23.96843273 | W78: =IF('III Tool Overview'!$H$6="Orkney Health Board",0,IF('III Tool Overview'!$H$6="Shetland Health Board",0,IF('III Tool Overview'!$H$6="Western Isles Health Board",0,IF('III Tool Overview'!$H$6="Orkney Islands Local Authority",0,IF('III Tool Overview'!$H$6="Shetland Islands Local Authority",0,IF('III Tool Overview'!$H$6="Eilean Siar Local Authority",0,new_yll(10,B78,C78,D78,$C$1,G78,1,F78,E78*F78))))))) -> 192520.6286 | X78: =IF('III Tool Overview'!$H$6="Orkney Health Board",0,IF('III Tool Overview'!$H$6="Shetland Health Board",0,IF('III Tool Overview'!$H$6="Western Isles Health Board",0,IF('III Tool Overview'!$H$6="Orkney Islands Local Authority",0,IF('III Tool Overview'!$H$6="Shetland Islands Local Authority",0,IF('III Tool Overview'!$H$6="Eilean Siar Local Authority",0,new_yll(10,B78,C78,D78,$C$1,G78+H78,1,F78,E78*F78))))))) -> 192469.9822 | Y78: 50.64645635 | Z78: =IF('III Tool Overview'!$H$6="Orkney Health Board",0,IF('III Tool Overview'!$H$6="Shetland Health Board",0,IF('III Tool Overview'!$H$6="Western Isles Health Board",0,IF('III Tool Overview'!$H$6="Orkney Islands Local Authority",0,IF('III Tool Overview'!$H$6="Shetland Islands Local Authority",0,IF('III Tool Overview'!$H$6="Eilean Siar Local Authority",0,new_yll(20,B78,C78,D78,$C$1,G78,1,F78,E78*F78))))))) -> 397908.6026 | AA78: =IF('III Tool Overview'!$H$6="Orkney Health Board",0,IF('III Tool Overview'!$H$6="Shetland Health Board",0,IF('III Tool Overview'!$H$6="Western Isles Health Board",0,IF('III Tool Overview'!$H$6="Orkney Islands Local Authority",0,IF('III Tool Overview'!$H$6="Shetland Islands Local Authority",0,IF('III Tool Overview'!$H$6="Eilean Siar Local Authority",0,new_yll(20,B78,C78,D78,$C$1,G78+H78,1,F78,E78*F78))))))) -> 397826.3275 | AB78: 82.27514808 | AO78: =HLOOKUP('III Tool Overview'!$H$6,LookUpData_Pop!$B$1:$AV$269,LookUpData_Pop!BB79,FALSE) -> 140292 | AP78: 176.0572711 | AR78: 140292 | AZ78: 0.001254934501 | BA78: 0 | BC78: =(AP78/AO78)*LookUpData_Pop!$B$288 -> 7.529607009 | BD78: =(AQ78/AP78)*LookUpData_Pop!$B$288 -> 0 | BF78: 0.5 | BG78: 5
A79: Male 60-64 | B79: 62.5 | C79: male | D79: 1 | E79: =HLOOKUP('III Tool Overview'!$H$6,Prevalence!$B$2:$AV$268,Prevalence!AW75,FALSE) -> 0.2729705778 | F79: =HLOOKUP('III Tool Overview'!$H$6,LookUpData_Pop!$B$1:$AV$269,LookUpData_Pop!BB80,FALSE)/5 -> 26790 | G79: ='III Tool Overview'!$H$9/110 -> 0 | H79: =IF('III Tool Overview'!$H$10="Even distribution",Targeting!C77,IF('III Tool Overview'!$H$10="Targeting to Q1",Targeting!D77,IF('III Tool Overview'!$H$10="Targeting to Q1 & Q2",Targeting!E77,IF('III Tool Overview'!$H$10="Proportionate to need",Targeting!F77)))) -> 489.2471649 | I79: =IF('III Tool Overview'!$H$6="Orkney Health Board",0,IF('III Tool Overview'!$H$6="Shetland Health Board",0,IF('III Tool Overview'!$H$6="Western Isles Health Board",0,IF('III Tool Overview'!$H$6="Orkney Islands Local Authority",0,IF('III Tool Overview'!$H$6="Shetland Islands Local Authority",0,IF('III Tool Overview'!$H$6="Eilean Siar Local Authority",0,new_ci(2,B79,C79,D79,$C$1,G79,1,F79,E79*F79))))))) -> 636.1239658 | J79: =IF('III Tool Overview'!$H$6="Orkney Health Board",0,IF('III Tool Overview'!$H$6="Shetland Health Board",0,IF('III Tool Overview'!$H$6="Western Isles Health Board",0,IF('III Tool Overview'!$H$6="Orkney Islands Local Authority",0,IF('III Tool Overview'!$H$6="Shetland Islands Local Authority",0,IF('III Tool Overview'!$H$6="Eilean Siar Local Authority",0,new_ci(2,B79,C79,D79,$C$1,G79+H79,1,F79,E79*F79))))))) -> 635.9428158 | K79: =IF('III Tool Overview'!$H$6="Orkney Health Board",0,IF('III Tool Overview'!$H$6="Shetland Health Board",0,IF('III Tool Overview'!$H$6="Western Isles Health Board",0,IF('III Tool Overview'!$H$6="Orkney Islands Local Authority",0,IF('III Tool Overview'!$H$6="Shetland Islands Local Authority",0,IF('III Tool Overview'!$H$6="Eilean Siar Local Authority",0,new_ci(5,B79,C79,D79,$C$1,G79,1,F79,E79*F79))))))) -> 2672.390645 | L79: =IF('III Tool Overview'!$H$6="Orkney Health Board",0,IF('III Tool Overview'!$H$6="Shetland Health Board",0,IF('III Tool Overview'!$H$6="Western Isles Health Board",0,IF('III Tool Overview'!$H$6="Orkney Islands Local Authority",0,IF('III Tool Overview'!$H$6="Shetland Islands Local Authority",0,IF('III Tool Overview'!$H$6="Eilean Siar Local Authority",0,new_ci(5,B79,C79,D79,$C$1,G79+H79,1,F79,E79*F79))))))) -> 2671.671171 | M79: =IF('III Tool Overview'!$H$6="Orkney Health Board",0,IF('III Tool Overview'!$H$6="Shetland Health Board",0,IF('III Tool Overview'!$H$6="Western Isles Health Board",0,IF('III Tool Overview'!$H$6="Orkney Islands Local Authority",0,IF('III Tool Overview'!$H$6="Shetland Islands Local Authority",0,IF('III Tool Overview'!$H$6="Eilean Siar Local Authority",0,new_ci(10,B79,C79,D79,$C$1,G79,1,F79,E79*F79))))))) -> 6457.301689 | N79: =IF('III Tool Overview'!$H$6="Orkney Health Board",0,IF('III Tool Overview'!$H$6="Shetland Health Board",0,IF('III Tool Overview'!$H$6="Western Isles Health Board",0,IF('III Tool Overview'!$H$6="Orkney Islands Local Authority",0,IF('III Tool Overview'!$H$6="Shetland Islands Local Authority",0,IF('III Tool Overview'!$H$6="Eilean Siar Local Authority",0,new_ci(10,B79,C79,D79,$C$1,G79+H79,1,F79,E79*F79))))))) -> 6455.760462 | O79: =IF('III Tool Overview'!$H$6="Orkney Health Board",0,IF('III Tool Overview'!$H$6="Shetland Health Board",0,IF('III Tool Overview'!$H$6="Western Isles Health Board",0,IF('III Tool Overview'!$H$6="Orkney Islands Local Authority",0,IF('III Tool Overview'!$H$6="Shetland Islands Local Authority",0,IF('III Tool Overview'!$H$6="Eilean Siar Local Authority",0,new_ci(20,B79,C79,D79,$C$1,G79,1,F79,E79*F79))))))) -> 14846.2535 | P79: =IF('III Tool Overview'!$H$6="Orkney Health Board",0,IF('III Tool Overview'!$H$6="Shetland Health Board",0,IF('III Tool Overview'!$H$6="Western Isles Health Board",0,IF('III Tool Overview'!$H$6="Orkney Islands Local Authority",0,IF('III Tool Overview'!$H$6="Shetland Islands Local Authority",0,IF('III Tool Overview'!$H$6="Eilean Siar Local Authority",0,new_ci(20,B79,C79,D79,$C$1,G79+H79,1,F79,E79*F79))))))) -> 14843.86421 | Q79: =IF('III Tool Overview'!$H$6="Orkney Health Board",0,IF('III Tool Overview'!$H$6="Shetland Health Board",0,IF('III Tool Overview'!$H$6="Western Isles Health Board",0,IF('III Tool Overview'!$H$6="Orkney Islands Local Authority",0,IF('III Tool Overview'!$H$6="Shetland Islands Local Authority",0,IF('III Tool Overview'!$H$6="Eilean Siar Local Authority",0,new_yll(2,B79,C79,D79,$C$1,G79,1,F79,E79*F79))))))) -> 23536.58673 | R79: =IF('III Tool Overview'!$H$6="Orkney Health Board",0,IF('III Tool Overview'!$H$6="Shetland Health Board",0,IF('III Tool Overview'!$H$6="Western Isles Health Board",0,IF('III Tool Overview'!$H$6="Orkney Islands Local Authority",0,IF('III Tool Overview'!$H$6="Shetland Islands Local Authority",0,IF('III Tool Overview'!$H$6="Eilean Siar Local Authority",0,new_yll(2,B79,C79,D79,$C$1,G79+H79,1,F79,E79*F79))))))) -> 23529.88418 | S79: 6.702550203 | T79: =IF('III Tool Overview'!$H$6="Orkney Health Board",0,IF('III Tool Overview'!$H$6="Shetland Health Board",0,IF('III Tool Overview'!$H$6="Western Isles Health Board",0,IF('III Tool Overview'!$H$6="Orkney Islands Local Authority",0,IF('III Tool Overview'!$H$6="Shetland Islands Local Authority",0,IF('III Tool Overview'!$H$6="Eilean Siar Local Authority",0,new_yll(5,B79,C79,D79,$C$1,G79,1,F79,E79*F79))))))) -> 94763.86317 | U79: =IF('III Tool Overview'!$H$6="Orkney Health Board",0,IF('III Tool Overview'!$H$6="Shetland Health Board",0,IF('III Tool Overview'!$H$6="Western Isles Health Board",0,IF('III Tool Overview'!$H$6="Orkney Islands Local Authority",0,IF('III Tool Overview'!$H$6="Shetland Islands Local Authority",0,IF('III Tool Overview'!$H$6="Eilean Siar Local Authority",0,new_yll(5,B79,C79,D79,$C$1,G79+H79,1,F79,E79*F79))))))) -> 94738.31612 | V79: 25.54704292 | W79: =IF('III Tool Overview'!$H$6="Orkney Health Board",0,IF('III Tool Overview'!$H$6="Shetland Health Board",0,IF('III Tool Overview'!$H$6="Western Isles Health Board",0,IF('III Tool Overview'!$H$6="Orkney Islands Local Authority",0,IF('III Tool Overview'!$H$6="Shetland Islands Local Authority",0,IF('III Tool Overview'!$H$6="Eilean Siar Local Authority",0,new_yll(10,B79,C79,D79,$C$1,G79,1,F79,E79*F79))))))) -> 211916.2137 | X79: =IF('III Tool Overview'!$H$6="Orkney Health Board",0,IF('III Tool Overview'!$H$6="Shetland Health Board",0,IF('III Tool Overview'!$H$6="Western Isles Health Board",0,IF('III Tool Overview'!$H$6="Orkney Islands Local Authority",0,IF('III Tool Overview'!$H$6="Shetland Islands Local Authority",0,IF('III Tool Overview'!$H$6="Eilean Siar Local Authority",0,new_yll(10,B79,C79,D79,$C$1,G79+H79,1,F79,E79*F79))))))) -> 211865.1349 | Y79: 51.07886587 | Z79: =IF('III Tool Overview'!$H$6="Orkney Health Board",0,IF('III Tool Overview'!$H$6="Shetland Health Board",0,IF('III Tool Overview'!$H$6="Western Isles Health Board",0,IF('III Tool Overview'!$H$6="Orkney Islands Local Authority",0,IF('III Tool Overview'!$H$6="Shetland Islands Local Authority",0,IF('III Tool Overview'!$H$6="Eilean Siar Local Authority",0,new_yll(20,B79,C79,D79,$C$1,G79,1,F79,E79*F79))))))) -> 408731.9233 | AA79: =IF('III Tool Overview'!$H$6="Orkney Health Board",0,IF('III Tool Overview'!$H$6="Shetland Health Board",0,IF('III Tool Overview'!$H$6="Western Isles Health Board",0,IF('III Tool Overview'!$H$6="Orkney Islands Local Authority",0,IF('III Tool Overview'!$H$6="Shetland Islands Local Authority",0,IF('III Tool Overview'!$H$6="Eilean Siar Local Authority",0,new_yll(20,B79,C79,D79,$C$1,G79+H79,1,F79,E79*F79))))))) -> 408659.7343 | AB79: 72.18897828 | AO79: =HLOOKUP('III Tool Overview'!$H$6,LookUpData_Pop!$B$1:$AV$269,LookUpData_Pop!BB80,FALSE) -> 133950 | AP79: 248.3719012 | AR79: 133950 | AZ79: 0.001854213522 | BA79: 0 | BC79: =(AP79/AO79)*LookUpData_Pop!$B$289 -> 9.271067608 | BD79: =(AQ79/AP79)*LookUpData_Pop!$B$289 -> 0 | BF79: 0.5 | BG79: 5
A80: Male 65-69 | B80: 67.5 | C80: male | D80: 1 | AO80: =HLOOKUP('III Tool Overview'!$H$6,LookUpData_Pop!$B$1:$AV$269,LookUpData_Pop!BB81,FALSE) -> 107896 | AP80: 287.9366502 | AR80: 107896 | AZ80: 0.002668649905 | BA80: 0 | BC80: =(AP80/AO80)*LookUpData_Pop!$B$290 -> 10.67459962 | BD80: =(AQ80/AP80)*LookUpData_Pop!$B$290 -> 0 | BF80: 0.5 | BG80: 5
A81: Male 70-74 | B81: 72.5 | C81: male | D81: 1 | AO81: =HLOOKUP('III Tool Overview'!$H$6,LookUpData_Pop!$B$1:$AV$269,LookUpData_Pop!BB82,FALSE) -> 92303 | AP81: 359.5305357 | AR81: 92303 | AZ81: 0.003895112139 | BA81: 0 | BC81: =(AP81/AO81)*LookUpData_Pop!$B$291 -> 11.68533642 | BD81: =(AQ81/AP81)*LookUpData_Pop!$B$291 -> 0 | BF81: 0.5 | BG81: 5
A82: Male 75-79 | B82: 77.5 | C82: male | D82: 1 | AO82: =HLOOKUP('III Tool Overview'!$H$6,LookUpData_Pop!$B$1:$AV$269,LookUpData_Pop!BB83,FALSE) -> 68682 | AP82: 410.5071249 | AR82: 68682 | AZ82: 0.005976924448 | BA82: 0 | BC82: =(AP82/AO82)*LookUpData_Pop!$B$292 -> 11.9538489 | BD82: =(AQ82/AP82)*LookUpData_Pop!$B$292 -> 0 | BF82: 0.5 | BG82: 5
A83: Male 80-84 | B83: 82.5 | C83: male | D83: 1 | AO83: =HLOOKUP('III Tool Overview'!$H$6,LookUpData_Pop!$B$1:$AV$269,LookUpData_Pop!BB84,FALSE) -> 41736 | AP83: 366.6132325 | AR83: 41736 | AZ83: 0.008784100837 | BA83: 0 | BC83: =(AP83/AO83)*LookUpData_Pop!$B$293 -> 8.784100837 | BD83: =(AQ83/AP83)*LookUpData_Pop!$B$293 -> 0 | BF83: 0.5 | BG83: 5
A84: Male 85-89 | B84: 87.5 | C84: male | D84: 1 | AO84: =HLOOKUP('III Tool Overview'!$H$6,LookUpData_Pop!$B$1:$AV$269,LookUpData_Pop!BB86,FALSE) -> 7365 | AP84: 374.6026876 | AZ84: 0.05086255093 | BA84: 0 | BC84: =(AP84/AO84)*LookUpData_Pop!$B$294 -> 50.86255093 | BD84: =(AQ84/AP84)*LookUpData_Pop!$B$294 -> 0 | BF84: 0.5 | BG84: =2/AZ84 -> 39.32166129
A85: Male 90+ | B85: 95 | C85: male | D85: 1 | AO85: =HLOOKUP('III Tool Overview'!$H$6,LookUpData_Pop!$B$1:$AV$269,LookUpData_Pop!BB87,FALSE) -> 36506 | AP85: 375.6026876
A86: TOTAL | F86: =SUM(F70:F85) -> 333153.2 | G86: =SUM(G70:G85) -> 0 | H86: 7590.583214 | I86: 2384.394147 | J86: 2383.544804 | K86: 10189.2784 | L86: 10185.74581 | M86: 25508.65121 | N86: 25500.28488 | O86: 65186.21579 | P86: 65167.99387 | Q86: 114184.8896 | R86: 114143.4097 | S86: 41.47983547 | T86: 473529.6572 | U86: 473361.4924 | V86: 168.1647857 | W86: 1123492.262 | X86: 1123110.498 | Y86: 381.7639674 | Z86: 2550516.022 | AA86: 2549741.163 | AB86: 774.8589353
A87: Female <1 | B87: 0.5 | C87: female | D87: 1 | AO87: =HLOOKUP('III Tool Overview'!$H$6,LookUpData_Pop!$B$1:$AV$269,LookUpData_Pop!BB87,FALSE) -> 36506 | AP87: 13.41836337 | AZ87: 0.0003675659718 | BA87: 0 | BF87: 0.1 | BG87: 1
A88: Female 1-4 | B88: 2.5 | C88: female | D88: 1 | AO88: =HLOOKUP('III Tool Overview'!$H$6,LookUpData_Pop!$B$1:$AV$269,LookUpData_Pop!BB88,FALSE) -> 133201 | AP88: 3.05917655 | AZ88: 2.29666185e-05 | BA88: 0 | BC88: =((AP88+AP87)/(AO88+AO87))*LookUpData_Pop!$B$277 -> 0.7767523987 | BD88: =((AQ88+AQ87)/(AP88+AP87))*LookUpData_Pop!$B$277 -> 0 | BF88: 0.5 | BG88: 4
A89: Female 5-9 | B89: 7.5 | C89: female | D89: 1 | AO89: =HLOOKUP('III Tool Overview'!$H$6,LookUpData_Pop!$B$1:$AV$269,LookUpData_Pop!BB89,FALSE) -> 145745 | AP89: 0.7796081342 | AZ89: 5.34912439e-06 | BA89: 0 | BC89: =(AP89/AO89)*LookUpData_Pop!$B$278 -> 0.03744387073 | BD89: =(AQ89/AP89)*LookUpData_Pop!$B$278 -> 0 | BF89: 0.5 | BG89: 5
A90: Female 10-14 | B90: 12.5 | C90: female | D90: 1 | AO90: =HLOOKUP('III Tool Overview'!$H$6,LookUpData_Pop!$B$1:$AV$269,LookUpData_Pop!BB90,FALSE) -> 150444 | AP90: 1.683227448 | AZ90: 1.118839866e-05 | BA90: 0 | BC90: =(AP90/AO90)*LookUpData_Pop!$B$279 -> 0.0783187906 | BD90: =(AQ90/AP90)*LookUpData_Pop!$B$279 -> 0 | BF90: 0.5 | BG90: 5
A91: Female 15-19 | B91: 17.5 | C91: female | D91: 1 | E91: =HLOOKUP('III Tool Overview'!$H$6,Prevalence!$B$2:$AV$268,Prevalence!AW86,FALSE) -> 0.1772874151 | F91: =HLOOKUP('III Tool Overview'!$H$6,LookUpData_Pop!$B$1:$AV$269,LookUpData_Pop!BB91,FALSE)/5 -> 34546.2 | G91: ='III Tool Overview'!$H$9/110 -> 0 | H91: =IF('III Tool Overview'!$H$10="Even distribution",Targeting!C89,IF('III Tool Overview'!$H$10="Targeting to Q1",Targeting!D89,IF('III Tool Overview'!$H$10="Targeting to Q1 & Q2",Targeting!E89,IF('III Tool Overview'!$H$10="Proportionate to need",Targeting!F89)))) -> 309.864781 | I91: =IF('III Tool Overview'!$H$6="Orkney Health Board",0,IF('III Tool Overview'!$H$6="Shetland Health Board",0,IF('III Tool Overview'!$H$6="Western Isles Health Board",0,IF('III Tool Overview'!$H$6="Orkney Islands Local Authority",0,IF('III Tool Overview'!$H$6="Shetland Islands Local Authority",0,IF('III Tool Overview'!$H$6="Eilean Siar Local Authority",0,new_ci(2,B91,C91,D91,$C$1,G91,1,F91,E91*F91))))))) -> 14.07680951 | J91: =IF('III Tool Overview'!$H$6="Orkney Health Board",0,IF('III Tool Overview'!$H$6="Shetland Health Board",0,IF('III Tool Overview'!$H$6="Western Isles Health Board",0,IF('III Tool Overview'!$H$6="Orkney Islands Local Authority",0,IF('III Tool Overview'!$H$6="Shetland Islands Local Authority",0,IF('III Tool Overview'!$H$6="Eilean Siar Local Authority",0,new_ci(2,B91,C91,D91,$C$1,G91+H91,1,F91,E91*F91))))))) -> 14.07475197 | K91: =IF('III Tool Overview'!$H$6="Orkney Health Board",0,IF('III Tool Overview'!$H$6="Shetland Health Board",0,IF('III Tool Overview'!$H$6="Western Isles Health Board",0,IF('III Tool Overview'!$H$6="Orkney Islands Local Authority",0,IF('III Tool Overview'!$H$6="Shetland Islands Local Authority",0,IF('III Tool Overview'!$H$6="Eilean Siar Local Authority",0,new_ci(5,B91,C91,D91,$C$1,G91,1,F91,E91*F91))))))) -> 62.48358132 | L91: =IF('III Tool Overview'!$H$6="Orkney Health Board",0,IF('III Tool Overview'!$H$6="Shetland Health Board",0,IF('III Tool Overview'!$H$6="Western Isles Health Board",0,IF('III Tool Overview'!$H$6="Orkney Islands Local Authority",0,IF('III Tool Overview'!$H$6="Shetland Islands Local Authority",0,IF('III Tool Overview'!$H$6="Eilean Siar Local Authority",0,new_ci(5,B91,C91,D91,$C$1,G91+H91,1,F91,E91*F91))))))) -> 62.4744576 | M91: =IF('III Tool Overview'!$H$6="Orkney Health Board",0,IF('III Tool Overview'!$H$6="Shetland Health Board",0,IF('III Tool Overview'!$H$6="Western Isles Health Board",0,IF('III Tool Overview'!$H$6="Orkney Islands Local Authority",0,IF('III Tool Overview'!$H$6="Shetland Islands Local Authority",0,IF('III Tool Overview'!$H$6="Eilean Siar Local Authority",0,new_ci(10,B91,C91,D91,$C$1,G91,1,F91,E91*F91))))))) -> 168.4397349 | N91: =IF('III Tool Overview'!$H$6="Orkney Health Board",0,IF('III Tool Overview'!$H$6="Shetland Health Board",0,IF('III Tool Overview'!$H$6="Western Isles Health Board",0,IF('III Tool Overview'!$H$6="Orkney Islands Local Authority",0,IF('III Tool Overview'!$H$6="Shetland Islands Local Authority",0,IF('III Tool Overview'!$H$6="Eilean Siar Local Authority",0,new_ci(10,B91,C91,D91,$C$1,G91+H91,1,F91,E91*F91))))))) -> 168.4151942 | O91: =IF('III Tool Overview'!$H$6="Orkney Health Board",0,IF('III Tool Overview'!$H$6="Shetland Health Board",0,IF('III Tool Overview'!$H$6="Western Isles Health Board",0,IF('III Tool Overview'!$H$6="Orkney Islands Local Authority",0,IF('III Tool Overview'!$H$6="Shetland Islands Local Authority",0,IF('III Tool Overview'!$H$6="Eilean Siar Local Authority",0,new_ci(20,B91,C91,D91,$C$1,G91,1,F91,E91*F91))))))) -> 523.8442022 | P91: =IF('III Tool Overview'!$H$6="Orkney Health Board",0,IF('III Tool Overview'!$H$6="Shetland Health Board",0,IF('III Tool Overview'!$H$6="Western Isles Health Board",0,IF('III Tool Overview'!$H$6="Orkney Islands Local Authority",0,IF('III Tool Overview'!$H$6="Shetland Islands Local Authority",0,IF('III Tool Overview'!$H$6="Eilean Siar Local Authority",0,new_ci(20,B91,C91,D91,$C$1,G91+H91,1,F91,E91*F91))))))) -> 523.768451 | Q91: =IF('III Tool Overview'!$H$6="Orkney Health Board",0,IF('III Tool Overview'!$H$6="Shetland Health Board",0,IF('III Tool Overview'!$H$6="Western Isles Health Board",0,IF('III Tool Overview'!$H$6="Orkney Islands Local Authority",0,IF('III Tool Overview'!$H$6="Shetland Islands Local Authority",0,IF('III Tool Overview'!$H$6="Eilean Siar Local Authority",0,new_yll(2,B91,C91,D91,$C$1,G91,1,F91,E91*F91))))))) -> 1140.221571 | R91: =IF('III Tool Overview'!$H$6="Orkney Health Board",0,IF('III Tool Overview'!$H$6="Shetland Health Board",0,IF('III Tool Overview'!$H$6="Western Isles Health Board",0,IF('III Tool Overview'!$H$6="Orkney Islands Local Authority",0,IF('III Tool Overview'!$H$6="Shetland Islands Local Authority",0,IF('III Tool Overview'!$H$6="Eilean Siar Local Authority",0,new_yll(2,B91,C91,D91,$C$1,G91+H91,1,F91,E91*F91))))))) -> 1140.05491 | S91: =Q91-R91 -> 0.1666609579 | T91: =IF('III Tool Overview'!$H$6="Orkney Health Board",0,IF('III Tool Overview'!$H$6="Shetland Health Board",0,IF('III Tool Overview'!$H$6="Western Isles Health Board",0,IF('III Tool Overview'!$H$6="Orkney Islands Local Authority",0,IF('III Tool Overview'!$H$6="Shetland Islands Local Authority",0,IF('III Tool Overview'!$H$6="Eilean Siar Local Authority",0,new_yll(5,B91,C91,D91,$C$1,G91,1,F91,E91*F91))))))) -> 4962.181018 | U91: =IF('III Tool Overview'!$H$6="Orkney Health Board",0,IF('III Tool Overview'!$H$6="Shetland Health Board",0,IF('III Tool Overview'!$H$6="Western Isles Health Board",0,IF('III Tool Overview'!$H$6="Orkney Islands Local Authority",0,IF('III Tool Overview'!$H$6="Shetland Islands Local Authority",0,IF('III Tool Overview'!$H$6="Eilean Siar Local Authority",0,new_yll(5,B91,C91,D91,$C$1,G91+H91,1,F91,E91*F91))))))) -> 4961.456444 | V91: =T91-U91 -> 0.7245740866 | W91: =IF('III Tool Overview'!$H$6="Orkney Health Board",0,IF('III Tool Overview'!$H$6="Shetland Health Board",0,IF('III Tool Overview'!$H$6="Western Isles Health Board",0,IF('III Tool Overview'!$H$6="Orkney Islands Local Authority",0,IF('III Tool Overview'!$H$6="Shetland Islands Local Authority",0,IF('III Tool Overview'!$H$6="Eilean Siar Local Authority",0,new_yll(10,B91,C91,D91,$C$1,G91,1,F91,E91*F91))))))) -> 12894.65568 | X91: =IF('III Tool Overview'!$H$6="Orkney Health Board",0,IF('III Tool Overview'!$H$6="Shetland Health Board",0,IF('III Tool Overview'!$H$6="Western Isles Health Board",0,IF('III Tool Overview'!$H$6="Orkney Islands Local Authority",0,IF('III Tool Overview'!$H$6="Shetland Islands Local Authority",0,IF('III Tool Overview'!$H$6="Eilean Siar Local Authority",0,new_yll(10,B91,C91,D91,$C$1,G91+H91,1,F91,E91*F91))))))) -> 12892.77688 | Y91: =W91-X91 -> 1.87880496 | Z91: =IF('III Tool Overview'!$H$6="Orkney Health Board",0,IF('III Tool Overview'!$H$6="Shetland Health Board",0,IF('III Tool Overview'!$H$6="Western Isles Health Board",0,IF('III Tool Overview'!$H$6="Orkney Islands Local Authority",0,IF('III Tool Overview'!$H$6="Shetland Islands Local Authority",0,IF('III Tool Overview'!$H$6="Eilean Siar Local Authority",0,new_yll(20,B91,C91,D91,$C$1,G91,1,F91,E91*F91))))))) -> 36689.82095 | AA91: =IF('III Tool Overview'!$H$6="Orkney Health Board",0,IF('III Tool Overview'!$H$6="Shetland Health Board",0,IF('III Tool Overview'!$H$6="Western Isles Health Board",0,IF('III Tool Overview'!$H$6="Orkney Islands Local Authority",0,IF('III Tool Overview'!$H$6="Shetland Islands Local Authority",0,IF('III Tool Overview'!$H$6="Eilean Siar Local Authority",0,new_yll(20,B91,C91,D91,$C$1,G91+H91,1,F91,E91*F91))))))) -> 36684.51285 | AB91: =Z91-AA91 -> 5.308097337 | AC91: =hosp_count(2,B91,C91,D91,$C$1,G91,1,F91,E91*F91) ->  | AD91: =hosp_count(2,B91,C91,D91,$C$1,G91+H91,1,F91,E91*F91) ->  | AE91: =AC91-AD91 ->  | AF91: =hosp_count(5,B91,C91,D91,$C$1,G91,1,F91,E91*F91) ->  | AG91: =hosp_count(5,B91,C91,D91,$C$1,G91+H91,1,F91,E91*F91) ->  | AH91: =AF91-AG91 ->  | AI91: =hosp_count(10,B91,C91,D91,$C$1,G91,1,F91,E91*F91) ->  | AJ91: =hosp_count(10,B91,C91,D91,$C$1,G91+H91,1,F91,E91*F91) ->  | AK91: =AI91-AJ91 ->  | AL91: =hosp_count(20,B91,C91,D91,$C$1,G91,1,F91,E91*F91) ->  | AM91: =hosp_count(20,B91,C91,D91,$C$1,G91+H91,1,F91,E91*F91) ->  | AN91: =AL91-AM91 ->  | AO91: =HLOOKUP('III Tool Overview'!$H$6,LookUpData_Pop!$B$1:$AV$269,LookUpData_Pop!BB91,FALSE) -> 172731 | AP91: 5.266351205 | AR91: =AO91*(0.8) -> 138184.8 | AV91: =AT91/AVERAGE(AT$91:AT$104) ->  | AW91: =$AV$5*$AV$18*AV49 ->  | AX91: =AW91*AR91*$AT$4 ->  | AZ91: 3.04887438e-05 | BA91: 0 | BC91: =(AP91/AO91)*LookUpData_Pop!$B$280 -> 0.2134212066 | BD91: =(AQ91/AP91)*LookUpData_Pop!$B$280 -> 0 | BF91: 0.5 | BG91: 5
A92: Female 20-24 | B92: 22.5 | C92: female | D92: 1 | E92: =HLOOKUP('III Tool Overview'!$H$6,Prevalence!$B$2:$AV$268,Prevalence!AW87,FALSE) -> 0.1772874151 | F92: =HLOOKUP('III Tool Overview'!$H$6,LookUpData_Pop!$B$1:$AV$269,LookUpData_Pop!BB92,FALSE)/5 -> 40857.2 | G92: ='III Tool Overview'!$H$9/110 -> 0 | H92: =IF('III Tool Overview'!$H$10="Even distribution",Targeting!C90,IF('III Tool Overview'!$H$10="Targeting to Q1",Targeting!D90,IF('III Tool Overview'!$H$10="Targeting to Q1 & Q2",Targeting!E90,IF('III Tool Overview'!$H$10="Proportionate to need",Targeting!F90)))) -> 489.0173413 | I92: =IF('III Tool Overview'!$H$6="Orkney Health Board",0,IF('III Tool Overview'!$H$6="Shetland Health Board",0,IF('III Tool Overview'!$H$6="Western Isles Health Board",0,IF('III Tool Overview'!$H$6="Orkney Islands Local Authority",0,IF('III Tool Overview'!$H$6="Shetland Islands Local Authority",0,IF('III Tool Overview'!$H$6="Eilean Siar Local Authority",0,new_ci(2,B92,C92,D92,$C$1,G92,1,F92,E92*F92))))))) -> 23.10258219 | J92: =IF('III Tool Overview'!$H$6="Orkney Health Board",0,IF('III Tool Overview'!$H$6="Shetland Health Board",0,IF('III Tool Overview'!$H$6="Western Isles Health Board",0,IF('III Tool Overview'!$H$6="Orkney Islands Local Authority",0,IF('III Tool Overview'!$H$6="Shetland Islands Local Authority",0,IF('III Tool Overview'!$H$6="Eilean Siar Local Authority",0,new_ci(2,B92,C92,D92,$C$1,G92+H92,1,F92,E92*F92))))))) -> 23.09807883 | K92: =IF('III Tool Overview'!$H$6="Orkney Health Board",0,IF('III Tool Overview'!$H$6="Shetland Health Board",0,IF('III Tool Overview'!$H$6="Western Isles Health Board",0,IF('III Tool Overview'!$H$6="Orkney Islands Local Authority",0,IF('III Tool Overview'!$H$6="Shetland Islands Local Authority",0,IF('III Tool Overview'!$H$6="Eilean Siar Local Authority",0,new_ci(5,B92,C92,D92,$C$1,G92,1,F92,E92*F92))))))) -> 102.5186168 | L92: =IF('III Tool Overview'!$H$6="Orkney Health Board",0,IF('III Tool Overview'!$H$6="Shetland Health Board",0,IF('III Tool Overview'!$H$6="Western Isles Health Board",0,IF('III Tool Overview'!$H$6="Orkney Islands Local Authority",0,IF('III Tool Overview'!$H$6="Shetland Islands Local Authority",0,IF('III Tool Overview'!$H$6="Eilean Siar Local Authority",0,new_ci(5,B92,C92,D92,$C$1,G92+H92,1,F92,E92*F92))))))) -> 102.4986609 | M92: =IF('III Tool Overview'!$H$6="Orkney Health Board",0,IF('III Tool Overview'!$H$6="Shetland Health Board",0,IF('III Tool Overview'!$H$6="Western Isles Health Board",0,IF('III Tool Overview'!$H$6="Orkney Islands Local Authority",0,IF('III Tool Overview'!$H$6="Shetland Islands Local Authority",0,IF('III Tool Overview'!$H$6="Eilean Siar Local Authority",0,new_ci(10,B92,C92,D92,$C$1,G92,1,F92,E92*F92))))))) -> 276.1973671 | N92: =IF('III Tool Overview'!$H$6="Orkney Health Board",0,IF('III Tool Overview'!$H$6="Shetland Health Board",0,IF('III Tool Overview'!$H$6="Western Isles Health Board",0,IF('III Tool Overview'!$H$6="Orkney Islands Local Authority",0,IF('III Tool Overview'!$H$6="Shetland Islands Local Authority",0,IF('III Tool Overview'!$H$6="Eilean Siar Local Authority",0,new_ci(10,B92,C92,D92,$C$1,G92+H92,1,F92,E92*F92))))))) -> 276.1437688 | O92: =IF('III Tool Overview'!$H$6="Orkney Health Board",0,IF('III Tool Overview'!$H$6="Shetland Health Board",0,IF('III Tool Overview'!$H$6="Western Isles Health Board",0,IF('III Tool Overview'!$H$6="Orkney Islands Local Authority",0,IF('III Tool Overview'!$H$6="Shetland Islands Local Authority",0,IF('III Tool Overview'!$H$6="Eilean Siar Local Authority",0,new_ci(20,B92,C92,D92,$C$1,G92,1,F92,E92*F92))))))) -> 857.226085 | P92: =IF('III Tool Overview'!$H$6="Orkney Health Board",0,IF('III Tool Overview'!$H$6="Shetland Health Board",0,IF('III Tool Overview'!$H$6="Western Isles Health Board",0,IF('III Tool Overview'!$H$6="Orkney Islands Local Authority",0,IF('III Tool Overview'!$H$6="Shetland Islands Local Authority",0,IF('III Tool Overview'!$H$6="Eilean Siar Local Authority",0,new_ci(20,B92,C92,D92,$C$1,G92+H92,1,F92,E92*F92))))))) -> 857.0614559 | Q92: =IF('III Tool Overview'!$H$6="Orkney Health Board",0,IF('III Tool Overview'!$H$6="Shetland Health Board",0,IF('III Tool Overview'!$H$6="Western Isles Health Board",0,IF('III Tool Overview'!$H$6="Orkney Islands Local Authority",0,IF('III Tool Overview'!$H$6="Shetland Islands Local Authority",0,IF('III Tool Overview'!$H$6="Eilean Siar Local Authority",0,new_yll(2,B92,C92,D92,$C$1,G92,1,F92,E92*F92))))))) -> 1778.898829 | R92: =IF('III Tool Overview'!$H$6="Orkney Health Board",0,IF('III Tool Overview'!$H$6="Shetland Health Board",0,IF('III Tool Overview'!$H$6="Western Isles Health Board",0,IF('III Tool Overview'!$H$6="Orkney Islands Local Authority",0,IF('III Tool Overview'!$H$6="Shetland Islands Local Authority",0,IF('III Tool Overview'!$H$6="Eilean Siar Local Authority",0,new_yll(2,B92,C92,D92,$C$1,G92+H92,1,F92,E92*F92))))))) -> 1778.55207 | S92: =Q92-R92 -> 0.3467592841 | T92: =IF('III Tool Overview'!$H$6="Orkney Health Board",0,IF('III Tool Overview'!$H$6="Shetland Health Board",0,IF('III Tool Overview'!$H$6="Western Isles Health Board",0,IF('III Tool Overview'!$H$6="Orkney Islands Local Authority",0,IF('III Tool Overview'!$H$6="Shetland Islands Local Authority",0,IF('III Tool Overview'!$H$6="Eilean Siar Local Authority",0,new_yll(5,B92,C92,D92,$C$1,G92,1,F92,E92*F92))))))) -> 7731.541959 | U92: =IF('III Tool Overview'!$H$6="Orkney Health Board",0,IF('III Tool Overview'!$H$6="Shetland Health Board",0,IF('III Tool Overview'!$H$6="Western Isles Health Board",0,IF('III Tool Overview'!$H$6="Orkney Islands Local Authority",0,IF('III Tool Overview'!$H$6="Shetland Islands Local Authority",0,IF('III Tool Overview'!$H$6="Eilean Siar Local Authority",0,new_yll(5,B92,C92,D92,$C$1,G92+H92,1,F92,E92*F92))))))) -> 7730.036946 | V92: =T92-U92 -> 1.505013394 | W92: =IF('III Tool Overview'!$H$6="Orkney Health Board",0,IF('III Tool Overview'!$H$6="Shetland Health Board",0,IF('III Tool Overview'!$H$6="Western Isles Health Board",0,IF('III Tool Overview'!$H$6="Orkney Islands Local Authority",0,IF('III Tool Overview'!$H$6="Shetland Islands Local Authority",0,IF('III Tool Overview'!$H$6="Eilean Siar Local Authority",0,new_yll(10,B92,C92,D92,$C$1,G92,1,F92,E92*F92))))))) -> 20039.4803 | X92: =IF('III Tool Overview'!$H$6="Orkney Health Board",0,IF('III Tool Overview'!$H$6="Shetland Health Board",0,IF('III Tool Overview'!$H$6="Western Isles Health Board",0,IF('III Tool Overview'!$H$6="Orkney Islands Local Authority",0,IF('III Tool Overview'!$H$6="Shetland Islands Local Authority",0,IF('III Tool Overview'!$H$6="Eilean Siar Local Authority",0,new_yll(10,B92,C92,D92,$C$1,G92+H92,1,F92,E92*F92))))))) -> 20035.5911 | Y92: =W92-X92 -> 3.889200552 | Z92: =IF('III Tool Overview'!$H$6="Orkney Health Board",0,IF('III Tool Overview'!$H$6="Shetland Health Board",0,IF('III Tool Overview'!$H$6="Western Isles Health Board",0,IF('III Tool Overview'!$H$6="Orkney Islands Local Authority",0,IF('III Tool Overview'!$H$6="Shetland Islands Local Authority",0,IF('III Tool Overview'!$H$6="Eilean Siar Local Authority",0,new_yll(20,B92,C92,D92,$C$1,G92,1,F92,E92*F92))))))) -> 56618.52923 | AA92: =IF('III Tool Overview'!$H$6="Orkney Health Board",0,IF('III Tool Overview'!$H$6="Shetland Health Board",0,IF('III Tool Overview'!$H$6="Western Isles Health Board",0,IF('III Tool Overview'!$H$6="Orkney Islands Local Authority",0,IF('III Tool Overview'!$H$6="Shetland Islands Local Authority",0,IF('III Tool Overview'!$H$6="Eilean Siar Local Authority",0,new_yll(20,B92,C92,D92,$C$1,G92+H92,1,F92,E92*F92))))))) -> 56607.6481 | AB92: =Z92-AA92 -> 10.88112185 | AC92: =hosp_count(2,B92,C92,D92,$C$1,G92,1,F92,E92*F92) ->  | AD92: =hosp_count(2,B92,C92,D92,$C$1,G92+H92,1,F92,E92*F92) ->  | AE92: =AC92-AD92 ->  | AF92: =hosp_count(5,B92,C92,D92,$C$1,G92,1,F92,E92*F92) ->  | AG92: =hosp_count(5,B92,C92,D92,$C$1,G92+H92,1,F92,E92*F92) ->  | AH92: =AF92-AG92 ->  | AI92: =hosp_count(10,B92,C92,D92,$C$1,G92,1,F92,E92*F92) ->  | AJ92: =hosp_count(10,B92,C92,D92,$C$1,G92+H92,1,F92,E92*F92) ->  | AK92: =AI92-AJ92 ->  | AL92: =hosp_count(20,B92,C92,D92,$C$1,G92,1,F92,E92*F92) ->  | AM92: =hosp_count(20,B92,C92,D92,$C$1,G92+H92,1,F92,E92*F92) ->  | AN92: =AL92-AM92 ->  | AO92: =HLOOKUP('III Tool Overview'!$H$6,LookUpData_Pop!$B$1:$AV$269,LookUpData_Pop!BB92,FALSE) -> 204286 | AP92: 8.499618714 | AR92: =AO92 -> 204286 | AV92: =AT92/AVERAGE(AT$91:AT$104) ->  | AZ92: 4.160646698e-05 | BA92: 0 | BC92: =(AP92/AO92)*LookUpData_Pop!$B$281 -> 0.2912452689 | BD92: =(AQ92/AP92)*LookUpData_Pop!$B$281 -> 0 | BF92: 0.5 | BG92: 5
A93: Female 25-29 | B93: 27.5 | C93: female | D93: 1 | E93: =HLOOKUP('III Tool Overview'!$H$6,Prevalence!$B$2:$AV$268,Prevalence!AW88,FALSE) -> 0.3162205888 | F93: =HLOOKUP('III Tool Overview'!$H$6,LookUpData_Pop!$B$1:$AV$269,LookUpData_Pop!BB93,FALSE)/5 -> 40641.4 | G93: ='III Tool Overview'!$H$9/110 -> 0 | H93: =IF('III Tool Overview'!$H$10="Even distribution",Targeting!C91,IF('III Tool Overview'!$H$10="Targeting to Q1",Targeting!D91,IF('III Tool Overview'!$H$10="Targeting to Q1 & Q2",Targeting!E91,IF('III Tool Overview'!$H$10="Proportionate to need",Targeting!F91)))) -> 907.2878477 | I93: =IF('III Tool Overview'!$H$6="Orkney Health Board",0,IF('III Tool Overview'!$H$6="Shetland Health Board",0,IF('III Tool Overview'!$H$6="Western Isles Health Board",0,IF('III Tool Overview'!$H$6="Orkney Islands Local Authority",0,IF('III Tool Overview'!$H$6="Shetland Islands Local Authority",0,IF('III Tool Overview'!$H$6="Eilean Siar Local Authority",0,new_ci(2,B93,C93,D93,$C$1,G93,1,F93,E93*F93))))))) -> 37.56339659 | J93: =IF('III Tool Overview'!$H$6="Orkney Health Board",0,IF('III Tool Overview'!$H$6="Shetland Health Board",0,IF('III Tool Overview'!$H$6="Western Isles Health Board",0,IF('III Tool Overview'!$H$6="Orkney Islands Local Authority",0,IF('III Tool Overview'!$H$6="Shetland Islands Local Authority",0,IF('III Tool Overview'!$H$6="Eilean Siar Local Authority",0,new_ci(2,B93,C93,D93,$C$1,G93+H93,1,F93,E93*F93))))))) -> 37.55026585 | K93: =IF('III Tool Overview'!$H$6="Orkney Health Board",0,IF('III Tool Overview'!$H$6="Shetland Health Board",0,IF('III Tool Overview'!$H$6="Western Isles Health Board",0,IF('III Tool Overview'!$H$6="Orkney Islands Local Authority",0,IF('III Tool Overview'!$H$6="Shetland Islands Local Authority",0,IF('III Tool Overview'!$H$6="Eilean Siar Local Authority",0,new_ci(5,B93,C93,D93,$C$1,G93,1,F93,E93*F93))))))) -> 166.583764 | L93: =IF('III Tool Overview'!$H$6="Orkney Health Board",0,IF('III Tool Overview'!$H$6="Shetland Health Board",0,IF('III Tool Overview'!$H$6="Western Isles Health Board",0,IF('III Tool Overview'!$H$6="Orkney Islands Local Authority",0,IF('III Tool Overview'!$H$6="Shetland Islands Local Authority",0,IF('III Tool Overview'!$H$6="Eilean Siar Local Authority",0,new_ci(5,B93,C93,D93,$C$1,G93+H93,1,F93,E93*F93))))))) -> 166.525657 | M93: =IF('III Tool Overview'!$H$6="Orkney Health Board",0,IF('III Tool Overview'!$H$6="Shetland Health Board",0,IF('III Tool Overview'!$H$6="Western Isles Health Board",0,IF('III Tool Overview'!$H$6="Orkney Islands Local Authority",0,IF('III Tool Overview'!$H$6="Shetland Islands Local Authority",0,IF('III Tool Overview'!$H$6="Eilean Siar Local Authority",0,new_ci(10,B93,C93,D93,$C$1,G93,1,F93,E93*F93))))))) -> 448.175776 | N93: =IF('III Tool Overview'!$H$6="Orkney Health Board",0,IF('III Tool Overview'!$H$6="Shetland Health Board",0,IF('III Tool Overview'!$H$6="Western Isles Health Board",0,IF('III Tool Overview'!$H$6="Orkney Islands Local Authority",0,IF('III Tool Overview'!$H$6="Shetland Islands Local Authority",0,IF('III Tool Overview'!$H$6="Eilean Siar Local Authority",0,new_ci(10,B93,C93,D93,$C$1,G93+H93,1,F93,E93*F93))))))) -> 448.0201773 | O93: =IF('III Tool Overview'!$H$6="Orkney Health Board",0,IF('III Tool Overview'!$H$6="Shetland Health Board",0,IF('III Tool Overview'!$H$6="Western Isles Health Board",0,IF('III Tool Overview'!$H$6="Orkney Islands Local Authority",0,IF('III Tool Overview'!$H$6="Shetland Islands Local Authority",0,IF('III Tool Overview'!$H$6="Eilean Siar Local Authority",0,new_ci(20,B93,C93,D93,$C$1,G93,1,F93,E93*F93))))))) -> 1384.533125 | P93: =IF('III Tool Overview'!$H$6="Orkney Health Board",0,IF('III Tool Overview'!$H$6="Shetland Health Board",0,IF('III Tool Overview'!$H$6="Western Isles Health Board",0,IF('III Tool Overview'!$H$6="Orkney Islands Local Authority",0,IF('III Tool Overview'!$H$6="Shetland Islands Local Authority",0,IF('III Tool Overview'!$H$6="Eilean Siar Local Authority",0,new_ci(20,B93,C93,D93,$C$1,G93+H93,1,F93,E93*F93))))))) -> 1384.060013 | Q93: =IF('III Tool Overview'!$H$6="Orkney Health Board",0,IF('III Tool Overview'!$H$6="Shetland Health Board",0,IF('III Tool Overview'!$H$6="Western Isles Health Board",0,IF('III Tool Overview'!$H$6="Orkney Islands Local Authority",0,IF('III Tool Overview'!$H$6="Shetland Islands Local Authority",0,IF('III Tool Overview'!$H$6="Eilean Siar Local Authority",0,new_yll(2,B93,C93,D93,$C$1,G93,1,F93,E93*F93))))))) -> 2667.001158 | R93: =IF('III Tool Overview'!$H$6="Orkney Health Board",0,IF('III Tool Overview'!$H$6="Shetland Health Board",0,IF('III Tool Overview'!$H$6="Western Isles Health Board",0,IF('III Tool Overview'!$H$6="Orkney Islands Local Authority",0,IF('III Tool Overview'!$H$6="Shetland Islands Local Authority",0,IF('III Tool Overview'!$H$6="Eilean Siar Local Authority",0,new_yll(2,B93,C93,D93,$C$1,G93+H93,1,F93,E93*F93))))))) -> 2666.068876 | S93: 0.9322822082 | T93: =IF('III Tool Overview'!$H$6="Orkney Health Board",0,IF('III Tool Overview'!$H$6="Shetland Health Board",0,IF('III Tool Overview'!$H$6="Western Isles Health Board",0,IF('III Tool Overview'!$H$6="Orkney Islands Local Authority",0,IF('III Tool Overview'!$H$6="Shetland Islands Local Authority",0,IF('III Tool Overview'!$H$6="Eilean Siar Local Authority",0,new_yll(5,B93,C93,D93,$C$1,G93,1,F93,E93*F93))))))) -> 11563.65994 | U93: =IF('III Tool Overview'!$H$6="Orkney Health Board",0,IF('III Tool Overview'!$H$6="Shetland Health Board",0,IF('III Tool Overview'!$H$6="Western Isles Health Board",0,IF('III Tool Overview'!$H$6="Orkney Islands Local Authority",0,IF('III Tool Overview'!$H$6="Shetland Islands Local Authority",0,IF('III Tool Overview'!$H$6="Eilean Siar Local Authority",0,new_yll(5,B93,C93,D93,$C$1,G93+H93,1,F93,E93*F93))))))) -> 11559.62625 | V93: 4.033684411 | W93: =IF('III Tool Overview'!$H$6="Orkney Health Board",0,IF('III Tool Overview'!$H$6="Shetland Health Board",0,IF('III Tool Overview'!$H$6="Western Isles Health Board",0,IF('III Tool Overview'!$H$6="Orkney Islands Local Authority",0,IF('III Tool Overview'!$H$6="Shetland Islands Local Authority",0,IF('III Tool Overview'!$H$6="Eilean Siar Local Authority",0,new_yll(10,B93,C93,D93,$C$1,G93,1,F93,E93*F93))))))) -> 29829.75094 | X93: =IF('III Tool Overview'!$H$6="Orkney Health Board",0,IF('III Tool Overview'!$H$6="Shetland Health Board",0,IF('III Tool Overview'!$H$6="Western Isles Health Board",0,IF('III Tool Overview'!$H$6="Orkney Islands Local Authority",0,IF('III Tool Overview'!$H$6="Shetland Islands Local Authority",0,IF('III Tool Overview'!$H$6="Eilean Siar Local Authority",0,new_yll(10,B93,C93,D93,$C$1,G93+H93,1,F93,E93*F93))))))) -> 29819.39287 | Y93: 10.35807017 | Z93: =IF('III Tool Overview'!$H$6="Orkney Health Board",0,IF('III Tool Overview'!$H$6="Shetland Health Board",0,IF('III Tool Overview'!$H$6="Western Isles Health Board",0,IF('III Tool Overview'!$H$6="Orkney Islands Local Authority",0,IF('III Tool Overview'!$H$6="Shetland Islands Local Authority",0,IF('III Tool Overview'!$H$6="Eilean Siar Local Authority",0,new_yll(20,B93,C93,D93,$C$1,G93,1,F93,E93*F93))))))) -> 83167.72823 | AA93: =IF('III Tool Overview'!$H$6="Orkney Health Board",0,IF('III Tool Overview'!$H$6="Shetland Health Board",0,IF('III Tool Overview'!$H$6="Western Isles Health Board",0,IF('III Tool Overview'!$H$6="Orkney Islands Local Authority",0,IF('III Tool Overview'!$H$6="Shetland Islands Local Authority",0,IF('III Tool Overview'!$H$6="Eilean Siar Local Authority",0,new_yll(20,B93,C93,D93,$C$1,G93+H93,1,F93,E93*F93))))))) -> 83139.27521 | AB93: 28.45301862 | AO93: =HLOOKUP('III Tool Overview'!$H$6,LookUpData_Pop!$B$1:$AV$269,LookUpData_Pop!BB93,FALSE) -> 203207 | AP93: 13.39793235 | AR93: =AO93 -> 203207 | AZ93: 6.593243517e-05 | BA93: 0 | BC93: =(AP93/AO93)*LookUpData_Pop!$B$282 -> 0.4615270462 | BD93: =(AQ93/AP93)*LookUpData_Pop!$B$282 -> 0 | BF93: 0.5 | BG93: 5
A94: Female 30-34 | B94: 32.5 | C94: female | D94: 1 | E94: =HLOOKUP('III Tool Overview'!$H$6,Prevalence!$B$2:$AV$268,Prevalence!AW89,FALSE) -> 0.3162205888 | F94: =HLOOKUP('III Tool Overview'!$H$6,LookUpData_Pop!$B$1:$AV$269,LookUpData_Pop!BB94,FALSE)/5 -> 34168.2 | G94: ='III Tool Overview'!$H$9/110 -> 0 | H94: =IF('III Tool Overview'!$H$10="Even distribution",Targeting!C92,IF('III Tool Overview'!$H$10="Targeting to Q1",Targeting!D92,IF('III Tool Overview'!$H$10="Targeting to Q1 & Q2",Targeting!E92,IF('III Tool Overview'!$H$10="Proportionate to need",Targeting!F92)))) -> 813.7210062 | I94: =IF('III Tool Overview'!$H$6="Orkney Health Board",0,IF('III Tool Overview'!$H$6="Shetland Health Board",0,IF('III Tool Overview'!$H$6="Western Isles Health Board",0,IF('III Tool Overview'!$H$6="Orkney Islands Local Authority",0,IF('III Tool Overview'!$H$6="Shetland Islands Local Authority",0,IF('III Tool Overview'!$H$6="Eilean Siar Local Authority",0,new_ci(2,B94,C94,D94,$C$1,G94,1,F94,E94*F94))))))) -> 43.81894096 | J94: =IF('III Tool Overview'!$H$6="Orkney Health Board",0,IF('III Tool Overview'!$H$6="Shetland Health Board",0,IF('III Tool Overview'!$H$6="Western Isles Health Board",0,IF('III Tool Overview'!$H$6="Orkney Islands Local Authority",0,IF('III Tool Overview'!$H$6="Shetland Islands Local Authority",0,IF('III Tool Overview'!$H$6="Eilean Siar Local Authority",0,new_ci(2,B94,C94,D94,$C$1,G94+H94,1,F94,E94*F94))))))) -> 43.80259369 | K94: =IF('III Tool Overview'!$H$6="Orkney Health Board",0,IF('III Tool Overview'!$H$6="Shetland Health Board",0,IF('III Tool Overview'!$H$6="Western Isles Health Board",0,IF('III Tool Overview'!$H$6="Orkney Islands Local Authority",0,IF('III Tool Overview'!$H$6="Shetland Islands Local Authority",0,IF('III Tool Overview'!$H$6="Eilean Siar Local Authority",0,new_ci(5,B94,C94,D94,$C$1,G94,1,F94,E94*F94))))))) -> 194.2037582 | L94: =IF('III Tool Overview'!$H$6="Orkney Health Board",0,IF('III Tool Overview'!$H$6="Shetland Health Board",0,IF('III Tool Overview'!$H$6="Western Isles Health Board",0,IF('III Tool Overview'!$H$6="Orkney Islands Local Authority",0,IF('III Tool Overview'!$H$6="Shetland Islands Local Authority",0,IF('III Tool Overview'!$H$6="Eilean Siar Local Authority",0,new_ci(5,B94,C94,D94,$C$1,G94+H94,1,F94,E94*F94))))))) -> 194.1315224 | M94: =IF('III Tool Overview'!$H$6="Orkney Health Board",0,IF('III Tool Overview'!$H$6="Shetland Health Board",0,IF('III Tool Overview'!$H$6="Western Isles Health Board",0,IF('III Tool Overview'!$H$6="Orkney Islands Local Authority",0,IF('III Tool Overview'!$H$6="Shetland Islands Local Authority",0,IF('III Tool Overview'!$H$6="Eilean Siar Local Authority",0,new_ci(10,B94,C94,D94,$C$1,G94,1,F94,E94*F94))))))) -> 521.768419 | N94: =IF('III Tool Overview'!$H$6="Orkney Health Board",0,IF('III Tool Overview'!$H$6="Shetland Health Board",0,IF('III Tool Overview'!$H$6="Western Isles Health Board",0,IF('III Tool Overview'!$H$6="Orkney Islands Local Authority",0,IF('III Tool Overview'!$H$6="Shetland Islands Local Authority",0,IF('III Tool Overview'!$H$6="Eilean Siar Local Authority",0,new_ci(10,B94,C94,D94,$C$1,G94+H94,1,F94,E94*F94))))))) -> 521.5756031 | O94: =IF('III Tool Overview'!$H$6="Orkney Health Board",0,IF('III Tool Overview'!$H$6="Shetland Health Board",0,IF('III Tool Overview'!$H$6="Western Isles Health Board",0,IF('III Tool Overview'!$H$6="Orkney Islands Local Authority",0,IF('III Tool Overview'!$H$6="Shetland Islands Local Authority",0,IF('III Tool Overview'!$H$6="Eilean Siar Local Authority",0,new_ci(20,B94,C94,D94,$C$1,G94,1,F94,E94*F94))))))) -> 1604.481757 | P94: =IF('III Tool Overview'!$H$6="Orkney Health Board",0,IF('III Tool Overview'!$H$6="Shetland Health Board",0,IF('III Tool Overview'!$H$6="Western Isles Health Board",0,IF('III Tool Overview'!$H$6="Orkney Islands Local Authority",0,IF('III Tool Overview'!$H$6="Shetland Islands Local Authority",0,IF('III Tool Overview'!$H$6="Eilean Siar Local Authority",0,new_ci(20,B94,C94,D94,$C$1,G94+H94,1,F94,E94*F94))))))) -> 1603.901772 | Q94: =IF('III Tool Overview'!$H$6="Orkney Health Board",0,IF('III Tool Overview'!$H$6="Shetland Health Board",0,IF('III Tool Overview'!$H$6="Western Isles Health Board",0,IF('III Tool Overview'!$H$6="Orkney Islands Local Authority",0,IF('III Tool Overview'!$H$6="Shetland Islands Local Authority",0,IF('III Tool Overview'!$H$6="Eilean Siar Local Authority",0,new_yll(2,B94,C94,D94,$C$1,G94,1,F94,E94*F94))))))) -> 2935.869044 | R94: =IF('III Tool Overview'!$H$6="Orkney Health Board",0,IF('III Tool Overview'!$H$6="Shetland Health Board",0,IF('III Tool Overview'!$H$6="Western Isles Health Board",0,IF('III Tool Overview'!$H$6="Orkney Islands Local Authority",0,IF('III Tool Overview'!$H$6="Shetland Islands Local Authority",0,IF('III Tool Overview'!$H$6="Eilean Siar Local Authority",0,new_yll(2,B94,C94,D94,$C$1,G94+H94,1,F94,E94*F94))))))) -> 2934.773778 | S94: 1.095266794 | T94: =IF('III Tool Overview'!$H$6="Orkney Health Board",0,IF('III Tool Overview'!$H$6="Shetland Health Board",0,IF('III Tool Overview'!$H$6="Western Isles Health Board",0,IF('III Tool Overview'!$H$6="Orkney Islands Local Authority",0,IF('III Tool Overview'!$H$6="Shetland Islands Local Authority",0,IF('III Tool Overview'!$H$6="Eilean Siar Local Authority",0,new_yll(5,B94,C94,D94,$C$1,G94,1,F94,E94*F94))))))) -> 12704.22585 | U94: =IF('III Tool Overview'!$H$6="Orkney Health Board",0,IF('III Tool Overview'!$H$6="Shetland Health Board",0,IF('III Tool Overview'!$H$6="Western Isles Health Board",0,IF('III Tool Overview'!$H$6="Orkney Islands Local Authority",0,IF('III Tool Overview'!$H$6="Shetland Islands Local Authority",0,IF('III Tool Overview'!$H$6="Eilean Siar Local Authority",0,new_yll(5,B94,C94,D94,$C$1,G94+H94,1,F94,E94*F94))))))) -> 12699.50023 | V94: 4.725619923 | W94: =IF('III Tool Overview'!$H$6="Orkney Health Board",0,IF('III Tool Overview'!$H$6="Shetland Health Board",0,IF('III Tool Overview'!$H$6="Western Isles Health Board",0,IF('III Tool Overview'!$H$6="Orkney Islands Local Authority",0,IF('III Tool Overview'!$H$6="Shetland Islands Local Authority",0,IF('III Tool Overview'!$H$6="Eilean Siar Local Authority",0,new_yll(10,B94,C94,D94,$C$1,G94,1,F94,E94*F94))))))) -> 32642.53502 | X94: =IF('III Tool Overview'!$H$6="Orkney Health Board",0,IF('III Tool Overview'!$H$6="Shetland Health Board",0,IF('III Tool Overview'!$H$6="Western Isles Health Board",0,IF('III Tool Overview'!$H$6="Orkney Islands Local Authority",0,IF('III Tool Overview'!$H$6="Shetland Islands Local Authority",0,IF('III Tool Overview'!$H$6="Eilean Siar Local Authority",0,new_yll(10,B94,C94,D94,$C$1,G94+H94,1,F94,E94*F94))))))) -> 32630.46926 | Y94: 12.06576305 | Z94: =IF('III Tool Overview'!$H$6="Orkney Health Board",0,IF('III Tool Overview'!$H$6="Shetland Health Board",0,IF('III Tool Overview'!$H$6="Western Isles Health Board",0,IF('III Tool Overview'!$H$6="Orkney Islands Local Authority",0,IF('III Tool Overview'!$H$6="Shetland Islands Local Authority",0,IF('III Tool Overview'!$H$6="Eilean Siar Local Authority",0,new_yll(20,B94,C94,D94,$C$1,G94,1,F94,E94*F94))))))) -> 89994.74297 | AA94: =IF('III Tool Overview'!$H$6="Orkney Health Board",0,IF('III Tool Overview'!$H$6="Shetland Health Board",0,IF('III Tool Overview'!$H$6="Western Isles Health Board",0,IF('III Tool Overview'!$H$6="Orkney Islands Local Authority",0,IF('III Tool Overview'!$H$6="Shetland Islands Local Authority",0,IF('III Tool Overview'!$H$6="Eilean Siar Local Authority",0,new_yll(20,B94,C94,D94,$C$1,G94+H94,1,F94,E94*F94))))))) -> 89962.15427 | AB94: 32.58869355 | AO94: =HLOOKUP('III Tool Overview'!$H$6,LookUpData_Pop!$B$1:$AV$269,LookUpData_Pop!BB94,FALSE) -> 170841 | AP94: 19.27883392 | AR94: 170841 | AZ94: 0.0001128466464 | BA94: 0 | BC94: =(AP94/AO94)*LookUpData_Pop!$B$283 -> 0.789926525 | BD94: =(AQ94/AP94)*LookUpData_Pop!$B$283 -> 0 | BF94: 0.5 | BG94: 5
A95: Female 35-39 | B95: 37.5 | C95: female | D95: 1 | E95: =HLOOKUP('III Tool Overview'!$H$6,Prevalence!$B$2:$AV$268,Prevalence!AW90,FALSE) -> 0.3178422984 | F95: =HLOOKUP('III Tool Overview'!$H$6,LookUpData_Pop!$B$1:$AV$269,LookUpData_Pop!BB95,FALSE)/5 -> 36858.6 | G95: ='III Tool Overview'!$H$9/110 -> 0 | H95: =IF('III Tool Overview'!$H$10="Even distribution",Targeting!C93,IF('III Tool Overview'!$H$10="Targeting to Q1",Targeting!D93,IF('III Tool Overview'!$H$10="Targeting to Q1 & Q2",Targeting!E93,IF('III Tool Overview'!$H$10="Proportionate to need",Targeting!F93)))) -> 698.638796 | I95: =IF('III Tool Overview'!$H$6="Orkney Health Board",0,IF('III Tool Overview'!$H$6="Shetland Health Board",0,IF('III Tool Overview'!$H$6="Western Isles Health Board",0,IF('III Tool Overview'!$H$6="Orkney Islands Local Authority",0,IF('III Tool Overview'!$H$6="Shetland Islands Local Authority",0,IF('III Tool Overview'!$H$6="Eilean Siar Local Authority",0,new_ci(2,B95,C95,D95,$C$1,G95,1,F95,E95*F95))))))) -> 77.24722898 | J95: =IF('III Tool Overview'!$H$6="Orkney Health Board",0,IF('III Tool Overview'!$H$6="Shetland Health Board",0,IF('III Tool Overview'!$H$6="Western Isles Health Board",0,IF('III Tool Overview'!$H$6="Orkney Islands Local Authority",0,IF('III Tool Overview'!$H$6="Shetland Islands Local Authority",0,IF('III Tool Overview'!$H$6="Eilean Siar Local Authority",0,new_ci(2,B95,C95,D95,$C$1,G95+H95,1,F95,E95*F95))))))) -> 77.22431113 | K95: =IF('III Tool Overview'!$H$6="Orkney Health Board",0,IF('III Tool Overview'!$H$6="Shetland Health Board",0,IF('III Tool Overview'!$H$6="Western Isles Health Board",0,IF('III Tool Overview'!$H$6="Orkney Islands Local Authority",0,IF('III Tool Overview'!$H$6="Shetland Islands Local Authority",0,IF('III Tool Overview'!$H$6="Eilean Siar Local Authority",0,new_ci(5,B95,C95,D95,$C$1,G95,1,F95,E95*F95))))))) -> 341.8698765 | L95: =IF('III Tool Overview'!$H$6="Orkney Health Board",0,IF('III Tool Overview'!$H$6="Shetland Health Board",0,IF('III Tool Overview'!$H$6="Western Isles Health Board",0,IF('III Tool Overview'!$H$6="Orkney Islands Local Authority",0,IF('III Tool Overview'!$H$6="Shetland Islands Local Authority",0,IF('III Tool Overview'!$H$6="Eilean Siar Local Authority",0,new_ci(5,B95,C95,D95,$C$1,G95+H95,1,F95,E95*F95))))))) -> 341.7689405 | M95: =IF('III Tool Overview'!$H$6="Orkney Health Board",0,IF('III Tool Overview'!$H$6="Shetland Health Board",0,IF('III Tool Overview'!$H$6="Western Isles Health Board",0,IF('III Tool Overview'!$H$6="Orkney Islands Local Authority",0,IF('III Tool Overview'!$H$6="Shetland Islands Local Authority",0,IF('III Tool Overview'!$H$6="Eilean Siar Local Authority",0,new_ci(10,B95,C95,D95,$C$1,G95,1,F95,E95*F95))))))) -> 915.6513593 | N95: =IF('III Tool Overview'!$H$6="Orkney Health Board",0,IF('III Tool Overview'!$H$6="Shetland Health Board",0,IF('III Tool Overview'!$H$6="Western Isles Health Board",0,IF('III Tool Overview'!$H$6="Orkney Islands Local Authority",0,IF('III Tool Overview'!$H$6="Shetland Islands Local Authority",0,IF('III Tool Overview'!$H$6="Eilean Siar Local Authority",0,new_ci(10,B95,C95,D95,$C$1,G95+H95,1,F95,E95*F95))))))) -> 915.3838807 | O95: =IF('III Tool Overview'!$H$6="Orkney Health Board",0,IF('III Tool Overview'!$H$6="Shetland Health Board",0,IF('III Tool Overview'!$H$6="Western Isles Health Board",0,IF('III Tool Overview'!$H$6="Orkney Islands Local Authority",0,IF('III Tool Overview'!$H$6="Shetland Islands Local Authority",0,IF('III Tool Overview'!$H$6="Eilean Siar Local Authority",0,new_ci(20,B95,C95,D95,$C$1,G95,1,F95,E95*F95))))))) -> 2786.57873 | P95: =IF('III Tool Overview'!$H$6="Orkney Health Board",0,IF('III Tool Overview'!$H$6="Shetland Health Board",0,IF('III Tool Overview'!$H$6="Western Isles Health Board",0,IF('III Tool Overview'!$H$6="Orkney Islands Local Authority",0,IF('III Tool Overview'!$H$6="Shetland Islands Local Authority",0,IF('III Tool Overview'!$H$6="Eilean Siar Local Authority",0,new_ci(20,B95,C95,D95,$C$1,G95+H95,1,F95,E95*F95))))))) -> 2785.793618 | Q95: =IF('III Tool Overview'!$H$6="Orkney Health Board",0,IF('III Tool Overview'!$H$6="Shetland Health Board",0,IF('III Tool Overview'!$H$6="Western Isles Health Board",0,IF('III Tool Overview'!$H$6="Orkney Islands Local Authority",0,IF('III Tool Overview'!$H$6="Shetland Islands Local Authority",0,IF('III Tool Overview'!$H$6="Eilean Siar Local Authority",0,new_yll(2,B95,C95,D95,$C$1,G95,1,F95,E95*F95))))))) -> 4712.080968 | R95: =IF('III Tool Overview'!$H$6="Orkney Health Board",0,IF('III Tool Overview'!$H$6="Shetland Health Board",0,IF('III Tool Overview'!$H$6="Western Isles Health Board",0,IF('III Tool Overview'!$H$6="Orkney Islands Local Authority",0,IF('III Tool Overview'!$H$6="Shetland Islands Local Authority",0,IF('III Tool Overview'!$H$6="Eilean Siar Local Authority",0,new_yll(2,B95,C95,D95,$C$1,G95+H95,1,F95,E95*F95))))))) -> 4710.682979 | S95: 1.397988999 | T95: =IF('III Tool Overview'!$H$6="Orkney Health Board",0,IF('III Tool Overview'!$H$6="Shetland Health Board",0,IF('III Tool Overview'!$H$6="Western Isles Health Board",0,IF('III Tool Overview'!$H$6="Orkney Islands Local Authority",0,IF('III Tool Overview'!$H$6="Shetland Islands Local Authority",0,IF('III Tool Overview'!$H$6="Eilean Siar Local Authority",0,new_yll(5,B95,C95,D95,$C$1,G95,1,F95,E95*F95))))))) -> 20313.27174 | U95: =IF('III Tool Overview'!$H$6="Orkney Health Board",0,IF('III Tool Overview'!$H$6="Shetland Health Board",0,IF('III Tool Overview'!$H$6="Western Isles Health Board",0,IF('III Tool Overview'!$H$6="Orkney Islands Local Authority",0,IF('III Tool Overview'!$H$6="Shetland Islands Local Authority",0,IF('III Tool Overview'!$H$6="Eilean Siar Local Authority",0,new_yll(5,B95,C95,D95,$C$1,G95+H95,1,F95,E95*F95))))))) -> 20307.27391 | V95: 5.997827096 | W95: =IF('III Tool Overview'!$H$6="Orkney Health Board",0,IF('III Tool Overview'!$H$6="Shetland Health Board",0,IF('III Tool Overview'!$H$6="Western Isles Health Board",0,IF('III Tool Overview'!$H$6="Orkney Islands Local Authority",0,IF('III Tool Overview'!$H$6="Shetland Islands Local Authority",0,IF('III Tool Overview'!$H$6="Eilean Siar Local Authority",0,new_yll(10,B95,C95,D95,$C$1,G95,1,F95,E95*F95))))))) -> 51797.12353 | X95: =IF('III Tool Overview'!$H$6="Orkney Health Board",0,IF('III Tool Overview'!$H$6="Shetland Health Board",0,IF('III Tool Overview'!$H$6="Western Isles Health Board",0,IF('III Tool Overview'!$H$6="Orkney Islands Local Authority",0,IF('III Tool Overview'!$H$6="Shetland Islands Local Authority",0,IF('III Tool Overview'!$H$6="Eilean Siar Local Authority",0,new_yll(10,B95,C95,D95,$C$1,G95+H95,1,F95,E95*F95))))))) -> 51781.98594 | Y95: 15.13758731 | Z95: =IF('III Tool Overview'!$H$6="Orkney Health Board",0,IF('III Tool Overview'!$H$6="Shetland Health Board",0,IF('III Tool Overview'!$H$6="Western Isles Health Board",0,IF('III Tool Overview'!$H$6="Orkney Islands Local Authority",0,IF('III Tool Overview'!$H$6="Shetland Islands Local Authority",0,IF('III Tool Overview'!$H$6="Eilean Siar Local Authority",0,new_yll(20,B95,C95,D95,$C$1,G95,1,F95,E95*F95))))))) -> 139708.1723 | AA95: =IF('III Tool Overview'!$H$6="Orkney Health Board",0,IF('III Tool Overview'!$H$6="Shetland Health Board",0,IF('III Tool Overview'!$H$6="Western Isles Health Board",0,IF('III Tool Overview'!$H$6="Orkney Islands Local Authority",0,IF('III Tool Overview'!$H$6="Shetland Islands Local Authority",0,IF('III Tool Overview'!$H$6="Eilean Siar Local Authority",0,new_yll(20,B95,C95,D95,$C$1,G95+H95,1,F95,E95*F95))))))) -> 139668.6803 | AB95: 39.49207714 | AO95: =HLOOKUP('III Tool Overview'!$H$6,LookUpData_Pop!$B$1:$AV$269,LookUpData_Pop!BB95,FALSE) -> 184293 | AP95: 27.27404536 | AR95: 184293 | AZ95: 0.0001479928449 | BA95: 0 | BC95: =(AP95/AO95)*LookUpData_Pop!$B$284 -> 1.035949914 | BD95: =(AQ95/AP95)*LookUpData_Pop!$B$284 -> 0 | BF95: 0.5 | BG95: 5
A96: Female 40-44 | B96: 42.5 | C96: female | D96: 1 | E96: =HLOOKUP('III Tool Overview'!$H$6,Prevalence!$B$2:$AV$268,Prevalence!AW91,FALSE) -> 0.3178422984 | F96: =HLOOKUP('III Tool Overview'!$H$6,LookUpData_Pop!$B$1:$AV$269,LookUpData_Pop!BB96,FALSE)/5 -> 40493.2 | G96: ='III Tool Overview'!$H$9/110 -> 0 | H96: =IF('III Tool Overview'!$H$10="Even distribution",Targeting!C94,IF('III Tool Overview'!$H$10="Targeting to Q1",Targeting!D94,IF('III Tool Overview'!$H$10="Targeting to Q1 & Q2",Targeting!E94,IF('III Tool Overview'!$H$10="Proportionate to need",Targeting!F94)))) -> 818.7889544 | I96: =IF('III Tool Overview'!$H$6="Orkney Health Board",0,IF('III Tool Overview'!$H$6="Shetland Health Board",0,IF('III Tool Overview'!$H$6="Western Isles Health Board",0,IF('III Tool Overview'!$H$6="Orkney Islands Local Authority",0,IF('III Tool Overview'!$H$6="Shetland Islands Local Authority",0,IF('III Tool Overview'!$H$6="Eilean Siar Local Authority",0,new_ci(2,B96,C96,D96,$C$1,G96,1,F96,E96*F96))))))) -> 117.7251925 | J96: =IF('III Tool Overview'!$H$6="Orkney Health Board",0,IF('III Tool Overview'!$H$6="Shetland Health Board",0,IF('III Tool Overview'!$H$6="Western Isles Health Board",0,IF('III Tool Overview'!$H$6="Orkney Islands Local Authority",0,IF('III Tool Overview'!$H$6="Shetland Islands Local Authority",0,IF('III Tool Overview'!$H$6="Eilean Siar Local Authority",0,new_ci(2,B96,C96,D96,$C$1,G96+H96,1,F96,E96*F96))))))) -> 117.687963 | K96: =IF('III Tool Overview'!$H$6="Orkney Health Board",0,IF('III Tool Overview'!$H$6="Shetland Health Board",0,IF('III Tool Overview'!$H$6="Western Isles Health Board",0,IF('III Tool Overview'!$H$6="Orkney Islands Local Authority",0,IF('III Tool Overview'!$H$6="Shetland Islands Local Authority",0,IF('III Tool Overview'!$H$6="Eilean Siar Local Authority",0,new_ci(5,B96,C96,D96,$C$1,G96,1,F96,E96*F96))))))) -> 520.2725336 | L96: =IF('III Tool Overview'!$H$6="Orkney Health Board",0,IF('III Tool Overview'!$H$6="Shetland Health Board",0,IF('III Tool Overview'!$H$6="Western Isles Health Board",0,IF('III Tool Overview'!$H$6="Orkney Islands Local Authority",0,IF('III Tool Overview'!$H$6="Shetland Islands Local Authority",0,IF('III Tool Overview'!$H$6="Eilean Siar Local Authority",0,new_ci(5,B96,C96,D96,$C$1,G96+H96,1,F96,E96*F96))))))) -> 520.1091058 | M96: =IF('III Tool Overview'!$H$6="Orkney Health Board",0,IF('III Tool Overview'!$H$6="Shetland Health Board",0,IF('III Tool Overview'!$H$6="Western Isles Health Board",0,IF('III Tool Overview'!$H$6="Orkney Islands Local Authority",0,IF('III Tool Overview'!$H$6="Shetland Islands Local Authority",0,IF('III Tool Overview'!$H$6="Eilean Siar Local Authority",0,new_ci(10,B96,C96,D96,$C$1,G96,1,F96,E96*F96))))))) -> 1389.167438 | N96: =IF('III Tool Overview'!$H$6="Orkney Health Board",0,IF('III Tool Overview'!$H$6="Shetland Health Board",0,IF('III Tool Overview'!$H$6="Western Isles Health Board",0,IF('III Tool Overview'!$H$6="Orkney Islands Local Authority",0,IF('III Tool Overview'!$H$6="Shetland Islands Local Authority",0,IF('III Tool Overview'!$H$6="Eilean Siar Local Authority",0,new_ci(10,B96,C96,D96,$C$1,G96+H96,1,F96,E96*F96))))))) -> 1388.737483 | O96: =IF('III Tool Overview'!$H$6="Orkney Health Board",0,IF('III Tool Overview'!$H$6="Shetland Health Board",0,IF('III Tool Overview'!$H$6="Western Isles Health Board",0,IF('III Tool Overview'!$H$6="Orkney Islands Local Authority",0,IF('III Tool Overview'!$H$6="Shetland Islands Local Authority",0,IF('III Tool Overview'!$H$6="Eilean Siar Local Authority",0,new_ci(20,B96,C96,D96,$C$1,G96,1,F96,E96*F96))))))) -> 4184.270131 | P96: =IF('III Tool Overview'!$H$6="Orkney Health Board",0,IF('III Tool Overview'!$H$6="Shetland Health Board",0,IF('III Tool Overview'!$H$6="Western Isles Health Board",0,IF('III Tool Overview'!$H$6="Orkney Islands Local Authority",0,IF('III Tool Overview'!$H$6="Shetland Islands Local Authority",0,IF('III Tool Overview'!$H$6="Eilean Siar Local Authority",0,new_ci(20,B96,C96,D96,$C$1,G96+H96,1,F96,E96*F96))))))) -> 4183.038608 | Q96: =IF('III Tool Overview'!$H$6="Orkney Health Board",0,IF('III Tool Overview'!$H$6="Shetland Health Board",0,IF('III Tool Overview'!$H$6="Western Isles Health Board",0,IF('III Tool Overview'!$H$6="Orkney Islands Local Authority",0,IF('III Tool Overview'!$H$6="Shetland Islands Local Authority",0,IF('III Tool Overview'!$H$6="Eilean Siar Local Authority",0,new_yll(2,B96,C96,D96,$C$1,G96,1,F96,E96*F96))))))) -> 6710.335974 | R96: =IF('III Tool Overview'!$H$6="Orkney Health Board",0,IF('III Tool Overview'!$H$6="Shetland Health Board",0,IF('III Tool Overview'!$H$6="Western Isles Health Board",0,IF('III Tool Overview'!$H$6="Orkney Islands Local Authority",0,IF('III Tool Overview'!$H$6="Shetland Islands Local Authority",0,IF('III Tool Overview'!$H$6="Eilean Siar Local Authority",0,new_yll(2,B96,C96,D96,$C$1,G96+H96,1,F96,E96*F96))))))) -> 6708.213891 | S96: 2.122082304 | T96: =IF('III Tool Overview'!$H$6="Orkney Health Board",0,IF('III Tool Overview'!$H$6="Shetland Health Board",0,IF('III Tool Overview'!$H$6="Western Isles Health Board",0,IF('III Tool Overview'!$H$6="Orkney Islands Local Authority",0,IF('III Tool Overview'!$H$6="Shetland Islands Local Authority",0,IF('III Tool Overview'!$H$6="Eilean Siar Local Authority",0,new_yll(5,B96,C96,D96,$C$1,G96,1,F96,E96*F96))))))) -> 28833.13072 | U96: =IF('III Tool Overview'!$H$6="Orkney Health Board",0,IF('III Tool Overview'!$H$6="Shetland Health Board",0,IF('III Tool Overview'!$H$6="Western Isles Health Board",0,IF('III Tool Overview'!$H$6="Orkney Islands Local Authority",0,IF('III Tool Overview'!$H$6="Shetland Islands Local Authority",0,IF('III Tool Overview'!$H$6="Eilean Siar Local Authority",0,new_yll(5,B96,C96,D96,$C$1,G96+H96,1,F96,E96*F96))))))) -> 28824.07278 | V96: 9.057940371 | W96: =IF('III Tool Overview'!$H$6="Orkney Health Board",0,IF('III Tool Overview'!$H$6="Shetland Health Board",0,IF('III Tool Overview'!$H$6="Western Isles Health Board",0,IF('III Tool Overview'!$H$6="Orkney Islands Local Authority",0,IF('III Tool Overview'!$H$6="Shetland Islands Local Authority",0,IF('III Tool Overview'!$H$6="Eilean Siar Local Authority",0,new_yll(10,B96,C96,D96,$C$1,G96,1,F96,E96*F96))))))) -> 73036.67328 | X96: =IF('III Tool Overview'!$H$6="Orkney Health Board",0,IF('III Tool Overview'!$H$6="Shetland Health Board",0,IF('III Tool Overview'!$H$6="Western Isles Health Board",0,IF('III Tool Overview'!$H$6="Orkney Islands Local Authority",0,IF('III Tool Overview'!$H$6="Shetland Islands Local Authority",0,IF('III Tool Overview'!$H$6="Eilean Siar Local Authority",0,new_yll(10,B96,C96,D96,$C$1,G96+H96,1,F96,E96*F96))))))) -> 73014.05301 | Y96: 22.62027186 | Z96: =IF('III Tool Overview'!$H$6="Orkney Health Board",0,IF('III Tool Overview'!$H$6="Shetland Health Board",0,IF('III Tool Overview'!$H$6="Western Isles Health Board",0,IF('III Tool Overview'!$H$6="Orkney Islands Local Authority",0,IF('III Tool Overview'!$H$6="Shetland Islands Local Authority",0,IF('III Tool Overview'!$H$6="Eilean Siar Local Authority",0,new_yll(20,B96,C96,D96,$C$1,G96,1,F96,E96*F96))))))) -> 193240.2394 | AA96: =IF('III Tool Overview'!$H$6="Orkney Health Board",0,IF('III Tool Overview'!$H$6="Shetland Health Board",0,IF('III Tool Overview'!$H$6="Western Isles Health Board",0,IF('III Tool Overview'!$H$6="Orkney Islands Local Authority",0,IF('III Tool Overview'!$H$6="Shetland Islands Local Authority",0,IF('III Tool Overview'!$H$6="Eilean Siar Local Authority",0,new_yll(20,B96,C96,D96,$C$1,G96+H96,1,F96,E96*F96))))))) -> 193183.0774 | AB96: 57.16200359 | AO96: =HLOOKUP('III Tool Overview'!$H$6,LookUpData_Pop!$B$1:$AV$269,LookUpData_Pop!BB96,FALSE) -> 202466 | AP96: 41.13789977 | AR96: 202466 | AZ96: 0.0002031842372 | BA96: 0 | BC96: =(AP96/AO96)*LookUpData_Pop!$B$285 -> 1.422289661 | BD96: =(AQ96/AP96)*LookUpData_Pop!$B$285 -> 0 | BF96: 0.5 | BG96: 5
A97: Female 45-49 | B97: 47.5 | C97: female | D97: 1 | E97: =HLOOKUP('III Tool Overview'!$H$6,Prevalence!$B$2:$AV$268,Prevalence!AW92,FALSE) -> 0.2633620702 | F97: =HLOOKUP('III Tool Overview'!$H$6,LookUpData_Pop!$B$1:$AV$269,LookUpData_Pop!BB97,FALSE)/5 -> 39361 | G97: ='III Tool Overview'!$H$9/110 -> 0 | H97: =IF('III Tool Overview'!$H$10="Even distribution",Targeting!C95,IF('III Tool Overview'!$H$10="Targeting to Q1",Targeting!D95,IF('III Tool Overview'!$H$10="Targeting to Q1 & Q2",Targeting!E95,IF('III Tool Overview'!$H$10="Proportionate to need",Targeting!F95)))) -> 698.1735081 | I97: =IF('III Tool Overview'!$H$6="Orkney Health Board",0,IF('III Tool Overview'!$H$6="Shetland Health Board",0,IF('III Tool Overview'!$H$6="Western Isles Health Board",0,IF('III Tool Overview'!$H$6="Orkney Islands Local Authority",0,IF('III Tool Overview'!$H$6="Shetland Islands Local Authority",0,IF('III Tool Overview'!$H$6="Eilean Siar Local Authority",0,new_ci(2,B97,C97,D97,$C$1,G97,1,F97,E97*F97))))))) -> 186.9094009 | J97: =IF('III Tool Overview'!$H$6="Orkney Health Board",0,IF('III Tool Overview'!$H$6="Shetland Health Board",0,IF('III Tool Overview'!$H$6="Western Isles Health Board",0,IF('III Tool Overview'!$H$6="Orkney Islands Local Authority",0,IF('III Tool Overview'!$H$6="Shetland Islands Local Authority",0,IF('III Tool Overview'!$H$6="Eilean Siar Local Authority",0,new_ci(2,B97,C97,D97,$C$1,G97+H97,1,F97,E97*F97))))))) -> 186.8568611 | K97: =IF('III Tool Overview'!$H$6="Orkney Health Board",0,IF('III Tool Overview'!$H$6="Shetland Health Board",0,IF('III Tool Overview'!$H$6="Western Isles Health Board",0,IF('III Tool Overview'!$H$6="Orkney Islands Local Authority",0,IF('III Tool Overview'!$H$6="Shetland Islands Local Authority",0,IF('III Tool Overview'!$H$6="Eilean Siar Local Authority",0,new_ci(5,B97,C97,D97,$C$1,G97,1,F97,E97*F97))))))) -> 823.3763058 | L97: =IF('III Tool Overview'!$H$6="Orkney Health Board",0,IF('III Tool Overview'!$H$6="Shetland Health Board",0,IF('III Tool Overview'!$H$6="Western Isles Health Board",0,IF('III Tool Overview'!$H$6="Orkney Islands Local Authority",0,IF('III Tool Overview'!$H$6="Shetland Islands Local Authority",0,IF('III Tool Overview'!$H$6="Eilean Siar Local Authority",0,new_ci(5,B97,C97,D97,$C$1,G97+H97,1,F97,E97*F97))))))) -> 823.1474607 | M97: =IF('III Tool Overview'!$H$6="Orkney Health Board",0,IF('III Tool Overview'!$H$6="Shetland Health Board",0,IF('III Tool Overview'!$H$6="Western Isles Health Board",0,IF('III Tool Overview'!$H$6="Orkney Islands Local Authority",0,IF('III Tool Overview'!$H$6="Shetland Islands Local Authority",0,IF('III Tool Overview'!$H$6="Eilean Siar Local Authority",0,new_ci(10,B97,C97,D97,$C$1,G97,1,F97,E97*F97))))))) -> 2183.164761 | N97: =IF('III Tool Overview'!$H$6="Orkney Health Board",0,IF('III Tool Overview'!$H$6="Shetland Health Board",0,IF('III Tool Overview'!$H$6="Western Isles Health Board",0,IF('III Tool Overview'!$H$6="Orkney Islands Local Authority",0,IF('III Tool Overview'!$H$6="Shetland Islands Local Authority",0,IF('III Tool Overview'!$H$6="Eilean Siar Local Authority",0,new_ci(10,B97,C97,D97,$C$1,G97+H97,1,F97,E97*F97))))))) -> 2182.572909 | O97: =IF('III Tool Overview'!$H$6="Orkney Health Board",0,IF('III Tool Overview'!$H$6="Shetland Health Board",0,IF('III Tool Overview'!$H$6="Western Isles Health Board",0,IF('III Tool Overview'!$H$6="Orkney Islands Local Authority",0,IF('III Tool Overview'!$H$6="Shetland Islands Local Authority",0,IF('III Tool Overview'!$H$6="Eilean Siar Local Authority",0,new_ci(20,B97,C97,D97,$C$1,G97,1,F97,E97*F97))))))) -> 6425.917945 | P97: =IF('III Tool Overview'!$H$6="Orkney Health Board",0,IF('III Tool Overview'!$H$6="Shetland Health Board",0,IF('III Tool Overview'!$H$6="Western Isles Health Board",0,IF('III Tool Overview'!$H$6="Orkney Islands Local Authority",0,IF('III Tool Overview'!$H$6="Shetland Islands Local Authority",0,IF('III Tool Overview'!$H$6="Eilean Siar Local Authority",0,new_ci(20,B97,C97,D97,$C$1,G97+H97,1,F97,E97*F97))))))) -> 6424.317818 | Q97: =IF('III Tool Overview'!$H$6="Orkney Health Board",0,IF('III Tool Overview'!$H$6="Shetland Health Board",0,IF('III Tool Overview'!$H$6="Western Isles Health Board",0,IF('III Tool Overview'!$H$6="Orkney Islands Local Authority",0,IF('III Tool Overview'!$H$6="Shetland Islands Local Authority",0,IF('III Tool Overview'!$H$6="Eilean Siar Local Authority",0,new_yll(2,B97,C97,D97,$C$1,G97,1,F97,E97*F97))))))) -> 9532.379444 | R97: =IF('III Tool Overview'!$H$6="Orkney Health Board",0,IF('III Tool Overview'!$H$6="Shetland Health Board",0,IF('III Tool Overview'!$H$6="Western Isles Health Board",0,IF('III Tool Overview'!$H$6="Orkney Islands Local Authority",0,IF('III Tool Overview'!$H$6="Shetland Islands Local Authority",0,IF('III Tool Overview'!$H$6="Eilean Siar Local Authority",0,new_yll(2,B97,C97,D97,$C$1,G97+H97,1,F97,E97*F97))))))) -> 9529.699917 | S97: 2.679526385 | T97: =IF('III Tool Overview'!$H$6="Orkney Health Board",0,IF('III Tool Overview'!$H$6="Shetland Health Board",0,IF('III Tool Overview'!$H$6="Western Isles Health Board",0,IF('III Tool Overview'!$H$6="Orkney Islands Local Authority",0,IF('III Tool Overview'!$H$6="Shetland Islands Local Authority",0,IF('III Tool Overview'!$H$6="Eilean Siar Local Authority",0,new_yll(5,B97,C97,D97,$C$1,G97,1,F97,E97*F97))))))) -> 40692.80018 | U97: =IF('III Tool Overview'!$H$6="Orkney Health Board",0,IF('III Tool Overview'!$H$6="Shetland Health Board",0,IF('III Tool Overview'!$H$6="Western Isles Health Board",0,IF('III Tool Overview'!$H$6="Orkney Islands Local Authority",0,IF('III Tool Overview'!$H$6="Shetland Islands Local Authority",0,IF('III Tool Overview'!$H$6="Eilean Siar Local Authority",0,new_yll(5,B97,C97,D97,$C$1,G97+H97,1,F97,E97*F97))))))) -> 40681.48812 | V97: 11.31205561 | W97: =IF('III Tool Overview'!$H$6="Orkney Health Board",0,IF('III Tool Overview'!$H$6="Shetland Health Board",0,IF('III Tool Overview'!$H$6="Western Isles Health Board",0,IF('III Tool Overview'!$H$6="Orkney Islands Local Authority",0,IF('III Tool Overview'!$H$6="Shetland Islands Local Authority",0,IF('III Tool Overview'!$H$6="Eilean Siar Local Authority",0,new_yll(10,B97,C97,D97,$C$1,G97,1,F97,E97*F97))))))) -> 101718.6342 | X97: =IF('III Tool Overview'!$H$6="Orkney Health Board",0,IF('III Tool Overview'!$H$6="Shetland Health Board",0,IF('III Tool Overview'!$H$6="Western Isles Health Board",0,IF('III Tool Overview'!$H$6="Orkney Islands Local Authority",0,IF('III Tool Overview'!$H$6="Shetland Islands Local Authority",0,IF('III Tool Overview'!$H$6="Eilean Siar Local Authority",0,new_yll(10,B97,C97,D97,$C$1,G97+H97,1,F97,E97*F97))))))) -> 101691.0234 | Y97: 27.61088662 | Z97: =IF('III Tool Overview'!$H$6="Orkney Health Board",0,IF('III Tool Overview'!$H$6="Shetland Health Board",0,IF('III Tool Overview'!$H$6="Western Isles Health Board",0,IF('III Tool Overview'!$H$6="Orkney Islands Local Authority",0,IF('III Tool Overview'!$H$6="Shetland Islands Local Authority",0,IF('III Tool Overview'!$H$6="Eilean Siar Local Authority",0,new_yll(20,B97,C97,D97,$C$1,G97,1,F97,E97*F97))))))) -> 258886.3213 | AA97: =IF('III Tool Overview'!$H$6="Orkney Health Board",0,IF('III Tool Overview'!$H$6="Shetland Health Board",0,IF('III Tool Overview'!$H$6="Western Isles Health Board",0,IF('III Tool Overview'!$H$6="Orkney Islands Local Authority",0,IF('III Tool Overview'!$H$6="Shetland Islands Local Authority",0,IF('III Tool Overview'!$H$6="Eilean Siar Local Authority",0,new_yll(20,B97,C97,D97,$C$1,G97+H97,1,F97,E97*F97))))))) -> 258821.2032 | AB97: 65.11808121 | AO97: =HLOOKUP('III Tool Overview'!$H$6,LookUpData_Pop!$B$1:$AV$269,LookUpData_Pop!BB97,FALSE) -> 196805 | AP97: 66.61100435 | AR97: 196805 | AZ97: 0.0003384619514 | BA97: 0 | BC97: =(AP97/AO97)*LookUpData_Pop!$B$286 -> 2.36923366 | BD97: =(AQ97/AP97)*LookUpData_Pop!$B$286 -> 0 | BF97: 0.5 | BG97: 5
A98: Female 50-54 | B98: 52.5 | C98: female | D98: 1 | E98: =HLOOKUP('III Tool Overview'!$H$6,Prevalence!$B$2:$AV$268,Prevalence!AW93,FALSE) -> 0.2633620702 | F98: =HLOOKUP('III Tool Overview'!$H$6,LookUpData_Pop!$B$1:$AV$269,LookUpData_Pop!BB98,FALSE)/5 -> 34448.8 | G98: ='III Tool Overview'!$H$9/110 -> 0 | H98: =IF('III Tool Overview'!$H$10="Even distribution",Targeting!C96,IF('III Tool Overview'!$H$10="Targeting to Q1",Targeting!D96,IF('III Tool Overview'!$H$10="Targeting to Q1 & Q2",Targeting!E96,IF('III Tool Overview'!$H$10="Proportionate to need",Targeting!F96)))) -> 643.9378362 | I98: =IF('III Tool Overview'!$H$6="Orkney Health Board",0,IF('III Tool Overview'!$H$6="Shetland Health Board",0,IF('III Tool Overview'!$H$6="Western Isles Health Board",0,IF('III Tool Overview'!$H$6="Orkney Islands Local Authority",0,IF('III Tool Overview'!$H$6="Shetland Islands Local Authority",0,IF('III Tool Overview'!$H$6="Eilean Siar Local Authority",0,new_ci(2,B98,C98,D98,$C$1,G98,1,F98,E98*F98))))))) -> 226.8064438 | J98: =IF('III Tool Overview'!$H$6="Orkney Health Board",0,IF('III Tool Overview'!$H$6="Shetland Health Board",0,IF('III Tool Overview'!$H$6="Western Isles Health Board",0,IF('III Tool Overview'!$H$6="Orkney Islands Local Authority",0,IF('III Tool Overview'!$H$6="Shetland Islands Local Authority",0,IF('III Tool Overview'!$H$6="Eilean Siar Local Authority",0,new_ci(2,B98,C98,D98,$C$1,G98+H98,1,F98,E98*F98))))))) -> 226.7393196 | K98: =IF('III Tool Overview'!$H$6="Orkney Health Board",0,IF('III Tool Overview'!$H$6="Shetland Health Board",0,IF('III Tool Overview'!$H$6="Western Isles Health Board",0,IF('III Tool Overview'!$H$6="Orkney Islands Local Authority",0,IF('III Tool Overview'!$H$6="Shetland Islands Local Authority",0,IF('III Tool Overview'!$H$6="Eilean Siar Local Authority",0,new_ci(5,B98,C98,D98,$C$1,G98,1,F98,E98*F98))))))) -> 995.9329258 | L98: =IF('III Tool Overview'!$H$6="Orkney Health Board",0,IF('III Tool Overview'!$H$6="Shetland Health Board",0,IF('III Tool Overview'!$H$6="Western Isles Health Board",0,IF('III Tool Overview'!$H$6="Orkney Islands Local Authority",0,IF('III Tool Overview'!$H$6="Shetland Islands Local Authority",0,IF('III Tool Overview'!$H$6="Eilean Siar Local Authority",0,new_ci(5,B98,C98,D98,$C$1,G98+H98,1,F98,E98*F98))))))) -> 995.6427704 | M98: =IF('III Tool Overview'!$H$6="Orkney Health Board",0,IF('III Tool Overview'!$H$6="Shetland Health Board",0,IF('III Tool Overview'!$H$6="Western Isles Health Board",0,IF('III Tool Overview'!$H$6="Orkney Islands Local Authority",0,IF('III Tool Overview'!$H$6="Shetland Islands Local Authority",0,IF('III Tool Overview'!$H$6="Eilean Siar Local Authority",0,new_ci(10,B98,C98,D98,$C$1,G98,1,F98,E98*F98))))))) -> 2622.392928 | N98: =IF('III Tool Overview'!$H$6="Orkney Health Board",0,IF('III Tool Overview'!$H$6="Shetland Health Board",0,IF('III Tool Overview'!$H$6="Western Isles Health Board",0,IF('III Tool Overview'!$H$6="Orkney Islands Local Authority",0,IF('III Tool Overview'!$H$6="Shetland Islands Local Authority",0,IF('III Tool Overview'!$H$6="Eilean Siar Local Authority",0,new_ci(10,B98,C98,D98,$C$1,G98+H98,1,F98,E98*F98))))))) -> 2621.654926 | O98: =IF('III Tool Overview'!$H$6="Orkney Health Board",0,IF('III Tool Overview'!$H$6="Shetland Health Board",0,IF('III Tool Overview'!$H$6="Western Isles Health Board",0,IF('III Tool Overview'!$H$6="Orkney Islands Local Authority",0,IF('III Tool Overview'!$H$6="Shetland Islands Local Authority",0,IF('III Tool Overview'!$H$6="Eilean Siar Local Authority",0,new_ci(20,B98,C98,D98,$C$1,G98,1,F98,E98*F98))))))) -> 7545.59875 | P98: =IF('III Tool Overview'!$H$6="Orkney Health Board",0,IF('III Tool Overview'!$H$6="Shetland Health Board",0,IF('III Tool Overview'!$H$6="Western Isles Health Board",0,IF('III Tool Overview'!$H$6="Orkney Islands Local Authority",0,IF('III Tool Overview'!$H$6="Shetland Islands Local Authority",0,IF('III Tool Overview'!$H$6="Eilean Siar Local Authority",0,new_ci(20,B98,C98,D98,$C$1,G98+H98,1,F98,E98*F98))))))) -> 7543.712793 | Q98: =IF('III Tool Overview'!$H$6="Orkney Health Board",0,IF('III Tool Overview'!$H$6="Shetland Health Board",0,IF('III Tool Overview'!$H$6="Western Isles Health Board",0,IF('III Tool Overview'!$H$6="Orkney Islands Local Authority",0,IF('III Tool Overview'!$H$6="Shetland Islands Local Authority",0,IF('III Tool Overview'!$H$6="Eilean Siar Local Authority",0,new_yll(2,B98,C98,D98,$C$1,G98,1,F98,E98*F98))))))) -> 10659.90286 | R98: =IF('III Tool Overview'!$H$6="Orkney Health Board",0,IF('III Tool Overview'!$H$6="Shetland Health Board",0,IF('III Tool Overview'!$H$6="Western Isles Health Board",0,IF('III Tool Overview'!$H$6="Orkney Islands Local Authority",0,IF('III Tool Overview'!$H$6="Shetland Islands Local Authority",0,IF('III Tool Overview'!$H$6="Eilean Siar Local Authority",0,new_yll(2,B98,C98,D98,$C$1,G98+H98,1,F98,E98*F98))))))) -> 10656.74802 | S98: 3.154838112 | T98: =IF('III Tool Overview'!$H$6="Orkney Health Board",0,IF('III Tool Overview'!$H$6="Shetland Health Board",0,IF('III Tool Overview'!$H$6="Western Isles Health Board",0,IF('III Tool Overview'!$H$6="Orkney Islands Local Authority",0,IF('III Tool Overview'!$H$6="Shetland Islands Local Authority",0,IF('III Tool Overview'!$H$6="Eilean Siar Local Authority",0,new_yll(5,B98,C98,D98,$C$1,G98,1,F98,E98*F98))))))) -> 45239.72209 | U98: =IF('III Tool Overview'!$H$6="Orkney Health Board",0,IF('III Tool Overview'!$H$6="Shetland Health Board",0,IF('III Tool Overview'!$H$6="Western Isles Health Board",0,IF('III Tool Overview'!$H$6="Orkney Islands Local Authority",0,IF('III Tool Overview'!$H$6="Shetland Islands Local Authority",0,IF('III Tool Overview'!$H$6="Eilean Siar Local Authority",0,new_yll(5,B98,C98,D98,$C$1,G98+H98,1,F98,E98*F98))))))) -> 45226.53822 | V98: 13.18386805 | W98: =IF('III Tool Overview'!$H$6="Orkney Health Board",0,IF('III Tool Overview'!$H$6="Shetland Health Board",0,IF('III Tool Overview'!$H$6="Western Isles Health Board",0,IF('III Tool Overview'!$H$6="Orkney Islands Local Authority",0,IF('III Tool Overview'!$H$6="Shetland Islands Local Authority",0,IF('III Tool Overview'!$H$6="Eilean Siar Local Authority",0,new_yll(10,B98,C98,D98,$C$1,G98,1,F98,E98*F98))))))) -> 111736.8011 | X98: =IF('III Tool Overview'!$H$6="Orkney Health Board",0,IF('III Tool Overview'!$H$6="Shetland Health Board",0,IF('III Tool Overview'!$H$6="Western Isles Health Board",0,IF('III Tool Overview'!$H$6="Orkney Islands Local Authority",0,IF('III Tool Overview'!$H$6="Shetland Islands Local Authority",0,IF('III Tool Overview'!$H$6="Eilean Siar Local Authority",0,new_yll(10,B98,C98,D98,$C$1,G98+H98,1,F98,E98*F98))))))) -> 111705.2942 | Y98: 31.50687264 | Z98: =IF('III Tool Overview'!$H$6="Orkney Health Board",0,IF('III Tool Overview'!$H$6="Shetland Health Board",0,IF('III Tool Overview'!$H$6="Western Isles Health Board",0,IF('III Tool Overview'!$H$6="Orkney Islands Local Authority",0,IF('III Tool Overview'!$H$6="Shetland Islands Local Authority",0,IF('III Tool Overview'!$H$6="Eilean Siar Local Authority",0,new_yll(20,B98,C98,D98,$C$1,G98,1,F98,E98*F98))))))) -> 274608.8281 | AA98: =IF('III Tool Overview'!$H$6="Orkney Health Board",0,IF('III Tool Overview'!$H$6="Shetland Health Board",0,IF('III Tool Overview'!$H$6="Western Isles Health Board",0,IF('III Tool Overview'!$H$6="Orkney Islands Local Authority",0,IF('III Tool Overview'!$H$6="Shetland Islands Local Authority",0,IF('III Tool Overview'!$H$6="Eilean Siar Local Authority",0,new_yll(20,B98,C98,D98,$C$1,G98+H98,1,F98,E98*F98))))))) -> 274539.0816 | AB98: 69.74650017 | AO98: =HLOOKUP('III Tool Overview'!$H$6,LookUpData_Pop!$B$1:$AV$269,LookUpData_Pop!BB98,FALSE) -> 172244 | AP98: 85.94664952 | AR98: 172244 | AZ98: 0.0004989819647 | BA98: 0 | BC98: =(AP98/AO98)*LookUpData_Pop!$B$287 -> 3.492873753 | BD98: =(AQ98/AP98)*LookUpData_Pop!$B$287 -> 0 | BF98: 0.5 | BG98: 5
A99: Female 55-59 | B99: 57.5 | C99: female | D99: 1 | E99: =HLOOKUP('III Tool Overview'!$H$6,Prevalence!$B$2:$AV$268,Prevalence!AW94,FALSE) -> 0.1608953967 | F99: =HLOOKUP('III Tool Overview'!$H$6,LookUpData_Pop!$B$1:$AV$269,LookUpData_Pop!BB99,FALSE)/5 -> 29704.2 | G99: ='III Tool Overview'!$H$9/110 -> 0 | H99: =IF('III Tool Overview'!$H$10="Even distribution",Targeting!C97,IF('III Tool Overview'!$H$10="Targeting to Q1",Targeting!D97,IF('III Tool Overview'!$H$10="Targeting to Q1 & Q2",Targeting!E97,IF('III Tool Overview'!$H$10="Proportionate to need",Targeting!F97)))) -> 331.2196492 | I99: =IF('III Tool Overview'!$H$6="Orkney Health Board",0,IF('III Tool Overview'!$H$6="Shetland Health Board",0,IF('III Tool Overview'!$H$6="Western Isles Health Board",0,IF('III Tool Overview'!$H$6="Orkney Islands Local Authority",0,IF('III Tool Overview'!$H$6="Shetland Islands Local Authority",0,IF('III Tool Overview'!$H$6="Eilean Siar Local Authority",0,new_ci(2,B99,C99,D99,$C$1,G99,1,F99,E99*F99))))))) -> 319.0578785 | J99: =IF('III Tool Overview'!$H$6="Orkney Health Board",0,IF('III Tool Overview'!$H$6="Shetland Health Board",0,IF('III Tool Overview'!$H$6="Western Isles Health Board",0,IF('III Tool Overview'!$H$6="Orkney Islands Local Authority",0,IF('III Tool Overview'!$H$6="Shetland Islands Local Authority",0,IF('III Tool Overview'!$H$6="Eilean Siar Local Authority",0,new_ci(2,B99,C99,D99,$C$1,G99+H99,1,F99,E99*F99))))))) -> 319.0001333 | K99: =IF('III Tool Overview'!$H$6="Orkney Health Board",0,IF('III Tool Overview'!$H$6="Shetland Health Board",0,IF('III Tool Overview'!$H$6="Western Isles Health Board",0,IF('III Tool Overview'!$H$6="Orkney Islands Local Authority",0,IF('III Tool Overview'!$H$6="Shetland Islands Local Authority",0,IF('III Tool Overview'!$H$6="Eilean Siar Local Authority",0,new_ci(5,B99,C99,D99,$C$1,G99,1,F99,E99*F99))))))) -> 1390.979195 | L99: =IF('III Tool Overview'!$H$6="Orkney Health Board",0,IF('III Tool Overview'!$H$6="Shetland Health Board",0,IF('III Tool Overview'!$H$6="Western Isles Health Board",0,IF('III Tool Overview'!$H$6="Orkney Islands Local Authority",0,IF('III Tool Overview'!$H$6="Shetland Islands Local Authority",0,IF('III Tool Overview'!$H$6="Eilean Siar Local Authority",0,new_ci(5,B99,C99,D99,$C$1,G99+H99,1,F99,E99*F99))))))) -> 1390.734177 | M99: =IF('III Tool Overview'!$H$6="Orkney Health Board",0,IF('III Tool Overview'!$H$6="Shetland Health Board",0,IF('III Tool Overview'!$H$6="Western Isles Health Board",0,IF('III Tool Overview'!$H$6="Orkney Islands Local Authority",0,IF('III Tool Overview'!$H$6="Shetland Islands Local Authority",0,IF('III Tool Overview'!$H$6="Eilean Siar Local Authority",0,new_ci(10,B99,C99,D99,$C$1,G99,1,F99,E99*F99))))))) -> 3606.21581 | N99: =IF('III Tool Overview'!$H$6="Orkney Health Board",0,IF('III Tool Overview'!$H$6="Shetland Health Board",0,IF('III Tool Overview'!$H$6="Western Isles Health Board",0,IF('III Tool Overview'!$H$6="Orkney Islands Local Authority",0,IF('III Tool Overview'!$H$6="Shetland Islands Local Authority",0,IF('III Tool Overview'!$H$6="Eilean Siar Local Authority",0,new_ci(10,B99,C99,D99,$C$1,G99+H99,1,F99,E99*F99))))))) -> 3605.617509 | O99: =IF('III Tool Overview'!$H$6="Orkney Health Board",0,IF('III Tool Overview'!$H$6="Shetland Health Board",0,IF('III Tool Overview'!$H$6="Western Isles Health Board",0,IF('III Tool Overview'!$H$6="Orkney Islands Local Authority",0,IF('III Tool Overview'!$H$6="Shetland Islands Local Authority",0,IF('III Tool Overview'!$H$6="Eilean Siar Local Authority",0,new_ci(20,B99,C99,D99,$C$1,G99,1,F99,E99*F99))))))) -> 9873.331949 | P99: =IF('III Tool Overview'!$H$6="Orkney Health Board",0,IF('III Tool Overview'!$H$6="Shetland Health Board",0,IF('III Tool Overview'!$H$6="Western Isles Health Board",0,IF('III Tool Overview'!$H$6="Orkney Islands Local Authority",0,IF('III Tool Overview'!$H$6="Shetland Islands Local Authority",0,IF('III Tool Overview'!$H$6="Eilean Siar Local Authority",0,new_ci(20,B99,C99,D99,$C$1,G99+H99,1,F99,E99*F99))))))) -> 9871.99964 | Q99: =IF('III Tool Overview'!$H$6="Orkney Health Board",0,IF('III Tool Overview'!$H$6="Shetland Health Board",0,IF('III Tool Overview'!$H$6="Western Isles Health Board",0,IF('III Tool Overview'!$H$6="Orkney Islands Local Authority",0,IF('III Tool Overview'!$H$6="Shetland Islands Local Authority",0,IF('III Tool Overview'!$H$6="Eilean Siar Local Authority",0,new_yll(2,B99,C99,D99,$C$1,G99,1,F99,E99*F99))))))) -> 13081.37302 | R99: =IF('III Tool Overview'!$H$6="Orkney Health Board",0,IF('III Tool Overview'!$H$6="Shetland Health Board",0,IF('III Tool Overview'!$H$6="Western Isles Health Board",0,IF('III Tool Overview'!$H$6="Orkney Islands Local Authority",0,IF('III Tool Overview'!$H$6="Shetland Islands Local Authority",0,IF('III Tool Overview'!$H$6="Eilean Siar Local Authority",0,new_yll(2,B99,C99,D99,$C$1,G99+H99,1,F99,E99*F99))))))) -> 13079.00546 | S99: 2.367553567 | T99: =IF('III Tool Overview'!$H$6="Orkney Health Board",0,IF('III Tool Overview'!$H$6="Shetland Health Board",0,IF('III Tool Overview'!$H$6="Western Isles Health Board",0,IF('III Tool Overview'!$H$6="Orkney Islands Local Authority",0,IF('III Tool Overview'!$H$6="Shetland Islands Local Authority",0,IF('III Tool Overview'!$H$6="Eilean Siar Local Authority",0,new_yll(5,B99,C99,D99,$C$1,G99,1,F99,E99*F99))))))) -> 54846.72565 | U99: =IF('III Tool Overview'!$H$6="Orkney Health Board",0,IF('III Tool Overview'!$H$6="Shetland Health Board",0,IF('III Tool Overview'!$H$6="Western Isles Health Board",0,IF('III Tool Overview'!$H$6="Orkney Islands Local Authority",0,IF('III Tool Overview'!$H$6="Shetland Islands Local Authority",0,IF('III Tool Overview'!$H$6="Eilean Siar Local Authority",0,new_yll(5,B99,C99,D99,$C$1,G99+H99,1,F99,E99*F99))))))) -> 54837.05907 | V99: 9.666580058 | W99: =IF('III Tool Overview'!$H$6="Orkney Health Board",0,IF('III Tool Overview'!$H$6="Shetland Health Board",0,IF('III Tool Overview'!$H$6="Western Isles Health Board",0,IF('III Tool Overview'!$H$6="Orkney Islands Local Authority",0,IF('III Tool Overview'!$H$6="Shetland Islands Local Authority",0,IF('III Tool Overview'!$H$6="Eilean Siar Local Authority",0,new_yll(10,B99,C99,D99,$C$1,G99,1,F99,E99*F99))))))) -> 132152.3008 | X99: =IF('III Tool Overview'!$H$6="Orkney Health Board",0,IF('III Tool Overview'!$H$6="Shetland Health Board",0,IF('III Tool Overview'!$H$6="Western Isles Health Board",0,IF('III Tool Overview'!$H$6="Orkney Islands Local Authority",0,IF('III Tool Overview'!$H$6="Shetland Islands Local Authority",0,IF('III Tool Overview'!$H$6="Eilean Siar Local Authority",0,new_yll(10,B99,C99,D99,$C$1,G99+H99,1,F99,E99*F99))))))) -> 132130.2872 | Y99: 22.01361027 | Z99: =IF('III Tool Overview'!$H$6="Orkney Health Board",0,IF('III Tool Overview'!$H$6="Shetland Health Board",0,IF('III Tool Overview'!$H$6="Western Isles Health Board",0,IF('III Tool Overview'!$H$6="Orkney Islands Local Authority",0,IF('III Tool Overview'!$H$6="Shetland Islands Local Authority",0,IF('III Tool Overview'!$H$6="Eilean Siar Local Authority",0,new_yll(20,B99,C99,D99,$C$1,G99,1,F99,E99*F99))))))) -> 302427.6121 | AA99: =IF('III Tool Overview'!$H$6="Orkney Health Board",0,IF('III Tool Overview'!$H$6="Shetland Health Board",0,IF('III Tool Overview'!$H$6="Western Isles Health Board",0,IF('III Tool Overview'!$H$6="Orkney Islands Local Authority",0,IF('III Tool Overview'!$H$6="Shetland Islands Local Authority",0,IF('III Tool Overview'!$H$6="Eilean Siar Local Authority",0,new_yll(20,B99,C99,D99,$C$1,G99+H99,1,F99,E99*F99))))))) -> 302385.321 | AB99: 42.29114457 | AO99: =HLOOKUP('III Tool Overview'!$H$6,LookUpData_Pop!$B$1:$AV$269,LookUpData_Pop!BB99,FALSE) -> 148521 | AP99: 112.0146719 | AR99: 148521 | AZ99: 0.0007542009003 | BA99: 0 | BC99: =(AP99/AO99)*LookUpData_Pop!$B$288 -> 4.525205402 | BD99: =(AQ99/AP99)*LookUpData_Pop!$B$288 -> 0 | BF99: 0.5 | BG99: 5
A100: Female 60-64 | B100: 62.5 | C100: female | D100: 1 | E100: =HLOOKUP('III Tool Overview'!$H$6,Prevalence!$B$2:$AV$268,Prevalence!AW95,FALSE) -> 0.1608953967 | F100: =HLOOKUP('III Tool Overview'!$H$6,LookUpData_Pop!$B$1:$AV$269,LookUpData_Pop!BB100,FALSE)/5 -> 28881.2 | G100: ='III Tool Overview'!$H$9/110 -> 0 | H100: =IF('III Tool Overview'!$H$10="Even distribution",Targeting!C98,IF('III Tool Overview'!$H$10="Targeting to Q1",Targeting!D98,IF('III Tool Overview'!$H$10="Targeting to Q1 & Q2",Targeting!E98,IF('III Tool Overview'!$H$10="Proportionate to need",Targeting!F98)))) -> 302.1402898 | I100: =IF('III Tool Overview'!$H$6="Orkney Health Board",0,IF('III Tool Overview'!$H$6="Shetland Health Board",0,IF('III Tool Overview'!$H$6="Western Isles Health Board",0,IF('III Tool Overview'!$H$6="Orkney Islands Local Authority",0,IF('III Tool Overview'!$H$6="Shetland Islands Local Authority",0,IF('III Tool Overview'!$H$6="Eilean Siar Local Authority",0,new_ci(2,B100,C100,D100,$C$1,G100,1,F100,E100*F100))))))) -> 429.6077993 | J100: =IF('III Tool Overview'!$H$6="Orkney Health Board",0,IF('III Tool Overview'!$H$6="Shetland Health Board",0,IF('III Tool Overview'!$H$6="Western Isles Health Board",0,IF('III Tool Overview'!$H$6="Orkney Islands Local Authority",0,IF('III Tool Overview'!$H$6="Shetland Islands Local Authority",0,IF('III Tool Overview'!$H$6="Eilean Siar Local Authority",0,new_ci(2,B100,C100,D100,$C$1,G100+H100,1,F100,E100*F100))))))) -> 429.535059 | K100: =IF('III Tool Overview'!$H$6="Orkney Health Board",0,IF('III Tool Overview'!$H$6="Shetland Health Board",0,IF('III Tool Overview'!$H$6="Western Isles Health Board",0,IF('III Tool Overview'!$H$6="Orkney Islands Local Authority",0,IF('III Tool Overview'!$H$6="Shetland Islands Local Authority",0,IF('III Tool Overview'!$H$6="Eilean Siar Local Authority",0,new_ci(5,B100,C100,D100,$C$1,G100,1,F100,E100*F100))))))) -> 1859.507002 | L100: =IF('III Tool Overview'!$H$6="Orkney Health Board",0,IF('III Tool Overview'!$H$6="Shetland Health Board",0,IF('III Tool Overview'!$H$6="Western Isles Health Board",0,IF('III Tool Overview'!$H$6="Orkney Islands Local Authority",0,IF('III Tool Overview'!$H$6="Shetland Islands Local Authority",0,IF('III Tool Overview'!$H$6="Eilean Siar Local Authority",0,new_ci(5,B100,C100,D100,$C$1,G100+H100,1,F100,E100*F100))))))) -> 1859.203791 | M100: =IF('III Tool Overview'!$H$6="Orkney Health Board",0,IF('III Tool Overview'!$H$6="Shetland Health Board",0,IF('III Tool Overview'!$H$6="Western Isles Health Board",0,IF('III Tool Overview'!$H$6="Orkney Islands Local Authority",0,IF('III Tool Overview'!$H$6="Shetland Islands Local Authority",0,IF('III Tool Overview'!$H$6="Eilean Siar Local Authority",0,new_ci(10,B100,C100,D100,$C$1,G100,1,F100,E100*F100))))))) -> 4747.286375 | N100: =IF('III Tool Overview'!$H$6="Orkney Health Board",0,IF('III Tool Overview'!$H$6="Shetland Health Board",0,IF('III Tool Overview'!$H$6="Western Isles Health Board",0,IF('III Tool Overview'!$H$6="Orkney Islands Local Authority",0,IF('III Tool Overview'!$H$6="Shetland Islands Local Authority",0,IF('III Tool Overview'!$H$6="Eilean Siar Local Authority",0,new_ci(10,B100,C100,D100,$C$1,G100+H100,1,F100,E100*F100))))))) -> 4746.574265 | O100: =IF('III Tool Overview'!$H$6="Orkney Health Board",0,IF('III Tool Overview'!$H$6="Shetland Health Board",0,IF('III Tool Overview'!$H$6="Western Isles Health Board",0,IF('III Tool Overview'!$H$6="Orkney Islands Local Authority",0,IF('III Tool Overview'!$H$6="Shetland Islands Local Authority",0,IF('III Tool Overview'!$H$6="Eilean Siar Local Authority",0,new_ci(20,B100,C100,D100,$C$1,G100,1,F100,E100*F100))))))) -> 12388.54115 | P100: =IF('III Tool Overview'!$H$6="Orkney Health Board",0,IF('III Tool Overview'!$H$6="Shetland Health Board",0,IF('III Tool Overview'!$H$6="Western Isles Health Board",0,IF('III Tool Overview'!$H$6="Orkney Islands Local Authority",0,IF('III Tool Overview'!$H$6="Shetland Islands Local Authority",0,IF('III Tool Overview'!$H$6="Eilean Siar Local Authority",0,new_ci(20,B100,C100,D100,$C$1,G100+H100,1,F100,E100*F100))))))) -> 12387.1509 | Q100: =IF('III Tool Overview'!$H$6="Orkney Health Board",0,IF('III Tool Overview'!$H$6="Shetland Health Board",0,IF('III Tool Overview'!$H$6="Western Isles Health Board",0,IF('III Tool Overview'!$H$6="Orkney Islands Local Authority",0,IF('III Tool Overview'!$H$6="Shetland Islands Local Authority",0,IF('III Tool Overview'!$H$6="Eilean Siar Local Authority",0,new_yll(2,B100,C100,D100,$C$1,G100,1,F100,E100*F100))))))) -> 15895.48857 | R100: =IF('III Tool Overview'!$H$6="Orkney Health Board",0,IF('III Tool Overview'!$H$6="Shetland Health Board",0,IF('III Tool Overview'!$H$6="Western Isles Health Board",0,IF('III Tool Overview'!$H$6="Orkney Islands Local Authority",0,IF('III Tool Overview'!$H$6="Shetland Islands Local Authority",0,IF('III Tool Overview'!$H$6="Eilean Siar Local Authority",0,new_yll(2,B100,C100,D100,$C$1,G100+H100,1,F100,E100*F100))))))) -> 15892.79718 | S100: 2.691391308 | T100: =IF('III Tool Overview'!$H$6="Orkney Health Board",0,IF('III Tool Overview'!$H$6="Shetland Health Board",0,IF('III Tool Overview'!$H$6="Western Isles Health Board",0,IF('III Tool Overview'!$H$6="Orkney Islands Local Authority",0,IF('III Tool Overview'!$H$6="Shetland Islands Local Authority",0,IF('III Tool Overview'!$H$6="Eilean Siar Local Authority",0,new_yll(5,B100,C100,D100,$C$1,G100,1,F100,E100*F100))))))) -> 65893.78417 | U100: =IF('III Tool Overview'!$H$6="Orkney Health Board",0,IF('III Tool Overview'!$H$6="Shetland Health Board",0,IF('III Tool Overview'!$H$6="Western Isles Health Board",0,IF('III Tool Overview'!$H$6="Orkney Islands Local Authority",0,IF('III Tool Overview'!$H$6="Shetland Islands Local Authority",0,IF('III Tool Overview'!$H$6="Eilean Siar Local Authority",0,new_yll(5,B100,C100,D100,$C$1,G100+H100,1,F100,E100*F100))))))) -> 65883.03008 | V100: 10.75408727 | W100: =IF('III Tool Overview'!$H$6="Orkney Health Board",0,IF('III Tool Overview'!$H$6="Shetland Health Board",0,IF('III Tool Overview'!$H$6="Western Isles Health Board",0,IF('III Tool Overview'!$H$6="Orkney Islands Local Authority",0,IF('III Tool Overview'!$H$6="Shetland Islands Local Authority",0,IF('III Tool Overview'!$H$6="Eilean Siar Local Authority",0,new_yll(10,B100,C100,D100,$C$1,G100,1,F100,E100*F100))))))) -> 155154.8127 | X100: =IF('III Tool Overview'!$H$6="Orkney Health Board",0,IF('III Tool Overview'!$H$6="Shetland Health Board",0,IF('III Tool Overview'!$H$6="Western Isles Health Board",0,IF('III Tool Overview'!$H$6="Orkney Islands Local Authority",0,IF('III Tool Overview'!$H$6="Shetland Islands Local Authority",0,IF('III Tool Overview'!$H$6="Eilean Siar Local Authority",0,new_yll(10,B100,C100,D100,$C$1,G100+H100,1,F100,E100*F100))))))) -> 155131.3887 | Y100: 23.42398576 | Z100: =IF('III Tool Overview'!$H$6="Orkney Health Board",0,IF('III Tool Overview'!$H$6="Shetland Health Board",0,IF('III Tool Overview'!$H$6="Western Isles Health Board",0,IF('III Tool Overview'!$H$6="Orkney Islands Local Authority",0,IF('III Tool Overview'!$H$6="Shetland Islands Local Authority",0,IF('III Tool Overview'!$H$6="Eilean Siar Local Authority",0,new_yll(20,B100,C100,D100,$C$1,G100,1,F100,E100*F100))))))) -> 332866.4 | AA100: =IF('III Tool Overview'!$H$6="Orkney Health Board",0,IF('III Tool Overview'!$H$6="Shetland Health Board",0,IF('III Tool Overview'!$H$6="Western Isles Health Board",0,IF('III Tool Overview'!$H$6="Orkney Islands Local Authority",0,IF('III Tool Overview'!$H$6="Shetland Islands Local Authority",0,IF('III Tool Overview'!$H$6="Eilean Siar Local Authority",0,new_yll(20,B100,C100,D100,$C$1,G100+H100,1,F100,E100*F100))))))) -> 332826.6954 | AB100: 39.70460045 | AO100: =HLOOKUP('III Tool Overview'!$H$6,LookUpData_Pop!$B$1:$AV$269,LookUpData_Pop!BB100,FALSE) -> 144406 | AP100: 159.6212812 | AR100: 144406 | AZ100: 0.001105364605 | BA100: 0 | BC100: =(AP100/AO100)*LookUpData_Pop!$B$289 -> 5.526823025 | BD100: =(AQ100/AP100)*LookUpData_Pop!$B$289 -> 0 | BF100: 0.5 | BG100: 5
A101: Female 65-69 | B101: 67.5 | C101: female | D101: 1 | AO101: =HLOOKUP('III Tool Overview'!$H$6,LookUpData_Pop!$B$1:$AV$269,LookUpData_Pop!BB101,FALSE) -> 126534 | AP101: 209.4726143 | AR101: 126534 | AZ101: 0.001655465048 | BA101: 0 | BC101: =(AP101/AO101)*LookUpData_Pop!$B$290 -> 6.621860191 | BD101: =(AQ101/AP101)*LookUpData_Pop!$B$290 -> 0 | BF101: 0.5 | BG101: 5
A102: Female 70-74 | B102: 72.5 | C102: female | D102: 1 | AO102: =HLOOKUP('III Tool Overview'!$H$6,LookUpData_Pop!$B$1:$AV$269,LookUpData_Pop!BB102,FALSE) -> 121724 | AP102: 309.3737843 | AR102: 121724 | AZ102: 0.002541600542 | BA102: 0 | BC102: =(AP102/AO102)*LookUpData_Pop!$B$291 -> 7.624801625 | BD102: =(AQ102/AP102)*LookUpData_Pop!$B$291 -> 0 | BF102: 0.5 | BG102: 5
A103: Female 75-79 | B103: 77.5 | C103: female | D103: 1 | AO103: =HLOOKUP('III Tool Overview'!$H$6,LookUpData_Pop!$B$1:$AV$269,LookUpData_Pop!BB103,FALSE) -> 105266 | AP103: 439.3659805 | AR103: 105266 | AX103: =AW103*AR103*$AT$4 ->  | AZ103: 0.00417386412 | BA103: 0 | BC103: =(AP103/AO103)*LookUpData_Pop!$B$292 -> 8.347728241 | BD103: =(AQ103/AP103)*LookUpData_Pop!$B$292 -> 0 | BF103: 0.5 | BG103: 5
A104: Female 80-84 | B104: 82.5 | C104: female | D104: 1 | AO104: =HLOOKUP('III Tool Overview'!$H$6,LookUpData_Pop!$B$1:$AV$269,LookUpData_Pop!BB104,FALSE) -> 74638 | AP104: 507.5155782 | AR104: 74638 | AZ104: 0.006799694234 | BA104: 0 | BC104: =(AP104/AO104)*LookUpData_Pop!$B$293 -> 6.799694234 | BD104: =(AQ104/AP104)*LookUpData_Pop!$B$293 -> 0 | BF104: 0.5 | BG104: 5
A105: Female 85-89 | B105: 87.5 | C105: female | D105: 1 | AO105: =HLOOKUP('III Tool Overview'!$H$6,LookUpData_Pop!$B$1:$AV$269,LookUpData_Pop!BB106,FALSE) -> 23370 | AP105: 849.0738436 | AZ105: 0.03633178621 | BA105: 0 | BC105: =(AP105/AO105)*LookUpData_Pop!$B$294 -> 36.33178621 | BD105: =(AQ105/AP105)*LookUpData_Pop!$B$294 -> 0 | BF105: 0.5 | BG105: =2/AZ105 -> 55.04821559
A106: Female 90+ | B106: 95 | C106: male | D106: 1 | AO106: =HLOOKUP('III Tool Overview'!$H$6,LookUpData_Pop!$B$1:$AV$269,LookUpData_Pop!BB107,FALSE) -> 0 | AP106: 850.0738436
A107: TOTAL | F107: =SUM(F91:F106) -> 359960 | G107: =SUM(G91:G106) -> 0 | H107: =SUM(H91:H106) -> 6012.79001 | I107: =SUM(I91:I106) -> 1475.915673 | J107: =SUM(J91:J106) -> 1475.569337 | K107: =SUM(K91:K106) -> 6457.727558 | L107: =SUM(L91:L106) -> 6456.236544 | M107: =SUM(M91:M106) -> 16878.45997 | N107: =SUM(N91:N106) -> 16874.69572 | O107: =SUM(O91:O106) -> 47574.32382 | P107: =SUM(P91:P106) -> 47564.80507 | Q107: =SUM(Q91:Q106) -> 69113.55144 | R107: =SUM(R91:R106) -> 69096.59709 | S107: =SUM(S91:S106) -> 16.95434992 | T107: =SUM(T91:T106) -> 292781.0433 | U107: =SUM(U91:U106) -> 292710.0821 | V107: =SUM(V91:V106) -> 70.96125027 | W107: =SUM(W91:W106) -> 721002.7676 | X107: =SUM(X91:X106) -> 720832.2626 | Y107: =SUM(Y91:Y106) -> 170.5050532 | Z107: =SUM(Z91:Z106) -> 1768208.395 | AA107: =SUM(AA91:AA106) -> 1767817.649 | AB107: =SUM(AB91:AB106) -> 390.7453385 | AC107: =SUM(AC91:AC106) ->  | AD107: =SUM(AD91:AD106) ->  | AE107: =SUM(AE91:AE106) ->  | AF107: =SUM(AF91:AF106) ->  | AG107: =SUM(AG91:AG106) ->  | AH107: =SUM(AH91:AH106) ->  | AI107: =SUM(AI91:AI106) ->  | AJ107: =SUM(AJ91:AJ106) ->  | AK107: =SUM(AK91:AK106) ->  | AL107: =SUM(AL91:AL106) ->  | AM107: =SUM(AM91:AM106) ->  | AN107: =SUM(AN91:AN106) -> 
A108: age/sex breakdown: Q2
A109: Male <1 | B109: 0.5 | C109: male | D109: 2 | AO109: =HLOOKUP('III Tool Overview'!$H$6,LookUpData_Pop!$B$1:$AV$269,LookUpData_Pop!BB108,FALSE) -> 31272 | AP109: 7.154729481 | AZ109: =IF(AO109=0,0,AP109/AO109) -> 0.000228790275 | BA109: =AQ109/AP109*100000 -> 0 | BF109: 0.1 | BG109: 1
A110: Male 1-4 | B110: 2.5 | C110: male | D110: 2 | AO110: =HLOOKUP('III Tool Overview'!$H$6,LookUpData_Pop!$B$1:$AV$269,LookUpData_Pop!BB109,FALSE) -> 116436 | AP110: 1.118688883 | AZ110: =IF(AO110=0,0,AP110/AO110) -> 9.607757762e-06 | BA110: 0 | BC110: =((AP110+AP109)/(AO110+AO109))*LookUpData_Pop!$B$277 -> 0.4480958845 | BD110: =((AQ110+AQ109)/(AP110+AP109))*LookUpData_Pop!$B$277 -> 0 | BF110: 0.5 | BG110: 4
A111: Male 5-9 | B111: 7.5 | C111: male | D111: 2 | AO111: =HLOOKUP('III Tool Overview'!$H$6,LookUpData_Pop!$B$1:$AV$269,LookUpData_Pop!BB110,FALSE) -> 132379 | AP111: 0.4310537365 | AZ111: 3.256209342e-06 | BA111: 0 | BC111: =(AP111/AO111)*LookUpData_Pop!$B$278 -> 0.0227934654 | BD111: =(AQ111/AP111)*LookUpData_Pop!$B$278 -> 0 | BF111: 0.5 | BG111: 5
A112: Male 10-14 | B112: 12.5 | C112: male | D112: 2 | AO112: =HLOOKUP('III Tool Overview'!$H$6,LookUpData_Pop!$B$1:$AV$269,LookUpData_Pop!BB111,FALSE) -> 144032 | AP112: 0.5225053279 | AZ112: 3.627703065e-06 | BA112: 0 | BC112: =(AP112/AO112)*LookUpData_Pop!$B$279 -> 0.02539392146 | BD112: =(AQ112/AP112)*LookUpData_Pop!$B$279 -> 0 | BF112: 0.5 | BG112: 5
A113: Male 15-19 | B113: 17.5 | C113: male | D113: 2 | E113: =HLOOKUP('III Tool Overview'!$H$6,Prevalence!$B$2:$AV$268,Prevalence!AW107,FALSE) -> 0.25597052 | F113: =HLOOKUP('III Tool Overview'!$H$6,LookUpData_Pop!$B$1:$AV$269,LookUpData_Pop!BB112,FALSE)/5 -> 32829 | G113: ='III Tool Overview'!$H$9/110 -> 0 | H113: =IF('III Tool Overview'!$H$10="Even distribution",Targeting!C111,IF('III Tool Overview'!$H$10="Targeting to Q1",Targeting!D111,IF('III Tool Overview'!$H$10="Targeting to Q1 & Q2",Targeting!E111,IF('III Tool Overview'!$H$10="Proportionate to need",Targeting!F111)))) -> 439.7067686 | I113: =new_ci(2,B113,C113,D113,$C$1,G113,1,F113,E113*F113) -> 22.37147244 | J113: =new_ci(2,B113,C113,D113,$C$1,G113+H113,1,F113,E113*F113) -> 22.36669637 | K113: =new_ci(5,B113,C113,D113,$C$1,G113,1,F113,E113*F113) -> 97.77434402 | L113: =new_ci(5,B113,C113,D113,$C$1,G113+H113,1,F113,E113*F113) -> 97.75350342 | M113: =new_ci(10,B113,C113,D113,$C$1,G113,1,F113,E113*F113) -> 256.3066848 | N113: =new_ci(10,B113,C113,D113,$C$1,G113+H113,1,F113,E113*F113) -> 256.2522364 | O113: =new_ci(20,B113,C113,D113,$C$1,G113,1,F113,E113*F113) -> 747.8971421 | P113: =new_ci(20,B113,C113,D113,$C$1,G113+H113,1,F113,E113*F113) -> 747.7399297 | Q113: =new_yll(2,B113,C113,D113,$C$1,G113,1,F113,E113*F113) -> 1812.089268 | R113: =new_yll(2,B113,C113,D113,$C$1,G113+H113,1,F113,E113*F113) -> 1811.702406 | S113: =Q113-R113 -> 0.3868623801 | T113: =new_yll(5,B113,C113,D113,$C$1,G113,1,F113,E113*F113) -> 7766.020606 | U113: =new_yll(5,B113,C113,D113,$C$1,G113+H113,1,F113,E113*F113) -> 7764.365253 | V113: =T113-U113 -> 1.655353839 | W113: =new_yll(10,B113,C113,D113,$C$1,G113,1,F113,E113*F113) -> 19637.76473 | X113: =new_yll(10,B113,C113,D113,$C$1,G113+H113,1,F113,E113*F113) -> 19633.59256 | Y113: =W113-X113 -> 4.172174267 | Z113: =new_yll(20,B113,C113,D113,$C$1,G113,1,F113,E113*F113) -> 52590.76144 | AA113: =new_yll(20,B113,C113,D113,$C$1,G113+H113,1,F113,E113*F113) -> 52579.69885 | AB113: =Z113-AA113 -> 11.06259285 | AC113: =hosp_count(2,B113,C113,D113,$C$1,G113,1,F113,E113*F113) ->  | AD113: =hosp_count(2,B113,C113,D113,$C$1,G113+H113,1,F113,E113*F113) ->  | AE113: =AC113-AD113 ->  | AF113: =hosp_count(5,B113,C113,D113,$C$1,G113,1,F113,E113*F113) ->  | AG113: =hosp_count(5,B113,C113,D113,$C$1,G113+H113,1,F113,E113*F113) ->  | AH113: =AF113-AG113 ->  | AI113: =hosp_count(10,B113,C113,D113,$C$1,G113,1,F113,E113*F113) ->  | AJ113: =hosp_count(10,B113,C113,D113,$C$1,G113+H113,1,F113,E113*F113) ->  | AK113: =AI113-AJ113 ->  | AL113: =hosp_count(20,B113,C113,D113,$C$1,G113,1,F113,E113*F113) ->  | AM113: =hosp_count(20,B113,C113,D113,$C$1,G113+H113,1,F113,E113*F113) ->  | AN113: =AL113-AM113 ->  | AO113: =HLOOKUP('III Tool Overview'!$H$6,LookUpData_Pop!$B$1:$AV$269,LookUpData_Pop!BB112,FALSE) -> 164145 | AP113: 4.696889602 | AR113: =AO113*(0.8) -> 131316 | AV113: =AT113/AVERAGE(AT$113:AT$126) ->  | AW113: =$AV$6*$AV$11*AV29 ->  | AX113: =AW113*AR113*$AT$4 ->  | AZ113: 2.861427154e-05 | BA113: 0 | BC113: =(AP113/AO113)*LookUpData_Pop!$B$280 -> 0.2002999008 | BD113: =(AQ113/AP113)*LookUpData_Pop!$B$280 -> 0 | BF113: 0.5 | BG113: 5
A114: Male 20-24 | B114: 22.5 | C114: male | D114: 2 | E114: =HLOOKUP('III Tool Overview'!$H$6,Prevalence!$B$2:$AV$268,Prevalence!AW108,FALSE) -> 0.25597052 | F114: =HLOOKUP('III Tool Overview'!$H$6,LookUpData_Pop!$B$1:$AV$269,LookUpData_Pop!BB113,FALSE)/5 -> 37321.8 | G114: ='III Tool Overview'!$H$9/110 -> 0 | H114: =IF('III Tool Overview'!$H$10="Even distribution",Targeting!C112,IF('III Tool Overview'!$H$10="Targeting to Q1",Targeting!D112,IF('III Tool Overview'!$H$10="Targeting to Q1 & Q2",Targeting!E112,IF('III Tool Overview'!$H$10="Proportionate to need",Targeting!F112)))) -> 667.3467735 | I114: =new_ci(2,B114,C114,D114,$C$1,G114,1,F114,E114*F114) -> 33.97205224 | J114: 33.96238287 | K114: 148.416414 | L114: 148.3742605 | M114: 388.7392345 | N114: 388.6293188 | O114: 1131.414589 | P114: 1131.099161 | Q114: 2615.848022 | R114: 2615.103481 | S114: 0.7445413106 | T114: 11194.80034 | U114: 11191.6207 | V114: =T114-U114 -> 3.179644057 | W114: 28230.31751 | X114: 28222.33424 | Y114: =W114-X114 -> 7.983270361 | Z114: 75046.83485 | AA114: 75025.89175 | AB114: =Z114-AA114 -> 20.94310232 | AC114: =hosp_count(2,B114,C114,D114,$C$1,G114,1,F114,E114*F114) ->  | AD114: =hosp_count(2,B114,C114,D114,$C$1,G114+H114,1,F114,E114*F114) ->  | AE114: =AC114-AD114 ->  | AF114: =hosp_count(5,B114,C114,D114,$C$1,G114,1,F114,E114*F114) ->  | AG114: =hosp_count(5,B114,C114,D114,$C$1,G114+H114,1,F114,E114*F114) ->  | AH114: =AF114-AG114 ->  | AI114: =hosp_count(10,B114,C114,D114,$C$1,G114,1,F114,E114*F114) ->  | AJ114: =hosp_count(10,B114,C114,D114,$C$1,G114+H114,1,F114,E114*F114) ->  | AK114: =AI114-AJ114 ->  | AL114: =hosp_count(20,B114,C114,D114,$C$1,G114,1,F114,E114*F114) ->  | AM114: =hosp_count(20,B114,C114,D114,$C$1,G114+H114,1,F114,E114*F114) ->  | AN114: =AL114-AM114 ->  | AO114: =HLOOKUP('III Tool Overview'!$H$6,LookUpData_Pop!$B$1:$AV$269,LookUpData_Pop!BB113,FALSE) -> 186609 | AP114: 9.673034476 | AR114: =AO114 -> 186609 | AV114: =AT114/AVERAGE(AT$113:AT$126) ->  | AZ114: 5.183584112e-05 | BA114: 0 | BC114: =(AP114/AO114)*LookUpData_Pop!$B$281 -> 0.3628508878 | BD114: =(AQ114/AP114)*LookUpData_Pop!$B$281 -> 0 | BF114: 0.5 | BG114: 5
A115: Male 25-29 | B115: 27.5 | C115: male | D115: 2 | E115: =HLOOKUP('III Tool Overview'!$H$6,Prevalence!$B$2:$AV$268,Prevalence!AW109,FALSE) -> 0.462609324 | F115: =HLOOKUP('III Tool Overview'!$H$6,LookUpData_Pop!$B$1:$AV$269,LookUpData_Pop!BB114,FALSE)/5 -> 37609 | G115: ='III Tool Overview'!$H$9/110 -> 0 | H115: =IF('III Tool Overview'!$H$10="Even distribution",Targeting!C113,IF('III Tool Overview'!$H$10="Targeting to Q1",Targeting!D113,IF('III Tool Overview'!$H$10="Targeting to Q1 & Q2",Targeting!E113,IF('III Tool Overview'!$H$10="Proportionate to need",Targeting!F113)))) -> 1197.089741 | I115: 52.8445479 | J115: 52.81922591 | K115: 230.6692386 | L115: 230.5590346 | M115: 603.0949874 | N115: 602.8086562 | O115: 1745.498803 | P115: 1744.686271 | Q115: 3751.962901 | R115: 3750.16504 | S115: 1.797861212 | T115: 16015.13636 | U115: 16007.48474 | V115: 7.651620353 | W115: 40180.87908 | X115: 40161.79814 | Y115: 19.08094536 | Z115: 105351.4388 | AA115: 105302.3223 | AB115: 49.11651901 | AO115: =HLOOKUP('III Tool Overview'!$H$6,LookUpData_Pop!$B$1:$AV$269,LookUpData_Pop!BB114,FALSE) -> 188045 | AP115: 12.79337332 | AR115: =AO115 -> 188045 | AZ115: 6.803357346e-05 | BA115: 0 | BC115: =(AP115/AO115)*LookUpData_Pop!$B$282 -> 0.4762350142 | BD115: =(AQ115/AP115)*LookUpData_Pop!$B$282 -> 0 | BF115: 0.5 | BG115: 5
A116: Male 30-34 | B116: 32.5 | C116: male | D116: 2 | E116: =HLOOKUP('III Tool Overview'!$H$6,Prevalence!$B$2:$AV$268,Prevalence!AW110,FALSE) -> 0.462609324 | F116: =HLOOKUP('III Tool Overview'!$H$6,LookUpData_Pop!$B$1:$AV$269,LookUpData_Pop!BB115,FALSE)/5 -> 33158.6 | G116: ='III Tool Overview'!$H$9/110 -> 0 | H116: =IF('III Tool Overview'!$H$10="Even distribution",Targeting!C114,IF('III Tool Overview'!$H$10="Targeting to Q1",Targeting!D114,IF('III Tool Overview'!$H$10="Targeting to Q1 & Q2",Targeting!E114,IF('III Tool Overview'!$H$10="Proportionate to need",Targeting!F114)))) -> 1102.457262 | I116: 62.22616326 | J116: 62.19503705 | K116: 271.4006647 | L116: 271.2654449 | M116: 708.3816727 | N116: 708.0316834 | O116: 2039.4099 | P116: 2038.428521 | Q116: 4169.152938 | R116: 4167.067482 | S116: 2.085455827 | T116: 17757.6541 | U116: 17748.80627 | V116: 8.847826812 | W116: 44364.89251 | X116: 44342.96618 | Y116: 21.92633477 | Z116: 114983.3999 | AA116: 114927.9465 | AB116: 55.45335244 | AO116: =HLOOKUP('III Tool Overview'!$H$6,LookUpData_Pop!$B$1:$AV$269,LookUpData_Pop!BB115,FALSE) -> 165793 | AP116: 16.2224356 | AR116: 165793 | AZ116: 9.784753036e-05 | BA116: 0 | BC116: =(AP116/AO116)*LookUpData_Pop!$B$283 -> 0.6849327125 | BD116: =(AQ116/AP116)*LookUpData_Pop!$B$283 -> 0 | BF116: 0.5 | BG116: 5
A117: Male 35-39 | B117: 37.5 | C117: male | D117: 2 | E117: =HLOOKUP('III Tool Overview'!$H$6,Prevalence!$B$2:$AV$268,Prevalence!AW111,FALSE) -> 0.5311222209 | F117: =HLOOKUP('III Tool Overview'!$H$6,LookUpData_Pop!$B$1:$AV$269,LookUpData_Pop!BB116,FALSE)/5 -> 34236.4 | G117: ='III Tool Overview'!$H$9/110 -> 0 | H117: =IF('III Tool Overview'!$H$10="Even distribution",Targeting!C115,IF('III Tool Overview'!$H$10="Targeting to Q1",Targeting!D115,IF('III Tool Overview'!$H$10="Targeting to Q1 & Q2",Targeting!E115,IF('III Tool Overview'!$H$10="Proportionate to need",Targeting!F115)))) -> 1142.678511 | I117: 99.15137822 | J117: 99.10246788 | K117: 431.695593 | L117: 431.4839024 | M117: 1122.637693 | N117: 1122.094053 | O117: 3195.54948 | P117: 3194.062079 | Q117: 6048.234071 | R117: 6045.25054 | S117: 2.9835308 | T117: 25656.13499 | U117: 25643.55297 | V117: 12.58202287 | W117: 63583.1365 | X117: 63552.32982 | Y117: 30.80668432 | Z117: 161164.3725 | AA117: 161089.0739 | AB117: 75.29853592 | AO117: =HLOOKUP('III Tool Overview'!$H$6,LookUpData_Pop!$B$1:$AV$269,LookUpData_Pop!BB116,FALSE) -> 171182 | AP117: 16.75888457 | AR117: 171182 | AZ117: 9.790097422e-05 | BA117: 0 | BC117: =(AP117/AO117)*LookUpData_Pop!$B$284 -> 0.6853068195 | BD117: =(AQ117/AP117)*LookUpData_Pop!$B$284 -> 0 | BF117: 0.5 | BG117: 5
A118: Male 40-44 | B118: 42.5 | C118: male | D118: 2 | E118: =HLOOKUP('III Tool Overview'!$H$6,Prevalence!$B$2:$AV$268,Prevalence!AW112,FALSE) -> 0.5311222209 | F118: =HLOOKUP('III Tool Overview'!$H$6,LookUpData_Pop!$B$1:$AV$269,LookUpData_Pop!BB117,FALSE)/5 -> 37008.6 | G118: ='III Tool Overview'!$H$9/110 -> 0 | H118: =IF('III Tool Overview'!$H$10="Even distribution",Targeting!C116,IF('III Tool Overview'!$H$10="Targeting to Q1",Targeting!D116,IF('III Tool Overview'!$H$10="Targeting to Q1 & Q2",Targeting!E116,IF('III Tool Overview'!$H$10="Proportionate to need",Targeting!F116)))) -> 1290.095017 | I118: =new_ci(2,B118,C118,D118,$C$1,G118,1,F118,E118*F118) -> 143.1103721 | J118: 143.0367095 | K118: 622.0514956 | L118: 621.7338398 | M118: 1612.022838 | N118: 1611.213352 | O118: 4539.523974 | P118: 4537.362202 | Q118: 8157.291207 | R118: 8153.092441 | S118: 4.198766009 | T118: 34481.82627 | U118: 34464.21578 | V118: 17.61048513 | W118: 84865.95542 | X118: 84823.30669 | Y118: 42.64873738 | Z118: 211019.2281 | AA118: 210918.1788 | AB118: 101.0492741 | AO118: =HLOOKUP('III Tool Overview'!$H$6,LookUpData_Pop!$B$1:$AV$269,LookUpData_Pop!BB117,FALSE) -> 185043 | AP118: 24.65967113 | AR118: 185043 | AZ118: 0.0001332645446 | BA118: 0 | BC118: =(AP118/AO118)*LookUpData_Pop!$B$285 -> 0.9328518125 | BD118: =(AQ118/AP118)*LookUpData_Pop!$B$285 -> 0 | BF118: 0.5 | BG118: 5
A119: Male 45-49 | B119: 47.5 | C119: male | D119: 2 | E119: =HLOOKUP('III Tool Overview'!$H$6,Prevalence!$B$2:$AV$268,Prevalence!AW113,FALSE) -> 0.5011104141 | F119: =HLOOKUP('III Tool Overview'!$H$6,LookUpData_Pop!$B$1:$AV$269,LookUpData_Pop!BB118,FALSE)/5 -> 36537.4 | G119: ='III Tool Overview'!$H$9/110 -> 0 | H119: =IF('III Tool Overview'!$H$10="Even distribution",Targeting!C117,IF('III Tool Overview'!$H$10="Targeting to Q1",Targeting!D117,IF('III Tool Overview'!$H$10="Targeting to Q1 & Q2",Targeting!E117,IF('III Tool Overview'!$H$10="Proportionate to need",Targeting!F117)))) -> 1278.549994 | I119: 217.9213714 | J119: 217.8079928 | K119: 943.8223471 | L119: 943.3373691 | M119: 2427.527533 | N119: 2426.312608 | O119: 6680.785083 | P119: 6677.70976 | Q119: 11113.98994 | R119: 11108.20763 | S119: 5.782305447 | T119: 46658.1943 | U119: 46634.2143 | V119: 23.97999099 | W119: 113277.4757 | X119: 113220.7045 | Y119: 56.77112112 | Z119: 271206.98 | AA119: 271080.8398 | AB119: 126.1402488 | AO119: =HLOOKUP('III Tool Overview'!$H$6,LookUpData_Pop!$B$1:$AV$269,LookUpData_Pop!BB118,FALSE) -> 182687 | AP119: 33.3974951 | AR119: 182687 | AZ119: 0.0001828126528 | BA119: 0 | BC119: =(AP119/AO119)*LookUpData_Pop!$B$286 -> 1.279688569 | BD119: =(AQ119/AP119)*LookUpData_Pop!$B$286 -> 0 | BF119: 0.5 | BG119: 5
A120: Male 50-54 | B120: 52.5 | C120: male | D120: 2 | E120: =HLOOKUP('III Tool Overview'!$H$6,Prevalence!$B$2:$AV$268,Prevalence!AW114,FALSE) -> 0.5011104141 | F120: =HLOOKUP('III Tool Overview'!$H$6,LookUpData_Pop!$B$1:$AV$269,LookUpData_Pop!BB119,FALSE)/5 -> 33133.8 | G120: ='III Tool Overview'!$H$9/110 -> 0 | H120: =IF('III Tool Overview'!$H$10="Even distribution",Targeting!C118,IF('III Tool Overview'!$H$10="Targeting to Q1",Targeting!D118,IF('III Tool Overview'!$H$10="Targeting to Q1 & Q2",Targeting!E118,IF('III Tool Overview'!$H$10="Proportionate to need",Targeting!F118)))) -> 1199.440659 | I120: 263.7320733 | J120: 263.5904057 | K120: 1138.323017 | L120: 1137.721629 | M120: 2906.976906 | N120: 2905.494375 | O120: 7830.054241 | P120: 7826.485756 | Q120: 12395.40745 | R120: 12388.74907 | S120: 6.658378132 | T120: 51723.28548 | U120: 51695.95133 | V120: 27.33414993 | W120: 124072.5758 | X120: 124009.171 | Y120: 63.404859 | Z120: 287363.6069 | AA120: 287230.5546 | AB120: 133.0522968 | AO120: =HLOOKUP('III Tool Overview'!$H$6,LookUpData_Pop!$B$1:$AV$269,LookUpData_Pop!BB119,FALSE) -> 165669 | AP120: 48.93542799 | AR120: 165669 | AZ120: 0.0002953807169 | BA120: 0 | BC120: =(AP120/AO120)*LookUpData_Pop!$B$287 -> 2.067665018 | BD120: =(AQ120/AP120)*LookUpData_Pop!$B$287 -> 0 | BF120: 0.5 | BG120: 5
A121: Male 55-59 | B121: 57.5 | C121: male | D121: 2 | E121: =HLOOKUP('III Tool Overview'!$H$6,Prevalence!$B$2:$AV$268,Prevalence!AW115,FALSE) -> 0.3461535567 | F121: =HLOOKUP('III Tool Overview'!$H$6,LookUpData_Pop!$B$1:$AV$269,LookUpData_Pop!BB120,FALSE)/5 -> 30488.8 | G121: ='III Tool Overview'!$H$9/110 -> 0 | H121: =IF('III Tool Overview'!$H$10="Even distribution",Targeting!C119,IF('III Tool Overview'!$H$10="Targeting to Q1",Targeting!D119,IF('III Tool Overview'!$H$10="Targeting to Q1 & Q2",Targeting!E119,IF('III Tool Overview'!$H$10="Proportionate to need",Targeting!F119)))) -> 730.6337617 | I121: 373.8810636 | J121: 373.7428438 | K121: 1601.878131 | L121: 1601.302104 | M121: 4028.75792 | N121: 4027.392119 | O121: 10371.85067 | P121: 10368.94054 | Q121: 15329.12361 | R121: 15323.4566 | S121: 5.667008821 | T121: 63184.75315 | U121: 63162.01903 | V121: 22.73411362 | W121: 147928.8085 | X121: 147878.4555 | Y121: 50.35301939 | Z121: 320767.8182 | AA121: 320674.7338 | AB121: 93.08441521 | AO121: =HLOOKUP('III Tool Overview'!$H$6,LookUpData_Pop!$B$1:$AV$269,LookUpData_Pop!BB120,FALSE) -> 152444 | AP121: 61.46258103 | AR121: 152444 | AZ121: 0.0004031813717 | BA121: 0 | BC121: =(AP121/AO121)*LookUpData_Pop!$B$288 -> 2.41908823 | BD121: =(AQ121/AP121)*LookUpData_Pop!$B$288 -> 0 | BF121: 0.5 | BG121: 5
A122: Male 60-64 | B122: 62.5 | C122: male | D122: 2 | E122: =HLOOKUP('III Tool Overview'!$H$6,Prevalence!$B$2:$AV$268,Prevalence!AW116,FALSE) -> 0.3461535567 | F122: =HLOOKUP('III Tool Overview'!$H$6,LookUpData_Pop!$B$1:$AV$269,LookUpData_Pop!BB121,FALSE)/5 -> 30152 | G122: ='III Tool Overview'!$H$9/110 -> 0 | H122: =IF('III Tool Overview'!$H$10="Even distribution",Targeting!C120,IF('III Tool Overview'!$H$10="Targeting to Q1",Targeting!D120,IF('III Tool Overview'!$H$10="Targeting to Q1 & Q2",Targeting!E120,IF('III Tool Overview'!$H$10="Proportionate to need",Targeting!F120)))) -> 698.7347927 | I122: 492.9118685 | J122: 492.7361578 | K122: 2097.101777 | L122: 2096.381397 | M122: 5198.902677 | N122: 5197.252597 | O122: 12839.57919 | P122: 12836.42391 | Q122: 18237.73914 | R122: 18231.23784 | S122: 6.501294801 | T122: 74342.08186 | U122: 74316.52217 | V122: 25.55969888 | W122: 170283.4612 | X122: 170229.0782 | Y122: 54.38295821 | Z122: 348496.9758 | AA122: 348406.5003 | AB122: 90.47549027 | AO122: =HLOOKUP('III Tool Overview'!$H$6,LookUpData_Pop!$B$1:$AV$269,LookUpData_Pop!BB121,FALSE) -> 150760 | AP122: 88.43315573 | AR122: 150760 | AZ122: 0.0005865823542 | BA122: 0 | BC122: =(AP122/AO122)*LookUpData_Pop!$B$289 -> 2.932911771 | BD122: =(AQ122/AP122)*LookUpData_Pop!$B$289 -> 0 | BF122: 0.5 | BG122: 5
A123: Male 65-69 | B123: 67.5 | C123: male | D123: 2 | AO123: =HLOOKUP('III Tool Overview'!$H$6,LookUpData_Pop!$B$1:$AV$269,LookUpData_Pop!BB122,FALSE) -> 120137 | AP123: 110.6613783 | AR123: 120137 | AZ123: 0.0009211265332 | BA123: 0 | BC123: =(AP123/AO123)*LookUpData_Pop!$B$290 -> 3.684506133 | BD123: =(AQ123/AP123)*LookUpData_Pop!$B$290 -> 0 | BF123: 0.5 | BG123: 5
A124: Male 70-74 | B124: 72.5 | C124: male | D124: 2 | AO124: =HLOOKUP('III Tool Overview'!$H$6,LookUpData_Pop!$B$1:$AV$269,LookUpData_Pop!BB123,FALSE) -> 101827 | AP124: 150.3156758 | AR124: 101827 | AZ124: 0.001476186824 | BA124: 0 | BC124: =(AP124/AO124)*LookUpData_Pop!$B$291 -> 4.428560473 | BD124: =(AQ124/AP124)*LookUpData_Pop!$B$291 -> 0 | BF124: 0.5 | BG124: 5
A125: Male 75-79 | B125: 77.5 | C125: male | D125: 2 | AO125: =HLOOKUP('III Tool Overview'!$H$6,LookUpData_Pop!$B$1:$AV$269,LookUpData_Pop!BB124,FALSE) -> 76621 | AP125: 175.3271795 | AR125: 76621 | AZ125: 0.002288239249 | BA125: 0 | BC125: =(AP125/AO125)*LookUpData_Pop!$B$292 -> 4.576478499 | BD125: =(AQ125/AP125)*LookUpData_Pop!$B$292 -> 0 | BF125: 0.5 | BG125: 5
A126: Male 80-84 | B126: 82.5 | C126: male | D126: 2 | AO126: =HLOOKUP('III Tool Overview'!$H$6,LookUpData_Pop!$B$1:$AV$269,LookUpData_Pop!BB125,FALSE) -> 48275 | AP126: 183.5902888 | AR126: 48275 | AV126: =AT126/AVERAGE(AT$113:AT$126) ->  | AZ126: 0.003803009607 | BA126: 0 | BC126: =(AP126/AO126)*LookUpData_Pop!$B$293 -> 3.803009607 | BD126: =(AQ126/AP126)*LookUpData_Pop!$B$293 -> 0 | BF126: 0.5 | BG126: 5
A127: Male 85-89 | B127: 87.5 | C127: male | D127: 2 | AO127: =HLOOKUP('III Tool Overview'!$H$6,LookUpData_Pop!$B$1:$AV$269,LookUpData_Pop!BB127,FALSE) -> 8132 | AP127: 215.2860227 | AZ127: 0.02647393294 | BA127: 0 | BC127: =(AP127/AO127)*LookUpData_Pop!$B$294 -> 26.47393294 | BD127: =(AQ127/AP127)*LookUpData_Pop!$B$294 -> 0 | BF127: 0.5 | BG127: =2/AZ127 -> 75.5460099
A128: Male 90+ | B128: 95 | C128: male | D128: 2 | AO128: =HLOOKUP('III Tool Overview'!$H$6,LookUpData_Pop!$B$1:$AV$269,LookUpData_Pop!BB128,FALSE) -> 30074 | AP128: 216.2860227
A129: TOTAL | F129: =SUM(F113:F128) -> 342475.4 | G129: =SUM(G113:G128) -> 0 | H129: =SUM(H113:H128) -> 9746.733281 | I129: =SUM(I113:I128) -> 1762.122363 | J129: =SUM(J113:J128) -> 1761.35992 | K129: =SUM(K113:K128) -> 7583.133022 | L129: =SUM(L113:L128) -> 7579.912485 | M129: =SUM(M113:M128) -> 19253.34815 | N129: =SUM(N113:N128) -> 19245.481 | O129: =SUM(O113:O128) -> 51121.56307 | P129: =SUM(P113:P128) -> 51102.93813 | Q129: =SUM(Q113:Q128) -> 83630.83854 | R129: =SUM(R113:R128) -> 83594.03253 | S129: =SUM(S113:S128) -> 36.80600474 | T129: =SUM(T113:T128) -> 348779.8875 | U129: =SUM(U113:U128) -> 348628.7525 | V129: =SUM(V113:V128) -> 151.1349065 | W129: =SUM(W113:W128) -> 836425.2669 | X129: =SUM(X113:X128) -> 836073.7368 | Y129: =SUM(Y113:Y128) -> 351.5301042 | Z129: =SUM(Z113:Z128) -> 1947991.416 | AA129: =SUM(AA113:AA128) -> 1947235.741 | AB129: =SUM(AB113:AB128) -> 755.6758277 | AC129: =SUM(AC113:AC128) ->  | AD129: =SUM(AD113:AD128) ->  | AE129: =SUM(AE113:AE128) ->  | AF129: =SUM(AF113:AF128) ->  | AG129: =SUM(AG113:AG128) ->  | AH129: =SUM(AH113:AH128) ->  | AI129: =SUM(AI113:AI128) ->  | AJ129: =SUM(AJ113:AJ128) ->  | AK129: =SUM(AK113:AK128) ->  | AL129: =SUM(AL113:AL128) ->  | AM129: =SUM(AM113:AM128) ->  | AN129: =SUM(AN113:AN128) -> 
A130: Female <1 | B130: 0.5 | C130: female | D130: 2 | AO130: =HLOOKUP('III Tool Overview'!$H$6,LookUpData_Pop!$B$1:$AV$269,LookUpData_Pop!BB128,FALSE) -> 30074 | AP130: 4.793695247 | AZ130: 0.0001593966631 | BA130: 0 | BF130: 0.1 | BG130: 1
A131: Female 1-4 | B131: 2.5 | C131: female | D131: 2 | AO131: =HLOOKUP('III Tool Overview'!$H$6,LookUpData_Pop!$B$1:$AV$269,LookUpData_Pop!BB129,FALSE) -> 110650 | AP131: 0.9209253598 | AZ131: 8.322868141e-06 | BA131: 0 | BC131: =((AP131+AP130)/(AO131+AO130))*LookUpData_Pop!$B$277 -> 0.3248697085 | BD131: =((AQ131+AQ130)/(AP131+AP130))*LookUpData_Pop!$B$277 -> 0 | BF131: 0.5 | BG131: 4
A132: Female 5-9 | B132: 7.5 | C132: female | D132: 2 | AO132: =HLOOKUP('III Tool Overview'!$H$6,LookUpData_Pop!$B$1:$AV$269,LookUpData_Pop!BB130,FALSE) -> 126577 | AP132: 0.6929281122 | AZ132: 5.474360367e-06 | BA132: 0 | BC132: =(AP132/AO132)*LookUpData_Pop!$B$278 -> 0.03832052257 | BD132: =(AQ132/AP132)*LookUpData_Pop!$B$278 -> 0 | BF132: 0.5 | BG132: 5
A133: Female 10-14 | B133: 12.5 | C133: female | D133: 2 | AO133: =HLOOKUP('III Tool Overview'!$H$6,LookUpData_Pop!$B$1:$AV$269,LookUpData_Pop!BB131,FALSE) -> 137431 | AP133: 0.6909741718 | AZ133: 5.02778974e-06 | BA133: 0 | BC133: =(AP133/AO133)*LookUpData_Pop!$B$279 -> 0.03519452818 | BD133: =(AQ133/AP133)*LookUpData_Pop!$B$279 -> 0 | BF133: 0.5 | BG133: 5
A134: Female 15-19 | B134: 17.5 | C134: female | D134: 2 | E134: =HLOOKUP('III Tool Overview'!$H$6,Prevalence!$B$2:$AV$268,Prevalence!AW127,FALSE) -> 0.2027635985 | F134: =HLOOKUP('III Tool Overview'!$H$6,LookUpData_Pop!$B$1:$AV$269,LookUpData_Pop!BB132,FALSE)/5 -> 31638.2 | G134: ='III Tool Overview'!$H$9/110 -> 0 | H134: =IF('III Tool Overview'!$H$10="Even distribution",Targeting!C132,IF('III Tool Overview'!$H$10="Targeting to Q1",Targeting!D132,IF('III Tool Overview'!$H$10="Targeting to Q1 & Q2",Targeting!E132,IF('III Tool Overview'!$H$10="Proportionate to need",Targeting!F132)))) -> 339.5360496 | I134: =new_ci(2,B134,C134,D134,$C$1,G134,1,F134,E134*F134) -> 8.842488589 | J134: =new_ci(2,B134,C134,D134,$C$1,G134+H134,1,F134,E134*F134) -> 8.840951753 | K134: =new_ci(5,B134,C134,D134,$C$1,G134,1,F134,E134*F134) -> 39.25841425 | L134: =new_ci(5,B134,C134,D134,$C$1,G134+H134,1,F134,E134*F134) -> 39.25159575 | M134: =new_ci(10,B134,C134,D134,$C$1,G134,1,F134,E134*F134) -> 105.882234 | N134: =new_ci(10,B134,C134,D134,$C$1,G134+H134,1,F134,E134*F134) -> 105.8638717 | O134: =new_ci(20,B134,C134,D134,$C$1,G134,1,F134,E134*F134) -> 329.8330885 | P134: =new_ci(20,B134,C134,D134,$C$1,G134+H134,1,F134,E134*F134) -> 329.7761776 | Q134: =new_yll(2,B134,C134,D134,$C$1,G134,1,F134,E134*F134) -> 716.2415757 | R134: =new_yll(2,B134,C134,D134,$C$1,G134+H134,1,F134,E134*F134) -> 716.117092 | S134: =Q134-R134 -> 0.1244837128 | T134: =new_yll(5,B134,C134,D134,$C$1,G134,1,F134,E134*F134) -> 3117.729732 | U134: =new_yll(5,B134,C134,D134,$C$1,G134+H134,1,F134,E134*F134) -> 3117.188234 | V134: =T134-U134 -> 0.5414986877 | W134: =new_yll(10,B134,C134,D134,$C$1,G134,1,F134,E134*F134) -> 8105.538376 | X134: =new_yll(10,B134,C134,D134,$C$1,G134+H134,1,F134,E134*F134) -> 8104.132633 | Y134: =W134-X134 -> 1.405742432 | Z134: =new_yll(20,B134,C134,D134,$C$1,G134,1,F134,E134*F134) -> 23098.97559 | AA134: =new_yll(20,B134,C134,D134,$C$1,G134+H134,1,F134,E134*F134) -> 23094.98871 | AB134: =Z134-AA134 -> 3.986879162 | AC134: =hosp_count(2,B134,C134,D134,$C$1,G134,1,F134,E134*F134) ->  | AD134: =hosp_count(2,B134,C134,D134,$C$1,G134+H134,1,F134,E134*F134) ->  | AE134: =AC134-AD134 ->  | AF134: =hosp_count(5,B134,C134,D134,$C$1,G134,1,F134,E134*F134) ->  | AG134: =hosp_count(5,B134,C134,D134,$C$1,G134+H134,1,F134,E134*F134) ->  | AH134: =AF134-AG134 ->  | AI134: =hosp_count(10,B134,C134,D134,$C$1,G134,1,F134,E134*F134) ->  | AJ134: =hosp_count(10,B134,C134,D134,$C$1,G134+H134,1,F134,E134*F134) ->  | AK134: =AI134-AJ134 ->  | AL134: =hosp_count(20,B134,C134,D134,$C$1,G134,1,F134,E134*F134) ->  | AM134: =hosp_count(20,B134,C134,D134,$C$1,G134+H134,1,F134,E134*F134) ->  | AN134: =AL134-AM134 ->  | AO134: =HLOOKUP('III Tool Overview'!$H$6,LookUpData_Pop!$B$1:$AV$269,LookUpData_Pop!BB132,FALSE) -> 158191 | AP134: 1.934917965 | AR134: =AO134*(0.8) -> 126552.8 | AV134: =AT134/AVERAGE(AT$134:AT$147) ->  | AW134: =$AV$6*$AV$18*AV49 ->  | AX134: =AW134*AR134*$AT$4 ->  | AZ134: 1.223153002e-05 | BA134: 0 | BC134: =(AP134/AO134)*LookUpData_Pop!$B$280 -> 0.08562071012 | BD134: =(AQ134/AP134)*LookUpData_Pop!$B$280 -> 0 | BF134: 0.5 | BG134: 5
A135: Female 20-24 | B135: 22.5 | C135: female | D135: 2 | E135: =HLOOKUP('III Tool Overview'!$H$6,Prevalence!$B$2:$AV$268,Prevalence!AW128,FALSE) -> 0.2027635985 | F135: =HLOOKUP('III Tool Overview'!$H$6,LookUpData_Pop!$B$1:$AV$269,LookUpData_Pop!BB133,FALSE)/5 -> 37017.4 | G135: ='III Tool Overview'!$H$9/110 -> 0 | H135: =IF('III Tool Overview'!$H$10="Even distribution",Targeting!C133,IF('III Tool Overview'!$H$10="Targeting to Q1",Targeting!D133,IF('III Tool Overview'!$H$10="Targeting to Q1 & Q2",Targeting!E133,IF('III Tool Overview'!$H$10="Proportionate to need",Targeting!F133)))) -> 540.1026368 | I135: 14.35712584 | J135: 14.35373891 | K135: 63.72997021 | L135: 63.71495018 | M135: 171.8122798 | N135: 171.771871 | O135: 534.4648056 | P135: 534.3399859 | Q135: 1105.49869 | R135: 1105.237896 | S135: 0.260793913 | T135: 4806.242342 | U135: 4805.109584 | V135: =T135-U135 -> 1.132757632 | W135: 12465.55746 | X135: 12462.62547 | Y135: =W135-X135 -> 2.931992998 | Z135: 35295.24113 | AA135: 35286.99433 | AB135: =Z135-AA135 -> 8.24679959 | AC135: =hosp_count(2,B135,C135,D135,$C$1,G135,1,F135,E135*F135) ->  | AD135: =hosp_count(2,B135,C135,D135,$C$1,G135+H135,1,F135,E135*F135) ->  | AE135: =AC135-AD135 ->  | AF135: =hosp_count(5,B135,C135,D135,$C$1,G135,1,F135,E135*F135) ->  | AG135: =hosp_count(5,B135,C135,D135,$C$1,G135+H135,1,F135,E135*F135) ->  | AH135: =AF135-AG135 ->  | AI135: =hosp_count(10,B135,C135,D135,$C$1,G135,1,F135,E135*F135) ->  | AJ135: =hosp_count(10,B135,C135,D135,$C$1,G135+H135,1,F135,E135*F135) ->  | AK135: =AI135-AJ135 ->  | AL135: =hosp_count(20,B135,C135,D135,$C$1,G135,1,F135,E135*F135) ->  | AM135: =hosp_count(20,B135,C135,D135,$C$1,G135+H135,1,F135,E135*F135) ->  | AN135: =AL135-AM135 ->  | AO135: =HLOOKUP('III Tool Overview'!$H$6,LookUpData_Pop!$B$1:$AV$269,LookUpData_Pop!BB133,FALSE) -> 185087 | AP135: 3.043418667 | AR135: =AO135 -> 185087 | AV135: =AT135/AVERAGE(AT$134:AT$147) ->  | AZ135: 1.644317898e-05 | BA135: 0 | BC135: =(AP135/AO135)*LookUpData_Pop!$B$281 -> 0.1151022528 | BD135: =(AQ135/AP135)*LookUpData_Pop!$B$281 -> 0 | BF135: 0.5 | BG135: 5
A136: Female 25-29 | B136: 27.5 | C136: female | D136: 2 | E136: =HLOOKUP('III Tool Overview'!$H$6,Prevalence!$B$2:$AV$268,Prevalence!AW129,FALSE) -> 0.3852631849 | F136: =HLOOKUP('III Tool Overview'!$H$6,LookUpData_Pop!$B$1:$AV$269,LookUpData_Pop!BB134,FALSE)/5 -> 37211.6 | G136: ='III Tool Overview'!$H$9/110 -> 0 | H136: =IF('III Tool Overview'!$H$10="Even distribution",Targeting!C134,IF('III Tool Overview'!$H$10="Targeting to Q1",Targeting!D134,IF('III Tool Overview'!$H$10="Targeting to Q1 & Q2",Targeting!E134,IF('III Tool Overview'!$H$10="Proportionate to need",Targeting!F134)))) -> 1017.286006 | I136: 23.59224327 | J136: 23.58232922 | K136: 104.6784057 | L136: 104.6344795 | M136: 281.938773 | N136: 281.8208306 | O136: 874.2385996 | P136: 873.87671 | Q136: 1675.049272 | R136: 1674.345375 | S136: 0.7038971385 | T136: 7266.364662 | U136: 7263.31543 | V136: 3.049232015 | W136: 18764.59487 | X136: 18756.74429 | Y136: 7.850579777 | Z136: 52500.317 | AA136: 52478.56765 | AB136: 21.74935397 | AO136: =HLOOKUP('III Tool Overview'!$H$6,LookUpData_Pop!$B$1:$AV$269,LookUpData_Pop!BB134,FALSE) -> 186058 | AP136: 3.310382095 | AR136: =AO136 -> 186058 | AZ136: 1.779220509e-05 | BA136: 0 | BC136: =(AP136/AO136)*LookUpData_Pop!$B$282 -> 0.1245454357 | BD136: =(AQ136/AP136)*LookUpData_Pop!$B$282 -> 0 | BF136: 0.5 | BG136: 5
A137: Female 30-34 | B137: 32.5 | C137: female | D137: 2 | E137: =HLOOKUP('III Tool Overview'!$H$6,Prevalence!$B$2:$AV$268,Prevalence!AW130,FALSE) -> 0.3852631849 | F137: =HLOOKUP('III Tool Overview'!$H$6,LookUpData_Pop!$B$1:$AV$269,LookUpData_Pop!BB135,FALSE)/5 -> 32756.8 | G137: ='III Tool Overview'!$H$9/110 -> 0 | H137: =IF('III Tool Overview'!$H$10="Even distribution",Targeting!C135,IF('III Tool Overview'!$H$10="Targeting to Q1",Targeting!D135,IF('III Tool Overview'!$H$10="Targeting to Q1 & Q2",Targeting!E135,IF('III Tool Overview'!$H$10="Proportionate to need",Targeting!F135)))) -> 941.7031879 | I137: 28.81779492 | J137: 28.80505464 | K137: 127.8091027 | L137: 127.7527096 | M137: 343.9143147 | N137: 343.7632236 | O137: 1063.040052 | P137: 1062.579803 | Q137: 1930.792259 | R137: 1929.938661 | S137: 0.8535988107 | T137: 8360.814828 | U137: 8357.125705 | V137: 3.689123182 | W137: 21514.50941 | X137: 21505.05596 | Y137: 9.45344564 | Z137: 59601.09807 | AA137: 59575.26345 | AB137: 25.83461735 | AO137: =HLOOKUP('III Tool Overview'!$H$6,LookUpData_Pop!$B$1:$AV$269,LookUpData_Pop!BB135,FALSE) -> 163784 | AP137: 5.611387987 | AR137: 163784 | AZ137: 3.426090453e-05 | BA137: 0 | BC137: =(AP137/AO137)*LookUpData_Pop!$B$283 -> 0.2398263317 | BD137: =(AQ137/AP137)*LookUpData_Pop!$B$283 -> 0 | BF137: 0.5 | BG137: 5
A138: Female 35-39 | B138: 37.5 | C138: female | D138: 2 | E138: =HLOOKUP('III Tool Overview'!$H$6,Prevalence!$B$2:$AV$268,Prevalence!AW131,FALSE) -> 0.4476363859 | F138: =HLOOKUP('III Tool Overview'!$H$6,LookUpData_Pop!$B$1:$AV$269,LookUpData_Pop!BB136,FALSE)/5 -> 36092 | G138: ='III Tool Overview'!$H$9/110 -> 0 | H138: =IF('III Tool Overview'!$H$10="Even distribution",Targeting!C136,IF('III Tool Overview'!$H$10="Targeting to Q1",Targeting!D136,IF('III Tool Overview'!$H$10="Targeting to Q1 & Q2",Targeting!E136,IF('III Tool Overview'!$H$10="Proportionate to need",Targeting!F136)))) -> 973.0843075 | I138: 51.89563452 | J138: 51.87448832 | K138: 229.9362179 | L138: 229.8428166 | M138: 617.4001831 | N138: 617.1511052 | O138: 1894.742459 | P138: 1893.995617 | Q138: 3165.633705 | R138: 3164.343788 | S138: 1.289917734 | T138: 13662.16942 | U138: 13656.61954 | V138: 5.549883048 | W138: 34921.8506 | X138: 34907.75807 | Y138: 14.09252587 | Z138: 94923.8812 | AA138: 94886.38723 | AB138: 37.4939728 | AO138: =HLOOKUP('III Tool Overview'!$H$6,LookUpData_Pop!$B$1:$AV$269,LookUpData_Pop!BB136,FALSE) -> 180460 | AP138: 7.228653085 | AR138: 180460 | AZ138: 4.005681638e-05 | BA138: 0 | BC138: =(AP138/AO138)*LookUpData_Pop!$B$284 -> 0.2803977147 | BD138: =(AQ138/AP138)*LookUpData_Pop!$B$284 -> 0 | BF138: 0.5 | BG138: 5
A139: Female 40-44 | B139: 42.5 | C139: female | D139: 2 | E139: =HLOOKUP('III Tool Overview'!$H$6,Prevalence!$B$2:$AV$268,Prevalence!AW132,FALSE) -> 0.4476363859 | F139: =HLOOKUP('III Tool Overview'!$H$6,LookUpData_Pop!$B$1:$AV$269,LookUpData_Pop!BB137,FALSE)/5 -> 39881 | G139: ='III Tool Overview'!$H$9/110 -> 0 | H139: =IF('III Tool Overview'!$H$10="Even distribution",Targeting!C137,IF('III Tool Overview'!$H$10="Targeting to Q1",Targeting!D137,IF('III Tool Overview'!$H$10="Targeting to Q1 & Q2",Targeting!E137,IF('III Tool Overview'!$H$10="Proportionate to need",Targeting!F137)))) -> 1158.19072 | I139: 79.55828046 | J139: 79.52337648 | K139: 352.1586848 | L139: 352.004853 | M139: 943.5648869 | N139: 943.1566193 | O139: 2875.147672 | P139: 2873.943184 | Q139: 4534.821986 | R139: 4532.832459 | S139: 1.989526771 | T139: 19515.92978 | U139: 19507.40418 | V139: 8.525591493 | W139: 49601.06033 | X139: 49579.5895 | Y139: 21.47082449 | Z139: 132631.8279 | AA139: 132576.087 | AB139: 55.74084257 | AO139: =HLOOKUP('III Tool Overview'!$H$6,LookUpData_Pop!$B$1:$AV$269,LookUpData_Pop!BB137,FALSE) -> 199405 | AP139: 12.98674885 | AR139: 199405 | AZ139: 6.512749855e-05 | BA139: 0 | BC139: =(AP139/AO139)*LookUpData_Pop!$B$285 -> 0.4558924898 | BD139: =(AQ139/AP139)*LookUpData_Pop!$B$285 -> 0 | BF139: 0.5 | BG139: 5
A140: Female 45-49 | B140: 47.5 | C140: female | D140: 2 | E140: =HLOOKUP('III Tool Overview'!$H$6,Prevalence!$B$2:$AV$268,Prevalence!AW133,FALSE) -> 0.4564895036 | F140: =HLOOKUP('III Tool Overview'!$H$6,LookUpData_Pop!$B$1:$AV$269,LookUpData_Pop!BB138,FALSE)/5 -> 39130.4 | G140: ='III Tool Overview'!$H$9/110 -> 0 | H140: =IF('III Tool Overview'!$H$10="Even distribution",Targeting!C138,IF('III Tool Overview'!$H$10="Targeting to Q1",Targeting!D138,IF('III Tool Overview'!$H$10="Targeting to Q1 & Q2",Targeting!E138,IF('III Tool Overview'!$H$10="Proportionate to need",Targeting!F138)))) -> 1223.445644 | I140: 127.5374615 | J140: 127.4774221 | K140: 563.2865683 | L140: 563.0232609 | M140: 1501.981847 | N140: 1501.290563 | O140: 4503.803058 | P140: 4501.83687 | Q140: 6504.410537 | R140: 6501.348527 | S140: 3.062009894 | T140: 27837.50058 | U140: 27824.48648 | V140: 13.01410073 | W140: 69960.86801 | X140: 69928.64328 | Y140: 32.22473106 | Z140: 181065.9438 | AA140: 180986.4134 | AB140: 79.53042822 | AO140: =HLOOKUP('III Tool Overview'!$H$6,LookUpData_Pop!$B$1:$AV$269,LookUpData_Pop!BB138,FALSE) -> 195652 | AP140: 21.92967435 | AR140: 195652 | AZ140: 0.0001120851018 | BA140: 0 | BC140: =(AP140/AO140)*LookUpData_Pop!$B$286 -> 0.7845957129 | BD140: =(AQ140/AP140)*LookUpData_Pop!$B$286 -> 0 | BF140: 0.5 | BG140: 5
A141: Female 50-54 | B141: 52.5 | C141: female | D141: 2 | E141: =HLOOKUP('III Tool Overview'!$H$6,Prevalence!$B$2:$AV$268,Prevalence!AW134,FALSE) -> 0.4564895036 | F141: =HLOOKUP('III Tool Overview'!$H$6,LookUpData_Pop!$B$1:$AV$269,LookUpData_Pop!BB139,FALSE)/5 -> 35250 | G141: ='III Tool Overview'!$H$9/110 -> 0 | H141: =IF('III Tool Overview'!$H$10="Even distribution",Targeting!C139,IF('III Tool Overview'!$H$10="Targeting to Q1",Targeting!D139,IF('III Tool Overview'!$H$10="Targeting to Q1 & Q2",Targeting!E139,IF('III Tool Overview'!$H$10="Proportionate to need",Targeting!F139)))) -> 1156.866127 | I141: 159.3403752 | J141: 159.2616627 | K141: 702.1963883 | L141: 701.8528932 | M141: 1863.402255 | N141: 1862.510186 | O141: 5499.681829 | P141: 5497.235919 | Q141: 7488.997632 | R141: 7485.298147 | S141: 3.699485143 | T141: 31894.85978 | U141: 31879.25497 | V141: 15.60481706 | W141: 79362.92218 | X141: 79324.88287 | Y141: 38.03931535 | Z141: 199502.6541 | AA141: 199413.0696 | AB141: 89.58444868 | AO141: =HLOOKUP('III Tool Overview'!$H$6,LookUpData_Pop!$B$1:$AV$269,LookUpData_Pop!BB139,FALSE) -> 176250 | AP141: 32.61285704 | AR141: 176250 | AZ141: 0.0001850374868 | BA141: 0 | BC141: =(AP141/AO141)*LookUpData_Pop!$B$287 -> 1.295262407 | BD141: =(AQ141/AP141)*LookUpData_Pop!$B$287 -> 0 | BF141: 0.5 | BG141: 5
A142: Female 55-59 | B142: 57.5 | C142: female | D142: 2 | E142: =HLOOKUP('III Tool Overview'!$H$6,Prevalence!$B$2:$AV$268,Prevalence!AW135,FALSE) -> 0.2691408493 | F142: =HLOOKUP('III Tool Overview'!$H$6,LookUpData_Pop!$B$1:$AV$269,LookUpData_Pop!BB140,FALSE)/5 -> 32318 | G142: ='III Tool Overview'!$H$9/110 -> 0 | H142: =IF('III Tool Overview'!$H$10="Even distribution",Targeting!C140,IF('III Tool Overview'!$H$10="Targeting to Q1",Targeting!D140,IF('III Tool Overview'!$H$10="Targeting to Q1 & Q2",Targeting!E140,IF('III Tool Overview'!$H$10="Proportionate to need",Targeting!F140)))) -> 594.9718249 | I142: 238.486566 | J142: 238.4172043 | K142: 1045.765087 | L142: 1045.466233 | M142: 2745.327657 | N142: 2744.572935 | O142: 7822.76828 | P142: 7820.885502 | Q142: 9777.949208 | R142: 9775.105378 | S142: 2.843829264 | T142: 41229.90933 | U142: 41218.12255 | V142: 11.78677773 | W142: 100522.5349 | X142: 100494.8293 | Y142: 27.70559907 | Z142: 238117.7588 | AA142: 238059.1879 | AB142: 58.5709217 | AO142: =HLOOKUP('III Tool Overview'!$H$6,LookUpData_Pop!$B$1:$AV$269,LookUpData_Pop!BB140,FALSE) -> 161590 | AP142: 37.77759951 | AR142: 161590 | AZ142: 0.0002337867412 | BA142: 0 | BC142: =(AP142/AO142)*LookUpData_Pop!$B$288 -> 1.402720447 | BD142: =(AQ142/AP142)*LookUpData_Pop!$B$288 -> 0 | BF142: 0.5 | BG142: 5
A143: Female 60-64 | B143: 62.5 | C143: female | D143: 2 | E143: =HLOOKUP('III Tool Overview'!$H$6,Prevalence!$B$2:$AV$268,Prevalence!AW136,FALSE) -> 0.2691408493 | F143: =HLOOKUP('III Tool Overview'!$H$6,LookUpData_Pop!$B$1:$AV$269,LookUpData_Pop!BB141,FALSE)/5 -> 32553.8 | G143: ='III Tool Overview'!$H$9/110 -> 0 | H143: =IF('III Tool Overview'!$H$10="Even distribution",Targeting!C141,IF('III Tool Overview'!$H$10="Targeting to Q1",Targeting!D141,IF('III Tool Overview'!$H$10="Targeting to Q1 & Q2",Targeting!E141,IF('III Tool Overview'!$H$10="Proportionate to need",Targeting!F141)))) -> 573.2376943 | I143: 332.8983571 | J143: 332.805975 | K143: 1452.517532 | L143: 1452.124166 | M143: 3772.464028 | N143: 3771.496042 | O143: 10387.33966 | P143: 10385.12723 | Q143: 12317.23921 | R143: 12313.82108 | S143: 3.418134348 | T143: 51462.15607 | U143: 51448.2114 | V143: 13.94467082 | W143: 123138.6338 | X143: 123106.909 | Y143: 31.72483106 | Z143: 276335.5653 | AA143: 276274.5204 | AB143: 61.04485555 | AO143: =HLOOKUP('III Tool Overview'!$H$6,LookUpData_Pop!$B$1:$AV$269,LookUpData_Pop!BB141,FALSE) -> 162769 | AP143: 60.35206537 | AR143: 162769 | AZ143: 0.000370783536 | BA143: 0 | BC143: =(AP143/AO143)*LookUpData_Pop!$B$289 -> 1.85391768 | BD143: =(AQ143/AP143)*LookUpData_Pop!$B$289 -> 0 | BF143: 0.5 | BG143: 5
A144: Female 65-69 | B144: 67.5 | C144: female | D144: 2 | AO144: =HLOOKUP('III Tool Overview'!$H$6,LookUpData_Pop!$B$1:$AV$269,LookUpData_Pop!BB142,FALSE) -> 138177 | AP144: 82.91223841 | AR144: 138177 | AZ144: 0.0006000437005 | BA144: 0 | BC144: =(AP144/AO144)*LookUpData_Pop!$B$290 -> 2.400174802 | BD144: =(AQ144/AP144)*LookUpData_Pop!$B$290 -> 0 | BF144: 0.5 | BG144: 5
A145: Female 70-74 | B145: 72.5 | C145: female | D145: 2 | AO145: =HLOOKUP('III Tool Overview'!$H$6,LookUpData_Pop!$B$1:$AV$269,LookUpData_Pop!BB143,FALSE) -> 127643 | AP145: 125.9628786 | AR145: 127643 | AZ145: 0.0009868373399 | BA145: 0 | BC145: =(AP145/AO145)*LookUpData_Pop!$B$291 -> 2.96051202 | BD145: =(AQ145/AP145)*LookUpData_Pop!$B$291 -> 0 | BF145: 0.5 | BG145: 5
A146: Female 75-79 | B146: 77.5 | C146: female | D146: 2 | AO146: =HLOOKUP('III Tool Overview'!$H$6,LookUpData_Pop!$B$1:$AV$269,LookUpData_Pop!BB144,FALSE) -> 111446 | AP146: 203.6842464 | AR146: 111446 | AZ146: 0.001827649682 | BA146: 0 | BC146: =(AP146/AO146)*LookUpData_Pop!$B$292 -> 3.655299363 | BD146: =(AQ146/AP146)*LookUpData_Pop!$B$292 -> 0 | BF146: 0.5 | BG146: 5
A147: Female 80-84 | B147: 82.5 | C147: female | D147: 2 | AO147: =HLOOKUP('III Tool Overview'!$H$6,LookUpData_Pop!$B$1:$AV$269,LookUpData_Pop!BB145,FALSE) -> 82955 | AP147: 247.6812356 | AR147: 82955 | AZ147: 0.002985730041 | BA147: 0 | BC147: =(AP147/AO147)*LookUpData_Pop!$B$293 -> 2.985730041 | BD147: =(AQ147/AP147)*LookUpData_Pop!$B$293 -> 0 | BF147: 0.5 | BG147: 5
A148: Female 85-89 | B148: 87.5 | C148: female | D148: 2 | AO148: =HLOOKUP('III Tool Overview'!$H$6,LookUpData_Pop!$B$1:$AV$269,LookUpData_Pop!BB147,FALSE) -> 24908 | AP148: 453.1402411 | AZ148: 0.01819255826 | BA148: 0 | BC148: =(AP148/AO148)*LookUpData_Pop!$B$294 -> 18.19255826 | BD148: =(AQ148/AP148)*LookUpData_Pop!$B$294 -> 0 | BF148: 0.5 | BG148: =2/AZ148 -> 109.9350609
A149: Female 90+ | B149: 95 | C149: female | D149: 2
A150: TOTAL | F150: =SUM(F134:F149) -> 353849.2 | G150: =SUM(G134:G149) -> 0 | H150: =SUM(H134:H149) -> 8518.424199 | I150: =SUM(I134:I149) -> 1065.326327 | J150: =SUM(J134:J149) -> 1064.942204 | K150: =SUM(K134:K149) -> 4681.336371 | L150: =SUM(L134:L149) -> 4679.667958 | M150: =SUM(M134:M149) -> 12347.68846 | N150: =SUM(N134:N149) -> 12343.39725 | O150: =SUM(O134:O149) -> 35785.0595 | P150: =SUM(P134:P149) -> 35773.597 | Q150: =SUM(Q134:Q149) -> 49216.63408 | R150: =SUM(R134:R149) -> 49198.3884 | S150: =SUM(S134:S149) -> 18.24567673 | T150: =SUM(T134:T149) -> 209153.6765 | U150: =SUM(U134:U149) -> 209076.8381 | V150: =SUM(V134:V149) -> 76.83845239 | W150: =SUM(W134:W149) -> 518358.07 | X150: =SUM(X134:X149) -> 518171.1704 | Y150: =SUM(Y134:Y149) -> 186.8995878 | Z150: =SUM(Z134:Z149) -> 1293073.263 | AA150: =SUM(AA134:AA149) -> 1292631.48 | AB150: =SUM(AB134:AB149) -> 441.7831196 | AC150: =SUM(AC134:AC149) ->  | AD150: =SUM(AD134:AD149) ->  | AE150: =SUM(AE134:AE149) ->  | AF150: =SUM(AF134:AF149) ->  | AG150: =SUM(AG134:AG149) ->  | AH150: =SUM(AH134:AH149) ->  | AI150: =SUM(AI134:AI149) ->  | AJ150: =SUM(AJ134:AJ149) ->  | AK150: =SUM(AK134:AK149) ->  | AL150: =SUM(AL134:AL149) ->  | AM150: =SUM(AM134:AM149) ->  | AN150: =SUM(AN134:AN149) -> 
A151: age/sex breakdown: Q3
A152: Male <1 | B152: 0.5 | C152: male | D152: 3 | AO152: =HLOOKUP('III Tool Overview'!$H$6,LookUpData_Pop!$B$1:$AV$269,LookUpData_Pop!BB149,FALSE) -> 28766 | AP152: 4.119689423 | AZ152: =IF(AO152=0,0,AP152/AO152) -> 0.0001432138435 | BA152: =AQ152/AP152*100000 -> 0 | BF152: 0.1 | BG152: 1
A153: Male 1-4 | B153: 2.5 | C153: male | D153: 3 | AO153: =HLOOKUP('III Tool Overview'!$H$6,LookUpData_Pop!$B$1:$AV$269,LookUpData_Pop!BB150,FALSE) -> 109815 | AP153: 0.889154628 | AZ153: =IF(AO153=0,0,AP153/AO153) -> 8.096841306e-06 | BA153: 0 | BC153: =((AP153+AP152)/(AO153+AO152))*LookUpData_Pop!$B$277 -> 0.2891504059 | BD153: =((AQ153+AQ152)/(AP153+AP152))*LookUpData_Pop!$B$277 -> 0 | BF153: 0.5 | BG153: 4
A154: Male 5-9 | B154: 7.5 | C154: male | D154: 3 | AO154: =HLOOKUP('III Tool Overview'!$H$6,LookUpData_Pop!$B$1:$AV$269,LookUpData_Pop!BB151,FALSE) -> 131075 | AP154: 0.7507209013 | AZ154: 5.727414849e-06 | BA154: 0 | BC154: =(AP154/AO154)*LookUpData_Pop!$B$278 -> 0.04009190394 | BD154: =(AQ154/AP154)*LookUpData_Pop!$B$278 -> 0 | BF154: 0.5 | BG154: 5
A155: Male 10-14 | B155: 12.5 | C155: male | D155: 3 | AO155: =HLOOKUP('III Tool Overview'!$H$6,LookUpData_Pop!$B$1:$AV$269,LookUpData_Pop!BB152,FALSE) -> 146678 | AP155: 0.6927817463 | AZ155: 4.723146936e-06 | BA155: 0 | BC155: =(AP155/AO155)*LookUpData_Pop!$B$279 -> 0.03306202855 | BD155: =(AQ155/AP155)*LookUpData_Pop!$B$279 -> 0 | BF155: 0.5 | BG155: 5
A156: Male 15-19 | B156: 17.5 | C156: male | D156: 3 | E156: =HLOOKUP('III Tool Overview'!$H$6,Prevalence!$B$2:$AV$268,Prevalence!AW148,FALSE) -> 0.3136732857 | F156: =HLOOKUP('III Tool Overview'!$H$6,LookUpData_Pop!$B$1:$AV$269,LookUpData_Pop!BB153,FALSE)/5 -> 31892.2 | G156: ='III Tool Overview'!$H$9/110 -> 0 | H156: =IF('III Tool Overview'!$H$10="Even distribution",Targeting!C154,IF('III Tool Overview'!$H$10="Targeting to Q1",Targeting!D154,IF('III Tool Overview'!$H$10="Targeting to Q1 & Q2",Targeting!E154,IF('III Tool Overview'!$H$10="Proportionate to need",Targeting!F154)))) -> 553.8416532 | I156: =new_ci(2,B156,C156,D156,$C$1,G156,1,F156,E156*F156) -> 17.80434729 | J156: =new_ci(2,B156,C156,D156,$C$1,G156+H156,1,F156,E156*F156) -> 17.79949835 | K156: =new_ci(5,B156,C156,D156,$C$1,G156,1,F156,E156*F156) -> 77.83007684 | L156: =new_ci(5,B156,C156,D156,$C$1,G156+H156,1,F156,E156*F156) -> 77.80890699 | M156: =new_ci(10,B156,C156,D156,$C$1,G156,1,F156,E156*F156) -> 204.114758 | N156: =new_ci(10,B156,C156,D156,$C$1,G156+H156,1,F156,E156*F156) -> 204.0593869 | O156: =new_ci(20,B156,C156,D156,$C$1,G156,1,F156,E156*F156) -> 596.4246756 | P156: =new_ci(20,B156,C156,D156,$C$1,G156+H156,1,F156,E156*F156) -> 596.2642329 | Q156: =new_yll(2,B156,C156,D156,$C$1,G156,1,F156,E156*F156) -> 1442.152131 | R156: =new_yll(2,B156,C156,D156,$C$1,G156+H156,1,F156,E156*F156) -> 1441.759367 | S156: =Q156-R156 -> 0.3927641082 | T156: =new_yll(5,B156,C156,D156,$C$1,G156,1,F156,E156*F156) -> 6181.874151 | U156: =new_yll(5,B156,C156,D156,$C$1,G156+H156,1,F156,E156*F156) -> 6180.192655 | V156: =T156-U156 -> 1.681496752 | W156: =new_yll(10,B156,C156,D156,$C$1,G156,1,F156,E156*F156) -> 15638.69758 | X156: =new_yll(10,B156,C156,D156,$C$1,G156+H156,1,F156,E156*F156) -> 15634.45486 | Y156: =W156-X156 -> 4.242725058 | Z156: =new_yll(20,B156,C156,D156,$C$1,G156,1,F156,E156*F156) -> 41935.69159 | AA156: =new_yll(20,B156,C156,D156,$C$1,G156+H156,1,F156,E156*F156) -> 41924.40434 | AB156: =Z156-AA156 -> 11.28725218 | AC156: =hosp_count(2,B156,C156,D156,$C$1,G156,1,F156,E156*F156) ->  | AD156: =hosp_count(2,B156,C156,D156,$C$1,G156+H156,1,F156,E156*F156) ->  | AE156: =AC156-AD156 ->  | AF156: =hosp_count(5,B156,C156,D156,$C$1,G156,1,F156,E156*F156) ->  | AG156: =hosp_count(5,B156,C156,D156,$C$1,G156+H156,1,F156,E156*F156) ->  | AH156: =AF156-AG156 ->  | AI156: =hosp_count(10,B156,C156,D156,$C$1,G156,1,F156,E156*F156) ->  | AJ156: =hosp_count(10,B156,C156,D156,$C$1,G156+H156,1,F156,E156*F156) ->  | AK156: =AI156-AJ156 ->  | AL156: =hosp_count(20,B156,C156,D156,$C$1,G156,1,F156,E156*F156) ->  | AM156: =hosp_count(20,B156,C156,D156,$C$1,G156+H156,1,F156,E156*F156) ->  | AN156: =AL156-AM156 ->  | AO156: =HLOOKUP('III Tool Overview'!$H$6,LookUpData_Pop!$B$1:$AV$269,LookUpData_Pop!BB153,FALSE) -> 159461 | AP156: 3.575985381 | AR156: =AO156*(0.8) -> 127568.8 | AV156: =AT156/AVERAGE(AT$156:AT$169) ->  | AW156: =$AV$7*$AV$11*AV29 ->  | AX156: =AW156*AR156*$AT$4 ->  | AZ156: 2.242545438e-05 | BA156: 0 | BC156: =(AP156/AO156)*LookUpData_Pop!$B$280 -> 0.1569781807 | BD156: =(AQ156/AP156)*LookUpData_Pop!$B$280 -> 0 | BF156: 0.5 | BG156: 5
A157: Male 20-24 | B157: 22.5 | C157: male | D157: 3 | E157: =HLOOKUP('III Tool Overview'!$H$6,Prevalence!$B$2:$AV$268,Prevalence!AW149,FALSE) -> 0.3136732857 | F157: =HLOOKUP('III Tool Overview'!$H$6,LookUpData_Pop!$B$1:$AV$269,LookUpData_Pop!BB154,FALSE)/5 -> 34514.4 | G157: ='III Tool Overview'!$H$9/110 -> 0 | H157: =IF('III Tool Overview'!$H$10="Even distribution",Targeting!C155,IF('III Tool Overview'!$H$10="Targeting to Q1",Targeting!D155,IF('III Tool Overview'!$H$10="Targeting to Q1 & Q2",Targeting!E155,IF('III Tool Overview'!$H$10="Proportionate to need",Targeting!F155)))) -> 805.5506548 | I157: 25.73790876 | J157: 25.7284866 | K157: 112.4747486 | L157: 112.4336434 | M157: 294.7730075 | N157: 294.6656637 | O157: 859.5087472 | P157: 859.1992416 | Q157: 1981.818974 | R157: 1981.093468 | S157: 0.7255063347 | T157: 8483.755526 | U157: 8480.654982 | V157: =T157-U157 -> 3.100543723 | W157: 21406.05918 | X157: 21398.26309 | Y157: =W157-X157 -> 7.796088551 | Z157: 57003.97343 | AA157: 56983.43039 | AB157: =Z157-AA157 -> 20.54304257 | AC157: =hosp_count(2,B157,C157,D157,$C$1,G157,1,F157,E157*F157) ->  | AD157: =hosp_count(2,B157,C157,D157,$C$1,G157+H157,1,F157,E157*F157) ->  | AE157: =AC157-AD157 ->  | AF157: =hosp_count(5,B157,C157,D157,$C$1,G157,1,F157,E157*F157) ->  | AG157: =hosp_count(5,B157,C157,D157,$C$1,G157+H157,1,F157,E157*F157) ->  | AH157: =AF157-AG157 ->  | AI157: =hosp_count(10,B157,C157,D157,$C$1,G157,1,F157,E157*F157) ->  | AJ157: =hosp_count(10,B157,C157,D157,$C$1,G157+H157,1,F157,E157*F157) ->  | AK157: =AI157-AJ157 ->  | AL157: =hosp_count(20,B157,C157,D157,$C$1,G157,1,F157,E157*F157) ->  | AM157: =hosp_count(20,B157,C157,D157,$C$1,G157+H157,1,F157,E157*F157) ->  | AN157: =AL157-AM157 ->  | AO157: =HLOOKUP('III Tool Overview'!$H$6,LookUpData_Pop!$B$1:$AV$269,LookUpData_Pop!BB154,FALSE) -> 172572 | AP157: 5.89485527 | AR157: =AO157 -> 172572 | AV157: =AT157/AVERAGE(AT$156:AT$169) ->  | AZ157: 3.415881644e-05 | BA157: 0 | BC157: =(AP157/AO157)*LookUpData_Pop!$B$281 -> 0.2391117151 | BD157: =(AQ157/AP157)*LookUpData_Pop!$B$281 -> 0 | BF157: 0.5 | BG157: 5
A158: Male 25-29 | B158: 27.5 | C158: male | D158: 3 | E158: =HLOOKUP('III Tool Overview'!$H$6,Prevalence!$B$2:$AV$268,Prevalence!AW150,FALSE) -> 0.5187456584 | F158: =HLOOKUP('III Tool Overview'!$H$6,LookUpData_Pop!$B$1:$AV$269,LookUpData_Pop!BB155,FALSE)/5 -> 34699.4 | G158: ='III Tool Overview'!$H$9/110 -> 0 | H158: =IF('III Tool Overview'!$H$10="Even distribution",Targeting!C156,IF('III Tool Overview'!$H$10="Targeting to Q1",Targeting!D156,IF('III Tool Overview'!$H$10="Targeting to Q1 & Q2",Targeting!E156,IF('III Tool Overview'!$H$10="Proportionate to need",Targeting!F156)))) -> 1308.156747 | I158: 39.94517217 | J158: 39.9228289 | K158: 174.4389658 | L158: 174.3416245 | M158: 456.4979924 | N158: 456.2445268 | O158: 1324.997499 | P158: 1324.27328 | Q158: 2836.107224 | R158: 2834.520852 | S158: 1.586372146 | T158: 12111.06264 | U158: 12104.30418 | V158: 6.758458852 | W158: 30412.93518 | X158: 30396.0457 | Y158: 16.88947521 | Z158: 79954.01924 | AA158: 79910.26463 | AB158: 43.75461089 | AO158: =HLOOKUP('III Tool Overview'!$H$6,LookUpData_Pop!$B$1:$AV$269,LookUpData_Pop!BB155,FALSE) -> 173497 | AP158: 7.546516882 | AR158: =AO158 -> 173497 | AZ158: 4.349652664e-05 | BA158: 0 | BC158: =(AP158/AO158)*LookUpData_Pop!$B$282 -> 0.3044756865 | BD158: =(AQ158/AP158)*LookUpData_Pop!$B$282 -> 0 | BF158: 0.5 | BG158: 5
A159: Male 30-34 | B159: 32.5 | C159: male | D159: 3 | E159: =HLOOKUP('III Tool Overview'!$H$6,Prevalence!$B$2:$AV$268,Prevalence!AW151,FALSE) -> 0.5187456584 | F159: =HLOOKUP('III Tool Overview'!$H$6,LookUpData_Pop!$B$1:$AV$269,LookUpData_Pop!BB156,FALSE)/5 -> 32182 | G159: ='III Tool Overview'!$H$9/110 -> 0 | H159: =IF('III Tool Overview'!$H$10="Even distribution",Targeting!C157,IF('III Tool Overview'!$H$10="Targeting to Q1",Targeting!D157,IF('III Tool Overview'!$H$10="Targeting to Q1 & Q2",Targeting!E157,IF('III Tool Overview'!$H$10="Proportionate to need",Targeting!F157)))) -> 1262.205266 | I159: 49.48148114 | J159: 49.45269498 | K159: 215.9403996 | L159: 215.815172 | M159: 564.3169725 | N159: 563.9918967 | O159: 1630.850095 | P159: 1629.930184 | Q159: 3315.259237 | R159: 3313.330564 | S159: 1.928672671 | T159: 14128.80565 | U159: 14120.61178 | V159: 8.19386205 | W159: 35340.68614 | X159: 35320.32288 | Y159: 20.36325411 | Z159: 91919.53311 | AA159: 91867.59322 | AB159: 51.93988607 | AO159: =HLOOKUP('III Tool Overview'!$H$6,LookUpData_Pop!$B$1:$AV$269,LookUpData_Pop!BB156,FALSE) -> 160910 | AP159: 8.030089057 | AR159: 160910 | AZ159: 4.990422632e-05 | BA159: 0 | BC159: =(AP159/AO159)*LookUpData_Pop!$B$283 -> 0.3493295842 | BD159: =(AQ159/AP159)*LookUpData_Pop!$B$283 -> 0 | BF159: 0.5 | BG159: 5
A160: Male 35-39 | B160: 37.5 | C160: male | D160: 3 | E160: =HLOOKUP('III Tool Overview'!$H$6,Prevalence!$B$2:$AV$268,Prevalence!AW152,FALSE) -> 0.512135479 | F160: =HLOOKUP('III Tool Overview'!$H$6,LookUpData_Pop!$B$1:$AV$269,LookUpData_Pop!BB157,FALSE)/5 -> 35312.4 | G160: ='III Tool Overview'!$H$9/110 -> 0 | H160: =IF('III Tool Overview'!$H$10="Even distribution",Targeting!C158,IF('III Tool Overview'!$H$10="Targeting to Q1",Targeting!D158,IF('III Tool Overview'!$H$10="Targeting to Q1 & Q2",Targeting!E158,IF('III Tool Overview'!$H$10="Proportionate to need",Targeting!F158)))) -> 1169.948886 | I160: 83.79752384 | J160: 83.75628512 | K160: 365.1737076 | L160: 364.9948764 | M160: 951.4351871 | N160: 950.9740609 | O160: 2724.023056 | P160: 2722.745232 | Q160: 5111.648954 | R160: 5109.133392 | S160: 2.515561746 | T160: 21702.40218 | U160: 21691.77346 | V160: 10.62871457 | W160: 53882.41769 | X160: 53856.29137 | Y160: 26.12632127 | Z160: 137308.8964 | AA160: 137244.2866 | AB160: 64.60976871 | AO160: =HLOOKUP('III Tool Overview'!$H$6,LookUpData_Pop!$B$1:$AV$269,LookUpData_Pop!BB157,FALSE) -> 176562 | AP160: 10.21260459 | AR160: 176562 | AZ160: 5.784146412e-05 | BA160: 0 | BC160: =(AP160/AO160)*LookUpData_Pop!$B$284 -> 0.4048902488 | BD160: =(AQ160/AP160)*LookUpData_Pop!$B$284 -> 0 | BF160: 0.5 | BG160: 5
A161: Male 40-44 | B161: 42.5 | C161: male | D161: 3 | E161: =HLOOKUP('III Tool Overview'!$H$6,Prevalence!$B$2:$AV$268,Prevalence!AW153,FALSE) -> 0.512135479 | F161: =HLOOKUP('III Tool Overview'!$H$6,LookUpData_Pop!$B$1:$AV$269,LookUpData_Pop!BB158,FALSE)/5 -> 39516.6 | G161: ='III Tool Overview'!$H$9/110 -> 0 | H161: =IF('III Tool Overview'!$H$10="Even distribution",Targeting!C159,IF('III Tool Overview'!$H$10="Targeting to Q1",Targeting!D159,IF('III Tool Overview'!$H$10="Targeting to Q1 & Q2",Targeting!E159,IF('III Tool Overview'!$H$10="Proportionate to need",Targeting!F159)))) -> 1358.621958 | I161: 125.2218518 | J161: 125.1579189 | K161: 544.9481419 | L161: 544.6717327 | M161: 1415.759942 | N161: 1415.051727 | O161: 4017.704746 | P161: 4015.780949 | Q161: 7137.645551 | R161: 7134.001379 | S161: 3.644171284 | T161: 30207.27095 | U161: 30191.94771 | V161: 15.32323659 | W161: 74525.07205 | X161: 74487.76822 | Y161: 37.30382415 | Z161: 186615.6656 | AA161: 186525.9022 | AB161: 89.76336667 | AO161: =HLOOKUP('III Tool Overview'!$H$6,LookUpData_Pop!$B$1:$AV$269,LookUpData_Pop!BB158,FALSE) -> 197583 | AP161: 13.66343125 | AR161: 197583 | AZ161: 6.915286865e-05 | BA161: 0 | BC161: =(AP161/AO161)*LookUpData_Pop!$B$285 -> 0.4840700806 | BD161: =(AQ161/AP161)*LookUpData_Pop!$B$285 -> 0 | BF161: 0.5 | BG161: 5
A162: Male 45-49 | B162: 47.5 | C162: male | D162: 3 | E162: =HLOOKUP('III Tool Overview'!$H$6,Prevalence!$B$2:$AV$268,Prevalence!AW154,FALSE) -> 0.5522255263 | F162: =HLOOKUP('III Tool Overview'!$H$6,LookUpData_Pop!$B$1:$AV$269,LookUpData_Pop!BB159,FALSE)/5 -> 38965.6 | G162: ='III Tool Overview'!$H$9/110 -> 0 | H162: =IF('III Tool Overview'!$H$10="Even distribution",Targeting!C160,IF('III Tool Overview'!$H$10="Targeting to Q1",Targeting!D160,IF('III Tool Overview'!$H$10="Targeting to Q1 & Q2",Targeting!E160,IF('III Tool Overview'!$H$10="Proportionate to need",Targeting!F160)))) -> 1548.172249 | I162: 190.4848989 | J162: 190.3738241 | K162: 826.5237894 | L162: 826.0465976 | M162: 2134.07124 | N162: 2132.864812 | O162: 5942.640047 | P162: 5939.497278 | Q162: 9714.729843 | R162: 9709.065031 | S162: 5.664811281 | T162: 40858.25445 | U162: 40834.66115 | V162: 23.59329987 | W162: 99563.85259 | X162: 99507.50572 | Y162: 56.34686293 | Z162: 240905.1928 | AA162: 240776.7513 | AB162: 128.4415079 | AO162: =HLOOKUP('III Tool Overview'!$H$6,LookUpData_Pop!$B$1:$AV$269,LookUpData_Pop!BB159,FALSE) -> 194828 | AP162: 20.62951314 | AR162: 194828 | AZ162: 0.0001058857717 | BA162: 0 | BC162: =(AP162/AO162)*LookUpData_Pop!$B$286 -> 0.7412004022 | BD162: =(AQ162/AP162)*LookUpData_Pop!$B$286 -> 0 | BF162: 0.5 | BG162: 5
A163: Male 50-54 | B163: 52.5 | C163: male | D163: 3 | E163: =HLOOKUP('III Tool Overview'!$H$6,Prevalence!$B$2:$AV$268,Prevalence!AW155,FALSE) -> 0.5522255263 | F163: =HLOOKUP('III Tool Overview'!$H$6,LookUpData_Pop!$B$1:$AV$269,LookUpData_Pop!BB160,FALSE)/5 -> 35122.6 | G163: ='III Tool Overview'!$H$9/110 -> 0 | H163: =IF('III Tool Overview'!$H$10="Even distribution",Targeting!C161,IF('III Tool Overview'!$H$10="Targeting to Q1",Targeting!D161,IF('III Tool Overview'!$H$10="Targeting to Q1 & Q2",Targeting!E161,IF('III Tool Overview'!$H$10="Proportionate to need",Targeting!F161)))) -> 1453.674852 | I163: 229.1794343 | J163: 229.0403146 | K163: 991.6327111 | L163: 991.0387023 | M163: 2545.416007 | N163: 2543.933626 | O163: 6963.035526 | P163: 6959.327879 | Q163: 10771.43341 | R163: 10764.89478 | S163: 6.53862726 | T163: 45055.95682 | U163: 45028.96089 | V163: 26.99592451 | W163: 108609.1686 | X163: 108545.8154 | Y163: 63.35327457 | Z163: 255016.9431 | AA163: 254879.4645 | AB163: 137.4786541 | AO163: =HLOOKUP('III Tool Overview'!$H$6,LookUpData_Pop!$B$1:$AV$269,LookUpData_Pop!BB160,FALSE) -> 175613 | AP163: 29.66375392 | AR163: 175613 | AZ163: 0.0001689154784 | BA163: 0 | BC163: =(AP163/AO163)*LookUpData_Pop!$B$287 -> 1.182408349 | BD163: =(AQ163/AP163)*LookUpData_Pop!$B$287 -> 0 | BF163: 0.5 | BG163: 5
A164: Male 55-59 | B164: 57.5 | C164: male | D164: 3 | E164: =HLOOKUP('III Tool Overview'!$H$6,Prevalence!$B$2:$AV$268,Prevalence!AW156,FALSE) -> 0.3925176588 | F164: =HLOOKUP('III Tool Overview'!$H$6,LookUpData_Pop!$B$1:$AV$269,LookUpData_Pop!BB161,FALSE)/5 -> 32488 | G164: ='III Tool Overview'!$H$9/110 -> 0 | H164: =IF('III Tool Overview'!$H$10="Even distribution",Targeting!C162,IF('III Tool Overview'!$H$10="Targeting to Q1",Targeting!D162,IF('III Tool Overview'!$H$10="Targeting to Q1 & Q2",Targeting!E162,IF('III Tool Overview'!$H$10="Proportionate to need",Targeting!F162)))) -> 906.6065985 | I164: 326.7265396 | J164: 326.5874168 | K164: 1405.147218 | L164: 1404.562006 | M164: 3561.662413 | N164: 3560.247308 | O164: 9382.320459 | P164: 9379.113918 | Q164: 13395.78812 | R164: 13390.08409 | S164: 5.704033137 | T164: 55420.52717 | U164: 55397.43506 | V164: 23.0921094 | W164: 130709.9072 | X164: 130657.8078 | Y164: 52.0994242 | Z164: 289075.2416 | AA164: 288973.8401 | AB164: 101.4014542 | AO164: =HLOOKUP('III Tool Overview'!$H$6,LookUpData_Pop!$B$1:$AV$269,LookUpData_Pop!BB161,FALSE) -> 162440 | AP164: 37.10530685 | AR164: 162440 | AZ164: 0.0002284246913 | BA164: 0 | BC164: =(AP164/AO164)*LookUpData_Pop!$B$288 -> 1.370548148 | BD164: =(AQ164/AP164)*LookUpData_Pop!$B$288 -> 0 | BF164: 0.5 | BG164: 5
A165: Male 60-64 | B165: 62.5 | C165: male | D165: 3 | E165: =HLOOKUP('III Tool Overview'!$H$6,Prevalence!$B$2:$AV$268,Prevalence!AW157,FALSE) -> 0.3925176588 | F165: =HLOOKUP('III Tool Overview'!$H$6,LookUpData_Pop!$B$1:$AV$269,LookUpData_Pop!BB162,FALSE)/5 -> 32342 | G165: ='III Tool Overview'!$H$9/110 -> 0 | H165: =IF('III Tool Overview'!$H$10="Even distribution",Targeting!C163,IF('III Tool Overview'!$H$10="Targeting to Q1",Targeting!D163,IF('III Tool Overview'!$H$10="Targeting to Q1 & Q2",Targeting!E163,IF('III Tool Overview'!$H$10="Proportionate to need",Targeting!F163)))) -> 881.9711356 | I165: 433.7631683 | J165: 433.5831455 | K165: 1854.759252 | L165: 1854.011957 | M165: 4645.764189 | N165: 4644.006947 | O165: 11818.99944 | P165: 11815.35135 | Q165: 16049.23723 | R165: 16042.57638 | S165: 6.660841728 | T165: 65743.41112 | U165: 65716.90429 | V165: 26.50682949 | W165: 152047.7115 | X165: 151989.9183 | Y165: 57.79320379 | Z165: 318967.7675 | AA165: 318865.0897 | AB165: 102.6778155 | AO165: =HLOOKUP('III Tool Overview'!$H$6,LookUpData_Pop!$B$1:$AV$269,LookUpData_Pop!BB162,FALSE) -> 161710 | AP165: 59.496799 | AR165: 161710 | AZ165: 0.0003679228186 | BA165: 0 | BC165: =(AP165/AO165)*LookUpData_Pop!$B$289 -> 1.839614093 | BD165: =(AQ165/AP165)*LookUpData_Pop!$B$289 -> 0 | BF165: 0.5 | BG165: 5
A166: Male 65-69 | B166: 67.5 | C166: male | D166: 3 | AO166: =HLOOKUP('III Tool Overview'!$H$6,LookUpData_Pop!$B$1:$AV$269,LookUpData_Pop!BB163,FALSE) -> 125415 | AP166: 64.18056291 | AR166: 125415 | AZ166: 0.0005117455082 | BA166: 0 | BC166: =(AP166/AO166)*LookUpData_Pop!$B$290 -> 2.046982033 | BD166: =(AQ166/AP166)*LookUpData_Pop!$B$290 -> 0 | BF166: 0.5 | BG166: 5
A167: Male 70-74 | B167: 72.5 | C167: male | D167: 3 | AO167: =HLOOKUP('III Tool Overview'!$H$6,LookUpData_Pop!$B$1:$AV$269,LookUpData_Pop!BB164,FALSE) -> 102564 | AP167: 94.43986578 | AR167: 102564 | AZ167: 0.0009207896121 | BA167: 0 | BC167: =(AP167/AO167)*LookUpData_Pop!$B$291 -> 2.762368836 | BD167: =(AQ167/AP167)*LookUpData_Pop!$B$291 -> 0 | BF167: 0.5 | BG167: 5
A168: Male 75-79 | B168: 77.5 | C168: male | D168: 3 | AO168: =HLOOKUP('III Tool Overview'!$H$6,LookUpData_Pop!$B$1:$AV$269,LookUpData_Pop!BB165,FALSE) -> 76406 | AP168: 119.4513994 | AR168: 76406 | AZ168: 0.001563377214 | BA168: 0 | BC168: =(AP168/AO168)*LookUpData_Pop!$B$292 -> 3.126754428 | BD168: =(AQ168/AP168)*LookUpData_Pop!$B$292 -> 0 | BF168: 0.5 | BG168: 5
A169: Male 80-84 | B169: 82.5 | C169: male | D169: 3 | AO169: =HLOOKUP('III Tool Overview'!$H$6,LookUpData_Pop!$B$1:$AV$269,LookUpData_Pop!BB166,FALSE) -> 47593 | AP169: 125.8001847 | AR169: 47593 | AZ169: 0.002643249735 | BA169: 0 | BC169: =(AP169/AO169)*LookUpData_Pop!$B$293 -> 2.643249735 | BD169: =(AQ169/AP169)*LookUpData_Pop!$B$293 -> 0 | BF169: 0.5 | BG169: 5
A170: Male 85-89 | B170: 87.5 | C170: male | D170: 3 | AO170: =HLOOKUP('III Tool Overview'!$H$6,LookUpData_Pop!$B$1:$AV$269,LookUpData_Pop!BB168,FALSE) -> 8713 | AP170: 166.2008558 | AZ170: 0.01907504371 | BA170: 0 | BC170: =(AP170/AO170)*LookUpData_Pop!$B$294 -> 19.07504371 | BD170: =(AQ170/AP170)*LookUpData_Pop!$B$294 -> 0 | BF170: 0.5 | BG170: =2/AZ170 -> 104.8490389
A171: Male 90+ | B171: 95 | C171: male | D171: 3
A172: TOTAL | F172: =SUM(F156:F171) -> 347035.2 | G172: =SUM(G156:G171) -> 0 | H172: =SUM(H156:H171) -> 11248.75 | I172: =SUM(I156:I171) -> 1522.142326 | J172: =SUM(J156:J171) -> 1521.402414 | K172: =SUM(K156:K171) -> 6568.869011 | L172: =SUM(L156:L171) -> 6565.725219 | M172: =SUM(M156:M171) -> 16773.81171 | N172: =SUM(N156:N171) -> 16766.03996 | O172: =SUM(O156:O171) -> 45260.50429 | P172: =SUM(P156:P171) -> 45241.48355 | Q172: =SUM(Q156:Q171) -> 71755.82067 | R172: =SUM(R156:R171) -> 71720.45931 | S172: =SUM(S156:S171) -> 35.3613617 | T172: =SUM(T156:T171) -> 299893.3206 | U172: =SUM(U156:U171) -> 299747.4462 | V172: =SUM(V156:V171) -> 145.8744758 | W172: =SUM(W156:W171) -> 722136.5077 | X172: =SUM(X156:X171) -> 721794.1933 | Y172: =SUM(Y156:Y171) -> 342.3144538 | Z172: =SUM(Z156:Z171) -> 1698702.924 | AA172: =SUM(AA156:AA171) -> 1697951.027 | AB172: =SUM(AB156:AB171) -> 751.8973588 | AC172: =SUM(AC156:AC171) ->  | AD172: =SUM(AD156:AD171) ->  | AE172: =SUM(AE156:AE171) ->  | AF172: =SUM(AF156:AF171) ->  | AG172: =SUM(AG156:AG171) ->  | AH172: =SUM(AH156:AH171) ->  | AI172: =SUM(AI156:AI171) ->  | AJ172: =SUM(AJ156:AJ171) ->  | AK172: =SUM(AK156:AK171) ->  | AL172: =SUM(AL156:AL171) ->  | AM172: =SUM(AM156:AM171) ->  | AN172: =SUM(AN156:AN171) -> 
A173: Female <1 | B173: 0.5 | C173: female | D173: 3 | AO173: =HLOOKUP('III Tool Overview'!$H$6,LookUpData_Pop!$B$1:$AV$269,LookUpData_Pop!BB169,FALSE) -> 27728 | AP173: 3.033130989 | AZ173: 0.0001093887402 | BA173: 0 | BF173: 0.1 | BG173: 1
A174: Female 1-4 | B174: 2.5 | C174: female | D174: 3 | AO174: =HLOOKUP('III Tool Overview'!$H$6,LookUpData_Pop!$B$1:$AV$269,LookUpData_Pop!BB170,FALSE) -> 104708 | AP174: 0.7049713328 | AZ174: 6.732736111e-06 | BA174: 0 | BC174: =((AP174+AP173)/(AO174+AO173))*LookUpData_Pop!$B$277 -> 0.2258058124 | BD174: =((AQ174+AQ173)/(AP174+AP173))*LookUpData_Pop!$B$277 -> 0 | BF174: 0.5 | BG174: 4
A175: Female 5-9 | B175: 7.5 | C175: female | D175: 3 | AO175: =HLOOKUP('III Tool Overview'!$H$6,LookUpData_Pop!$B$1:$AV$269,LookUpData_Pop!BB171,FALSE) -> 126132 | AP175: 0.2940746501 | AZ175: 2.331483288e-06 | BA175: 0 | BC175: =(AP175/AO175)*LookUpData_Pop!$B$278 -> 0.01632038302 | BD175: =(AQ175/AP175)*LookUpData_Pop!$B$278 -> 0 | BF175: 0.5 | BG175: 5
A176: Female 10-14 | B176: 12.5 | C176: female | D176: 3 | AO176: =HLOOKUP('III Tool Overview'!$H$6,LookUpData_Pop!$B$1:$AV$269,LookUpData_Pop!BB172,FALSE) -> 139583 | AP176: 0.534803698 | AZ176: 3.831438628e-06 | BA176: 0 | BC176: =(AP176/AO176)*LookUpData_Pop!$B$279 -> 0.0268200704 | BD176: =(AQ176/AP176)*LookUpData_Pop!$B$279 -> 0 | BF176: 0.5 | BG176: 5
A177: Female 15-19 | B177: 17.5 | C177: female | D177: 3 | E177: =HLOOKUP('III Tool Overview'!$H$6,Prevalence!$B$2:$AV$268,Prevalence!AW168,FALSE) -> 0.2590843655 | F177: =HLOOKUP('III Tool Overview'!$H$6,LookUpData_Pop!$B$1:$AV$269,LookUpData_Pop!BB173,FALSE)/5 -> 30388.8 | G177: ='III Tool Overview'!$H$9/110 -> 0 | H177: =IF('III Tool Overview'!$H$10="Even distribution",Targeting!C175,IF('III Tool Overview'!$H$10="Targeting to Q1",Targeting!D175,IF('III Tool Overview'!$H$10="Targeting to Q1 & Q2",Targeting!E175,IF('III Tool Overview'!$H$10="Proportionate to need",Targeting!F175)))) -> 438.2596376 | I177: =new_ci(2,B177,C177,D177,$C$1,G177,1,F177,E177*F177) -> 6.95768857 | J177: =new_ci(2,B177,C177,D177,$C$1,G177+H177,1,F177,E177*F177) -> 6.956092076 | K177: =new_ci(5,B177,C177,D177,$C$1,G177,1,F177,E177*F177) -> 30.89307611 | L177: =new_ci(5,B177,C177,D177,$C$1,G177+H177,1,F177,E177*F177) -> 30.88599132 | M177: =new_ci(10,B177,C177,D177,$C$1,G177,1,F177,E177*F177) -> 83.33638427 | N177: =new_ci(10,B177,C177,D177,$C$1,G177+H177,1,F177,E177*F177) -> 83.31729535 | O177: =new_ci(20,B177,C177,D177,$C$1,G177,1,F177,E177*F177) -> 259.7683273 | P177: =new_ci(20,B177,C177,D177,$C$1,G177+H177,1,F177,E177*F177) -> 259.7090648 | Q177: =new_yll(2,B177,C177,D177,$C$1,G177,1,F177,E177*F177) -> 563.5727741 | R177: =new_yll(2,B177,C177,D177,$C$1,G177+H177,1,F177,E177*F177) -> 563.4434582 | S177: =Q177-R177 -> 0.1293159541 | T177: =new_yll(5,B177,C177,D177,$C$1,G177,1,F177,E177*F177) -> 2453.389383 | U177: =new_yll(5,B177,C177,D177,$C$1,G177+H177,1,F177,E177*F177) -> 2452.826738 | V177: =T177-U177 -> 0.5626450415 | W177: =new_yll(10,B177,C177,D177,$C$1,G177,1,F177,E177*F177) -> 6379.562535 | X177: =new_yll(10,B177,C177,D177,$C$1,G177+H177,1,F177,E177*F177) -> 6378.101188 | Y177: =W177-X177 -> 1.461347109 | Z177: =new_yll(20,B177,C177,D177,$C$1,G177,1,F177,E177*F177) -> 18191.43857 | AA177: =new_yll(20,B177,C177,D177,$C$1,G177+H177,1,F177,E177*F177) -> 18187.2874 | AB177: =Z177-AA177 -> 4.151174783 | AC177: =hosp_count(2,B177,C177,D177,$C$1,G177,1,F177,E177*F177) ->  | AD177: =hosp_count(2,B177,C177,D177,$C$1,G177+H177,1,F177,E177*F177) ->  | AE177: =AC177-AD177 ->  | AF177: =hosp_count(5,B177,C177,D177,$C$1,G177,1,F177,E177*F177) ->  | AG177: =hosp_count(5,B177,C177,D177,$C$1,G177+H177,1,F177,E177*F177) ->  | AH177: =AF177-AG177 ->  | AI177: =hosp_count(10,B177,C177,D177,$C$1,G177,1,F177,E177*F177) ->  | AJ177: =hosp_count(10,B177,C177,D177,$C$1,G177+H177,1,F177,E177*F177) ->  | AK177: =AI177-AJ177 ->  | AL177: =hosp_count(20,B177,C177,D177,$C$1,G177,1,F177,E177*F177) ->  | AM177: =hosp_count(20,B177,C177,D177,$C$1,G177+H177,1,F177,E177*F177) ->  | AN177: =AL177-AM177 ->  | AO177: =HLOOKUP('III Tool Overview'!$H$6,LookUpData_Pop!$B$1:$AV$269,LookUpData_Pop!BB173,FALSE) -> 151944 | AP177: 1.704773861 | AR177: =AO177*(0.8) -> 121555.2 | AV177: =AT177/AVERAGE(AT$177:AT$190) ->  | AW177: =$AV$7*$AV$18*AV49 ->  | AX177: =AW177*AR177*$AT$4 ->  | AZ177: 1.12197511e-05 | BA177: 0 | BC177: =(AP177/AO177)*LookUpData_Pop!$B$280 -> 0.0785382577 | BD177: =(AQ177/AP177)*LookUpData_Pop!$B$280 -> 0 | BF177: 0.5 | BG177: 5
A178: Female 20-24 | B178: 22.5 | C178: female | D178: 3 | E178: =HLOOKUP('III Tool Overview'!$H$6,Prevalence!$B$2:$AV$268,Prevalence!AW169,FALSE) -> 0.2590843655 | F178: =HLOOKUP('III Tool Overview'!$H$6,LookUpData_Pop!$B$1:$AV$269,LookUpData_Pop!BB174,FALSE)/5 -> 33482.6 | G178: ='III Tool Overview'!$H$9/110 -> 0 | H178: =IF('III Tool Overview'!$H$10="Even distribution",Targeting!C176,IF('III Tool Overview'!$H$10="Targeting to Q1",Targeting!D176,IF('III Tool Overview'!$H$10="Targeting to Q1 & Q2",Targeting!E176,IF('III Tool Overview'!$H$10="Proportionate to need",Targeting!F176)))) -> 654.7919932 | I178: 10.63833683 | J178: 10.63502392 | K178: 47.2283279 | L178: 47.21363155 | M178: 127.3586438 | N178: 127.3190784 | O178: 396.5355814 | P178: 396.4130816 | Q178: 819.1519358 | R178: 818.8968421 | S178: 0.2550937318 | T178: 3561.754308 | U178: 3560.645964 | V178: =T178-U178 -> 1.108344028 | W178: 9240.218325 | X178: 9237.347596 | Y178: =W178-X178 -> 2.870729499 | Z178: 26185.03881 | AA178: 26176.94656 | AB178: =Z178-AA178 -> 8.092249719 | AC178: =hosp_count(2,B178,C178,D178,$C$1,G178,1,F178,E178*F178) ->  | AD178: =hosp_count(2,B178,C178,D178,$C$1,G178+H178,1,F178,E178*F178) ->  | AE178: =AC178-AD178 ->  | AF178: =hosp_count(5,B178,C178,D178,$C$1,G178,1,F178,E178*F178) ->  | AG178: =hosp_count(5,B178,C178,D178,$C$1,G178+H178,1,F178,E178*F178) ->  | AH178: =AF178-AG178 ->  | AI178: =hosp_count(10,B178,C178,D178,$C$1,G178,1,F178,E178*F178) ->  | AJ178: =hosp_count(10,B178,C178,D178,$C$1,G178+H178,1,F178,E178*F178) ->  | AK178: =AI178-AJ178 ->  | AL178: =hosp_count(20,B178,C178,D178,$C$1,G178,1,F178,E178*F178) ->  | AM178: =hosp_count(20,B178,C178,D178,$C$1,G178+H178,1,F178,E178*F178) ->  | AN178: =AL178-AM178 ->  | AO178: =HLOOKUP('III Tool Overview'!$H$6,LookUpData_Pop!$B$1:$AV$269,LookUpData_Pop!BB174,FALSE) -> 167413 | AP178: 2.228019728 | AR178: =AO178 -> 167413 | AV178: =AT178/AVERAGE(AT$177:AT$190) ->  | AZ178: 1.330852281e-05 | BA178: 0 | BC178: =(AP178/AO178)*LookUpData_Pop!$B$281 -> 0.09315965964 | BD178: =(AQ178/AP178)*LookUpData_Pop!$B$281 -> 0 | BF178: 0.5 | BG178: 5
A179: Female 25-29 | B179: 27.5 | C179: female | D179: 3 | E179: =HLOOKUP('III Tool Overview'!$H$6,Prevalence!$B$2:$AV$268,Prevalence!AW170,FALSE) -> 0.4867530971 | F179: =HLOOKUP('III Tool Overview'!$H$6,LookUpData_Pop!$B$1:$AV$269,LookUpData_Pop!BB175,FALSE)/5 -> 33945.4 | G179: ='III Tool Overview'!$H$9/110 -> 0 | H179: =IF('III Tool Overview'!$H$10="Even distribution",Targeting!C177,IF('III Tool Overview'!$H$10="Targeting to Q1",Targeting!D177,IF('III Tool Overview'!$H$10="Targeting to Q1 & Q2",Targeting!E177,IF('III Tool Overview'!$H$10="Proportionate to need",Targeting!F177)))) -> 1241.416885 | I179: 17.63091391 | J179: 17.62126565 | K179: 78.24377925 | L179: 78.2010088 | M179: 210.8329368 | N179: 210.7179685 | O179: 654.7208946 | P179: 654.3667899 | Q179: 1251.794888 | R179: 1251.109861 | S179: 0.6850266174 | T179: 5431.363867 | U179: 5428.394879 | V179: 2.968988173 | W179: 14031.88996 | X179: 14024.23764 | Y179: 7.652317278 | Z179: 39313.41994 | AA179: 39292.14445 | AB179: 21.27549591 | AO179: =HLOOKUP('III Tool Overview'!$H$6,LookUpData_Pop!$B$1:$AV$269,LookUpData_Pop!BB175,FALSE) -> 169727 | AP179: 2.929639952 | AR179: =AO179 -> 169727 | AZ179: 1.726089516e-05 | BA179: 0 | BC179: =(AP179/AO179)*LookUpData_Pop!$B$282 -> 0.1208262661 | BD179: =(AQ179/AP179)*LookUpData_Pop!$B$282 -> 0 | BF179: 0.5 | BG179: 5
A180: Female 30-34 | B180: 32.5 | C180: female | D180: 3 | E180: =HLOOKUP('III Tool Overview'!$H$6,Prevalence!$B$2:$AV$268,Prevalence!AW171,FALSE) -> 0.4867530971 | F180: =HLOOKUP('III Tool Overview'!$H$6,LookUpData_Pop!$B$1:$AV$269,LookUpData_Pop!BB176,FALSE)/5 -> 31974 | G180: ='III Tool Overview'!$H$9/110 -> 0 | H180: =IF('III Tool Overview'!$H$10="Even distribution",Targeting!C178,IF('III Tool Overview'!$H$10="Targeting to Q1",Targeting!D178,IF('III Tool Overview'!$H$10="Targeting to Q1 & Q2",Targeting!E178,IF('III Tool Overview'!$H$10="Proportionate to need",Targeting!F178)))) -> 1178.244706 | I180: 23.04459438 | J180: 23.03188723 | K180: 102.2329758 | L180: 102.1766894 | M180: 275.2607355 | N180: 275.1096949 | O180: 852.5769421 | P180: 852.1144199 | Q180: 1543.987824 | R180: 1543.136445 | S180: 0.8513791086 | T180: 6687.693086 | U180: 6684.010974 | V180: 3.682112742 | W180: 17219.30444 | X180: 17209.85471 | Y180: 9.449731368 | Z180: 47793.39238 | AA180: 47767.44103 | AB180: 25.95135145 | AO180: =HLOOKUP('III Tool Overview'!$H$6,LookUpData_Pop!$B$1:$AV$269,LookUpData_Pop!BB176,FALSE) -> 159870 | AP180: 3.229212522 | AR180: 159870 | AZ180: 2.019898994e-05 | BA180: 0 | BC180: =(AP180/AO180)*LookUpData_Pop!$B$283 -> 0.1413929296 | BD180: =(AQ180/AP180)*LookUpData_Pop!$B$283 -> 0 | BF180: 0.5 | BG180: 5
A181: Female 35-39 | B181: 37.5 | C181: female | D181: 3 | E181: =HLOOKUP('III Tool Overview'!$H$6,Prevalence!$B$2:$AV$268,Prevalence!AW172,FALSE) -> 0.533605658 | F181: =HLOOKUP('III Tool Overview'!$H$6,LookUpData_Pop!$B$1:$AV$269,LookUpData_Pop!BB177,FALSE)/5 -> 36569.2 | G181: ='III Tool Overview'!$H$9/110 -> 0 | H181: =IF('III Tool Overview'!$H$10="Even distribution",Targeting!C179,IF('III Tool Overview'!$H$10="Targeting to Q1",Targeting!D179,IF('III Tool Overview'!$H$10="Targeting to Q1 & Q2",Targeting!E179,IF('III Tool Overview'!$H$10="Proportionate to need",Targeting!F179)))) -> 1222.074381 | I181: 43.0794987 | J181: 43.05822005 | K181: 190.9612925 | L181: 190.8672006 | M181: 513.2610103 | N181: 513.0094722 | O181: 1580.426537 | P181: 1579.666021 | Q181: 2627.849421 | R181: 2626.551423 | S181: 1.29799737 | T181: 11346.31779 | U181: 11340.72696 | V181: 5.590831831 | W181: 29030.25797 | X181: 29016.0277 | Y181: 14.23026719 | Z181: 79153.55706 | AA181: 79115.40528 | AB181: 38.15177928 | AO181: =HLOOKUP('III Tool Overview'!$H$6,LookUpData_Pop!$B$1:$AV$269,LookUpData_Pop!BB177,FALSE) -> 182846 | AP181: 5.674865189 | AR181: 182846 | AZ181: 3.103631028e-05 | BA181: 0 | BC181: =(AP181/AO181)*LookUpData_Pop!$B$284 -> 0.2172541719 | BD181: =(AQ181/AP181)*LookUpData_Pop!$B$284 -> 0 | BF181: 0.5 | BG181: 5
A182: Female 40-44 | B182: 42.5 | C182: female | D182: 3 | E182: =HLOOKUP('III Tool Overview'!$H$6,Prevalence!$B$2:$AV$268,Prevalence!AW173,FALSE) -> 0.533605658 | F182: =HLOOKUP('III Tool Overview'!$H$6,LookUpData_Pop!$B$1:$AV$269,LookUpData_Pop!BB178,FALSE)/5 -> 40999.2 | G182: ='III Tool Overview'!$H$9/110 -> 0 | H182: =IF('III Tool Overview'!$H$10="Even distribution",Targeting!C180,IF('III Tool Overview'!$H$10="Targeting to Q1",Targeting!D180,IF('III Tool Overview'!$H$10="Targeting to Q1 & Q2",Targeting!E180,IF('III Tool Overview'!$H$10="Proportionate to need",Targeting!F180)))) -> 1477.686965 | I182: 67.01196843 | J182: 66.97626981 | K182: 296.8111676 | L182: 296.6535883 | M182: 796.3690464 | N182: 795.9494017 | O182: 2437.863182 | P182: 2436.610759 | Q182: 3819.682201 | R182: 3817.647379 | S182: 2.034821465 | T182: 16448.52978 | U182: 16439.7967 | V182: 8.733083217 | W182: 41860.73678 | X182: 41838.671 | Y182: 22.06577577 | Z182: 112409.2775 | AA182: 112351.3847 | AB182: 57.89277858 | AO182: =HLOOKUP('III Tool Overview'!$H$6,LookUpData_Pop!$B$1:$AV$269,LookUpData_Pop!BB178,FALSE) -> 204996 | AP182: 9.507509664 | AR182: 204996 | AZ182: 4.637900088e-05 | BA182: 0 | BC182: =(AP182/AO182)*LookUpData_Pop!$B$285 -> 0.3246530062 | BD182: =(AQ182/AP182)*LookUpData_Pop!$B$285 -> 0 | BF182: 0.5 | BG182: 5
A183: Female 45-49 | B183: 47.5 | C183: female | D183: 3 | E183: =HLOOKUP('III Tool Overview'!$H$6,Prevalence!$B$2:$AV$268,Prevalence!AW174,FALSE) -> 0.5130931345 | F183: =HLOOKUP('III Tool Overview'!$H$6,LookUpData_Pop!$B$1:$AV$269,LookUpData_Pop!BB179,FALSE)/5 -> 40545.8 | G183: ='III Tool Overview'!$H$9/110 -> 0 | H183: =IF('III Tool Overview'!$H$10="Even distribution",Targeting!C181,IF('III Tool Overview'!$H$10="Targeting to Q1",Targeting!D181,IF('III Tool Overview'!$H$10="Targeting to Q1 & Q2",Targeting!E181,IF('III Tool Overview'!$H$10="Proportionate to need",Targeting!F181)))) -> 1485.288886 | I183: 108.2873155 | J183: 108.2284329 | K183: 478.7596126 | L183: 478.5007422 | M183: 1279.470927 | N183: 1278.787611 | O183: 3865.338112 | P183: 3863.358814 | Q183: 5522.653088 | R183: 5519.650078 | S183: 3.003010455 | T183: 23659.79813 | U183: 23647.00384 | V183: 12.79428526 | W183: 59589.77324 | X183: 59557.92871 | Y183: 31.84452656 | Z183: 155267.1517 | AA183: 155187.2614 | AB183: 79.89026777 | AO183: =HLOOKUP('III Tool Overview'!$H$6,LookUpData_Pop!$B$1:$AV$269,LookUpData_Pop!BB179,FALSE) -> 202729 | AP183: 14.71043633 | AR183: 202729 | AZ183: 7.256207216e-05 | BA183: 0 | BC183: =(AP183/AO183)*LookUpData_Pop!$B$286 -> 0.5079345051 | BD183: =(AQ183/AP183)*LookUpData_Pop!$B$286 -> 0 | BF183: 0.5 | BG183: 5
A184: Female 50-54 | B184: 52.5 | C184: female | D184: 3 | E184: =HLOOKUP('III Tool Overview'!$H$6,Prevalence!$B$2:$AV$268,Prevalence!AW175,FALSE) -> 0.5130931345 | F184: =HLOOKUP('III Tool Overview'!$H$6,LookUpData_Pop!$B$1:$AV$269,LookUpData_Pop!BB180,FALSE)/5 -> 36357.8 | G184: ='III Tool Overview'!$H$9/110 -> 0 | H184: =IF('III Tool Overview'!$H$10="Even distribution",Targeting!C182,IF('III Tool Overview'!$H$10="Targeting to Q1",Targeting!D182,IF('III Tool Overview'!$H$10="Targeting to Q1 & Q2",Targeting!E182,IF('III Tool Overview'!$H$10="Proportionate to need",Targeting!F182)))) -> 1387.974912 | I184: 134.6862104 | J184: 134.6099202 | K184: 594.3979638 | L184: 594.0638998 | M184: 1582.258257 | N184: 1581.384154 | O184: 4718.027366 | P184: 4715.569275 | Q184: 6330.251889 | R184: 6326.66625 | S184: 3.585639373 | T184: 26997.79983 | U184: 26982.62439 | V184: 15.17543755 | W184: 67377.32081 | X184: 67340.06326 | Y184: 37.25754313 | Z184: 170926.4771 | AA184: 170836.7485 | AB184: 89.72852421 | AO184: =HLOOKUP('III Tool Overview'!$H$6,LookUpData_Pop!$B$1:$AV$269,LookUpData_Pop!BB180,FALSE) -> 181789 | AP184: 22.00719543 | AR184: 181789 | AZ184: 0.0001210590048 | BA184: 0 | BC184: =(AP184/AO184)*LookUpData_Pop!$B$287 -> 0.8474130338 | BD184: =(AQ184/AP184)*LookUpData_Pop!$B$287 -> 0 | BF184: 0.5 | BG184: 5
